Workbook

Sheet Instructions
I2: Validation - Croisement des tables
B3: Instructions:
A4: 1 | B4: Dupliquer votre modèle de détermination avant de passer aux étapes suivantes. | I4: Ovoltotrec | J4: Rapport GTYF | K4: Rapport ECONO
A5: 2 | B5: Coller les OUTPUTs ci-dessous dans votre modèle de détermination. | I5: =VLOOKUP("Ovoltotrec",Output!$C:$AM,8,FALSE) -> 1352500 | J5: =VLOOKUP("OVOLTOTREC",GTYF!$C:$AQ,8,FALSE)=I5 -> TRUE | K5: =VLOOKUP("OVOLTOTREC",Econo!$C:$AQ,8,FALSE)=I5 -> TRUE
B6: Outputs pour Cahier_Détermination_2023
A7: 3 | B7: Ajouter l'agrégat FCIMPROD_SNAT au thème 5 de la section LANSCAPE de votre modèle et les courbes SNAT
B8: *AGGREGATE FCIMPROD_SNAT FCxxxx
A9: 4 | B9: Copier coller la syntaxe TARGET_GTYF_DET, TARGET_ECONO, TARGET AREA, TARGET DETAIL (voir plus bas) dans la section "Reports" du scénario de détermination.
B10: *TARGET GTYF_DET.dbf
B11: *TARGET_ECONO.dbf
B12: *TARGET AREA.dbf et *TARGET DETAIL.dbf
A13: 5 | B13: Insérer la syntaxe économique dans les sections Output, Lanscape, …
A14: 6 | B14: Compiler le scénario (Faire une fleche sur vos scénarios)
A15: 7 | B15: Ouvrir vos rapports Output, GTYF et ECONO directement de WS. Contrôle A --> Contrôle C
A16: 8 | B16: Copier/coller vos rapports Output, GTYF et ECONO dans les onglets appropriés. Attention de respecter le nombres de colonnes. Les onglets Output, GTYF et ECONO sont préformatés et contiennent des formules aux colonnes AM à AP.
A17: 9 | B17: Valider que la cellule I5 indique vrai lorsque vous aurez collé vos données dans les onglets "Output", "GTYF" et ÉCONO" pour s'assurer que les données proviennent de la même optimisation.
A18: 10 | B18: Utiliser le fichier DBF pour copier/coller votre calendrier de COS dans l'onglet Cedule_COS et y ajouter les COS absents (COS fermés ou toujours ouverts) et compléter leur calendrier par des "0" ou des "1".
A19: 11 | B19: Compléter toutes les cellules et onglets de couleur | D19: jaune
A20: 12 | B20: Notez que les tableaux 9, 10, 13, 15 et 17 ont des instructions particulières

Sheet Suivi_modif
B2: Modifications apportées au cahier:
B3: Version originale (v1) | C3: Version de départ
B4: Version modifiée 2 novembre 2021 (v2) | C4: Correction du calcul de % de sapin en P0 (cellule O9)
B5: Version modifiée 4 novembre 2021 (v3) | C5: Correction du % récolte volume sur pied destiné à l'aménagement (Tableau - CelluleV59)
B6: Version modifiée 4 novembre 2021 (v3) | C6: Correction des valideurs Vrai/Faux (Tableau - Cellule W101, W102, W103)
B7: Version modifiée 8 novembre 2021 (v4) | C7: Onglet "UTA" - Amélioration de la syntaxe des rechercheV
B8: Version modifiée 8 novembre 2021 (v4) | C8: Tableau 3 - ligne 50: changé la police de caractère pour du Arial
B9: Version modifiée 9 novembre 2021 (v5) | C9: Onglet "Target_ECONO": La syntaxe du rapport a été corrigée.
B10: Version modifiée 11 novembre 2021 (v6) | C10: Tableau 1 - Entente Crie - Correction pour considérer le code "EXEC" pour les UA avec Entente Crie
B11: Version modifiée 15 novembre 2021 (v7) | C11: Tableau 3 - ligne 49 en caractère gras - ligne 51 en caractère normal
B12: Version modifiée 19 novembre 2021 (v8) | C12: Tableau 9 - Dernière ligne du tableau effacée | D12: Intégré 2021-11-28
B13: Version modifiée 22 novembre 2021 (v9) | C13: Tableau 4 - Première colonne (ha/an) changé la mise en forme pour avoir des 0 ha/an au lieu de "-" Voir figure --> Format: Nombre - Utiliser séparateur de millier - sans décimales | D13: Intégré 2021-11-29
B14: Version modifiée 25 novembre 2021 (v10) | C14: Tableau 8, cellules G102 (Coupes partielles de peuplements résineux) et G103 (Coupes partielles de peuplements de feuillus tolérants et de pins) arrondies à la dizaine près et ajouté note en bas | D14: Intégré 2021-11-30

Sheet Tableaux
T1: Instructions : Compléter les cellules oranges | AB1: Avec l'utilisation de l'outil à Éric
B2: PROER1 : vous pouvez utiliser l'outil FoxPro pour compléter les cellules oranges : | T2: 1) Cellule V11 : Inscrire la superficie totale brute de la carte WS | AB2: 452817.7
B3: l'outil intérroge la carte Woodstock et met les valeurs dans un fichier Excel | T3: 2) Cellule V15 : Inscrire la superficie WS des GS RP1 et RP2 (ça ne devrait être que du EXEX et EXTI) | AB3: 0
B4: interroge_carte_WS_pour cahier_analyse.FXP | T4: 3) Cellule V24 : Inscrire la superficie WS des GS RP3 à RP9 sur INC | AB4: 22776
B5: T:\Donnees\Courant\CPF_2023-2028\Comite_Vague_2\30_Phase1\32_Sce1\Outils | T5: 4) Cellule V25 : Inscrire la superficie WS des GS SNAT sur INC (qui ne sont pas des RP) | AB5: 22563.4
T6: 5) Cellules L20 à S21 : Inscrire la superficie de la carte WS pour chacune des cases oranges
B7: Catégories | I7: Superficie | Z7: Total | AA7: Sup_aff | AB7: 444
I8: ha | J8: % | V8: Période | Z8: Total | AA8: Sup_empche | AB8: 4000
B9: Superficie totale du territoire d'analyse (EXHU exclu) | I9: =V11-V16 -> 420536.6 | J9: =IFERROR(I9/I9,"-") -> 1 | S9: =LEFT(B$25,10) -> Tableau 1. | T9: Output | U9: Superficie | V9: 0 | Z9: Total | AA9: Sup_ecot | AB9: 1502.6
B10: Pertes (emprise chemin, écotone, improductif) | I10: =U20+V20+Y20 -> 6487.6 | J10: =I10/I9 -> 0.01542695689 | S10: =LEFT(B$25,10) -> Tableau 1. | T10: OSUPTOT | U10: WS | V10: =VLOOKUP(T10,Output!$C:$H,6,FALSE) -> 446330.1 | Z10: INC | AA10: Sup_brivAB | AB10: 7134.5
B11: Territoire improductif (EXEX + EXTI) | I11: =SUM(V13:V14) -> 92866.5 | J11: =I11/I9 -> 0.2208285795 | S11: Tableau 1. | U11: Brute | V11: =AB2 -> 452817.7 | X11: Sup_soustraite : | Y11: =T20+U20+V20+Y20+AA20 -> 7128.8 | Z11: INC | AA11: Sup_brivCD | AB11: 4812.3
B12: sans possibilité de remise en production | I12: =I11-I13 -> 92866.5 | J12: - | S12: Tableau 1. | U12: pertes | V12: =U20+V20+Y20 -> 6487.6 | X12: Sup nette : | Y12: =V11-Y11 -> 445688.9 | Z12: Total | AA12: Sup_impro | AB12: 985
B13: avec possibilité de remise en production (RP1 et RP2) | I13: =V15 -> 0 | J13: - | S13: Tableau 1. | T13: OSUPEXEX | U13: EXEX | V13: =VLOOKUP(T13,Output!$C:$H,6,FALSE) -> 42740.6 | Z13: Total | AA13: Sup_pentf | AB13: 197.2
S14: Tableau 1. | T14: OSUPEXTI | U14: EXTI | V14: =VLOOKUP(T14,Output!$C:$H,6,FALSE) -> 50125.9 | Z14: INC | AA14: Sup_pentf | AB14: 118.6
B15: Territoire inclus dans l’UA mais exclu des activités d'aménagement (EXIN) | I15: =V17+X17+Y17 -> 26227.1 | J15: =I15/I9 -> 0.06236579646 | S15: Tableau 1. | U15: RP1/RP2 | V15: =AB3 -> 0 | X15: Superficie | Y15: sup_redu
B16: pentes abruptes et sommets (codes F et S) --> potentiellement récoltables | I16: =AA21 -> 118.6 | J16: - | S16: Tableau 1. | T16: OSUPEXHU | U16: EXHU | V16: =VLOOKUP(T16,Output!$C:$H,6,FALSE) -> 32281.1 | X16: EXEC | Y16: EXEC
B17: bandes riveraines (densité AB) --> potentiellement récoltables | I17: =W21 -> 7134.5 | J17: - | S17: Tableau 1. | T17: OSUPEXIN | U17: EXIN | V17: =VLOOKUP(T17,Output!$C:$H,6,FALSE) -> 24626.6 | X17: 1533.5 | Y17: 67
B18: bandes riveraines (densité CD) --> potentiellement récoltables | I18: =X21 -> 4812.3 | J18: - | S18: Tableau 1. | T18: ↓ | U18: ↓ | V18: ↓ | Y18: ↓ | AA18: ↓
B19: autres | I19: =I15-I16-I17-I18 -> 14161.7 | S19: Tableau 1. | T19: Sup_aff | U19: Sup_empche | V19: Sup_ecot | W19: Sup_brivAB | X19: Sup_brivCD | Y19: Sup_impro | Z19: Sup_aut | AA19: Sup_pentf
B20: Territoire destiné à l'aménagement forestier (INC) | I20: =V22 -> 294955.4 | J20: =I20/I9 -> 0.7013786672 | S20: Tableau 1. | T20: =AB7 -> 444 | U20: =AB8 -> 4000 | V20: =AB9 -> 1502.6 | Y20: =AB12 -> 985 | AA20: =AB13 -> 197.2 | AB20: Total
B21: forestier exploitable | I21: =V22-I22-I23 -> 249616 | J21: - | S21: Tableau 1. | W21: =AB10 -> 7134.5 | X21: =AB11 -> 4812.3 | AA21: =AB14 -> 118.6 | AB21: INC
B22: forestier inexploitable avec possibilité de remise en production (RP3 à RP15) | I22: =V24 -> 22776 | J22: - | S22: Tableau 1. | T22: OSUPINC | U22: INC | V22: =VLOOKUP(T22,Output!$C:$H,6,FALSE) -> 294955.4
B23: forestier inexploitable sans possibilité de remise en production (SNAT) | I23: =V25 -> 22563.4 | J23: - | S23: Tableau 1.
S24: Tableau 1. | U24: RP3 à RP9 | V24: =AB4 -> 22776
B25: Tableau 1. Répartition de la superficie de l'unité d'aménagement pas catégorie de territoire | S25: Tableau 1. | U25: SNAT | V25: =AB5 -> 22563.4
B26: Catégories | F26: Superficies
F27: Hectares | G27: %
B28: Superficie totale de l’unité d’aménagement | F28: =ROUND(I9,-1) -> 420540 | G28: =F28/F28 -> 1
B29: Retraits de superficie
B30: Territoire non forestier | F30: =ROUND(I10+I11,-1) -> 99350 | G30: =F30/F28 -> 0.2362438769
B31: Territoire forestier peu productif (30 à 50 m³/ha) | F31: =ROUND(I22+I23,-1) -> 45340 | G31: =F31/F28 -> 0.1078137633
B32: Territoire forestier exclu de l’aménagement | F32: =ROUND(F28-F30-F31-F33,-1) -> 26230 | G32: =F32/F28 -> 0.06237218814 | N32: À compléter UA : | O32: UA:
B33: Superficie destinée à l’aménagement forestier | F33: =ROUND(I21,-1) -> 249620 | G33: =F33/F28 -> 0.5935701717 | O33: 08764 | T33: Légende | U33: Output | V33: P2@P6
S34: =LEFT(B$46,10) -> Tableau 3. | T34: Sepm | U34: OVOLGSEPMREC | V34: =IFERROR(VLOOKUP($U34,Output!$C:$AM,37,FALSE)/5,0) -> 244350.1
S35: Tableau 3.
S36: Tableau 3. | T36: Tho | U36: OVOLTHOREC | V36: =IFERROR(VLOOKUP($U36,Output!$C:$AM,37,FALSE)/5,0) -> 4.516
S37: Tableau 3. | T37: Pru | U37: OVOLPRUREC | V37: =IFERROR(VLOOKUP($U37,Output!$C:$AM,37,FALSE)/5,0) -> 0
S38: Tableau 3. | T38: Pins | U38: OVOLGPINSREC | V38: =IFERROR(VLOOKUP($U38,Output!$C:$AM,37,FALSE)/5,0) -> 5.3852
S39: Tableau 3. | T39: Peu | U39: OVOLGPEUREC | V39: =IFERROR(VLOOKUP($U39,Output!$C:$AM,37,FALSE)/5,0) -> 15076.6964
S40: Tableau 3. | T40: Bop | U40: OVOLGBPREC | V40: =IFERROR(VLOOKUP($U40,Output!$C:$AM,37,FALSE)/5,0) -> 11063.3036
S41: Tableau 3. | T41: Boj | U41: OVOLBOJREC | V41: =IFERROR(VLOOKUP($U41,Output!$C:$AM,37,FALSE)/5,0) -> 0
S42: Tableau 3. | T42: Ers | U42: OVOLERSREC | V42: =IFERROR(VLOOKUP($U42,Output!$C:$AM,37,FALSE)/5,0) -> 0
S43: Tableau 3. | T43: Err | U43: OVOLGEROREC | V43: =IFERROR(VLOOKUP($U43,Output!$C:$AM,37,FALSE)/5,0) -> 0
S44: Tableau 3. | T44: Autre .F. (Auf) | V44: =V47-V42-V41 -> 0
S45: Tableau 3. | T45: résineux | U45: OVOLGRREC | V45: =IFERROR(VLOOKUP($U45,Output!$C:$AM,37,FALSE)/5,0) -> 244360
B46: Tableau 3. Possibilités forestières par essence ou par groupe d’essences et écart avec la période 2018-2023 | S46: Tableau 3. | T46: intolérant | U46: OVOLGFIREC | V46: =IFERROR(VLOOKUP($U46,Output!$C:$AM,37,FALSE)/5,0) -> 26140
B47: Périodes | C47: ="Possibilités forestières (m"&CHAR(179)&" bruts/an)" -> Possibilités forestières (m³ bruts/an) | S47: Tableau 3. | T47: Tolérant | U47: OVOLGFTREC | V47: =IFERROR(VLOOKUP($U47,Output!$C:$AM,37,FALSE)/5,0) -> 0
C48: SEPM | D48: Thuya | E48: Pruche | F48: Pins blanc et rouge | G48: Peupliers | H48: Bouleau à papier | I48: Bouleau jaune | J48: Érables à sucre et rouge | K48: Autres feuillus durs | L48: Total | N48: Possibilité forestière unitaire (PAC / Sup destinée à l'aménagement) | S48: Tableau 3. | T48: Total récoltés | U48: OVOLTOTREC | V48: =IFERROR(VLOOKUP($U48,Output!$C:$AM,37,FALSE)/5,0) -> 270500
B49: 2023-2028 | C49: =ROUND(V$34,-2) -> 244400 | D49: =ROUND(V$36,-2) -> 0 | E49: =ROUND(V$37,-2) -> 0 | F49: =ROUND(V$38,-2) -> 0 | G49: =ROUND(V$39,-2) -> 15100 | H49: =ROUND(V$40,-2) -> 11100 | I49: =ROUND(V$41,-2) -> 0 | J49: =ROUND(V$50,-2) -> 0 | K49: =ROUND(V$44,-2) -> 0 | L49: =SUM(C49:K49) -> 270600 | N49: =V57 -> 1.083647144 | S49: Tableau 3. | T49: FN sur pied | U49: OVOLGFNREC | V49: =IFERROR(VLOOKUP($U49,Output!$C:$AM,37,FALSE)/5,0) -> 0
C50: =C49/$L$49 -> 0.9031781227 | D50: 0 | E50: 0 | F50: 0 | G50: 0.05580192166 | H50: 0.04101995565 | I50: 0 | J50: 0 | K50: 0 | L50: =SUM(C50:K50) -> 1 | S50: Tableau 3. | T50: ER | V50: =V42+V43 -> 0
B51: 2018-2023 | C51: =VLOOKUP($O$33,DataLocal!$A$6:$W$35,13,FALSE) -> 262400 | D51: =VLOOKUP($O$33,DataLocal!$A$6:$W$35,14,FALSE) -> 100 | E51: =VLOOKUP($O$33,DataLocal!$A$6:$W$35,15,FALSE) -> 0 | F51: =VLOOKUP($O$33,DataLocal!$A$6:$W$35,16,FALSE) -> 0 | G51: =VLOOKUP($O$33,DataLocal!$A$6:$W$35,17,FALSE) -> 31500 | H51: =VLOOKUP($O$33,DataLocal!$A$6:$W$35,18,FALSE) -> 17200 | I51: =VLOOKUP($O$33,DataLocal!$A$6:$W$35,19,FALSE) -> 0 | J51: =VLOOKUP($O$33,DataLocal!$A$6:$W$35,20,FALSE) -> 0 | K51: =VLOOKUP($O$33,DataLocal!$A$6:$W$35,21,FALSE) -> 0 | L51: =VLOOKUP($O$33,DataLocal!$A$6:$W$35,23,FALSE) -> 311200 | N51: % du volume sur pied initial | S51: Tableau 3. | U51: OVOLSABREC | V51: =IFERROR(VLOOKUP($U51,Output!$C:$AM,37,FALSE)/5,0) -> 24228.3844
B52: Écart | C52: =IFERROR((C49/C$51)-1,0) -> -0.06859756098 | D52: -1 | E52: 0 | F52: 0 | G52: -0.5206349206 | H52: -0.3546511628 | I52: 0 | J52: 0 | K52: 0 | L52: -0.1304627249 | N52: =V59 -> 0.01773247239 | S52: Tableau 3. | U52: OVOLGEPXREC | V52: =IFERROR(VLOOKUP($U52,Output!$C:$AM,37,FALSE)/5,0) -> 180346.4588
B53: ="Répartition de la composante SEPM des possibilités forestières 2023-2028 : sapin ("&IFERROR(ROUND(V51/V34*100,0),0)&"%), épinettes ("&IFERROR(ROUND(V52/V34*100,0),0)&"%), pin gris ("&IFERROR(ROUND(V53/V34*100,0),0)&"%) et mélèzes ("&IFERROR(ROUND(V54/V34*100,0),0)&"%)." -> Répartition de la composante SEPM des possibilités forestières 2023-2028 : sapin (10%), épinettes (74%), pin gris (16%) et mélèzes (0%). | S53: Tableau 3. | U53: OVOLGPGREC | V53: =IFERROR(VLOOKUP($U53,Output!$C:$AM,37,FALSE)/5,0) -> 38873.0324
B54: ="Répartition de la composante Érables à sucre et rouge des possibilités forestières 2023-2028 : érable à sucre("&IFERROR(ROUND(V42/(V42+V43)*100,0),0)&"%) et érable rouge ("&IFERROR(ROUND(V43/(V42+V43)*100,0),0)&"%)." -> Répartition de la composante Érables à sucre et rouge des possibilités forestières 2023-2028 : érable à sucre(0%) et érable rouge (0%). | S54: Tableau 3. | U54: OVOLGMLREC | V54: =IFERROR(VLOOKUP($U54,Output!$C:$AM,37,FALSE)/5,0) -> 902.2236
B55: Copier/Coller le tableau ci-dessus avec les lignes 53 et 54 | S55: Tableau 3. | U55: OSUPINC | V55: =IFERROR(VLOOKUP($U55,Output!$C:$AM,6,FALSE),0) -> 294955.4
S56: Tableau 3. | U56: OVOLTOTPIEDINC | V56: =IFERROR(VLOOKUP($U56,Output!$C:$AM,7,FALSE),0) -> 16056677.67
S57: Tableau 3. | U57: Possibilité forestière unitaire | V57: =IFERROR(V48/F33,0) -> 1.083647144
S58: Tableau 3. | U58: % récolte volume sur pied
U59: % récolte volume sur pied destiné à l'aménagement | V59: =V48/Figures!V19 -> 0.01773247239
B61: Tableau 4. Répartition des superficies récoltées et des possibilités forestières par grand type de forêt
B62: Grands types de forêt | D62: Superficie récoltée* | H62: Possibilités forestières* | S62: =LEFT(B$61,10) -> Tableau 4. | V62: Output total non arrondi | W62: Écart entre la somme du tableau et le output total
D63: Coupes totales | F63: Coupes partielles | H63: Résineux | J63: Feuillus tolérants | L63: Feuillus intolérants | N63: Total | S63: Tableau 4. | T63: Total | Z63: P2 à P6
D64: ha/an | E64: % | F64: ha/an | G64: % | H64: m³ bruts/an | I64: % | J64: ="m"&CHAR(179)&" bruts/an" -> m³ bruts/an | K64: % | L64: ="m"&CHAR(179)&" bruts/an" -> m³ bruts/an | M64: % | N64: ="m"&CHAR(179)&" bruts/an" -> m³ bruts/an | O64: % | S64: Tableau 4. | T64: ha/an | U64: % | Y64: Famille de courbe | Z64: OSUPINC | AA64: OSUPREALREGAFIN | AB64: OSUPREALREGAPAR | AC64: OSUPREALREGAPRE | AD64: OVOLGRREC | AE64: OVOLGAURREC | AF64: OVOLGFIREC | AG64: OVOLGFTREC | AH64: OVOLTOTREC
B65: Bétulaies blanches | D65: =ROUND(AA65/5,-1) -> 10 | E65: =IFERROR(D65/D$79,0) -> 0.004329004329 | F65: =ROUND(AB65/5,-1) -> 0 | G65: =IFERROR(F65/F$79,0) -> 0 | H65: =ROUND(AD65/5,-2) -> 100 | I65: =IFERROR(H65/H$79,0) -> 0.0004095004095 | J65: =ROUND(AG65/5,-2) -> 0 | K65: =IFERROR(J65/J$79,0) -> 0 | L65: =ROUND(AF65/5,-2) -> 700 | M65: =L65/L$79 -> 0.02681992337 | N65: =H65+J65+L65 -> 800 | O65: =N65/$N$79 -> 0.002959674436 | S65: Tableau 4. | T65: =D65+F65 -> 10 | U65: =IFERROR(T65/T$79,0) -> 0.004098360656 | V65: =(AA65+AB65)/5 -> 7.812 | W65: =T65-V65 -> 2.188 | Y65: (FCTYF_BOP) | Z65: =VLOOKUP(Z$64&$Y65,GTYF!$C:$AP,6,FALSE) -> 3643 | AA65: =VLOOKUP(AA$64&$Y65,GTYF!$C:$AP,37,FALSE) -> 39.06 | AB65: =VLOOKUP(AB$64&$Y65,GTYF!$C:$AP,37,FALSE) -> 0 | AC65: =VLOOKUP(AC$64&$Y65,GTYF!$C:$AP,37,FALSE) -> 39.06 | AD65: =VLOOKUP(AD$64&$Y65,GTYF!$C:$AP,37,FALSE) -> 494.014 | AE65: =VLOOKUP(AE$64&$Y65,GTYF!$C:$AP,37,FALSE) -> 0 | AF65: =VLOOKUP(AF$64&$Y65,GTYF!$C:$AP,37,FALSE) -> 3611.054 | AG65: =VLOOKUP(AG$64&$Y65,GTYF!$C:$AP,37,FALSE) -> 0 | AH65: =VLOOKUP(AH$64&$Y65,GTYF!$C:$AP,37,FALSE) -> 4105.068
B66: Bétulaies blanches à résineux | D66: 50 | E66: =IFERROR(D66/D$79,0) -> 0.02164502165 | F66: 0 | G66: =IFERROR(F66/F$79,0) -> 0 | H66: =ROUND(AD66/5,-2) -> 2600 | I66: =IFERROR(H66/H$79,0) -> 0.01064701065 | J66: =ROUND(AG66/5,-2) -> 0 | K66: 0 | L66: =ROUND(AF66/5,-2) -> 3700 | M66: =L66/L$79 -> 0.1417624521 | N66: =H66+J66+L66 -> 6300 | O66: 0.02330743618 | S66: Tableau 4. | T66: 50 | U66: =IFERROR(T66/T$79,0) -> 0.02049180328 | V66: =(AA66+AB66)/5 -> 45.1688 | W66: 4.8312 | Y66: (FCTYF_BOPR) | Z66: =VLOOKUP(Z$64&$Y66,GTYF!$C:$AP,6,FALSE) -> 4239.2 | AA66: =VLOOKUP(AA$64&$Y66,GTYF!$C:$AP,37,FALSE) -> 225.844 | AB66: =VLOOKUP(AB$64&$Y66,GTYF!$C:$AP,37,FALSE) -> 0 | AC66: =VLOOKUP(AC$64&$Y66,GTYF!$C:$AP,37,FALSE) -> 225.844 | AD66: =VLOOKUP(AD$64&$Y66,GTYF!$C:$AP,37,FALSE) -> 13146.968 | AE66: =VLOOKUP(AE$64&$Y66,GTYF!$C:$AP,37,FALSE) -> 0 | AF66: =VLOOKUP(AF$64&$Y66,GTYF!$C:$AP,37,FALSE) -> 18312.664 | AG66: =VLOOKUP(AG$64&$Y66,GTYF!$C:$AP,37,FALSE) -> 0 | AH66: =VLOOKUP(AH$64&$Y66,GTYF!$C:$AP,37,FALSE) -> 31459.628
B67: Cédrières | D67: 0 | E67: 0 | F67: 0 | G67: 0 | H67: =ROUND(AD67/5,-2) -> 0 | I67: 0 | J67: 0 | K67: 0 | L67: 0 | M67: 0 | N67: 0 | O67: 0 | S67: Tableau 4. | T67: 0 | U67: 0 | V67: =(AA67+AB67)/5 -> 0 | W67: 0 | Y67: (FCTYF_THO) | Z67: =VLOOKUP(Z$64&$Y67,GTYF!$C:$AP,6,FALSE) -> 0 | AA67: =VLOOKUP(AA$64&$Y67,GTYF!$C:$AP,37,FALSE) -> 0 | AB67: =VLOOKUP(AB$64&$Y67,GTYF!$C:$AP,37,FALSE) -> 0 | AC67: =VLOOKUP(AC$64&$Y67,GTYF!$C:$AP,37,FALSE) -> 0 | AD67: =VLOOKUP(AD$64&$Y67,GTYF!$C:$AP,37,FALSE) -> 0 | AE67: =VLOOKUP(AE$64&$Y67,GTYF!$C:$AP,37,FALSE) -> 0 | AF67: =VLOOKUP(AF$64&$Y67,GTYF!$C:$AP,37,FALSE) -> 0 | AG67: =VLOOKUP(AG$64&$Y67,GTYF!$C:$AP,37,FALSE) -> 0 | AH67: =VLOOKUP(AH$64&$Y67,GTYF!$C:$AP,37,FALSE) -> 0
B68: Érablières rouges | D68: 0 | E68: 0 | F68: 0 | G68: 0 | H68: 0 | I68: 0 | J68: 0 | K68: 0 | L68: 0 | M68: 0 | N68: 0 | O68: 0 | S68: Tableau 4. | T68: 0 | U68: 0 | V68: =(AA68+AB68)/5 -> 0 | W68: 0 | Y68: (FCTYF_ERO) | Z68: =VLOOKUP(Z$64&$Y68,GTYF!$C:$AP,6,FALSE) -> 0 | AA68: =VLOOKUP(AA$64&$Y68,GTYF!$C:$AP,37,FALSE) -> 0 | AB68: =VLOOKUP(AB$64&$Y68,GTYF!$C:$AP,37,FALSE) -> 0 | AC68: =VLOOKUP(AC$64&$Y68,GTYF!$C:$AP,37,FALSE) -> 0 | AD68: =VLOOKUP(AD$64&$Y68,GTYF!$C:$AP,37,FALSE) -> 0 | AE68: =VLOOKUP(AE$64&$Y68,GTYF!$C:$AP,37,FALSE) -> 0 | AF68: =VLOOKUP(AF$64&$Y68,GTYF!$C:$AP,37,FALSE) -> 0 | AG68: =VLOOKUP(AG$64&$Y68,GTYF!$C:$AP,37,FALSE) -> 0 | AH68: =VLOOKUP(AH$64&$Y68,GTYF!$C:$AP,37,FALSE) -> 0
B69: Feuillus tolérants | D69: 0 | E69: 0 | F69: 0 | G69: 0 | H69: 0 | I69: 0 | J69: 0 | K69: 0 | L69: 0 | M69: 0 | N69: 0 | O69: 0 | S69: Tableau 4. | T69: 0 | U69: 0 | V69: 0 | W69: 0 | Y69: (FCTYF_FT) | Z69: =VLOOKUP(Z$64&$Y69,GTYF!$C:$AP,6,FALSE) -> 0 | AA69: =VLOOKUP(AA$64&$Y69,GTYF!$C:$AP,37,FALSE) -> 0 | AB69: =VLOOKUP(AB$64&$Y69,GTYF!$C:$AP,37,FALSE) -> 0 | AC69: =VLOOKUP(AC$64&$Y69,GTYF!$C:$AP,37,FALSE) -> 0 | AD69: =VLOOKUP(AD$64&$Y69,GTYF!$C:$AP,37,FALSE) -> 0 | AE69: =VLOOKUP(AE$64&$Y69,GTYF!$C:$AP,37,FALSE) -> 0 | AF69: =VLOOKUP(AF$64&$Y69,GTYF!$C:$AP,37,FALSE) -> 0 | AG69: =VLOOKUP(AG$64&$Y69,GTYF!$C:$AP,37,FALSE) -> 0 | AH69: =VLOOKUP(AH$64&$Y69,GTYF!$C:$AP,37,FALSE) -> 0
B70: Feuillus tolérants à résineux | D70: 0 | E70: 0 | F70: 0 | G70: 0 | H70: 0 | I70: 0 | J70: 0 | K70: 0 | L70: 0 | M70: 0 | N70: 0 | O70: 0 | S70: Tableau 4. | T70: 0 | U70: 0 | V70: 0 | W70: 0 | Y70: (FCTYF_FTR) | Z70: =VLOOKUP(Z$64&$Y70,GTYF!$C:$AP,6,FALSE) -> 0 | AA70: =VLOOKUP(AA$64&$Y70,GTYF!$C:$AP,37,FALSE) -> 0 | AB70: =VLOOKUP(AB$64&$Y70,GTYF!$C:$AP,37,FALSE) -> 0 | AC70: =VLOOKUP(AC$64&$Y70,GTYF!$C:$AP,37,FALSE) -> 0 | AD70: =VLOOKUP(AD$64&$Y70,GTYF!$C:$AP,37,FALSE) -> 0 | AE70: =VLOOKUP(AE$64&$Y70,GTYF!$C:$AP,37,FALSE) -> 0 | AF70: =VLOOKUP(AF$64&$Y70,GTYF!$C:$AP,37,FALSE) -> 0 | AG70: =VLOOKUP(AG$64&$Y70,GTYF!$C:$AP,37,FALSE) -> 0 | AH70: =VLOOKUP(AH$64&$Y70,GTYF!$C:$AP,37,FALSE) -> 0
B71: Pessières | D71: =ROUND(AA71/5,-1) -> 1680 | E71: 0.7272727273 | F71: 130 | G71: 1 | H71: 183500 | I71: 0.7514332514 | J71: 0 | K71: 0 | L71: 6200 | M71: 0.2375478927 | N71: 189700 | O71: 0.7018128006 | S71: Tableau 4. | T71: 1810 | U71: 0.7418032787 | V71: 1812.0036 | W71: =T71-V71 -> -2.0036 | Y71: (FCTYF_EPX) | Z71: =VLOOKUP(Z$64&$Y71,GTYF!$C:$AP,6,FALSE) -> 167453.2 | AA71: =VLOOKUP(AA$64&$Y71,GTYF!$C:$AP,37,FALSE) -> 8420.018 | AB71: =VLOOKUP(AB$64&$Y71,GTYF!$C:$AP,37,FALSE) -> 640 | AC71: =VLOOKUP(AC$64&$Y71,GTYF!$C:$AP,37,FALSE) -> 9060.018 | AD71: =VLOOKUP(AD$64&$Y71,GTYF!$C:$AP,37,FALSE) -> 917744.282 | AE71: =VLOOKUP(AE$64&$Y71,GTYF!$C:$AP,37,FALSE) -> 22.58 | AF71: =VLOOKUP(AF$64&$Y71,GTYF!$C:$AP,37,FALSE) -> 31180.886 | AG71: =VLOOKUP(AG$64&$Y71,GTYF!$C:$AP,37,FALSE) -> 0 | AH71: =VLOOKUP(AH$64&$Y71,GTYF!$C:$AP,37,FALSE) -> 948925.168
B72: Peupleraies | D72: 30 | E72: 0.01298701299 | F72: 0 | G72: 0 | H72: 600 | I72: 0.002457002457 | J72: 0 | K72: 0 | L72: 3800 | M72: 0.1455938697 | N72: 4400 | O72: 0.0162782094 | S72: Tableau 4. | T72: 30 | U72: 0.01229508197 | V72: 30.992 | W72: -0.992 | Y72: (FCTYF_PEU) | Z72: =VLOOKUP(Z$64&$Y72,GTYF!$C:$AP,6,FALSE) -> 6730.6 | AA72: =VLOOKUP(AA$64&$Y72,GTYF!$C:$AP,37,FALSE) -> 154.96 | AB72: =VLOOKUP(AB$64&$Y72,GTYF!$C:$AP,37,FALSE) -> 0 | AC72: =VLOOKUP(AC$64&$Y72,GTYF!$C:$AP,37,FALSE) -> 154.96 | AD72: =VLOOKUP(AD$64&$Y72,GTYF!$C:$AP,37,FALSE) -> 2891.268 | AE72: =VLOOKUP(AE$64&$Y72,GTYF!$C:$AP,37,FALSE) -> 0 | AF72: =VLOOKUP(AF$64&$Y72,GTYF!$C:$AP,37,FALSE) -> 18913.202 | AG72: =VLOOKUP(AG$64&$Y72,GTYF!$C:$AP,37,FALSE) -> 0 | AH72: =VLOOKUP(AH$64&$Y72,GTYF!$C:$AP,37,FALSE) -> 21804.47
B73: Peupleraies à résineux | D73: 40 | E73: 0.01731601732 | F73: 0 | G73: 0 | H73: 2800 | I73: 0.01146601147 | J73: 0 | K73: 0 | L73: 3500 | M73: 0.1340996169 | N73: 6300 | O73: 0.02330743618 | S73: Tableau 4. | T73: 40 | U73: 0.01639344262 | V73: 42.494 | W73: -2.494 | Y73: (FCTYF_PEUR) | Z73: =VLOOKUP(Z$64&$Y73,GTYF!$C:$AP,6,FALSE) -> 4949.2 | AA73: =VLOOKUP(AA$64&$Y73,GTYF!$C:$AP,37,FALSE) -> 212.47 | AB73: =VLOOKUP(AB$64&$Y73,GTYF!$C:$AP,37,FALSE) -> 0 | AC73: =VLOOKUP(AC$64&$Y73,GTYF!$C:$AP,37,FALSE) -> 212.47 | AD73: =VLOOKUP(AD$64&$Y73,GTYF!$C:$AP,37,FALSE) -> 13994.086 | AE73: =VLOOKUP(AE$64&$Y73,GTYF!$C:$AP,37,FALSE) -> 0 | AF73: =VLOOKUP(AF$64&$Y73,GTYF!$C:$AP,37,FALSE) -> 17606.976 | AG73: =VLOOKUP(AG$64&$Y73,GTYF!$C:$AP,37,FALSE) -> 0 | AH73: =VLOOKUP(AH$64&$Y73,GTYF!$C:$AP,37,FALSE) -> 31601.06
B74: Pinèdes blanches | D74: 0 | E74: 0 | F74: 0 | G74: 0 | H74: 0 | I74: 0 | J74: 0 | K74: 0 | L74: 0 | M74: 0 | N74: 0 | O74: 0 | S74: Tableau 4. | T74: 0 | U74: 0 | V74: 0 | W74: 0 | Y74: (FCTYF_PIN) | Z74: =VLOOKUP(Z$64&$Y74,GTYF!$C:$AP,6,FALSE) -> 0 | AA74: =VLOOKUP(AA$64&$Y74,GTYF!$C:$AP,37,FALSE) -> 0 | AB74: =VLOOKUP(AB$64&$Y74,GTYF!$C:$AP,37,FALSE) -> 0 | AC74: =VLOOKUP(AC$64&$Y74,GTYF!$C:$AP,37,FALSE) -> 0 | AD74: =VLOOKUP(AD$64&$Y74,GTYF!$C:$AP,37,FALSE) -> 0 | AE74: =VLOOKUP(AE$64&$Y74,GTYF!$C:$AP,37,FALSE) -> 0 | AF74: =VLOOKUP(AF$64&$Y74,GTYF!$C:$AP,37,FALSE) -> 0 | AG74: =VLOOKUP(AG$64&$Y74,GTYF!$C:$AP,37,FALSE) -> 0 | AH74: =VLOOKUP(AH$64&$Y74,GTYF!$C:$AP,37,FALSE) -> 0
B75: Pinèdes grises | D75: 240 | E75: 0.1038961039 | F75: 0 | G75: 0 | H75: 27400 | I75: 0.1122031122 | J75: 0 | K75: 0 | L75: 900 | M75: 0.03448275862 | N75: 28300 | O75: 0.1046984832 | S75: Tableau 4. | T75: 240 | U75: 0.09836065574 | V75: 244.9332 | W75: -4.9332 | Y75: (FCTYF_PIG) | Z75: =VLOOKUP(Z$64&$Y75,GTYF!$C:$AP,6,FALSE) -> 21430.8 | AA75: =VLOOKUP(AA$64&$Y75,GTYF!$C:$AP,37,FALSE) -> 1224.666 | AB75: =VLOOKUP(AB$64&$Y75,GTYF!$C:$AP,37,FALSE) -> 0 | AC75: =VLOOKUP(AC$64&$Y75,GTYF!$C:$AP,37,FALSE) -> 1224.666 | AD75: =VLOOKUP(AD$64&$Y75,GTYF!$C:$AP,37,FALSE) -> 137248.534 | AE75: =VLOOKUP(AE$64&$Y75,GTYF!$C:$AP,37,FALSE) -> 26.926 | AF75: =VLOOKUP(AF$64&$Y75,GTYF!$C:$AP,37,FALSE) -> 4571.91 | AG75: =VLOOKUP(AG$64&$Y75,GTYF!$C:$AP,37,FALSE) -> 0 | AH75: =VLOOKUP(AH$64&$Y75,GTYF!$C:$AP,37,FALSE) -> 141820.448
B76: Prucheraies | D76: 0 | E76: 0 | F76: 0 | G76: 0 | H76: 0 | I76: 0 | J76: 0 | K76: 0 | L76: 0 | M76: 0 | N76: 0 | O76: 0 | S76: Tableau 4. | T76: 0 | U76: 0 | V76: 0 | W76: 0 | Y76: (FCTYF_PRU) | Z76: =VLOOKUP(Z$64&$Y76,GTYF!$C:$AP,6,FALSE) -> 0 | AA76: =VLOOKUP(AA$64&$Y76,GTYF!$C:$AP,37,FALSE) -> 0 | AB76: =VLOOKUP(AB$64&$Y76,GTYF!$C:$AP,37,FALSE) -> 0 | AC76: =VLOOKUP(AC$64&$Y76,GTYF!$C:$AP,37,FALSE) -> 0 | AD76: =VLOOKUP(AD$64&$Y76,GTYF!$C:$AP,37,FALSE) -> 0 | AE76: =VLOOKUP(AE$64&$Y76,GTYF!$C:$AP,37,FALSE) -> 0 | AF76: =VLOOKUP(AF$64&$Y76,GTYF!$C:$AP,37,FALSE) -> 0 | AG76: =VLOOKUP(AG$64&$Y76,GTYF!$C:$AP,37,FALSE) -> 0 | AH76: =VLOOKUP(AH$64&$Y76,GTYF!$C:$AP,37,FALSE) -> 0
B77: Résineux à feuillus | D77: 140 | E77: 0.06060606061 | F77: 0 | G77: 0 | H77: 12100 | I77: 0.04954954955 | J77: 0 | K77: 0 | L77: 6200 | M77: 0.2375478927 | N77: 18300 | O77: 0.06770255272 | S77: Tableau 4. | T77: 140 | U77: 0.05737704918 | V77: 143.0756 | W77: -3.0756 | Y77: (FCTYF_RF) | Z77: =VLOOKUP(Z$64&$Y77,GTYF!$C:$AP,6,FALSE) -> 37161.3 | AA77: =VLOOKUP(AA$64&$Y77,GTYF!$C:$AP,37,FALSE) -> 715.378 | AB77: =VLOOKUP(AB$64&$Y77,GTYF!$C:$AP,37,FALSE) -> 0 | AC77: =VLOOKUP(AC$64&$Y77,GTYF!$C:$AP,37,FALSE) -> 715.378 | AD77: =VLOOKUP(AD$64&$Y77,GTYF!$C:$AP,37,FALSE) -> 60569.088 | AE77: =VLOOKUP(AE$64&$Y77,GTYF!$C:$AP,37,FALSE) -> 0 | AF77: =VLOOKUP(AF$64&$Y77,GTYF!$C:$AP,37,FALSE) -> 31083.826 | AG77: =VLOOKUP(AG$64&$Y77,GTYF!$C:$AP,37,FALSE) -> 0 | AH77: =VLOOKUP(AH$64&$Y77,GTYF!$C:$AP,37,FALSE) -> 91652.916
B78: Sapinières | D78: 120 | E78: 0.05194805195 | F78: 0 | G78: 0 | H78: 15100 | I78: 0.06183456183 | J78: =ROUND(AG78/5,-2) -> 0 | K78: 0 | L78: 1100 | M78: 0.04214559387 | N78: 16200 | O78: 0.05993340733 | S78: Tableau 4. | T78: 120 | U78: 0.04918032787 | V78: 118.6856 | W78: 1.3144 | Y78: (FCTYF_SAB) | Z78: =VLOOKUP(Z$64&$Y78,GTYF!$C:$AP,6,FALSE) -> 4008.7 | AA78: =VLOOKUP(AA$64&$Y78,GTYF!$C:$AP,37,FALSE) -> 593.428 | AB78: =VLOOKUP(AB$64&$Y78,GTYF!$C:$AP,37,FALSE) -> 0 | AC78: =VLOOKUP(AC$64&$Y78,GTYF!$C:$AP,37,FALSE) -> 593.428 | AD78: =VLOOKUP(AD$64&$Y78,GTYF!$C:$AP,37,FALSE) -> 75711.758 | AE78: =VLOOKUP(AE$64&$Y78,GTYF!$C:$AP,37,FALSE) -> 0 | AF78: =VLOOKUP(AF$64&$Y78,GTYF!$C:$AP,37,FALSE) -> 5419.486 | AG78: =VLOOKUP(AG$64&$Y78,GTYF!$C:$AP,37,FALSE) -> 0 | AH78: =VLOOKUP(AH$64&$Y78,GTYF!$C:$AP,37,FALSE) -> 81131.244
B79: Total | D79: =SUM(D65:D78) -> 2310 | E79: =SUM(E65:E78) -> 1 | F79: =SUM(F65:F78) -> 130 | G79: =SUM(G65:G78) -> 1 | H79: =SUM(H65:H78) -> 244200 | I79: =SUM(I65:I78) -> 1 | J79: 0 | K79: 0 | L79: 26100 | M79: 1 | N79: =SUM(N65:N78) -> 270300 | O79: 1 | S79: Tableau 4. | T79: =SUM(T65:T78) -> 2440 | U79: =SUM(U65:U78) -> 1 | V79: =SUM(V65:V78) -> 2445.1648 | W79: -5.1648 | Y79: Somme | Z79: =SUM(Z65:Z78) -> 249616 | AA79: =SUM(AA65:AA78) -> 11585.824 | AB79: =SUM(AB65:AB78) -> 640 | AC79: =SUM(AC65:AC78) -> 12225.824
B80: * Les superficies sont arrondies à la dizaine près et les volumes à la centaine près. Cette opération peut engendrer de légères distorsions sur les sommes | S80: Tableau 4. | Y80: Total (Output) | Z80: =VLOOKUP(Z$64,Output!$C:$AP,6,FALSE) -> 294955.4
Y81: Écart | Z81: =Z79-Z80 -> -45339.4
N82: Écart de possibilité
N83: =Instructions!I5/5-N79 -> 200 | O83: Valideur
B84: Tableau 8. Traitements commerciaux supportant les possibilités forestières
B85: Traitements commerciaux (récolte) | G85: Superficie annuelle moyenne (ha/an) | H85: Superficie antérieure (ha/an) | I85: Écart (ha/an)
T88: Légende | U88: Name | V88: PERIOD2@6
B89: Coupe avec protection de la régénération et des sols (CPRS) | G89: =IFERROR(ROUND(V89,-1),0)-G90-G91 -> 2320 | H89: =IFERROR(ROUND(VLOOKUP(O33,DataLocal!$A:$BH,37,FALSE),-1),0) -> 2700 | I89: =G89-H89 -> -380 | S89: =LEFT(B$84,10) -> Tableau 8. | T89: Coupes avec protection de la régénération et des sols (CPRS) | U89: OSUPCT | V89: =IFERROR(VLOOKUP(U89,Output!$C:$AQ,37,FALSE)/5,"0000") -> 2317.1644
B90: Coupe avec protection des petites tiges marchandes (CPPTM) | G90: =IFERROR(ROUND(V90,-1),0) -> 0 | H90: =IFERROR(ROUND(VLOOKUP(O33,DataLocal!$A:$BH,38,FALSE),-1),0) -> 30 | I90: =G90-H90 -> -30 | S90: Tableau 8. | T90: Coupe avec protection des petites tiges marchandes (CPPTM) | U90: OSUPREALACPPTM | V90: =IFERROR(VLOOKUP(U90,Output!$C:$AQ,37,FALSE)/5,"0000") -> 0
B91: Coupe avec réserve de semenciers (CRS) | G91: =IFERROR(ROUND(V91,-1),0) -> 0 | H91: =IFERROR(ROUND(VLOOKUP(33,DataLocal!$A:$BH,39,FALSE),-1),0) -> 0 | I91: 0 | S91: Tableau 8. | T91: Coupe avec réserve de semenciers (CRS) | U91: OSUPREALACRS | V91: =IFERROR(VLOOKUP(U91,Output!$C:$AQ,37,FALSE)/5,"0000") -> 0
B92: Total des coupes finales | G92: =SUM(G89:G91) -> 2320 | H92: =SUM(H89:H91) -> 2730 | I92: -410 | S92: Tableau 8.
B93: Éclaircie commerciale | G93: =IFERROR(ROUND(V93,-1),0) -> 0 | H93: =IFERROR(ROUND(VLOOKUP(O33,DataLocal!$A:$BH,40,FALSE),-1),0) -> 90 | I93: -90 | S93: Tableau 8. | T93: Éclaircie commerciale (EC) | U93: OSUPEC_SEPM | V93: =IFERROR(VLOOKUP(U93,Output!$C:$AQ,37,FALSE)/5,"0000") -> 0
B94: Coupe progressive régulière | G94: =IFERROR(ROUND(V94+V95,-1),0) -> 0 | H94: =IFERROR(ROUND(VLOOKUP(O33,DataLocal!$A:$BH,41,FALSE),-1),0) -> 0 | I94: 0 | S94: Tableau 8. | T94: Coupe progressive régulière initiale (CPROG) | U94: OSUPCPROG_INI | V94: =IFERROR(VLOOKUP(U94,Output!$C:$AQ,37,FALSE)/5,"0000") -> 0000
B95: Coupe progressive irrégulière à régénération lente (CPIL) | G95: =IFERROR(ROUND(V96+V97,-1),0) -> 130 | H95: =IFERROR(ROUND(VLOOKUP(O33,DataLocal!$A:$BH,42,FALSE),-1),0) -> 100 | I95: 30 | S95: Tableau 8. | T95: Coupe progressive régulière finale (CPROG) | U95: OSUPCPROG_FIN | V95: =IFERROR(VLOOKUP(U95,Output!$C:$AQ,37,FALSE)/5,"0000") -> 0000
B96: Coupe progressive irrégulière à couvert permanent (CPICP) | G96: =IFERROR(ROUND(V98,-1),0) -> 0 | H96: =IFERROR(ROUND(VLOOKUP(O33,DataLocal!$A:$BH,43,FALSE),-1),0) -> 0 | I96: 0 | S96: Tableau 8. | T96: Coupe progessive irrégulière initiale (CPIRL) | U96: OSUPCPIRL_INI | V96: =IFERROR(VLOOKUP(U96,Output!$C:$AQ,37,FALSE)/5,"0000") -> 128
B97: Coupes de jardinage ou d'amélioration | G97: =IFERROR(ROUND(V99,-1),0) -> 0 | H97: =IFERROR(ROUND(VLOOKUP(O33,DataLocal!$A:$BH,44,FALSE),-1),0) -> 0 | I97: 0 | T97: Coupe progessive irrégulière finale (CPIRL) | U97: OSUPCPIRL_FIN | V97: =IFERROR(VLOOKUP(U97,Output!$C:$AQ,37,FALSE)/5,"0000") -> 0
B98: Total des coupes partielles | G98: =SUM(G93:G97) -> 130 | H98: =SUM(H93:H97) -> 190 | I98: -60 | S98: =LEFT(B$84,10) -> Tableau 8. | T98: Coupe à couvert permanent (CPICP) | U98: OSUPCPICP | V98: =IFERROR(VLOOKUP(U98,Output!$C:$AQ,37,FALSE)/5,"0000") -> 0000
B99: Total des activités de récolte | G99: =G92+G98 -> 2450 | H99: =H98+H92 -> 2920 | I99: -470 | S99: =LEFT(B$84,10) -> Tableau 8. | T99: Coupe de jardinage (CJ) | U99: OSUPCJ | V99: =IFERROR(VLOOKUP(U99,Output!$C:$AQ,37,FALSE)/5,"0000") -> 0000
B100: % des coupes totales / récolte | G100: =IFERROR(G92/G99,0) -> 0.9469387755 | H100: =IFERROR(H92/H99,0) -> 0.9349315068 | I100: =ROUND(G100-H100,2) -> 0.01 | W100: Valideur
B101: % des coupes partielles / récolte | G101: =IFERROR(G98/G99,0) -> 0.05306122449 | H101: =IFERROR(H98/H99,0) -> 0.06506849315 | I101: =ROUND(G101-H101,2) -> -0.01 | S101: =LEFT(B$84,10) -> Tableau 8. | U101: OSUPREALREGAPAR | V101: =VLOOKUP(U101,Output!$C:$AQ,37,FALSE)/5 -> 128 | W101: =ROUND(SUM(V93:V99),0)=ROUND(V101,0) -> TRUE
B102: Coupes partielles de peuplements résineux | G102: =ROUND((AB67+AB71+AB75+AB76+AB77+AB78)/5,-1) -> 130 | H102: =IFERROR(ROUND(VLOOKUP(O33,DataLocal!$A:$BH,45,FALSE),-1),0) -> 190 | I102: -60 | S102: =LEFT(B$84,10) -> Tableau 8. | U102: OSUPREALREGAFIN | V102: =VLOOKUP(U102,Output!$C:$AQ,37,FALSE)/5 -> 2317.1644 | W102: =ROUND((V89),0)=ROUND(V102,0) -> TRUE
B103: Coupes partielles de peuplements de feuillus tolérants et de pins | G103: =ROUND((AB69+AB70+AB74)/5,-1) -> 0 | H103: =IFERROR(ROUND(VLOOKUP(O33,DataLocal!$A:$BH,46,FALSE),-1),0) -> 0 | I103: 0 | S103: =LEFT(B$84,10) -> Tableau 8. | U103: OSUPREALREGAPRE | V103: =VLOOKUP(U103,Output!$C:$AQ,37,FALSE)/5 -> 2445.1644 | W103: =ROUND(V89+SUM(V93:V99),0)=ROUND(V103,0) -> TRUE
B104: * Les superficies sont arrondies à la dizaine près. Cette opération peut engendrer de légères distorsions sur les sommes.
B109: Tableau 9. Variables descriptives reliées aux coupes partielles et totales par grand type de forêt | L109: La CRV est-elle compabilisée avec les coupes partielles (regaPar)?
B110: Grands types de forêt | E110: Coupes partielles | H110: Coupes totales | L110: Si Oui - Remplacer alors les valeurs (colonne H et I) par celles-ci
E111: Rotation moyenne | F111: Prélèvement moyen | G111: Surface terrière moyenne avant coupe | H111: Âge moyen des peuplements | I111: Volume moyen toutes essences | J111: Dimension des bois SEPM | M111: Âge moyen des peuplements | N111: Volume moyen toutes essences
S113: Référence Tableau 63 du cahier d'analyse VF
E115: Années | F115: ="m"&CHAR(179)&"/ha" -> m³/ha | G115: ="m"&CHAR(178)&"/ha" -> m²/ha | H115: Années | I115: ="m"&CHAR(179)&"/an" -> m³/an | J115: ="dcm"&CHAR(179)&"/tige" -> dcm³/tige | M115: Années | N115: ="m"&CHAR(179)&"/an" -> m³/an | S115: =LEFT(B$109,10) -> Tableau 9. | V115: OSUPREALREGAPRE | W115: OSUPINC | X115: OVOLGSEPMRECREGAFIN | Y115: ONBTGSEPMRECREGAFIN | Z115: OVOLTOTRECACT | AA115: OVOLTOTRECACFP | AB115: OVOLTOTRECACRS | AC115: OVOLTOTRECACPPTM | AD115: OSUPREALREGAFIN | AE115: OVOLTOTRECACRV | AF115: OAGETOTRECACT | AG115: OAGETOTRECACFP | AH115: OAGETOTRECACRS | AI115: OAGETOTRECACPPTM | AJ115: OSUPREALREGAFIN | AK115: OAGETOTRECACRV | AM115: OVOLTOTRECaEC | AN115: OVOLTOTRECaEC2 | AO115: OVOLTOTRECaEC3 | AP115: OVOLTOTRECaCA | AQ115: OVOLTOTRECaCA2 | AR115: OVOLTOTRECaCPROG | AS115: OVOLTOTRECaCPIL | AT115: OVOLTOTRECaCPIP | AU115: OVOLTOTRECaCPFORT | AV115: OVOLTOTRECaCPFAIBL | AW115: OVOLTOTRECaCP | AX115: OVOLTOTRECaCPJ | AY115: OVOLTOTRECaCJ | AZ115: SOMME | BA115: OSUPREALREGAPAR
B116: =T116 -> Bétulaies blanches | E116: - | F116: =IFERROR($AZ116/$BA116,"-") -> - | G116: - | H116: =IF(IFERROR(($AF116+$AG116+$AH116+$AI116+$AK116)/$AJ116*5,"-")>120,">120",IFERROR(($AF116+$AG116+$AH116+$AI116+$AK116)/$AJ116*5,"-")) -> >120 | I116: =IFERROR(($Z116+$AA116+$AB116+$AC116+$AE116)/$AD116,"-") -> 105.096467 | J116: =(IFERROR(X116/Y116*1000,"-")) -> 76.19698367 | M116: =IFERROR(($AF116+$AG116+$AH116+$AI116)/$AJ116*5,"-") -> 252.4116743 | N116: =IFERROR(($Z116+$AA116+$AB116+$AC116)/$AD116,"-") -> 105.096467 | S116: =LEFT(B$109,10) -> Tableau 9. | T116: Bétulaies blanches | U116: (FCTYF_BOP) | V116: =VLOOKUP(V$115&$U116,GTYF!$C:$AQ,37,FALSE) -> 39.06 | W116: =VLOOKUP(W$115&$U116,GTYF!$C:$AQ,6,FALSE) -> 3643 | X116: =VLOOKUP(X$115&$U116,GTYF!$C:$AQ,37,FALSE) -> 494.014 | Y116: =VLOOKUP(Y$115&$U116,GTYF!$C:$AQ,37,FALSE) -> 6483.38 | Z116: =VLOOKUP(Z$115&$U116,GTYF!$C:$AQ,37,FALSE) -> 4105.068 | AA116: =VLOOKUP(AA$115&$U116,GTYF!$C:$AQ,37,FALSE) -> 0 | AB116: =VLOOKUP(AB$115&$U116,GTYF!$C:$AQ,37,FALSE) -> 0 | AC116: =VLOOKUP(AC$115&$U116,GTYF!$C:$AQ,37,FALSE) -> 0 | AD116: =VLOOKUP(AD$115&$U116,GTYF!$C:$AQ,37,FALSE) -> 39.06 | AE116: =VLOOKUP(AE$115&$U116,GTYF!$C:$AQ,37,FALSE) -> 0 | AF116: =VLOOKUP(AF$115&$U116,GTYF!$C:$AQ,37,FALSE) -> 1971.84 | AG116: =VLOOKUP(AG$115&$U116,GTYF!$C:$AQ,37,FALSE) -> 0 | AH116: =VLOOKUP(AH$115&$U116,GTYF!$C:$AQ,37,FALSE) -> 0 | AI116: =VLOOKUP(AI$115&$U116,GTYF!$C:$AQ,37,FALSE) -> 0 | AJ116: =VLOOKUP(AJ$115&$U116,GTYF!$C:$AQ,37,FALSE) -> 39.06 | AK116: =VLOOKUP(AK$115&$U116,GTYF!$C:$AQ,37,FALSE) -> 0 | AM116: =VLOOKUP(AM$115&$U116,GTYF!$C:$AQ,37,FALSE) -> 0 | AN116: =VLOOKUP(AN$115&$U116,GTYF!$C:$AQ,37,FALSE) -> 0 | AO116: =VLOOKUP(AO$115&$U116,GTYF!$C:$AQ,37,FALSE) -> 0 | AP116: =VLOOKUP(AP$115&$U116,GTYF!$C:$AQ,37,FALSE) -> 0 | AQ116: =VLOOKUP(AQ$115&$U116,GTYF!$C:$AQ,37,FALSE) -> 0 | AR116: =VLOOKUP(AR$115&$U116,GTYF!$C:$AQ,37,FALSE) -> 0 | AS116: =VLOOKUP(AS$115&$U116,GTYF!$C:$AQ,37,FALSE) -> 0 | AT116: =VLOOKUP(AT$115&$U116,GTYF!$C:$AQ,37,FALSE) -> 0 | AU116: =VLOOKUP(AU$115&$U116,GTYF!$C:$AQ,37,FALSE) -> 0 | AV116: =VLOOKUP(AV$115&$U116,GTYF!$C:$AQ,37,FALSE) -> 0 | AW116: =VLOOKUP(AW$115&$U116,GTYF!$C:$AQ,37,FALSE) -> 0 | AX116: =VLOOKUP(AX$115&$U116,GTYF!$C:$AQ,37,FALSE) -> 0 | AY116: =VLOOKUP(AY$115&$U116,GTYF!$C:$AQ,37,FALSE) -> 0 | AZ116: =SUM(AM116:AY116) -> 0 | BA116: =VLOOKUP(BA$115&$U116,GTYF!$C:$AQ,37,FALSE) -> 0
B117: Bétulaies blanches à résineux | E117: - | F117: - | G117: - | H117: =IFERROR(($AF117+$AG117+$AH117+$AI117+$AK117)/$AJ117*5,"-") -> 93.01982785 | I117: =IFERROR(($Z117+$AA117+$AB117+$AC117+$AE117)/$AD117,"-") -> 139.2980464 | J117: =(IFERROR(X117/Y117*1000,"-")) -> 144.2645015 | M117: =IFERROR(($AF117+$AG117+$AH117+$AI117)/$AJ117*5,"-") -> 93.01982785 | N117: =IFERROR(($Z117+$AA117+$AB117+$AC117)/$AD117,"-") -> 139.2980464 | S117: Tableau 9. | T117: Bétulaies blanches à résineux | U117: (FCTYF_BOPR) | V117: =VLOOKUP(V$115&$U117,GTYF!$C:$AQ,37,FALSE) -> 225.844 | W117: =VLOOKUP(W$115&$U117,GTYF!$C:$AQ,6,FALSE) -> 4239.2 | X117: =VLOOKUP(X$115&$U117,GTYF!$C:$AQ,37,FALSE) -> 13146.968 | Y117: =VLOOKUP(Y$115&$U117,GTYF!$C:$AQ,37,FALSE) -> 91130.998 | Z117: =VLOOKUP(Z$115&$U117,GTYF!$C:$AQ,37,FALSE) -> 31459.628 | AA117: =VLOOKUP(AA$115&$U117,GTYF!$C:$AQ,37,FALSE) -> 0 | AB117: =VLOOKUP(AB$115&$U117,GTYF!$C:$AQ,37,FALSE) -> 0 | AC117: =VLOOKUP(AC$115&$U117,GTYF!$C:$AQ,37,FALSE) -> 0 | AD117: =VLOOKUP(AD$115&$U117,GTYF!$C:$AQ,37,FALSE) -> 225.844 | AE117: =VLOOKUP(AE$115&$U117,GTYF!$C:$AQ,37,FALSE) -> 0 | AF117: =VLOOKUP(AF$115&$U117,GTYF!$C:$AQ,37,FALSE) -> 4201.594 | AG117: =VLOOKUP(AG$115&$U117,GTYF!$C:$AQ,37,FALSE) -> 0 | AH117: =VLOOKUP(AH$115&$U117,GTYF!$C:$AQ,37,FALSE) -> 0 | AI117: =VLOOKUP(AI$115&$U117,GTYF!$C:$AQ,37,FALSE) -> 0 | AJ117: =VLOOKUP(AJ$115&$U117,GTYF!$C:$AQ,37,FALSE) -> 225.844 | AK117: =VLOOKUP(AK$115&$U117,GTYF!$C:$AQ,37,FALSE) -> 0 | AM117: =VLOOKUP(AM$115&$U117,GTYF!$C:$AQ,37,FALSE) -> 0 | AN117: =VLOOKUP(AN$115&$U117,GTYF!$C:$AQ,37,FALSE) -> 0 | AO117: =VLOOKUP(AO$115&$U117,GTYF!$C:$AQ,37,FALSE) -> 0 | AP117: =VLOOKUP(AP$115&$U117,GTYF!$C:$AQ,37,FALSE) -> 0 | AQ117: =VLOOKUP(AQ$115&$U117,GTYF!$C:$AQ,37,FALSE) -> 0 | AR117: =VLOOKUP(AR$115&$U117,GTYF!$C:$AQ,37,FALSE) -> 0 | AS117: =VLOOKUP(AS$115&$U117,GTYF!$C:$AQ,37,FALSE) -> 0 | AT117: =VLOOKUP(AT$115&$U117,GTYF!$C:$AQ,37,FALSE) -> 0 | AU117: =VLOOKUP(AU$115&$U117,GTYF!$C:$AQ,37,FALSE) -> 0 | AV117: =VLOOKUP(AV$115&$U117,GTYF!$C:$AQ,37,FALSE) -> 0 | AW117: =VLOOKUP(AW$115&$U117,GTYF!$C:$AQ,37,FALSE) -> 0 | AX117: =VLOOKUP(AX$115&$U117,GTYF!$C:$AQ,37,FALSE) -> 0 | AY117: =VLOOKUP(AY$115&$U117,GTYF!$C:$AQ,37,FALSE) -> 0 | AZ117: =SUM(AM117:AY117) -> 0 | BA117: =VLOOKUP(BA$115&$U117,GTYF!$C:$AQ,37,FALSE) -> 0
B118: Cédrières | E118: - | F118: - | G118: - | H118: =IFERROR(($AF118+$AG118+$AH118+$AI118+$AK118)/$AJ118*5,"-") -> - | I118: - | J118: =(IFERROR(X118/Y118*1000,"-")) -> - | M118: - | N118: - | S118: Tableau 9. | T118: Cédrières | U118: (FCTYF_THO) | V118: =VLOOKUP(V$115&$U118,GTYF!$C:$AQ,37,FALSE) -> 0 | W118: =VLOOKUP(W$115&$U118,GTYF!$C:$AQ,6,FALSE) -> 0 | X118: =VLOOKUP(X$115&$U118,GTYF!$C:$AQ,37,FALSE) -> 0 | Y118: =VLOOKUP(Y$115&$U118,GTYF!$C:$AQ,37,FALSE) -> 0 | Z118: =VLOOKUP(Z$115&$U118,GTYF!$C:$AQ,37,FALSE) -> 0 | AA118: =VLOOKUP(AA$115&$U118,GTYF!$C:$AQ,37,FALSE) -> 0 | AB118: =VLOOKUP(AB$115&$U118,GTYF!$C:$AQ,37,FALSE) -> 0 | AC118: =VLOOKUP(AC$115&$U118,GTYF!$C:$AQ,37,FALSE) -> 0 | AD118: =VLOOKUP(AD$115&$U118,GTYF!$C:$AQ,37,FALSE) -> 0 | AE118: =VLOOKUP(AE$115&$U118,GTYF!$C:$AQ,37,FALSE) -> 0 | AF118: =VLOOKUP(AF$115&$U118,GTYF!$C:$AQ,37,FALSE) -> 0 | AG118: =VLOOKUP(AG$115&$U118,GTYF!$C:$AQ,37,FALSE) -> 0 | AH118: =VLOOKUP(AH$115&$U118,GTYF!$C:$AQ,37,FALSE) -> 0 | AI118: =VLOOKUP(AI$115&$U118,GTYF!$C:$AQ,37,FALSE) -> 0 | AJ118: =VLOOKUP(AJ$115&$U118,GTYF!$C:$AQ,37,FALSE) -> 0 | AK118: =VLOOKUP(AK$115&$U118,GTYF!$C:$AQ,37,FALSE) -> 0 | AM118: =VLOOKUP(AM$115&$U118,GTYF!$C:$AQ,37,FALSE) -> 0 | AN118: =VLOOKUP(AN$115&$U118,GTYF!$C:$AQ,37,FALSE) -> 0 | AO118: =VLOOKUP(AO$115&$U118,GTYF!$C:$AQ,37,FALSE) -> 0 | AP118: =VLOOKUP(AP$115&$U118,GTYF!$C:$AQ,37,FALSE) -> 0 | AQ118: =VLOOKUP(AQ$115&$U118,GTYF!$C:$AQ,37,FALSE) -> 0 | AR118: =VLOOKUP(AR$115&$U118,GTYF!$C:$AQ,37,FALSE) -> 0 | AS118: =VLOOKUP(AS$115&$U118,GTYF!$C:$AQ,37,FALSE) -> 0 | AT118: =VLOOKUP(AT$115&$U118,GTYF!$C:$AQ,37,FALSE) -> 0 | AU118: =VLOOKUP(AU$115&$U118,GTYF!$C:$AQ,37,FALSE) -> 0 | AV118: =VLOOKUP(AV$115&$U118,GTYF!$C:$AQ,37,FALSE) -> 0 | AW118: =VLOOKUP(AW$115&$U118,GTYF!$C:$AQ,37,FALSE) -> 0 | AX118: =VLOOKUP(AX$115&$U118,GTYF!$C:$AQ,37,FALSE) -> 0 | AY118: =VLOOKUP(AY$115&$U118,GTYF!$C:$AQ,37,FALSE) -> 0 | AZ118: 0 | BA118: =VLOOKUP(BA$115&$U118,GTYF!$C:$AQ,37,FALSE) -> 0
B119: Érablières rouges | E119: - | F119: - | G119: - | H119: - | I119: - | J119: - | M119: - | N119: - | S119: Tableau 9. | T119: Érablières rouges | U119: (FCTYF_ERO) | V119: =VLOOKUP(V$115&$U119,GTYF!$C:$AQ,37,FALSE) -> 0 | W119: =VLOOKUP(W$115&$U119,GTYF!$C:$AQ,6,FALSE) -> 0 | X119: =VLOOKUP(X$115&$U119,GTYF!$C:$AQ,37,FALSE) -> 0 | Y119: =VLOOKUP(Y$115&$U119,GTYF!$C:$AQ,37,FALSE) -> 0 | Z119: =VLOOKUP(Z$115&$U119,GTYF!$C:$AQ,37,FALSE) -> 0 | AA119: =VLOOKUP(AA$115&$U119,GTYF!$C:$AQ,37,FALSE) -> 0 | AB119: =VLOOKUP(AB$115&$U119,GTYF!$C:$AQ,37,FALSE) -> 0 | AC119: =VLOOKUP(AC$115&$U119,GTYF!$C:$AQ,37,FALSE) -> 0 | AD119: =VLOOKUP(AD$115&$U119,GTYF!$C:$AQ,37,FALSE) -> 0 | AE119: =VLOOKUP(AE$115&$U119,GTYF!$C:$AQ,37,FALSE) -> 0 | AF119: =VLOOKUP(AF$115&$U119,GTYF!$C:$AQ,37,FALSE) -> 0 | AG119: =VLOOKUP(AG$115&$U119,GTYF!$C:$AQ,37,FALSE) -> 0 | AH119: =VLOOKUP(AH$115&$U119,GTYF!$C:$AQ,37,FALSE) -> 0 | AI119: =VLOOKUP(AI$115&$U119,GTYF!$C:$AQ,37,FALSE) -> 0 | AJ119: =VLOOKUP(AJ$115&$U119,GTYF!$C:$AQ,37,FALSE) -> 0 | AK119: =VLOOKUP(AK$115&$U119,GTYF!$C:$AQ,37,FALSE) -> 0 | AM119: =VLOOKUP(AM$115&$U119,GTYF!$C:$AQ,37,FALSE) -> 0 | AN119: =VLOOKUP(AN$115&$U119,GTYF!$C:$AQ,37,FALSE) -> 0 | AO119: =VLOOKUP(AO$115&$U119,GTYF!$C:$AQ,37,FALSE) -> 0 | AP119: =VLOOKUP(AP$115&$U119,GTYF!$C:$AQ,37,FALSE) -> 0 | AQ119: =VLOOKUP(AQ$115&$U119,GTYF!$C:$AQ,37,FALSE) -> 0 | AR119: =VLOOKUP(AR$115&$U119,GTYF!$C:$AQ,37,FALSE) -> 0 | AS119: =VLOOKUP(AS$115&$U119,GTYF!$C:$AQ,37,FALSE) -> 0 | AT119: =VLOOKUP(AT$115&$U119,GTYF!$C:$AQ,37,FALSE) -> 0 | AU119: =VLOOKUP(AU$115&$U119,GTYF!$C:$AQ,37,FALSE) -> 0 | AV119: =VLOOKUP(AV$115&$U119,GTYF!$C:$AQ,37,FALSE) -> 0 | AW119: =VLOOKUP(AW$115&$U119,GTYF!$C:$AQ,37,FALSE) -> 0 | AX119: =VLOOKUP(AX$115&$U119,GTYF!$C:$AQ,37,FALSE) -> 0 | AY119: =VLOOKUP(AY$115&$U119,GTYF!$C:$AQ,37,FALSE) -> 0 | AZ119: 0 | BA119: =VLOOKUP(BA$115&$U119,GTYF!$C:$AQ,37,FALSE) -> 0
B120: Feuillus tolérants | E120: - | F120: - | G120: - | H120: - | I120: - | J120: - | M120: - | N120: - | S120: Tableau 9. | T120: Feuillus tolérants | U120: (FCTYF_FT) | V120: =VLOOKUP(V$115&$U120,GTYF!$C:$AQ,37,FALSE) -> 0 | W120: =VLOOKUP(W$115&$U120,GTYF!$C:$AQ,6,FALSE) -> 0 | X120: =VLOOKUP(X$115&$U120,GTYF!$C:$AQ,37,FALSE) -> 0 | Y120: =VLOOKUP(Y$115&$U120,GTYF!$C:$AQ,37,FALSE) -> 0 | Z120: =VLOOKUP(Z$115&$U120,GTYF!$C:$AQ,37,FALSE) -> 0 | AA120: =VLOOKUP(AA$115&$U120,GTYF!$C:$AQ,37,FALSE) -> 0 | AB120: =VLOOKUP(AB$115&$U120,GTYF!$C:$AQ,37,FALSE) -> 0 | AC120: =VLOOKUP(AC$115&$U120,GTYF!$C:$AQ,37,FALSE) -> 0 | AD120: =VLOOKUP(AD$115&$U120,GTYF!$C:$AQ,37,FALSE) -> 0 | AE120: =VLOOKUP(AE$115&$U120,GTYF!$C:$AQ,37,FALSE) -> 0 | AF120: =VLOOKUP(AF$115&$U120,GTYF!$C:$AQ,37,FALSE) -> 0 | AG120: =VLOOKUP(AG$115&$U120,GTYF!$C:$AQ,37,FALSE) -> 0 | AH120: =VLOOKUP(AH$115&$U120,GTYF!$C:$AQ,37,FALSE) -> 0 | AI120: =VLOOKUP(AI$115&$U120,GTYF!$C:$AQ,37,FALSE) -> 0 | AJ120: =VLOOKUP(AJ$115&$U120,GTYF!$C:$AQ,37,FALSE) -> 0 | AK120: =VLOOKUP(AK$115&$U120,GTYF!$C:$AQ,37,FALSE) -> 0 | AM120: =VLOOKUP(AM$115&$U120,GTYF!$C:$AQ,37,FALSE) -> 0 | AN120: =VLOOKUP(AN$115&$U120,GTYF!$C:$AQ,37,FALSE) -> 0 | AO120: =VLOOKUP(AO$115&$U120,GTYF!$C:$AQ,37,FALSE) -> 0 | AP120: =VLOOKUP(AP$115&$U120,GTYF!$C:$AQ,37,FALSE) -> 0 | AQ120: =VLOOKUP(AQ$115&$U120,GTYF!$C:$AQ,37,FALSE) -> 0 | AR120: =VLOOKUP(AR$115&$U120,GTYF!$C:$AQ,37,FALSE) -> 0 | AS120: =VLOOKUP(AS$115&$U120,GTYF!$C:$AQ,37,FALSE) -> 0 | AT120: =VLOOKUP(AT$115&$U120,GTYF!$C:$AQ,37,FALSE) -> 0 | AU120: =VLOOKUP(AU$115&$U120,GTYF!$C:$AQ,37,FALSE) -> 0 | AV120: =VLOOKUP(AV$115&$U120,GTYF!$C:$AQ,37,FALSE) -> 0 | AW120: =VLOOKUP(AW$115&$U120,GTYF!$C:$AQ,37,FALSE) -> 0 | AX120: =VLOOKUP(AX$115&$U120,GTYF!$C:$AQ,37,FALSE) -> 0 | AY120: =VLOOKUP(AY$115&$U120,GTYF!$C:$AQ,37,FALSE) -> 0 | AZ120: 0 | BA120: =VLOOKUP(BA$115&$U120,GTYF!$C:$AQ,37,FALSE) -> 0
B121: Feuillus tolérants à résineux | E121: - | F121: =IFERROR($AZ121/$BA121,"-") -> - | G121: - | H121: - | I121: - | J121: - | M121: - | N121: - | S121: Tableau 9. | T121: Feuillus tolérants à résineux | U121: (FCTYF_FTR) | V121: =VLOOKUP(V$115&$U121,GTYF!$C:$AQ,37,FALSE) -> 0 | W121: =VLOOKUP(W$115&$U121,GTYF!$C:$AQ,6,FALSE) -> 0 | X121: =VLOOKUP(X$115&$U121,GTYF!$C:$AQ,37,FALSE) -> 0 | Y121: =VLOOKUP(Y$115&$U121,GTYF!$C:$AQ,37,FALSE) -> 0 | Z121: =VLOOKUP(Z$115&$U121,GTYF!$C:$AQ,37,FALSE) -> 0 | AA121: =VLOOKUP(AA$115&$U121,GTYF!$C:$AQ,37,FALSE) -> 0 | AB121: =VLOOKUP(AB$115&$U121,GTYF!$C:$AQ,37,FALSE) -> 0 | AC121: =VLOOKUP(AC$115&$U121,GTYF!$C:$AQ,37,FALSE) -> 0 | AD121: =VLOOKUP(AD$115&$U121,GTYF!$C:$AQ,37,FALSE) -> 0 | AE121: =VLOOKUP(AE$115&$U121,GTYF!$C:$AQ,37,FALSE) -> 0 | AF121: =VLOOKUP(AF$115&$U121,GTYF!$C:$AQ,37,FALSE) -> 0 | AG121: =VLOOKUP(AG$115&$U121,GTYF!$C:$AQ,37,FALSE) -> 0 | AH121: =VLOOKUP(AH$115&$U121,GTYF!$C:$AQ,37,FALSE) -> 0 | AI121: =VLOOKUP(AI$115&$U121,GTYF!$C:$AQ,37,FALSE) -> 0 | AJ121: =VLOOKUP(AJ$115&$U121,GTYF!$C:$AQ,37,FALSE) -> 0 | AK121: =VLOOKUP(AK$115&$U121,GTYF!$C:$AQ,37,FALSE) -> 0 | AM121: =VLOOKUP(AM$115&$U121,GTYF!$C:$AQ,37,FALSE) -> 0 | AN121: =VLOOKUP(AN$115&$U121,GTYF!$C:$AQ,37,FALSE) -> 0 | AO121: =VLOOKUP(AO$115&$U121,GTYF!$C:$AQ,37,FALSE) -> 0 | AP121: =VLOOKUP(AP$115&$U121,GTYF!$C:$AQ,37,FALSE) -> 0 | AQ121: =VLOOKUP(AQ$115&$U121,GTYF!$C:$AQ,37,FALSE) -> 0 | AR121: =VLOOKUP(AR$115&$U121,GTYF!$C:$AQ,37,FALSE) -> 0 | AS121: =VLOOKUP(AS$115&$U121,GTYF!$C:$AQ,37,FALSE) -> 0 | AT121: =VLOOKUP(AT$115&$U121,GTYF!$C:$AQ,37,FALSE) -> 0 | AU121: =VLOOKUP(AU$115&$U121,GTYF!$C:$AQ,37,FALSE) -> 0 | AV121: =VLOOKUP(AV$115&$U121,GTYF!$C:$AQ,37,FALSE) -> 0 | AW121: =VLOOKUP(AW$115&$U121,GTYF!$C:$AQ,37,FALSE) -> 0 | AX121: =VLOOKUP(AX$115&$U121,GTYF!$C:$AQ,37,FALSE) -> 0 | AY121: =VLOOKUP(AY$115&$U121,GTYF!$C:$AQ,37,FALSE) -> 0 | AZ121: =SUM(AM121:AY121) -> 0 | BA121: =VLOOKUP(BA$115&$U121,GTYF!$C:$AQ,37,FALSE) -> 0
B122: Pessières | E122: 41 | F122: 76.12751563 | G122: 26 | H122: =IF(IFERROR(($AF122+$AG122+$AH122+$AI122+$AK122)/$AJ122*5,"-")>120,">120",IFERROR(($AF122+$AG122+$AH122+$AI122+$AK122)/$AJ122*5,"-")) -> >120 | I122: 106.912308 | J122: 111.3899259 | M122: 152.8637908 | N122: 106.912308 | S122: Tableau 9. | T122: Pessières | U122: (FCTYF_EPX) | V122: =VLOOKUP(V$115&$U122,GTYF!$C:$AQ,37,FALSE) -> 9060.018 | W122: =VLOOKUP(W$115&$U122,GTYF!$C:$AQ,6,FALSE) -> 167453.2 | X122: =VLOOKUP(X$115&$U122,GTYF!$C:$AQ,37,FALSE) -> 870660.932 | Y122: =VLOOKUP(Y$115&$U122,GTYF!$C:$AQ,37,FALSE) -> 7816334.604 | Z122: =VLOOKUP(Z$115&$U122,GTYF!$C:$AQ,37,FALSE) -> 900203.558 | AA122: =VLOOKUP(AA$115&$U122,GTYF!$C:$AQ,37,FALSE) -> 0 | AB122: =VLOOKUP(AB$115&$U122,GTYF!$C:$AQ,37,FALSE) -> 0 | AC122: =VLOOKUP(AC$115&$U122,GTYF!$C:$AQ,37,FALSE) -> 0 | AD122: =VLOOKUP(AD$115&$U122,GTYF!$C:$AQ,37,FALSE) -> 8420.018 | AE122: =VLOOKUP(AE$115&$U122,GTYF!$C:$AQ,37,FALSE) -> 0 | AF122: =VLOOKUP(AF$115&$U122,GTYF!$C:$AQ,37,FALSE) -> 257423.174 | AG122: =VLOOKUP(AG$115&$U122,GTYF!$C:$AQ,37,FALSE) -> 0 | AH122: =VLOOKUP(AH$115&$U122,GTYF!$C:$AQ,37,FALSE) -> 0 | AI122: =VLOOKUP(AI$115&$U122,GTYF!$C:$AQ,37,FALSE) -> 0 | AJ122: =VLOOKUP(AJ$115&$U122,GTYF!$C:$AQ,37,FALSE) -> 8420.018 | AK122: =VLOOKUP(AK$115&$U122,GTYF!$C:$AQ,37,FALSE) -> 0 | AM122: =VLOOKUP(AM$115&$U122,GTYF!$C:$AQ,37,FALSE) -> 0 | AN122: =VLOOKUP(AN$115&$U122,GTYF!$C:$AQ,37,FALSE) -> 0 | AO122: =VLOOKUP(AO$115&$U122,GTYF!$C:$AQ,37,FALSE) -> 0 | AP122: =VLOOKUP(AP$115&$U122,GTYF!$C:$AQ,37,FALSE) -> 0 | AQ122: =VLOOKUP(AQ$115&$U122,GTYF!$C:$AQ,37,FALSE) -> 0 | AR122: =VLOOKUP(AR$115&$U122,GTYF!$C:$AQ,37,FALSE) -> 0 | AS122: =VLOOKUP(AS$115&$U122,GTYF!$C:$AQ,37,FALSE) -> 48721.61 | AT122: =VLOOKUP(AT$115&$U122,GTYF!$C:$AQ,37,FALSE) -> 0 | AU122: =VLOOKUP(AU$115&$U122,GTYF!$C:$AQ,37,FALSE) -> 0 | AV122: =VLOOKUP(AV$115&$U122,GTYF!$C:$AQ,37,FALSE) -> 0 | AW122: =VLOOKUP(AW$115&$U122,GTYF!$C:$AQ,37,FALSE) -> 0 | AX122: =VLOOKUP(AX$115&$U122,GTYF!$C:$AQ,37,FALSE) -> 0 | AY122: =VLOOKUP(AY$115&$U122,GTYF!$C:$AQ,37,FALSE) -> 0 | AZ122: 48721.61 | BA122: =VLOOKUP(BA$115&$U122,GTYF!$C:$AQ,37,FALSE) -> 640
B123: Peupleraies | E123: - | F123: - | G123: - | H123: 62.49161074 | I123: 140.7103123 | J123: 88.66073855 | M123: 62.49161074 | N123: 140.7103123 | S123: Tableau 9. | T123: Peupleraies | U123: (FCTYF_PEU) | V123: =VLOOKUP(V$115&$U123,GTYF!$C:$AQ,37,FALSE) -> 154.96 | W123: =VLOOKUP(W$115&$U123,GTYF!$C:$AQ,6,FALSE) -> 6730.6 | X123: =VLOOKUP(X$115&$U123,GTYF!$C:$AQ,37,FALSE) -> 2891.268 | Y123: =VLOOKUP(Y$115&$U123,GTYF!$C:$AQ,37,FALSE) -> 32610.466 | Z123: =VLOOKUP(Z$115&$U123,GTYF!$C:$AQ,37,FALSE) -> 21804.47 | AA123: =VLOOKUP(AA$115&$U123,GTYF!$C:$AQ,37,FALSE) -> 0 | AB123: =VLOOKUP(AB$115&$U123,GTYF!$C:$AQ,37,FALSE) -> 0 | AC123: =VLOOKUP(AC$115&$U123,GTYF!$C:$AQ,37,FALSE) -> 0 | AD123: =VLOOKUP(AD$115&$U123,GTYF!$C:$AQ,37,FALSE) -> 154.96 | AE123: =VLOOKUP(AE$115&$U123,GTYF!$C:$AQ,37,FALSE) -> 0 | AF123: =VLOOKUP(AF$115&$U123,GTYF!$C:$AQ,37,FALSE) -> 1936.74 | AG123: =VLOOKUP(AG$115&$U123,GTYF!$C:$AQ,37,FALSE) -> 0 | AH123: =VLOOKUP(AH$115&$U123,GTYF!$C:$AQ,37,FALSE) -> 0 | AI123: =VLOOKUP(AI$115&$U123,GTYF!$C:$AQ,37,FALSE) -> 0 | AJ123: =VLOOKUP(AJ$115&$U123,GTYF!$C:$AQ,37,FALSE) -> 154.96 | AK123: =VLOOKUP(AK$115&$U123,GTYF!$C:$AQ,37,FALSE) -> 0 | AM123: =VLOOKUP(AM$115&$U123,GTYF!$C:$AQ,37,FALSE) -> 0 | AN123: =VLOOKUP(AN$115&$U123,GTYF!$C:$AQ,37,FALSE) -> 0 | AO123: =VLOOKUP(AO$115&$U123,GTYF!$C:$AQ,37,FALSE) -> 0 | AP123: =VLOOKUP(AP$115&$U123,GTYF!$C:$AQ,37,FALSE) -> 0 | AQ123: =VLOOKUP(AQ$115&$U123,GTYF!$C:$AQ,37,FALSE) -> 0 | AR123: =VLOOKUP(AR$115&$U123,GTYF!$C:$AQ,37,FALSE) -> 0 | AS123: =VLOOKUP(AS$115&$U123,GTYF!$C:$AQ,37,FALSE) -> 0 | AT123: =VLOOKUP(AT$115&$U123,GTYF!$C:$AQ,37,FALSE) -> 0 | AU123: =VLOOKUP(AU$115&$U123,GTYF!$C:$AQ,37,FALSE) -> 0 | AV123: =VLOOKUP(AV$115&$U123,GTYF!$C:$AQ,37,FALSE) -> 0 | AW123: =VLOOKUP(AW$115&$U123,GTYF!$C:$AQ,37,FALSE) -> 0 | AX123: =VLOOKUP(AX$115&$U123,GTYF!$C:$AQ,37,FALSE) -> 0 | AY123: =VLOOKUP(AY$115&$U123,GTYF!$C:$AQ,37,FALSE) -> 0 | AZ123: 0 | BA123: =VLOOKUP(BA$115&$U123,GTYF!$C:$AQ,37,FALSE) -> 0
B124: Peupleraies à résineux | E124: - | F124: - | G124: - | H124: 76.50981315 | I124: 148.731868 | J124: 121.4086208 | M124: 76.50981315 | N124: 148.731868 | S124: Tableau 9. | T124: Peupleraies à résineux | U124: (FCTYF_PEUR) | V124: =VLOOKUP(V$115&$U124,GTYF!$C:$AQ,37,FALSE) -> 212.47 | W124: =VLOOKUP(W$115&$U124,GTYF!$C:$AQ,6,FALSE) -> 4949.2 | X124: =VLOOKUP(X$115&$U124,GTYF!$C:$AQ,37,FALSE) -> 13994.086 | Y124: =VLOOKUP(Y$115&$U124,GTYF!$C:$AQ,37,FALSE) -> 115264.352 | Z124: =VLOOKUP(Z$115&$U124,GTYF!$C:$AQ,37,FALSE) -> 31601.06 | AA124: =VLOOKUP(AA$115&$U124,GTYF!$C:$AQ,37,FALSE) -> 0 | AB124: =VLOOKUP(AB$115&$U124,GTYF!$C:$AQ,37,FALSE) -> 0 | AC124: =VLOOKUP(AC$115&$U124,GTYF!$C:$AQ,37,FALSE) -> 0 | AD124: =VLOOKUP(AD$115&$U124,GTYF!$C:$AQ,37,FALSE) -> 212.47 | AE124: =VLOOKUP(AE$115&$U124,GTYF!$C:$AQ,37,FALSE) -> 0 | AF124: =VLOOKUP(AF$115&$U124,GTYF!$C:$AQ,37,FALSE) -> 3251.208 | AG124: =VLOOKUP(AG$115&$U124,GTYF!$C:$AQ,37,FALSE) -> 0 | AH124: =VLOOKUP(AH$115&$U124,GTYF!$C:$AQ,37,FALSE) -> 0 | AI124: =VLOOKUP(AI$115&$U124,GTYF!$C:$AQ,37,FALSE) -> 0 | AJ124: =VLOOKUP(AJ$115&$U124,GTYF!$C:$AQ,37,FALSE) -> 212.47 | AK124: =VLOOKUP(AK$115&$U124,GTYF!$C:$AQ,37,FALSE) -> 0 | AM124: =VLOOKUP(AM$115&$U124,GTYF!$C:$AQ,37,FALSE) -> 0 | AN124: =VLOOKUP(AN$115&$U124,GTYF!$C:$AQ,37,FALSE) -> 0 | AO124: =VLOOKUP(AO$115&$U124,GTYF!$C:$AQ,37,FALSE) -> 0 | AP124: =VLOOKUP(AP$115&$U124,GTYF!$C:$AQ,37,FALSE) -> 0 | AQ124: =VLOOKUP(AQ$115&$U124,GTYF!$C:$AQ,37,FALSE) -> 0 | AR124: =VLOOKUP(AR$115&$U124,GTYF!$C:$AQ,37,FALSE) -> 0 | AS124: =VLOOKUP(AS$115&$U124,GTYF!$C:$AQ,37,FALSE) -> 0 | AT124: =VLOOKUP(AT$115&$U124,GTYF!$C:$AQ,37,FALSE) -> 0 | AU124: =VLOOKUP(AU$115&$U124,GTYF!$C:$AQ,37,FALSE) -> 0 | AV124: =VLOOKUP(AV$115&$U124,GTYF!$C:$AQ,37,FALSE) -> 0 | AW124: =VLOOKUP(AW$115&$U124,GTYF!$C:$AQ,37,FALSE) -> 0 | AX124: =VLOOKUP(AX$115&$U124,GTYF!$C:$AQ,37,FALSE) -> 0 | AY124: =VLOOKUP(AY$115&$U124,GTYF!$C:$AQ,37,FALSE) -> 0 | AZ124: 0 | BA124: =VLOOKUP(BA$115&$U124,GTYF!$C:$AQ,37,FALSE) -> 0
B125: Pinèdes blanches | E125: - | F125: - | G125: - | H125: - | I125: - | J125: - | M125: - | N125: - | S125: Tableau 9. | T125: Pinèdes blanches | U125: (FCTYF_PIN) | V125: =VLOOKUP(V$115&$U125,GTYF!$C:$AQ,37,FALSE) -> 0 | W125: =VLOOKUP(W$115&$U125,GTYF!$C:$AQ,6,FALSE) -> 0 | X125: =VLOOKUP(X$115&$U125,GTYF!$C:$AQ,37,FALSE) -> 0 | Y125: =VLOOKUP(Y$115&$U125,GTYF!$C:$AQ,37,FALSE) -> 0 | Z125: =VLOOKUP(Z$115&$U125,GTYF!$C:$AQ,37,FALSE) -> 0 | AA125: =VLOOKUP(AA$115&$U125,GTYF!$C:$AQ,37,FALSE) -> 0 | AB125: =VLOOKUP(AB$115&$U125,GTYF!$C:$AQ,37,FALSE) -> 0 | AC125: =VLOOKUP(AC$115&$U125,GTYF!$C:$AQ,37,FALSE) -> 0 | AD125: =VLOOKUP(AD$115&$U125,GTYF!$C:$AQ,37,FALSE) -> 0 | AE125: =VLOOKUP(AE$115&$U125,GTYF!$C:$AQ,37,FALSE) -> 0 | AF125: =VLOOKUP(AF$115&$U125,GTYF!$C:$AQ,37,FALSE) -> 0 | AG125: =VLOOKUP(AG$115&$U125,GTYF!$C:$AQ,37,FALSE) -> 0 | AH125: =VLOOKUP(AH$115&$U125,GTYF!$C:$AQ,37,FALSE) -> 0 | AI125: =VLOOKUP(AI$115&$U125,GTYF!$C:$AQ,37,FALSE) -> 0 | AJ125: =VLOOKUP(AJ$115&$U125,GTYF!$C:$AQ,37,FALSE) -> 0 | AK125: =VLOOKUP(AK$115&$U125,GTYF!$C:$AQ,37,FALSE) -> 0 | AM125: =VLOOKUP(AM$115&$U125,GTYF!$C:$AQ,37,FALSE) -> 0 | AN125: =VLOOKUP(AN$115&$U125,GTYF!$C:$AQ,37,FALSE) -> 0 | AO125: =VLOOKUP(AO$115&$U125,GTYF!$C:$AQ,37,FALSE) -> 0 | AP125: =VLOOKUP(AP$115&$U125,GTYF!$C:$AQ,37,FALSE) -> 0 | AQ125: =VLOOKUP(AQ$115&$U125,GTYF!$C:$AQ,37,FALSE) -> 0 | AR125: =VLOOKUP(AR$115&$U125,GTYF!$C:$AQ,37,FALSE) -> 0 | AS125: =VLOOKUP(AS$115&$U125,GTYF!$C:$AQ,37,FALSE) -> 0 | AT125: =VLOOKUP(AT$115&$U125,GTYF!$C:$AQ,37,FALSE) -> 0 | AU125: =VLOOKUP(AU$115&$U125,GTYF!$C:$AQ,37,FALSE) -> 0 | AV125: =VLOOKUP(AV$115&$U125,GTYF!$C:$AQ,37,FALSE) -> 0 | AW125: =VLOOKUP(AW$115&$U125,GTYF!$C:$AQ,37,FALSE) -> 0 | AX125: =VLOOKUP(AX$115&$U125,GTYF!$C:$AQ,37,FALSE) -> 0 | AY125: =VLOOKUP(AY$115&$U125,GTYF!$C:$AQ,37,FALSE) -> 0 | AZ125: 0 | BA125: =VLOOKUP(BA$115&$U125,GTYF!$C:$AQ,37,FALSE) -> 0
B126: Pinèdes grises | E126: - | F126: - | G126: - | H126: 85.98891453 | I126: 115.8033668 | J126: 109.8902483 | M126: 85.98891453 | N126: 115.8033668 | S126: Tableau 9. | T126: Pinèdes grises | U126: (FCTYF_PIG) | V126: =VLOOKUP(V$115&$U126,GTYF!$C:$AQ,37,FALSE) -> 1224.666 | W126: =VLOOKUP(W$115&$U126,GTYF!$C:$AQ,6,FALSE) -> 21430.8 | X126: =VLOOKUP(X$115&$U126,GTYF!$C:$AQ,37,FALSE) -> 137221.61 | Y126: =VLOOKUP(Y$115&$U126,GTYF!$C:$AQ,37,FALSE) -> 1248715.078 | Z126: =VLOOKUP(Z$115&$U126,GTYF!$C:$AQ,37,FALSE) -> 118509.786 | AA126: =VLOOKUP(AA$115&$U126,GTYF!$C:$AQ,37,FALSE) -> 23310.66 | AB126: =VLOOKUP(AB$115&$U126,GTYF!$C:$AQ,37,FALSE) -> 0 | AC126: =VLOOKUP(AC$115&$U126,GTYF!$C:$AQ,37,FALSE) -> 0 | AD126: =VLOOKUP(AD$115&$U126,GTYF!$C:$AQ,37,FALSE) -> 1224.666 | AE126: =VLOOKUP(AE$115&$U126,GTYF!$C:$AQ,37,FALSE) -> 0 | AF126: =VLOOKUP(AF$115&$U126,GTYF!$C:$AQ,37,FALSE) -> 18896.6 | AG126: =VLOOKUP(AG$115&$U126,GTYF!$C:$AQ,37,FALSE) -> 2164.94 | AH126: =VLOOKUP(AH$115&$U126,GTYF!$C:$AQ,37,FALSE) -> 0 | AI126: =VLOOKUP(AI$115&$U126,GTYF!$C:$AQ,37,FALSE) -> 0 | AJ126: =VLOOKUP(AJ$115&$U126,GTYF!$C:$AQ,37,FALSE) -> 1224.666 | AK126: =VLOOKUP(AK$115&$U126,GTYF!$C:$AQ,37,FALSE) -> 0 | AM126: =VLOOKUP(AM$115&$U126,GTYF!$C:$AQ,37,FALSE) -> 0 | AN126: =VLOOKUP(AN$115&$U126,GTYF!$C:$AQ,37,FALSE) -> 0 | AO126: =VLOOKUP(AO$115&$U126,GTYF!$C:$AQ,37,FALSE) -> 0 | AP126: =VLOOKUP(AP$115&$U126,GTYF!$C:$AQ,37,FALSE) -> 0 | AQ126: =VLOOKUP(AQ$115&$U126,GTYF!$C:$AQ,37,FALSE) -> 0 | AR126: =VLOOKUP(AR$115&$U126,GTYF!$C:$AQ,37,FALSE) -> 0 | AS126: =VLOOKUP(AS$115&$U126,GTYF!$C:$AQ,37,FALSE) -> 0 | AT126: =VLOOKUP(AT$115&$U126,GTYF!$C:$AQ,37,FALSE) -> 0 | AU126: =VLOOKUP(AU$115&$U126,GTYF!$C:$AQ,37,FALSE) -> 0 | AV126: =VLOOKUP(AV$115&$U126,GTYF!$C:$AQ,37,FALSE) -> 0 | AW126: =VLOOKUP(AW$115&$U126,GTYF!$C:$AQ,37,FALSE) -> 0 | AX126: =VLOOKUP(AX$115&$U126,GTYF!$C:$AQ,37,FALSE) -> 0 | AY126: =VLOOKUP(AY$115&$U126,GTYF!$C:$AQ,37,FALSE) -> 0 | AZ126: 0 | BA126: =VLOOKUP(BA$115&$U126,GTYF!$C:$AQ,37,FALSE) -> 0
B127: Prucheraies | E127: - | F127: - | G127: - | H127: - | I127: - | J127: - | M127: - | N127: - | S127: Tableau 9. | T127: Prucheraies | U127: (FCTYF_PRU) | V127: =VLOOKUP(V$115&$U127,GTYF!$C:$AQ,37,FALSE) -> 0 | W127: =VLOOKUP(W$115&$U127,GTYF!$C:$AQ,6,FALSE) -> 0 | X127: =VLOOKUP(X$115&$U127,GTYF!$C:$AQ,37,FALSE) -> 0 | Y127: =VLOOKUP(Y$115&$U127,GTYF!$C:$AQ,37,FALSE) -> 0 | Z127: =VLOOKUP(Z$115&$U127,GTYF!$C:$AQ,37,FALSE) -> 0 | AA127: =VLOOKUP(AA$115&$U127,GTYF!$C:$AQ,37,FALSE) -> 0 | AB127: =VLOOKUP(AB$115&$U127,GTYF!$C:$AQ,37,FALSE) -> 0 | AC127: =VLOOKUP(AC$115&$U127,GTYF!$C:$AQ,37,FALSE) -> 0 | AD127: =VLOOKUP(AD$115&$U127,GTYF!$C:$AQ,37,FALSE) -> 0 | AE127: =VLOOKUP(AE$115&$U127,GTYF!$C:$AQ,37,FALSE) -> 0 | AF127: =VLOOKUP(AF$115&$U127,GTYF!$C:$AQ,37,FALSE) -> 0 | AG127: =VLOOKUP(AG$115&$U127,GTYF!$C:$AQ,37,FALSE) -> 0 | AH127: =VLOOKUP(AH$115&$U127,GTYF!$C:$AQ,37,FALSE) -> 0 | AI127: =VLOOKUP(AI$115&$U127,GTYF!$C:$AQ,37,FALSE) -> 0 | AJ127: =VLOOKUP(AJ$115&$U127,GTYF!$C:$AQ,37,FALSE) -> 0 | AK127: =VLOOKUP(AK$115&$U127,GTYF!$C:$AQ,37,FALSE) -> 0 | AM127: =VLOOKUP(AM$115&$U127,GTYF!$C:$AQ,37,FALSE) -> 0 | AN127: =VLOOKUP(AN$115&$U127,GTYF!$C:$AQ,37,FALSE) -> 0 | AO127: =VLOOKUP(AO$115&$U127,GTYF!$C:$AQ,37,FALSE) -> 0 | AP127: =VLOOKUP(AP$115&$U127,GTYF!$C:$AQ,37,FALSE) -> 0 | AQ127: =VLOOKUP(AQ$115&$U127,GTYF!$C:$AQ,37,FALSE) -> 0 | AR127: =VLOOKUP(AR$115&$U127,GTYF!$C:$AQ,37,FALSE) -> 0 | AS127: =VLOOKUP(AS$115&$U127,GTYF!$C:$AQ,37,FALSE) -> 0 | AT127: =VLOOKUP(AT$115&$U127,GTYF!$C:$AQ,37,FALSE) -> 0 | AU127: =VLOOKUP(AU$115&$U127,GTYF!$C:$AQ,37,FALSE) -> 0 | AV127: =VLOOKUP(AV$115&$U127,GTYF!$C:$AQ,37,FALSE) -> 0 | AW127: =VLOOKUP(AW$115&$U127,GTYF!$C:$AQ,37,FALSE) -> 0 | AX127: =VLOOKUP(AX$115&$U127,GTYF!$C:$AQ,37,FALSE) -> 0 | AY127: =VLOOKUP(AY$115&$U127,GTYF!$C:$AQ,37,FALSE) -> 0 | AZ127: 0 | BA127: =VLOOKUP(BA$115&$U127,GTYF!$C:$AQ,37,FALSE) -> 0
B128: Résineux à feuillus | E128: - | F128: - | G128: - | H128: 95.30413292 | I128: 128.1181641 | J128: 126.0418278 | M128: 95.30413292 | N128: 128.1181641 | S128: Tableau 9. | T128: Résineux à feuillus | U128: (FCTYF_RF) | V128: =VLOOKUP(V$115&$U128,GTYF!$C:$AQ,37,FALSE) -> 715.378 | W128: =VLOOKUP(W$115&$U128,GTYF!$C:$AQ,6,FALSE) -> 37161.3 | X128: =VLOOKUP(X$115&$U128,GTYF!$C:$AQ,37,FALSE) -> 60569.088 | Y128: =VLOOKUP(Y$115&$U128,GTYF!$C:$AQ,37,FALSE) -> 480547.522 | Z128: =VLOOKUP(Z$115&$U128,GTYF!$C:$AQ,37,FALSE) -> 91652.916 | AA128: =VLOOKUP(AA$115&$U128,GTYF!$C:$AQ,37,FALSE) -> 0 | AB128: =VLOOKUP(AB$115&$U128,GTYF!$C:$AQ,37,FALSE) -> 0 | AC128: =VLOOKUP(AC$115&$U128,GTYF!$C:$AQ,37,FALSE) -> 0 | AD128: =VLOOKUP(AD$115&$U128,GTYF!$C:$AQ,37,FALSE) -> 715.378 | AE128: =VLOOKUP(AE$115&$U128,GTYF!$C:$AQ,37,FALSE) -> 0 | AF128: =VLOOKUP(AF$115&$U128,GTYF!$C:$AQ,37,FALSE) -> 13635.696 | AG128: =VLOOKUP(AG$115&$U128,GTYF!$C:$AQ,37,FALSE) -> 0 | AH128: =VLOOKUP(AH$115&$U128,GTYF!$C:$AQ,37,FALSE) -> 0 | AI128: =VLOOKUP(AI$115&$U128,GTYF!$C:$AQ,37,FALSE) -> 0 | AJ128: =VLOOKUP(AJ$115&$U128,GTYF!$C:$AQ,37,FALSE) -> 715.378 | AK128: =VLOOKUP(AK$115&$U128,GTYF!$C:$AQ,37,FALSE) -> 0 | AM128: =VLOOKUP(AM$115&$U128,GTYF!$C:$AQ,37,FALSE) -> 0 | AN128: =VLOOKUP(AN$115&$U128,GTYF!$C:$AQ,37,FALSE) -> 0 | AO128: =VLOOKUP(AO$115&$U128,GTYF!$C:$AQ,37,FALSE) -> 0 | AP128: =VLOOKUP(AP$115&$U128,GTYF!$C:$AQ,37,FALSE) -> 0 | AQ128: =VLOOKUP(AQ$115&$U128,GTYF!$C:$AQ,37,FALSE) -> 0 | AR128: =VLOOKUP(AR$115&$U128,GTYF!$C:$AQ,37,FALSE) -> 0 | AS128: =VLOOKUP(AS$115&$U128,GTYF!$C:$AQ,37,FALSE) -> 0 | AT128: =VLOOKUP(AT$115&$U128,GTYF!$C:$AQ,37,FALSE) -> 0 | AU128: =VLOOKUP(AU$115&$U128,GTYF!$C:$AQ,37,FALSE) -> 0 | AV128: =VLOOKUP(AV$115&$U128,GTYF!$C:$AQ,37,FALSE) -> 0 | AW128: =VLOOKUP(AW$115&$U128,GTYF!$C:$AQ,37,FALSE) -> 0 | AX128: =VLOOKUP(AX$115&$U128,GTYF!$C:$AQ,37,FALSE) -> 0 | AY128: =VLOOKUP(AY$115&$U128,GTYF!$C:$AQ,37,FALSE) -> 0 | AZ128: 0 | BA128: =VLOOKUP(BA$115&$U128,GTYF!$C:$AQ,37,FALSE) -> 0
B129: Sapinières | E129: - | F129: - | G129: - | H129: 86.22318125 | I129: 136.7162385 | J129: 108.7705592 | M129: =IFERROR(($AF129+$AG129+$AH129+$AI129)/$AJ129*5,"-") -> 86.22318125 | N129: 136.7162385 | S129: Tableau 9. | T129: Sapinières | U129: (FCTYF_SAB) | V129: =VLOOKUP(V$115&$U129,GTYF!$C:$AQ,37,FALSE) -> 593.428 | W129: =VLOOKUP(W$115&$U129,GTYF!$C:$AQ,6,FALSE) -> 4008.7 | X129: =VLOOKUP(X$115&$U129,GTYF!$C:$AQ,37,FALSE) -> 75711.758 | Y129: =VLOOKUP(Y$115&$U129,GTYF!$C:$AQ,37,FALSE) -> 696068.482 | Z129: =VLOOKUP(Z$115&$U129,GTYF!$C:$AQ,37,FALSE) -> 81131.244 | AA129: =VLOOKUP(AA$115&$U129,GTYF!$C:$AQ,37,FALSE) -> 0 | AB129: =VLOOKUP(AB$115&$U129,GTYF!$C:$AQ,37,FALSE) -> 0 | AC129: =VLOOKUP(AC$115&$U129,GTYF!$C:$AQ,37,FALSE) -> 0 | AD129: =VLOOKUP(AD$115&$U129,GTYF!$C:$AQ,37,FALSE) -> 593.428 | AE129: =VLOOKUP(AE$115&$U129,GTYF!$C:$AQ,37,FALSE) -> 0 | AF129: =VLOOKUP(AF$115&$U129,GTYF!$C:$AQ,37,FALSE) -> 10233.45 | AG129: =VLOOKUP(AG$115&$U129,GTYF!$C:$AQ,37,FALSE) -> 0 | AH129: =VLOOKUP(AH$115&$U129,GTYF!$C:$AQ,37,FALSE) -> 0 | AI129: =VLOOKUP(AI$115&$U129,GTYF!$C:$AQ,37,FALSE) -> 0 | AJ129: =VLOOKUP(AJ$115&$U129,GTYF!$C:$AQ,37,FALSE) -> 593.428 | AK129: =VLOOKUP(AK$115&$U129,GTYF!$C:$AQ,37,FALSE) -> 0 | AM129: =VLOOKUP(AM$115&$U129,GTYF!$C:$AQ,37,FALSE) -> 0 | AN129: =VLOOKUP(AN$115&$U129,GTYF!$C:$AQ,37,FALSE) -> 0 | AO129: =VLOOKUP(AO$115&$U129,GTYF!$C:$AQ,37,FALSE) -> 0 | AP129: =VLOOKUP(AP$115&$U129,GTYF!$C:$AQ,37,FALSE) -> 0 | AQ129: =VLOOKUP(AQ$115&$U129,GTYF!$C:$AQ,37,FALSE) -> 0 | AR129: =VLOOKUP(AR$115&$U129,GTYF!$C:$AQ,37,FALSE) -> 0 | AS129: =VLOOKUP(AS$115&$U129,GTYF!$C:$AQ,37,FALSE) -> 0 | AT129: =VLOOKUP(AT$115&$U129,GTYF!$C:$AQ,37,FALSE) -> 0 | AU129: =VLOOKUP(AU$115&$U129,GTYF!$C:$AQ,37,FALSE) -> 0 | AV129: =VLOOKUP(AV$115&$U129,GTYF!$C:$AQ,37,FALSE) -> 0 | AW129: =VLOOKUP(AW$115&$U129,GTYF!$C:$AQ,37,FALSE) -> 0 | AX129: =VLOOKUP(AX$115&$U129,GTYF!$C:$AQ,37,FALSE) -> 0 | AY129: =VLOOKUP(AY$115&$U129,GTYF!$C:$AQ,37,FALSE) -> 0 | AZ129: 0 | BA129: =VLOOKUP(BA$115&$U129,GTYF!$C:$AQ,37,FALSE) -> 0
S130: Tableau 9. | T130: Tous les GTYF | V130: =SUM(V116:V129) -> 12225.824 | W130: =SUM(W116:W129) -> 249616 | X130: 1174689.724 | Y130: 10487154.88 | Z130: 1280467.73 | AA130: 23310.66 | AB130: 0 | AC130: 0 | AD130: 11585.824 | AE130: 0 | AF130: 311550.302 | AG130: 2164.94 | AH130: 0 | AI130: 0 | AJ130: 11585.824 | AK130: 0
L131: Les statistiques portants sur les coupes partielles proviennent d'un Script R et sont disponibles ici:
L132: T:\Donnees\02_Courant\01_CPF\01_UA\0XXXX\70_Determination\72_Rapport\01_Cahier_DET\Tableau_9
B134: Tableau 10. Traitements non commerciaux supportant les possibilités forestières
B135: Traitements non commerciaux | F135: Superficie annuelle moyenne (ha/an) | G135: Superficie antérieure (ha/an) | H135: Écart (ha/an) | X135: Exemple U03772
K138: Le texte en rouge demande à l'analyste de valider la nature exacte du traitement et les superficies - variable selon la vague et l'UA - veuillez ensuite mettre en noir et supprimer la remarque si elle ne s'applique pas (si DEG_1 ne contient pas de regarni)
B139: Ligniculture (essences à croissance rapide) | F139: =ROUND(V139,-1) -> 0 | G139: =IFERROR(ROUND(VLOOKUP(O33,DataLocal!$A:$BH,47,FALSE),-1),0) -> 0 | H139: =F139-G139 -> 0 | S139: =LEFT(B$134,11) -> Tableau 10. | T139: Plantation ligniculture (pins, feuillus) | U139: OSUPPL_PPF | V139: =IFERROR(VLOOKUP(U139,Output!C:AQ,37,FALSE),0)/5 -> 0
B140: Plantation intensive (2 000 plants/ha) | F140: =ROUND(V140,-1) -> 0 | G140: =IFERROR(ROUND(VLOOKUP(O33,DataLocal!$A:$BH,48,FALSE),-1),0) -> 210 | H140: =F140-G140 -> -210 | S140: =LEFT(B$134,11) -> Tableau 10. | T140: Plantation intensive | U140: OSUPPL_SEPM_I | V140: =IFERROR(VLOOKUP(U140,Output!C:AQ,37,FALSE),0)/5 -> 0
B141: Plantation de base (1 600 plants/ha) | F141: =ROUND(V141,-1) -> 820 | G141: =IFERROR(ROUND(VLOOKUP(O33,DataLocal!$A:$BH,49,FALSE),-1),0) -> 860 | H141: -40 | S141: Tableau 10. | T141: Plantation de base | U141: OSUPPL_SEPM_E | V141: =IFERROR(VLOOKUP(U141,Output!C:AQ,37,FALSE),0)/5 -> 821.322
B142: Regarni | F142: =ROUND(V142,-1) -> 0 | G142: =IFERROR(ROUND(VLOOKUP(O33,DataLocal!$A:$BH,50,FALSE),-1),0) -> 0 | H142: 0 | S142: Tableau 10. | T142: Regarni | U142: OSUPREG | V142: =IFERROR(VLOOKUP(U142,Output!C:AQ,37,FALSE),0)/5 -> 0
B143: % des plantations dans les coupes totales | F143: =IFERROR(SUM(F139:F141)/G92,0) -> 0.3534482759 | G143: =IFERROR(SUM(G139:G141)/H92,0) -> 0.3919413919 | H143: -0.03849311608 | S143: Tableau 10.
B144: Total des travaux de reboisement | F144: =ROUND(SUM(F139:F142),-1) -> 820 | G144: =ROUND(SUM(G139:G142),-1) -> 1070 | H144: -250 | S144: Tableau 10.
B145: Nettoiement (régénération naturelle et plantation) | F145: =ROUND(V145,-1) -> 90 | G145: =IFERROR(ROUND(VLOOKUP(O33,DataLocal!$A:$BH,51,FALSE),-1),0) -> 190 | H145: -100 | S145: Tableau 10. | T145: Nettoiement | U145: OSUPREALNET | V145: =IFERROR(VLOOKUP(U145,Output!C:AQ,37,FALSE),0)/5 -> 87
B146: Éclaircie précommerciale | F146: =ROUND(V146,-1) -> 0 | G146: =IFERROR(ROUND(VLOOKUP(O33,DataLocal!$A:$BH,52,FALSE),-1),0) -> 0 | H146: 0 | S146: Tableau 10. | T146: Éclaircie précommerciale de la régénération naturelle | U146: OSUPREALEPC | V146: =IFERROR(VLOOKUP(U146,Output!C:AQ,37,FALSE),0)/5 -> 0 | X146: Exemple U09751
B147: Dégagement de la régénération naturelle (et regarni) | F147: =ROUND(V147,-1) -> 0 | G147: =IFERROR(ROUND(VLOOKUP(O33,DataLocal!$A:$BH,53,FALSE),-1),0) -> 0 | H147: 0 | S147: Tableau 10. | T147: Dégagement de la régénération naturelle | U147: OSUPDEG_2 | V147: =IFERROR(VLOOKUP(U147,Output!C:AQ,37,FALSE),0)/5 -> 0
B148: Dégagement des plantations | F148: =ROUND(V148,-1) -> 120 | G148: =IFERROR(ROUND(VLOOKUP(O33,DataLocal!$A:$BH,54,FALSE),-1),0) -> 390 | H148: -270 | S148: Tableau 10. | T148: Dégagement de plantation | U148: OSUPDEG_1 | V148: =IFERROR(VLOOKUP(U148,Output!C:AQ,37,FALSE),0)/5 -> 123
B149: Élagage | F149: =ROUND(V149,-1) -> 0 | G149: =IFERROR(ROUND(VLOOKUP(O33,DataLocal!$A:$BN,66,FALSE),-1),0) -> 0 | H149: 0 | S149: Tableau 10. | T149: Élagage (plantation) | U149: OSUPELAG | V149: =IFERROR(VLOOKUP(U149,Output!C:AQ,37,FALSE),0)/5 -> 0
B150: Total des travaux d'éducation | F150: =SUM(F145:F149) -> 210 | G150: =SUM(G145:G149) -> 580 | H150: -370 | S150: Tableau 10. | U150: OSUPSCA_LIGN | V150: =IFERROR(VLOOKUP(U150,Output!C:AQ,37,FALSE),0)/5 -> 0
B151: Scarifiage partiel | F151: =ROUND(V152,-1) -> 20 | G151: =IFERROR(ROUND(VLOOKUP(O33,DataLocal!$A:$BH,58,FALSE),-1),0) -> 100 | H151: -80 | S151: Tableau 10. | U151: OSUPSCA_LRD | V151: =IFERROR(VLOOKUP(U151,Output!C:AQ,37,FALSE),0)/5 -> 0
B152: Scarifiage en plein | F152: =ROUND(V153+V150+V151,-1) -> 820 | G152: =IFERROR(ROUND(VLOOKUP(O33,DataLocal!$A:$BH,59,FALSE),-1),0) -> 1070 | H152: -250 | S152: Tableau 10. | U152: OSUPSCA_PART | V152: =IFERROR(VLOOKUP(U152,Output!C:AQ,37,FALSE),0)/5 -> 19.2
B153: Total de la préparation de terrain | F153: =IFERROR(SUM(F151:F152),0) -> 840 | G153: =IFERROR(SUM(G151:G152),0) -> 1170 | H153: -330 | S153: Tableau 10. | U153: OSUPSCA_REG | V153: =IFERROR(VLOOKUP(U153,Output!C:AQ,37,FALSE),0)/5 -> 821.322
B154: Total des travaux sans récolte | F154: =F153+F150+F144 -> 1870 | G154: =G153+G150+G144 -> 2820 | H154: -950
B160: Tableau 13 : Variation du volume sur pied à court, moyen et long terme | L160: % du volume total | U160: colonne | V160: 37 | W160: 38 | X160: 39 | Y160: 40 | AF160: 37 | AG160: 38 | AH160: 39 | AI160: 40
B161: Essences | C161: Volume moyen sur pied (m3) | G161: Volume moyen sur pied (%) | V161: Volume moyen sur pied (m3) | Z161: Volume moyen sur pied (%) | AF161: Volume dans courbe SNAT
C162: 2023 à 2048 | D162: 2048 à 2073 | E162: 2073 à 2118 | F162: 2118 à 2168 | G162: =C162 -> 2023 à 2048 | H162: =D162 -> 2048 à 2073 | I162: 2073 à 2118 | J162: 2118 à 2168 | L162: 2023 à 2048 | T162: Légende | U162: Name | V162: p 2 à 6 | W162: p 7 à 11 | X162: p 12 à 20 | Y162: p 21 à 30 | Z162: p 2 à 6 | AA162: p 7 à 11 | AB162: p 12 à 20 | AC162: p 21 à 30 | AE162: Name | AF162: p 2 à 6 | AG162: p 7 à 11 | AH162: p 12 à 20 | AI162: p 21 à 30
B163: =T163 -> Sapin baumier | C163: =ROUND(V163-AF163,-2) -> 942700 | D163: =ROUND(W163-AG163,-2) -> 745800 | E163: 658000 | F163: 667600 | G163: =C163/C$177 -> 0.05862890336 | H163: =D163/D$177 -> 0.04394633103 | I163: =E163/E$177 -> 0.03981556559 | J163: =F163/F$177 -> 0.04125724597 | L163: =C163/C$177 -> 0.05862890336 | S163: =LEFT(B$160,11) -> Tableau 13 | T163: Sapin baumier | U163: OVOLSABPIEDINC | V163: =VLOOKUP($U163,Output!$C:$AQ,V$160,FALSE) -> 959982.96 | W163: =VLOOKUP($U163,Output!$C:$AQ,W$160,FALSE) -> 752325.73 | X163: =VLOOKUP($U163,Output!$C:$AQ,X$160,FALSE) -> 671975.4222 | Y163: =VLOOKUP($U163,Output!$C:$AQ,Y$160,FALSE) -> 692789.551 | Z163: =V163/V$178 -> 0.05710153353 | AA163: =W163/W$178 -> 0.04253522971 | AB163: =X163/X$178 -> 0.03799235864 | AC163: =Y163/Y$178 -> 0.03916915442 | AE163: OVOLSABPIEDSNAT | AF163: =VLOOKUP($AE163,Output!$C:$AQ,AF$160,FALSE) -> 17248.546 | AG163: =VLOOKUP($AE163,Output!$C:$AQ,AG$160,FALSE) -> 6572.866 | AH163: =VLOOKUP($AE163,Output!$C:$AQ,AH$160,FALSE) -> 13951.46444 | AI163: =VLOOKUP($AE163,Output!$C:$AQ,AI$160,FALSE) -> 25228.508
B164: =T164 -> Épinettes | C164: =ROUND(V164-AF164,-2) -> 9069200 | D164: 9850000 | E164: 9320000 | F164: 9086200 | G164: 0.5640365443 | H164: 0.5804121221 | I164: 0.5639529958 | J164: 0.5615212528 | L164: 0.5640365443 | S164: Tableau 13 | T164: Épinettes | U164: OVOLgEpxPIEDINC | V164: =VLOOKUP($U164,Output!$C:$AQ,V$160,FALSE) -> 9728898.582 | W164: =VLOOKUP($U164,Output!$C:$AQ,W$160,FALSE) -> 10502647.24 | X164: =VLOOKUP($U164,Output!$C:$AQ,X$160,FALSE) -> 10370254.15 | Y164: =VLOOKUP($U164,Output!$C:$AQ,Y$160,FALSE) -> 10446864.7 | Z164: 0.5786925932 | AA164: 0.5938019865 | AB164: 0.5863167042 | AC164: 0.5906481355 | AE164: OVOLgEpxPIEDSNAT | AF164: =VLOOKUP($AE164,Output!$C:$AQ,AF$160,FALSE) -> 659730.406 | AG164: =VLOOKUP($AE164,Output!$C:$AQ,AG$160,FALSE) -> 652666.074 | AH164: =VLOOKUP($AE164,Output!$C:$AQ,AH$160,FALSE) -> 1050276.023 | AI164: =VLOOKUP($AE164,Output!$C:$AQ,AI$160,FALSE) -> 1360615.821
B165: =T165 -> Pin gris | C165: 2636900 | D165: 3033600 | E165: 3859300 | F165: 4006600 | G165: 0.1639954973 | H165: 0.1787551486 | I165: 0.2335261585 | J165: 0.2476052752 | L165: 0.1639954973 | S165: Tableau 13 | T165: Pin gris | U165: OVOLgPgPIEDINC | V165: =VLOOKUP($U165,Output!$C:$AQ,V$160,FALSE) -> 2679922.634 | W165: =VLOOKUP($U165,Output!$C:$AQ,W$160,FALSE) -> 3078077.644 | X165: =VLOOKUP($U165,Output!$C:$AQ,X$160,FALSE) -> 3934512.081 | Y165: =VLOOKUP($U165,Output!$C:$AQ,Y$160,FALSE) -> 4099426.063 | Z165: 0.1594066754 | AA165: 0.1740293259 | AB165: 0.2224506866 | AC165: 0.2317746454 | AE165: OVOLgPgPIEDSNAT | AF165: =VLOOKUP($AE165,Output!$C:$AQ,AF$160,FALSE) -> 42998.09 | AG165: =VLOOKUP($AE165,Output!$C:$AQ,AG$160,FALSE) -> 44516.338 | AH165: =VLOOKUP($AE165,Output!$C:$AQ,AH$160,FALSE) -> 75223.42778 | AI165: =VLOOKUP($AE165,Output!$C:$AQ,AI$160,FALSE) -> 92837.951
B166: =T166 -> Mélèzes | C166: 73700 | D166: 112600 | E166: 115600 | F166: 105900 | G166: 0.004583589878 | H166: 0.006634964969 | I166: 0.006994953468 | J166: 0.006544551151 | L166: 0.004583589878 | S166: Tableau 13 | T166: Mélèzes | U166: OVOLgMlPIEDINC | V166: =VLOOKUP($U166,Output!$C:$AQ,V$160,FALSE) -> 85431.74 | W166: =VLOOKUP($U166,Output!$C:$AQ,W$160,FALSE) -> 124768.162 | X166: =VLOOKUP($U166,Output!$C:$AQ,X$160,FALSE) -> 136066.8889 | Y166: =VLOOKUP($U166,Output!$C:$AQ,Y$160,FALSE) -> 131202.883 | Z166: 0.005081635372 | AA166: 0.007054181746 | AB166: 0.007692992735 | AC166: 0.007417990034 | AE166: OVOLGMlPIEDSNAT | AF166: =VLOOKUP($AE166,Output!$C:$AQ,AF$160,FALSE) -> 11734.684 | AG166: =VLOOKUP($AE166,Output!$C:$AQ,AG$160,FALSE) -> 12126.698 | AH166: =VLOOKUP($AE166,Output!$C:$AQ,AH$160,FALSE) -> 20476.94444 | AI166: =VLOOKUP($AE166,Output!$C:$AQ,AI$160,FALSE) -> 25300.56
B167: Thuya | C167: =ROUND(V167-AF167,-2) -> 200 | D167: 100 | E167: 0 | F167: 0 | G167: 1.243850713e-05 | H167: 5.892508853e-06 | I167: 0 | J167: 0 | L167: 1.243850713e-05 | S167: Tableau 13 | T167: Thuya | U167: OVOLTHOPIEDINC | V167: =VLOOKUP($U167,Output!$C:$AQ,V$160,FALSE) -> 232.206 | W167: =VLOOKUP($U167,Output!$C:$AQ,W$160,FALSE) -> 136 | X167: =VLOOKUP($U167,Output!$C:$AQ,X$160,FALSE) -> 31.93111111 | Y167: =VLOOKUP($U167,Output!$C:$AQ,Y$160,FALSE) -> 0 | Z167: 1.381203547e-05 | AA167: 7.68921095e-06 | AB167: 1.805331244e-06 | AC167: 0 | AE167: OVOLTHOPIEDSNAT | AF167: =VLOOKUP($AE167,Output!$C:$AQ,AF$160,FALSE) -> 0 | AG167: =VLOOKUP($AE167,Output!$C:$AQ,AG$160,FALSE) -> 0 | AH167: =VLOOKUP($AE167,Output!$C:$AQ,AH$160,FALSE) -> 0 | AI167: =VLOOKUP($AE167,Output!$C:$AQ,AI$160,FALSE) -> 0
B168: Pruche | C168: 0 | D168: 0 | E168: 0 | F168: 0 | G168: 0 | H168: 0 | I168: 0 | J168: 0 | L168: 0 | S168: Tableau 13 | T168: Pruche | U168: OVOLPRUPIEDINC | V168: =VLOOKUP($U168,Output!$C:$AQ,V$160,FALSE) -> 0 | W168: =VLOOKUP($U168,Output!$C:$AQ,W$160,FALSE) -> 0 | X168: =VLOOKUP($U168,Output!$C:$AQ,X$160,FALSE) -> 0 | Y168: =VLOOKUP($U168,Output!$C:$AQ,Y$160,FALSE) -> 0 | Z168: 0 | AA168: 0 | AB168: 0 | AC168: 0 | AE168: OVOLPRUPIEDSNAT | AF168: =VLOOKUP($AE168,Output!$C:$AQ,AF$160,FALSE) -> 0 | AG168: =VLOOKUP($AE168,Output!$C:$AQ,AG$160,FALSE) -> 0 | AH168: =VLOOKUP($AE168,Output!$C:$AQ,AH$160,FALSE) -> 0 | AI168: =VLOOKUP($AE168,Output!$C:$AQ,AI$160,FALSE) -> 0
B169: Pins blanc et rouge | C169: 100 | D169: 0 | E169: 0 | F169: 0 | G169: 6.219253565e-06 | H169: 0 | I169: 0 | J169: 0 | L169: 6.219253565e-06 | S169: Tableau 13 | T169: Pins blanc et rouge | U169: OVOLGPINSPIEDINC | V169: =VLOOKUP($U169,Output!$C:$AQ,V$160,FALSE) -> 115.508 | W169: =VLOOKUP($U169,Output!$C:$AQ,W$160,FALSE) -> 10.936 | X169: =VLOOKUP($U169,Output!$C:$AQ,X$160,FALSE) -> 0 | Y169: =VLOOKUP($U169,Output!$C:$AQ,Y$160,FALSE) -> 0 | Z169: 6.870626052e-06 | AA169: 6.183030217e-07 | AB169: 0 | AC169: 0 | AE169: OVOLGPINSCPIEDSNAT | AF169: =VLOOKUP($AE169,Output!$C:$AQ,AF$160,FALSE) -> 0 | AG169: =VLOOKUP($AE169,Output!$C:$AQ,AG$160,FALSE) -> 0 | AH169: =VLOOKUP($AE169,Output!$C:$AQ,AH$160,FALSE) -> 0 | AI169: =VLOOKUP($AE169,Output!$C:$AQ,AI$160,FALSE) -> 0
B170: Peupliers | C170: 2058700 | D170: 1923300 | E170: 1561500 | F170: 1485700 | G170: 0.1280357731 | H170: 0.1133306228 | I170: 0.0944863308 | J170: 0.0918152941 | L170: 0.1280357731 | S170: Tableau 13 | T170: Peupliers | U170: OVOLGPEUPIEDINC | V170: =VLOOKUP($U170,Output!$C:$AQ,V$160,FALSE) -> 2059474.624 | W170: =VLOOKUP($U170,Output!$C:$AQ,W$160,FALSE) -> 1923817.888 | X170: =VLOOKUP($U170,Output!$C:$AQ,X$160,FALSE) -> 1562191.397 | Y170: =VLOOKUP($U170,Output!$C:$AQ,Y$160,FALSE) -> 1487018.946 | Z170: 0.1225012987 | AA170: 0.1087694233 | AB170: 0.08832367053 | AC170: 0.08407354678 | AE170: OVOLPEUPIEDSNAT | AF170: =VLOOKUP($AE170,Output!$C:$AQ,AF$160,FALSE) -> 753.578 | AG170: =VLOOKUP($AE170,Output!$C:$AQ,AG$160,FALSE) -> 502.382 | AH170: =VLOOKUP($AE170,Output!$C:$AQ,AH$160,FALSE) -> 707.6455556 | AI170: =VLOOKUP($AE170,Output!$C:$AQ,AI$160,FALSE) -> 1273.639
B171: Bouleau à papier | C171: 1297500 | D171: 1305300 | E171: 1011800 | F171: 829300 | G171: 0.08069481501 | H171: 0.07691491806 | I171: 0.06122399584 | J171: 0.05125020085 | L171: 0.08069481501 | S171: Tableau 13 | T171: Bouleau à papier | U171: OVOLgBpPIEDINC | V171: =VLOOKUP($U171,Output!$C:$AQ,V$160,FALSE) -> 1297801.272 | W171: =VLOOKUP($U171,Output!$C:$AQ,W$160,FALSE) -> 1305336.816 | X171: =VLOOKUP($U171,Output!$C:$AQ,X$160,FALSE) -> 1012088.544 | Y171: =VLOOKUP($U171,Output!$C:$AQ,Y$160,FALSE) -> 829818.279 | Z171: 0.07719558152 | AA171: 0.07380154514 | AB171: 0.05722178175 | AC171: 0.04691652792 | AE171: OVOLgBpPIEDSNAT | AF171: =VLOOKUP($AE171,Output!$C:$AQ,AF$160,FALSE) -> 334.92 | AG171: =VLOOKUP($AE171,Output!$C:$AQ,AG$160,FALSE) -> 83.732 | AH171: =VLOOKUP($AE171,Output!$C:$AQ,AH$160,FALSE) -> 280.56 | AI171: =VLOOKUP($AE171,Output!$C:$AQ,AI$160,FALSE) -> 477.719
B172: Bouleau jaune | C172: 0 | D172: 0 | E172: 0 | F172: 0 | G172: 0 | H172: 0 | I172: 0 | J172: 0 | L172: 0 | S172: Tableau 13 | T172: Bouleau jaune | U172: OVOLBOJPIEDINC | V172: =VLOOKUP($U172,Output!$C:$AQ,V$160,FALSE) -> 0 | W172: =VLOOKUP($U172,Output!$C:$AQ,W$160,FALSE) -> 0 | X172: =VLOOKUP($U172,Output!$C:$AQ,X$160,FALSE) -> 0 | Y172: =VLOOKUP($U172,Output!$C:$AQ,Y$160,FALSE) -> 0 | Z172: 0 | AA172: 0 | AB172: 0 | AC172: 0 | AE172: OVOLBOJPIEDSNAT | AF172: =VLOOKUP($AE172,Output!$C:$AQ,AF$160,FALSE) -> 0 | AG172: =VLOOKUP($AE172,Output!$C:$AQ,AG$160,FALSE) -> 0 | AH172: =VLOOKUP($AE172,Output!$C:$AQ,AH$160,FALSE) -> 0 | AI172: =VLOOKUP($AE172,Output!$C:$AQ,AI$160,FALSE) -> 0
B173: Érable rouge | C173: 0 | D173: 0 | E173: 0 | F173: 0 | G173: 0 | H173: 0 | I173: 0 | J173: 0 | L173: 0 | S173: Tableau 13 | T173: Érable rouge | U173: OVOLgEroPIEDINC | V173: =VLOOKUP($U173,Output!$C:$AQ,V$160,FALSE) -> 0 | W173: =VLOOKUP($U173,Output!$C:$AQ,W$160,FALSE) -> 0 | X173: =VLOOKUP($U173,Output!$C:$AQ,X$160,FALSE) -> 0 | Y173: =VLOOKUP($U173,Output!$C:$AQ,Y$160,FALSE) -> 0 | Z173: 0 | AA173: 0 | AB173: 0 | AC173: 0 | AE173: OVOLgEroPIEDSNAT | AF173: =VLOOKUP($AE173,Output!$C:$AQ,AF$160,FALSE) -> 0 | AG173: =VLOOKUP($AE173,Output!$C:$AQ,AG$160,FALSE) -> 0 | AH173: =VLOOKUP($AE173,Output!$C:$AQ,AH$160,FALSE) -> 0 | AI173: =VLOOKUP($AE173,Output!$C:$AQ,AI$160,FALSE) -> 0
B174: Érable à sucre | C174: 0 | D174: 0 | E174: 0 | F174: 0 | G174: 0 | H174: 0 | I174: 0 | J174: 0 | L174: 0 | S174: Tableau 13 | T174: Érable à sucre | U174: OVOLERSPIEDINC | V174: =VLOOKUP($U174,Output!$C:$AQ,V$160,FALSE) -> 0 | W174: =VLOOKUP($U174,Output!$C:$AQ,W$160,FALSE) -> 0 | X174: =VLOOKUP($U174,Output!$C:$AQ,X$160,FALSE) -> 0 | Y174: =VLOOKUP($U174,Output!$C:$AQ,Y$160,FALSE) -> 0 | Z174: 0 | AA174: 0 | AB174: 0 | AC174: 0 | AE174: OVOLERSPIEDSNAT | AF174: =VLOOKUP($AE174,Output!$C:$AQ,AF$160,FALSE) -> 0 | AG174: =VLOOKUP($AE174,Output!$C:$AQ,AG$160,FALSE) -> 0 | AH174: =VLOOKUP($AE174,Output!$C:$AQ,AH$160,FALSE) -> 0 | AI174: =VLOOKUP($AE174,Output!$C:$AQ,AI$160,FALSE) -> 0
B175: Autres feuillus durs | C175: =ROUND(V175-AF175,-2) -> 0 | D175: 0 | E175: 0 | F175: 0 | G175: 0 | H175: 0 | I175: 0 | J175: 0 | L175: 0 | S175: Tableau 13 | T175: Autres feuillus durs | V175: =V178-V176-V174-V173-V172-V171-V170-V169-V168-V167 -> -0.003999999804 | W175: =W178-W176-W174-W173-W172-W171-W170-W169-W168-W167 -> 0.006000001203 | X175: =X178-X176-X174-X173-X172-X171-X170-X169-X168-X167 -> 0.004444448006 | Y175: =Y178-Y176-Y174-Y173-Y172-Y171-Y170-Y169-Y168-Y167 -> 0.00200000545 | Z175: -2.379272679e-10 | AA175: 3.392299629e-10 | AB175: 2.51281605e-10 | AC175: 1.130769398e-10 | AE175: Autres feuillus durs | AF175: =AF178-AF176-AF174-AF173-AF172-AF171-AF170-AF169-AF168-AF167 -> 2.148681233e-11 | AG175: =AG178-AG176-AG174-AG173-AG172-AG171-AG170-AG169-AG168-AG167 -> 0.004000000017 | AH175: =AH178-AH176-AH174-AH173-AH172-AH171-AH170-AH169-AH168-AH167 -> -0.00111111105 | AI175: =AI178-AI176-AI174-AI173-AI172-AI171-AI170-AI169-AI168-AI167 -> -0.0009999999234
B176: Autres essences | C176: =IF($L$163<0.0095,C163,0)+IF($L$164<0.0095,C164,0)+IF($L$165<0.0095,C165,0)+IF($L$166<0.0095,C166,0)+IF($L$167<0.0095,C167,0)+IF($L$168<0.0095,C168,0)+IF($L$169<0.0095,C169,0)+IF($L$170<0.0095,C170,0)+IF($L$171<0.0095,C171,0)+IF($L$172<0.0095,C172,0)+IF($L$173<0.0095,C173,0)+IF($L$174<0.0095,C174+0)+IF($L$175<0.0095,C175,0) -> 74000 | D176: =IF($L$163<0.0095,D163,0)+IF($L$164<0.0095,D164,0)+IF($L$165<0.0095,D165,0)+IF($L$166<0.0095,D166,0)+IF($L$167<0.0095,D167,0)+IF($L$168<0.0095,D168,0)+IF($L$169<0.0095,D169,0)+IF($L$170<0.0095,D170,0)+IF($L$171<0.0095,D171,0)+IF($L$172<0.0095,D172,0)+IF($L$173<0.0095,D173,0)+IF($L$174<0.0095,D174+0)+IF($L$175<0.0095,D175,0) -> 112700 | E176: =IF($L$163<0.0095,E163,0)+IF($L$164<0.0095,E164,0)+IF($L$165<0.0095,E165,0)+IF($L$166<0.0095,E166,0)+IF($L$167<0.0095,E167,0)+IF($L$168<0.0095,E168,0)+IF($L$169<0.0095,E169,0)+IF($L$170<0.0095,E170,0)+IF($L$171<0.0095,E171,0)+IF($L$172<0.0095,E172,0)+IF($L$173<0.0095,E173,0)+IF($L$174<0.0095,E174+0)+IF($L$175<0.0095,E175,0) -> 115600 | F176: =IF($L$163<0.0095,F163,0)+IF($L$164<0.0095,F164,0)+IF($L$165<0.0095,F165,0)+IF($L$166<0.0095,F166,0)+IF($L$167<0.0095,F167,0)+IF($L$168<0.0095,F168,0)+IF($L$169<0.0095,F169,0)+IF($L$170<0.0095,F170,0)+IF($L$171<0.0095,F171,0)+IF($L$172<0.0095,F172,0)+IF($L$173<0.0095,F173,0)+IF($L$174<0.0095,F174+0)+IF($L$175<0.0095,F175,0) -> 105900 | G176: 0.004602247638 | H176: 0.006640857478 | I176: 0.006994953468 | J176: 0.006544551151 | L176: 0.004602247638 | S176: Tableau 13 | T176: SEPM | U176: OVOLGSEPMPIEDINC | V176: =VLOOKUP($U176,Output!$C:$AQ,V$160,FALSE) -> 13454235.91 | W176: =VLOOKUP($U176,Output!$C:$AQ,W$160,FALSE) -> 14457818.77 | X176: =VLOOKUP($U176,Output!$C:$AQ,X$160,FALSE) -> 15112808.54 | Y176: =VLOOKUP($U176,Output!$C:$AQ,Y$160,FALSE) -> 15370283.19 | Z176: 0.8002824374 | AA176: 0.8174207237 | AB176: 0.8544527421 | AC176: 0.8690099252 | AE176: OVOLgSEPMPIEDSNAT | AF176: =VLOOKUP($AE176,Output!$C:$AQ,AF$160,FALSE) -> 731711.724 | AG176: =VLOOKUP($AE176,Output!$C:$AQ,AG$160,FALSE) -> 715881.974 | AH176: =VLOOKUP($AE176,Output!$C:$AQ,AH$160,FALSE) -> 1159927.857 | AI176: =VLOOKUP($AE176,Output!$C:$AQ,AI$160,FALSE) -> 1503982.841
B177: Total | C177: =ROUND(V178-AF178,-2) -> 16079100 | D177: =ROUND(W178-AG178,-2) -> 16970700 | E177: =ROUND(X178-AH178,-2) -> 16526200 | F177: =ROUND(Y178-AI178,-2) -> 16181400 | G177: 1 | H177: 1 | I177: 1 | J177: 1 | S177: Tableau 13 | T177: FN - ERS BOJ | U177: OVOLGFNPIEDINC | V177: =VLOOKUP($U177,Output!$C:$AQ,V$160,FALSE) -> 0 | W177: =VLOOKUP($U177,Output!$C:$AQ,W$160,FALSE) -> 0 | X177: =VLOOKUP($U177,Output!$C:$AQ,X$160,FALSE) -> 0 | Y177: =VLOOKUP($U177,Output!$C:$AQ,Y$160,FALSE) -> 0 | Z177: 0 | AA177: 0 | AB177: 0 | AC177: 0 | AE177: OVOLgFnPIEDSNAT | AF177: =VLOOKUP($AE177,Output!$C:$AQ,AF$160,FALSE) -> 0 | AG177: =VLOOKUP($AE177,Output!$C:$AQ,AG$160,FALSE) -> 0 | AH177: =VLOOKUP($AE177,Output!$C:$AQ,AH$160,FALSE) -> 0 | AI177: =VLOOKUP($AE177,Output!$C:$AQ,AI$160,FALSE) -> 0
L178: Masquer les essences du tableau qui sont en surbrillance (< 1%) | S178: Tableau 13 | T178: TOT sur pied | U178: OVOLTOTPIEDINC | V178: =VLOOKUP($U178,Output!$C:$AQ,V$160,FALSE) -> 16811859.52 | W178: =VLOOKUP($U178,Output!$C:$AQ,W$160,FALSE) -> 17687120.42 | X178: =VLOOKUP($U178,Output!$C:$AQ,X$160,FALSE) -> 17687120.42 | Y178: =VLOOKUP($U178,Output!$C:$AQ,Y$160,FALSE) -> 17687120.42 | Z178: 1 | AA178: 1 | AB178: 1 | AC178: 1 | AE178: OVOLTOTPIEDSNAT | AF178: =VLOOKUP($AE178,Output!$C:$AQ,AF$160,FALSE) -> 732800.222 | AG178: =VLOOKUP($AE178,Output!$C:$AQ,AG$160,FALSE) -> 716468.092 | AH178: =VLOOKUP($AE178,Output!$C:$AQ,AH$160,FALSE) -> 1160916.061 | AI178: =VLOOKUP($AE178,Output!$C:$AQ,AI$160,FALSE) -> 1505734.198
L179: Ces volumes sont comptabilisés dans "Autres essences" | S179: Tableau 13 | T179: Érables à sucre et rouge
D182: P2 | E182: P3 | F182: P4 | G182: P5 | H182: P6
B183: Tableau 15 Statistiques sur les compartiments d’organisation spatiale admissibles à la récolte par période
B184: Compartiments d'organisation spatiale | D184: 2023-2028 | E184: 2028-2033 | F184: 2033-2038 | G184: 2038-2043 | H184: 2043-2048
B185: Nombre total | D185: =Cedule_COS!G6 -> 0
B186: En pessière | D186: =COUNTIF(Cedule_COS!$A$10:$A$1009,"<S*") -> 0 | J186: Fait la sommation automatique des COS débutant par la lettre "P" ou par "C", valider et corriger si nécessaire
B187: En sapinière | D187: =COUNTIF(Cedule_COS!$A$10:$A$1009,"S*") -> 0 | J187: Fait la sommation automatique des COS débutant par la lettre "S", valider et corriger si nécessaire
B188: Admissibles à la récolte | D188: =Cedule_COS!C7 -> 0 | E188: =Cedule_COS!D7 -> 0 | F188: =Cedule_COS!E7 -> 0 | G188: =Cedule_COS!F7 -> 0 | H188: =Cedule_COS!G7 -> 0
B189: % de compartiments admissibles | D189: =Cedule_COS!C8 ->  | E189: =Cedule_COS!D8 ->  | F189: =Cedule_COS!E8 ->  | G189: =Cedule_COS!F8 ->  | H189: =Cedule_COS!G8 -> 
B193: Tableau 17 Superficies considérées pour l'analyse de la mortalité d'ici la période 2023-2028 | S193: =LEFT(B$193,11) -> Tableau 17 | T193: Légende | V193: Output | W193: Valeur | X193: Période | Y193: Année
F194: ha | G194: % | S194: =LEFT(B$193,11) -> Tableau 17 | T194: Incluses aux activités de récolte | V194: OSUPINC | W194: =VLOOKUP($V194,Output!$C:$AQ,6,FALSE) -> 294955.4 | X194: P0 | Y194: 2018
B195: Épidémie sévère confirmée à la photo-interprétation | G195: =F195/W$194 -> 0 | J195: Faire une sélection sur le thème 8 = "INC" et seulement les années correspondant à l'épidémie actuelle | S195: =LEFT(B$193,11) -> Tableau 17 | T195: Épidémie sévère confirmée à la photo-interprétation | V195: Requete dans la table d'attribut
B196: Défoliation cumulative (cote ≥ 15) | F196: =ROUND(W196,-1) ->  | G196: =F196/W$194 ->  | J196: Des champs avaient été ajoutés par l'analyste à la fin de table d'attribut de la carte woodstock | S196: =LEFT(B$193,11) -> Tableau 17 | T196: Défoliation cumulative projetée 2023 ≥ 15 | V196: OSUPINC15+ | W196: =VLOOKUP($V196,Output!$C:$AQ,7,FALSE) ->  | X196: P1 | Y196: 2023
B197: Mortalité projetée | F197: =ROUND(SUM(W197:W198),-1) ->  | G197: =F197/W$194 ->  | J197: et c'est sur ces derniers que doivent se réaliser les requêtes | S197: =LEFT(B$193,11) -> Tableau 17 | T197: Mortalité projetée (sommation des 2 actions) | V197: osupaTBEmort | W197: =VLOOKUP($V197,Output!$C:$AQ,8,FALSE) -> 0 | X197: P2 | Y197: 2028
B198: Récupération prévue 2018-2023 | F198: =-ROUND(W199,-1) ->  | G198: =F198/W$194 ->  | V198: Osupactiontberetard | W198: =VLOOKUP($V198,Output!$C:$AQ,8,FALSE) ->  | X198: P2 | Y198: 2028
S199: =LEFT(B$193,11) -> Tableau 17 | T199: Récolte prévue à court terme (récupération) | V199: osuprealregapre_15+ | W199: =VLOOKUP($V199,Output!$C:$AQ,7,FALSE) ->  | X199: P1 | Y199: 2023

Sheet Figures
B2: Figure 2. Répartition du volume de bois marchand sur pied en début de calcul (m3). | N2: Volume sur pied en P0 | S2: Source: CahierDetermination_2018-2023 | V2: Volume sur pied en P0 - volume en SNAT | Z2: Volume dans courbe SNAT
L3: Conserver les GTYF même s'ils sont absents de l'UA | S3: Intrants | T3: Légende | U3: Name | V3: PERIOD0 | W3: % | X3: PERIOD0 | Z3: Name | AB3: PERIOD0
N4: Total | O4: =V19 -> 15254500 | S4: =LEFT(B$2,10) -> Figure 2. | T4: Autres feuillus durs | V4: =ROUND(V19-V17-V11-V12-V10-V8-V9-V6-V5-V7,-2) -> 100 | W4: =IFERROR(V4/$V$19,0) -> 6.555442656e-06 | X4: =X19-X17-X11-X12-X10-X8-X9-X6-X5-X7 -> -0.009999999544 | Z4: Autres feuillus durs | AB4: =ROUND(AB19-AB17-AB11-AB12-AB10-AB8-AB9-AB6-AB5-AB7,-2) -> 0
N5: % R | O5: =(V17+V12+V11+V10)/V19 -> 0.8441640172 | S5: Figure 2. | T5: Érable à sucre | U5: OVOLERSPIEDINC | V5: =ROUND(X5-AB5,-2) -> 0 | W5: 0 | X5: =VLOOKUP(U5,Output!$C:$AQ,6,FALSE) -> 0 | Z5: OVOLERSPIEDSNAT | AB5: =VLOOKUP(Z5,Output!$C:$AQ,6,FALSE) -> 0
N6: %SEPM | O6: =V17/V19 -> 0.84413124 | S6: Figure 2. | T6: Érable rouge | U6: OVOLgEroPIEDINC | V6: 0 | W6: 0 | X6: =VLOOKUP(U6,Output!$C:$AQ,6,FALSE) -> 0 | Z6: OVOLgEroPIEDSNAT | AB6: =VLOOKUP(Z6,Output!$C:$AQ,6,FALSE) -> 0
N7: % Fi | O7: =W21 -> 0.1558294274 | P7: =O7*O4 -> 2377100 | S7: Figure 2. | T7: Bouleau jaune | U7: OVOLBOJPIEDINC | V7: 0 | W7: 0 | X7: =VLOOKUP(U7,Output!$C:$AQ,6,FALSE) -> 0 | Z7: OVOLBOJPIEDSNAT | AB7: =VLOOKUP(Z7,Output!$C:$AQ,6,FALSE) -> 0
N8: % FT | O8: =W22 -> 0 | S8: Figure 2. | T8: Bouleau à papier | U8: OVOLgBpPIEDINC | V8: 934100 | W8: 0.06123438985 | X8: =VLOOKUP(U8,Output!$C:$AQ,6,FALSE) -> 934543.47 | Z8: OVOLgBpPIEDSNAT | AB8: =VLOOKUP(Z8,Output!$C:$AQ,6,FALSE) -> 418.65
N9: %Sapin | O9: =V16/V17 -> 0.07390034791 | S9: Figure 2. | T9: Peupliers | U9: OVOLGPEUPIEDINC | V9: 1443000 | W9: 0.09459503753 | X9: =VLOOKUP(U9,Output!$C:$AQ,6,FALSE) -> 1443849.12 | Z9: OVOLPEUPIEDSNAT | AB9: =VLOOKUP(Z9,Output!$C:$AQ,6,FALSE) -> 837.31
N10: %ERR | O10: =IFERROR(V6/(V5+V6),0) -> 0 | S10: Figure 2. | T10: Pins blanc et rouge | U10: OVOLGPINSPIEDINC | V10: 100 | W10: 6.555442656e-06 | X10: =VLOOKUP(U10,Output!$C:$AQ,6,FALSE) -> 126.92 | Z10: OVOLGPINSCPIEDSNAT | AB10: =VLOOKUP(Z10,Output!$C:$AQ,6,FALSE) -> 0
S11: Figure 2. | T11: Pruche | U11: OVOLPRUPIEDINC | V11: 0 | W11: 0 | X11: =VLOOKUP(U11,Output!$C:$AQ,6,FALSE) -> 0 | Z11: OVOLPRUPIEDSNAT | AB11: =VLOOKUP(Z11,Output!$C:$AQ,6,FALSE) -> 0
N12: Volume sur pied au calcul 2015-2018 | P12: UA | S12: Figure 2. | T12: Thuya | U12: OVOLTHOPIEDINC | V12: 400 | W12: 2.622177063e-05 | X12: =VLOOKUP(U12,Output!$C:$AQ,6,FALSE) -> 416.57 | Z12: OVOLTHOPIEDSNAT | AB12: =VLOOKUP(Z12,Output!$C:$AQ,6,FALSE) -> 0
P13: =Tableaux!O33 -> 08764 | S13: Figure 2. | T13: Mélèzes | U13: OVOLgMlPIEDINC | V13: 58600 | W13: 0.003841489397 | X13: =VLOOKUP(U13,Output!$C:$AQ,6,FALSE) -> 70162.9 | Z13: OVOLGMlPIEDSNAT | AB13: =VLOOKUP(Z13,Output!$C:$AQ,6,FALSE) -> 11512.99
N14: Total | O14: =VLOOKUP(P13,DataLocal!$A:$BM,61,FALSE) -> 17793400 | S14: Figure 2. | T14: Pin gris | U14: OVOLgPgPIEDINC | V14: 2104900 | W14: 0.1379855125 | X14: =VLOOKUP(U14,Output!$C:$AQ,6,FALSE) -> 2147155.96 | Z14: OVOLgPgPIEDSNAT | AB14: =VLOOKUP(Z14,Output!$C:$AQ,6,FALSE) -> 42284.05
N15: % R | O15: =VLOOKUP(P13,DataLocal!$A:$BM,62,FALSE) -> 0.85 | S15: Figure 2. | T15: Épinettes | U15: OVOLgEpxPIEDINC | V15: 9761700 | W15: 0.6399226458 | X15: =VLOOKUP(U15,Output!$C:$AQ,6,FALSE) -> 10434847.7 | Z15: OVOLgEpxPIEDSNAT | AB15: =VLOOKUP(Z15,Output!$C:$AQ,6,FALSE) -> 673161.91
N16: % SEPM | O16: =VLOOKUP(P13,DataLocal!$A:$BM,63,FALSE) -> 0.85 | S16: Figure 2. | T16: Sapin baumier | U16: OVOLSABPIEDINC | V16: =ROUND(X16-AB16,-2) -> 951600 | W16: 0.06238159232 | X16: =VLOOKUP(U16,Output!$C:$AQ,6,FALSE) -> 970640.94 | Z16: OVOLSABPIEDSNAT | AB16: =VLOOKUP(Z16,Output!$C:$AQ,6,FALSE) -> 19048.76
N17: % Fi | O17: =VLOOKUP(P13,DataLocal!$A:$BM,64,FALSE) -> 0.15 | S17: Figure 2. | T17: SEPM | U17: OVOLGSEPMPIEDINC | V17: =ROUND(X17-AB17,-2) -> 12876800 | W17: =IFERROR(V17/$V$19,0) -> 0.84413124 | X17: =VLOOKUP(U17,Output!$C:$AQ,6,FALSE) -> 13622807.5 | Z17: OVOLgSEPMPIEDSNAT | AB17: =VLOOKUP(Z17,Output!$C:$AQ,6,FALSE) -> 746007.71
N18: % Ft | O18: =VLOOKUP(P13,DataLocal!$A:$BM,65,FALSE) -> 0 | S18: Figure 2. | T18: FN - ERS BOJ | U18: OVOLGFNPIEDINC | V18: 0 | W18: 0 | X18: =VLOOKUP(U18,Output!$C:$AQ,6,FALSE) -> 0 | Z18: OVOLgFnPIEDSNAT | AB18: =VLOOKUP(Z18,Output!$C:$AQ,6,FALSE) -> 0
S19: Figure 2. | T19: TOT sur pied | U19: OVOLTOTPIEDINC | V19: =ROUND(X19-AB19,-2) -> 15254500 | W19: 1 | X19: =VLOOKUP(U19,Output!$C:$AQ,6,FALSE) -> 16001743.57 | Z19: OVOLTOTPIEDSNAT | AB19: =VLOOKUP(Z19,Output!$C:$AQ,6,FALSE) -> 747263.67
N20: Vol R | O20: =ROUND(O15*$O$14,-2) -> 15124400 | T20: Érables à sucre et rouge | U20: Érables à sucre et rouge | V20: =V5+V6 -> 0 | W20: 0 | X20: =X5+X6 -> 0 | Z20: Érables à sucre et rouge | AB20: =AB5+AB6 -> 0
N21: Vol SEPM | O21: =ROUND(O16*$O$14,-2) -> 15124400 | P21: Traduits en m3 | T21: gFi | U21: OVOLgFiPIEDINC | V21: =ROUND(X21-AB21,-2) -> 2377100 | W21: 0.1558294274 | X21: =VLOOKUP(U21,Output!$C:$AQ,6,FALSE) -> 2378392.58 | Z21: OVOLgFiPIEDSNAT | AB21: =VLOOKUP(Z21,Output!$C:$AQ,6,FALSE) -> 1255.96
N22: Vol Fi | O22: =ROUND(O17*$O$14,-2) -> 2669000 | P22: approximativement | T22: gFt | U22: OVOLgFtPIEDINC | V22: 0 | W22: 0 | X22: =VLOOKUP(U22,Output!$C:$AQ,6,FALSE) -> 0 | Z22: OVOLgFtPIEDSNAT | AB22: =VLOOKUP(Z22,Output!$C:$AQ,6,FALSE) -> 0
N23: Vol Ft | O23: =ROUND(O18*$O$14,-2) -> 0
B27: Type de couvert : | C27: =#REF! -> 
B28: Figure 3. Répartition de la superficie par grand type de forêt en début de calcul (ha). | S28: Intrants | T28: Légende | V28: PERIOD0 | W28: % | X28: PERIOD0
S29: =LEFT(B$28,10) -> Figure 3. | T29: Sapinières | U29: (FCTYF_SAB) | V29: =ROUND(X29,-1) -> 4010 | W29: =V29/V$44 -> 0.01362019433 | X29: =VLOOKUP("OSUPINC"&$U29,GTYF!$C:$AP,6,FALSE) -> 4008.7
S30: Figure 3. | T30: Résineux à feuillus | U30: (FCTYF_RF) | V30: =ROUND(X30,-1) -> 37160 | W30: 0.1262160651 | X30: =VLOOKUP("OSUPINC"&$U30,GTYF!$C:$AP,6,FALSE) -> 37161.3
S31: Figure 3. | T31: Prucheraies | U31: (FCTYF_PRU) | V31: 0 | W31: 0 | X31: =VLOOKUP("OSUPINC"&$U31,GTYF!$C:$AP,6,FALSE) -> 0
S32: Figure 3. | T32: Pinèdes grises | U32: (FCTYF_PIG) | V32: 21430 | W32: 0.07278822055 | X32: =VLOOKUP("OSUPINC"&$U32,GTYF!$C:$AP,6,FALSE) -> 21430.8
L33: Conserver les GTYF même s'ils sont absents de l'UA | S33: Figure 3. | T33: Pinèdes blanches | U33: (FCTYF_PIN) | V33: 0 | W33: 0 | X33: =VLOOKUP("OSUPINC"&$U33,GTYF!$C:$AP,6,FALSE) -> 0
S34: Figure 3. | T34: Peupleraies à résineux | U34: (FCTYF_PEUR) | V34: 4950 | W34: 0.01681295808 | X34: =VLOOKUP("OSUPINC"&$U34,GTYF!$C:$AP,6,FALSE) -> 4949.2
S35: Figure 3. | T35: Peupleraies | U35: (FCTYF_PEU) | V35: 6730 | W35: 0.02285882988 | X35: =VLOOKUP("OSUPINC"&$U35,GTYF!$C:$AP,6,FALSE) -> 6730.6
S36: Figure 3. | T36: Pessières | U36: (FCTYF_EPX) | V36: 167450 | W36: 0.5687535012 | X36: =VLOOKUP("OSUPINC"&$U36,GTYF!$C:$AP,6,FALSE) -> 167453.2
S37: Figure 3. | T37: Feuillus tolérants à résineux | U37: (FCTYF_FTR) | V37: 0 | W37: 0 | X37: =VLOOKUP("OSUPINC"&$U37,GTYF!$C:$AP,6,FALSE) -> 0
S38: Figure 3. | T38: Feuillus tolérants | U38: (FCTYF_FT) | V38: 0 | W38: 0 | X38: =VLOOKUP("OSUPINC"&$U38,GTYF!$C:$AP,6,FALSE) -> 0
S39: Figure 3. | T39: Érablières rouges | U39: (FCTYF_ERO) | V39: 0 | W39: 0 | X39: =VLOOKUP("OSUPINC"&$U39,GTYF!$C:$AP,6,FALSE) -> 0
S40: Figure 3. | T40: Cédrières | U40: (FCTYF_THO) | V40: 0 | W40: 0 | X40: =VLOOKUP("OSUPINC"&$U40,GTYF!$C:$AP,6,FALSE) -> 0
S41: Figure 3. | T41: Bétulaies blanches à résineux | U41: (FCTYF_BOPR) | V41: 4240 | W41: 0.01440140248 | X41: =VLOOKUP("OSUPINC"&$U41,GTYF!$C:$AP,6,FALSE) -> 4239.2
S42: Figure 3. | T42: Bétulaies blanches | U42: (FCTYF_BOP) | V42: 3640 | W42: 0.01236346817 | X42: =VLOOKUP("OSUPINC"&$U42,GTYF!$C:$AP,6,FALSE) -> 3643
U43: Somme: | V43: =SUM(V29:V42) -> 249610 | X43: =SUM(X29:X42) -> 249616
T44: OSUPINC | U44: Tous | V44: =VLOOKUP("OSUPINC",Output!$C:$AP,7,FALSE) -> 294415.77
V45: =V43-V44 -> -44805.77 | W45: Écart
V49: 2018
B50: Figure 4. Superficie destinée à l'aménagement forestier par classe d'âge en début de calcul (ha). | S50: Intrants | U50: Name | V50: PERIOD0 | X50: Classe d'âge | Y50: OUTPUT | Z50: Superficie (ha) | AA50: Pourcentage (%)
S51: =LEFT(B$50,10) -> Figure 4. | T51: 10 ans | U51: OSUP_INC_CLASSEAGEFCAGEAGE1 | V51: =VLOOKUP(U51,Output!$C:$AQ,6,FALSE) -> 14128.1 | X51: 10 | Z51: =ROUND(SUM(V51:V54),-1) -> 60140 | AA51: =IFERROR(Z51/$V$89,0) -> 0.203895233
S52: Figure 4. | T52: 10 ans | U52: OSUP_INC_CLASSEAGEFCAGEAGE2 | V52: =VLOOKUP(U52,Output!$C:$AQ,6,FALSE) -> 6372.7 | X52: 30 | Z52: =ROUND(SUM(V55:V58),-1) -> 103040 | AA52: 0.3493409512
S53: Figure 4. | T53: 10 ans | U53: OSUP_INC_CLASSEAGEFCAGEAGE3 | V53: =VLOOKUP(U53,Output!$C:$AQ,6,FALSE) -> 18724.3 | X53: 50 | Z53: =ROUND(SUM(V59:V62),-1) -> 22360 | AA53: 0.07580807132
S54: Figure 4. | T54: 10 ans | U54: OSUP_INC_CLASSEAGEFCAGEAGE4 | V54: =VLOOKUP(U54,Output!$C:$AQ,6,FALSE) -> 20919.5 | X54: 70 | Z54: =ROUND(SUM(V63:V66),-1) -> 8210 | AA54: 0.02783471671
S55: Figure 4. | T55: 30 ans | U55: OSUP_INC_CLASSEAGEFCAGEAGE5 | V55: =VLOOKUP(U55,Output!$C:$AQ,6,FALSE) -> 11580.8 | X55: 90 | Z55: =ROUND(SUM(V67:V70),-1) -> 20860 | AA55: 0.0707225567
S56: Figure 4. | T56: 30 ans | U56: OSUP_INC_CLASSEAGEFCAGEAGE6 | V56: =VLOOKUP(U56,Output!$C:$AQ,6,FALSE) -> 51251.3 | X56: 120 et plus | Z56: =ROUND(SUM(V71:V80),-1) -> 80340 | AA56: 0.2723801632
S57: Figure 4. | T57: 30 ans | U57: OSUP_INC_CLASSEAGEFCAGEAGE7 | V57: =VLOOKUP(U57,Output!$C:$AQ,6,FALSE) -> 21089.3
S58: Figure 4. | T58: 30 ans | U58: OSUP_INC_CLASSEAGEFCAGEAGE8 | V58: =VLOOKUP(U58,Output!$C:$AQ,6,FALSE) -> 19115.5
S59: Figure 4. | T59: 50 ans | U59: OSUP_INC_CLASSEAGEFCAGEAGE9 | V59: =VLOOKUP(U59,Output!$C:$AQ,6,FALSE) -> 6598.7
S60: Figure 4. | T60: 50 ans | U60: OSUP_INC_CLASSEAGEFCAGEAGE10 | V60: =VLOOKUP(U60,Output!$C:$AQ,6,FALSE) -> 6003.4
S61: Figure 4. | T61: 50 ans | U61: OSUP_INC_CLASSEAGEFCAGEAGE11 | V61: =VLOOKUP(U61,Output!$C:$AQ,6,FALSE) -> 4743.9
N62: Proportion de la superficie dont l'évolution est suivi en âge: | S62: Figure 4. | T62: 50 ans | U62: OSUP_INC_CLASSEAGEFCAGEAGE12 | V62: =VLOOKUP(U62,Output!$C:$AQ,6,FALSE) -> 5016
N63: =IF(AND($W$81>=99.5%,$W$81<100%),"> 99%",IF(AND($W$81>=0.1%,$W$81<0.5%),"< 1%",$W$81)) -> 1 | S63: Figure 4. | T63: 70 ans | U63: OSUP_INC_CLASSEAGEFCAGEAGE13 | V63: =VLOOKUP(U63,Output!$C:$AQ,6,FALSE) -> 877.2
S64: Figure 4. | T64: 70 ans | U64: OSUP_INC_CLASSEAGEFCAGEAGE14 | V64: =VLOOKUP(U64,Output!$C:$AQ,6,FALSE) -> 4633.7
S65: Figure 4. | T65: 70 ans | U65: OSUP_INC_CLASSEAGEFCAGEAGE15 | V65: =VLOOKUP(U65,Output!$C:$AQ,6,FALSE) -> 1772.8
S66: Figure 4. | T66: 70 ans | U66: OSUP_INC_CLASSEAGEFCAGEAGE16 | V66: =VLOOKUP(U66,Output!$C:$AQ,6,FALSE) -> 924.9
S67: Figure 4. | T67: 90 ans | U67: OSUP_INC_CLASSEAGEFCAGEAGE17 | V67: =VLOOKUP(U67,Output!$C:$AQ,6,FALSE) -> 1066.6
S68: Figure 4. | T68: 90 ans | U68: OSUP_INC_CLASSEAGEFCAGEAGE18 | V68: =VLOOKUP(U68,Output!$C:$AQ,6,FALSE) -> 1911.1
B69: Figure 5. Superficie destinée à l'aménagement forestier par classe de surface terrière en début de calcul (ha) | S69: Figure 4. | T69: 90 ans | U69: OSUP_INC_CLASSEAGEFCAGEAGE19 | V69: =VLOOKUP(U69,Output!$C:$AQ,6,FALSE) -> 12112.5
S70: Figure 4. | T70: 90 ans | U70: OSUP_INC_CLASSEAGEFCAGEAGE20 | V70: =VLOOKUP(U70,Output!$C:$AQ,6,FALSE) -> 5769.1
S71: Figure 4. | T71: 120 et plus | U71: OSUP_INC_CLASSEAGEFCAGEAGE21 | V71: =VLOOKUP(U71,Output!$C:$AQ,6,FALSE) -> 9074.4
S72: Figure 4. | T72: 120 et plus | U72: OSUP_INC_CLASSEAGEFCAGEAGE22 | V72: =VLOOKUP(U72,Output!$C:$AQ,6,FALSE) -> 2989.1
S73: Figure 4. | T73: 120 et plus | U73: OSUP_INC_CLASSEAGEFCAGEAGE23 | V73: =VLOOKUP(U73,Output!$C:$AQ,6,FALSE) -> 3170.9
S74: Figure 4. | T74: 120 et plus | U74: OSUP_INC_CLASSEAGEFCAGEAGE24 | V74: =VLOOKUP(U74,Output!$C:$AQ,6,FALSE) -> 2932
S75: Figure 4. | T75: 120 et plus | U75: OSUP_INC_CLASSEAGEFCAGEAGE25 | V75: =VLOOKUP(U75,Output!$C:$AQ,6,FALSE) -> 7333.9
N76: Proportion de la superficie dont l'évolution est suivi en surface terrière: | S76: Figure 4. | T76: 120 et plus | U76: OSUP_INC_CLASSEAGEFCAGEAGE26 | V76: =VLOOKUP(U76,Output!$C:$AQ,6,FALSE) -> 5162.9
N77: =IF(AND($W$88>=99.5%,$W$88<100%),"> 99%",IF(AND($W$88>=0.1%,$W$88<0.5%),"< 1%",$W$88)) -> 0 | S77: Figure 4. | T77: 120 et plus | U77: OSUP_INC_CLASSEAGEFCAGEAGE27 | V77: =VLOOKUP(U77,Output!$C:$AQ,6,FALSE) -> 2502.3
S78: Figure 4. | T78: 120 et plus | U78: OSUP_INC_CLASSEAGEFCAGEAGE28 | V78: =VLOOKUP(U78,Output!$C:$AQ,6,FALSE) -> 3043.6
S79: Figure 4. | T79: 120 et plus | U79: OSUP_INC_CLASSEAGEFCAGEAGE29 | V79: =VLOOKUP(U79,Output!$C:$AQ,6,FALSE) -> 1122.6
S80: Figure 4. | T80: 120 et plus | U80: OSUP_INC_CLASSEAGEFCAGEAGE30+ | V80: =VLOOKUP(U80,Output!$C:$AQ,6,FALSE) -> 43012.3
U81: Sous-total | V81: =SUM(V51:V80) -> 294955.4 | W81: =V81/V89 -> 1
S82: =LEFT(B$69,10) -> Figure 5. | T82: <16 | U82: OSUPINC_ST016(FCST) | V82: =VLOOKUP(U82,GTYF!$C:$AQ,6,FALSE) -> 0 | W82: =IFERROR(V82/$V$88,0) -> 0
S83: Figure 5. | T83: 16 à 18 | U83: OSUPINC_ST1619(FCST) | V83: =VLOOKUP(U83,GTYF!$C:$AQ,6,FALSE) -> 0 | W83: 0
S84: Figure 5. | T84: 19 à 21 | U84: OSUPINC_ST1922(FCST) | V84: =VLOOKUP(U84,GTYF!$C:$AQ,6,FALSE) -> 0 | W84: 0
S85: Figure 5. | T85: 22 à 24 | U85: OSUPINC_ST2225(FCST) | V85: =VLOOKUP(U85,GTYF!$C:$AQ,6,FALSE) -> 0 | W85: 0
S86: Figure 5. | T86: 25 à 28 | U86: OSUPINC_ST2528(FCST) | V86: =VLOOKUP(U86,GTYF!$C:$AQ,6,FALSE) -> 0 | W86: 0
S87: Figure 5. | T87: 29+ | U87: OSUPINC_ST29+(FCST) | V87: =VLOOKUP(U87,GTYF!$C:$AQ,6,FALSE) -> 0 | W87: 0
S88: Figure 5. | T88: Total 0-29+ | U88: Sous-total | V88: =SUM(V82:V87) -> 0 | W88: =V88/V89 -> 0
U89: OSUPINC | V89: =VLOOKUP(U89,Output!$C:$AQ,6,FALSE) -> 294955.4
A91: 80 | B91: Figure 6. Évolution des volumes et des possibilités forestières à rendement non-décroissant
U93: Période | V93: P0 | W93: P1 | X93: P2 | Y93: P3 | Z93: P4 | AA93: P5 | AB93: P6 | AC93: P7 | AD93: P8 | AE93: P9 | AF93: P10 | AG93: P11 | AH93: P12 | AI93: P13 | AJ93: P14 | AK93: P15 | AL93: P16 | AM93: P17 | AN93: P18 | AO93: P19 | AP93: P20 | AQ93: P21 | AR93: P22 | AS93: P23 | AT93: P24 | AU93: P25 | AV93: P26 | AW93: P27 | AX93: P28 | AY93: P29 | AZ93: P30
U94: Colonne | V94: 6 | W94: 7 | X94: 8 | Y94: 9 | Z94: 10 | AA94: 11 | AB94: 12 | AC94: 13 | AD94: 14 | AE94: 15 | AF94: 16 | AG94: 17 | AH94: 18 | AI94: 19 | AJ94: 20 | AK94: 21 | AL94: 22 | AM94: 23 | AN94: 24 | AO94: 25 | AP94: 26 | AQ94: 27 | AR94: 28 | AS94: 29 | AT94: 30 | AU94: 31 | AV94: 32 | AW94: 33 | AX94: 34 | AY94: 35 | AZ94: 36
S95: =LEFT(B$91,10) -> Figure 6. | T95: Légende | U95: Axe des "X" Début de période | W95: 2018 | X95: 2023 | Y95: 2028 | Z95: 2033 | AA95: 2038 | AB95: 2043 | AC95: 2048 | AD95: 2053 | AE95: 2058 | AF95: 2063 | AG95: 2068 | AH95: 2073 | AI95: 2078 | AJ95: 2083 | AK95: 2088 | AL95: 2093 | AM95: 2098 | AN95: 2103 | AO95: 2108 | AP95: 2113 | AQ95: 2118 | AR95: 2123 | AS95: 2128 | AT95: 2133 | AU95: 2138 | AV95: 2143 | AW95: 2148 | AX95: 2153 | AY95: 2158 | AZ95: 2163
S96: =LEFT(B$91,10) -> Figure 6. | T96: Possibilités forestières quinquennales | U96: OVOLTOTREC | V96: =VLOOKUP($U96,Output!$C:$AM,V$94,FALSE) -> 0 | W96: =VLOOKUP($U96,Output!$C:$AM,W$94,FALSE) -> 1357142.38 | X96: =VLOOKUP($U96,Output!$C:$AM,X$94,FALSE) -> 1352500 | Y96: =VLOOKUP($U96,Output!$C:$AM,Y$94,FALSE) -> 1352500 | Z96: =VLOOKUP($U96,Output!$C:$AM,Z$94,FALSE) -> 1352500 | AA96: =VLOOKUP($U96,Output!$C:$AM,AA$94,FALSE) -> 1352500 | AB96: =VLOOKUP($U96,Output!$C:$AM,AB$94,FALSE) -> 1352500 | AC96: =VLOOKUP($U96,Output!$C:$AM,AC$94,FALSE) -> 2173849.92 | AD96: =VLOOKUP($U96,Output!$C:$AM,AD$94,FALSE) -> 2262711.25 | AE96: =VLOOKUP($U96,Output!$C:$AM,AE$94,FALSE) -> 2332705.56 | AF96: =VLOOKUP($U96,Output!$C:$AM,AF$94,FALSE) -> 2363777.48 | AG96: =VLOOKUP($U96,Output!$C:$AM,AG$94,FALSE) -> 2363787.93 | AH96: =VLOOKUP($U96,Output!$C:$AM,AH$94,FALSE) -> 2363811.27 | AI96: =VLOOKUP($U96,Output!$C:$AM,AI$94,FALSE) -> 2363811.27 | AJ96: =VLOOKUP($U96,Output!$C:$AM,AJ$94,FALSE) -> 2363812.8 | AK96: =VLOOKUP($U96,Output!$C:$AM,AK$94,FALSE) -> 2384393.03 | AL96: =VLOOKUP($U96,Output!$C:$AM,AL$94,FALSE) -> 2384393.03 | AM96: =VLOOKUP($U96,Output!$C:$AM,AM$94,FALSE) -> 2384399.69 | AN96: =VLOOKUP($U96,Output!$C:$AM,AN$94,FALSE) -> 2384399.69 | AO96: =VLOOKUP($U96,Output!$C:$AM,AO$94,FALSE) -> 2384401.04 | AP96: =VLOOKUP($U96,Output!$C:$AM,AP$94,FALSE) -> 2384427.85 | AQ96: =VLOOKUP($U96,Output!$C:$AM,AQ$94,FALSE) -> 2384427.85 | AR96: =VLOOKUP($U96,Output!$C:$AM,AR$94,FALSE) -> 2384427.85 | AS96: =VLOOKUP($U96,Output!$C:$AM,AS$94,FALSE) -> 2384427.85 | AT96: =VLOOKUP($U96,Output!$C:$AM,AT$94,FALSE) -> 2384427.85 | AU96: =VLOOKUP($U96,Output!$C:$AM,AU$94,FALSE) -> 2384427.85 | AV96: =VLOOKUP($U96,Output!$C:$AM,AV$94,FALSE) -> 2476003.03 | AW96: =VLOOKUP($U96,Output!$C:$AM,AW$94,FALSE) -> 2536458.89 | AX96: =VLOOKUP($U96,Output!$C:$AM,AX$94,FALSE) -> 2553271.25 | AY96: =VLOOKUP($U96,Output!$C:$AM,AY$94,FALSE) -> 2553271.25 | AZ96: =VLOOKUP($U96,Output!$C:$AM,AZ$94,FALSE) -> 2553271.25
S97: =LEFT(B$91,10) -> Figure 6. | T97: Volume à maturité | U97: OVOLMATUREADM | V97: =VLOOKUP($U97,Output!$C:$AM,V$94,FALSE) -> 9943214.33 | W97: =VLOOKUP($U97,Output!$C:$AM,W$94,FALSE) -> 8878492.69 | X97: =VLOOKUP($U97,Output!$C:$AM,X$94,FALSE) -> 8660805.6 | Y97: =VLOOKUP($U97,Output!$C:$AM,Y$94,FALSE) -> 8118888.49 | Z97: =VLOOKUP($U97,Output!$C:$AM,Z$94,FALSE) -> 9716249.28 | AA97: =VLOOKUP($U97,Output!$C:$AM,AA$94,FALSE) -> 10260173.33 | AB97: =VLOOKUP($U97,Output!$C:$AM,AB$94,FALSE) -> 11216309.46 | AC97: =VLOOKUP($U97,Output!$C:$AM,AC$94,FALSE) -> 10705081.32 | AD97: =VLOOKUP($U97,Output!$C:$AM,AD$94,FALSE) -> 10042622.12 | AE97: =VLOOKUP($U97,Output!$C:$AM,AE$94,FALSE) -> 9068552.04 | AF97: =VLOOKUP($U97,Output!$C:$AM,AF$94,FALSE) -> 8187489.15 | AG97: =VLOOKUP($U97,Output!$C:$AM,AG$94,FALSE) -> 8554515.69 | AH97: =VLOOKUP($U97,Output!$C:$AM,AH$94,FALSE) -> 7983792.8 | AI97: =VLOOKUP($U97,Output!$C:$AM,AI$94,FALSE) -> 8972768.42 | AJ97: =VLOOKUP($U97,Output!$C:$AM,AJ$94,FALSE) -> 9218578.97 | AK97: =VLOOKUP($U97,Output!$C:$AM,AK$94,FALSE) -> 8987784.08 | AL97: =VLOOKUP($U97,Output!$C:$AM,AL$94,FALSE) -> 9423876.84 | AM97: =VLOOKUP($U97,Output!$C:$AM,AM$94,FALSE) -> 8859476.42 | AN97: =VLOOKUP($U97,Output!$C:$AM,AN$94,FALSE) -> 8579261.8 | AO97: =VLOOKUP($U97,Output!$C:$AM,AO$94,FALSE) -> 8442662.06 | AP97: =VLOOKUP($U97,Output!$C:$AM,AP$94,FALSE) -> 8186823.15 | AQ97: =VLOOKUP($U97,Output!$C:$AM,AQ$94,FALSE) -> 8295123.65 | AR97: =VLOOKUP($U97,Output!$C:$AM,AR$94,FALSE) -> 8539773.73 | AS97: =VLOOKUP($U97,Output!$C:$AM,AS$94,FALSE) -> 8763477.66 | AT97: =VLOOKUP($U97,Output!$C:$AM,AT$94,FALSE) -> 10008990.66 | AU97: =VLOOKUP($U97,Output!$C:$AM,AU$94,FALSE) -> 9472783.99 | AV97: =VLOOKUP($U97,Output!$C:$AM,AV$94,FALSE) -> 9552590.54 | AW97: =VLOOKUP($U97,Output!$C:$AM,AW$94,FALSE) -> 9163067.62 | AX97: =VLOOKUP($U97,Output!$C:$AM,AX$94,FALSE) -> 8751076.96 | AY97: =VLOOKUP($U97,Output!$C:$AM,AY$94,FALSE) -> 8046518.55 | AZ97: =VLOOKUP($U97,Output!$C:$AM,AZ$94,FALSE) -> 7418793.83
S98: =LEFT(B$91,10) -> Figure 6. | T98: Volume sur pied | U98: OVOLTOTPIEDINC | V98: =VLOOKUP($U98,Output!$C:$AM,V$94,FALSE) -> 16001743.57 | W98: =VLOOKUP($U98,Output!$C:$AM,W$94,FALSE) -> 16056677.67 | X98: =VLOOKUP($U98,Output!$C:$AM,X$94,FALSE) -> 16179905.64 | Y98: =VLOOKUP($U98,Output!$C:$AM,Y$94,FALSE) -> 16355476.9 | Z98: =VLOOKUP($U98,Output!$C:$AM,Z$94,FALSE) -> 16681702.28 | AA98: =VLOOKUP($U98,Output!$C:$AM,AA$94,FALSE) -> 17155092.36 | AB98: =VLOOKUP($U98,Output!$C:$AM,AB$94,FALSE) -> 17687120.42 | AC98: =VLOOKUP($U98,Output!$C:$AM,AC$94,FALSE) -> 17687120.42 | AD98: =VLOOKUP($U98,Output!$C:$AM,AD$94,FALSE) -> 17687120.42 | AE98: =VLOOKUP($U98,Output!$C:$AM,AE$94,FALSE) -> 17687120.42 | AF98: =VLOOKUP($U98,Output!$C:$AM,AF$94,FALSE) -> 17687120.42 | AG98: =VLOOKUP($U98,Output!$C:$AM,AG$94,FALSE) -> 17687120.42 | AH98: =VLOOKUP($U98,Output!$C:$AM,AH$94,FALSE) -> 17687120.42 | AI98: =VLOOKUP($U98,Output!$C:$AM,AI$94,FALSE) -> 17687120.42 | AJ98: =VLOOKUP($U98,Output!$C:$AM,AJ$94,FALSE) -> 17687120.42 | AK98: =VLOOKUP($U98,Output!$C:$AM,AK$94,FALSE) -> 17687120.42 | AL98: =VLOOKUP($U98,Output!$C:$AM,AL$94,FALSE) -> 17687120.42 | AM98: =VLOOKUP($U98,Output!$C:$AM,AM$94,FALSE) -> 17687120.42 | AN98: =VLOOKUP($U98,Output!$C:$AM,AN$94,FALSE) -> 17687120.42 | AO98: =VLOOKUP($U98,Output!$C:$AM,AO$94,FALSE) -> 17687120.42 | AP98: =VLOOKUP($U98,Output!$C:$AM,AP$94,FALSE) -> 17687120.42 | AQ98: =VLOOKUP($U98,Output!$C:$AM,AQ$94,FALSE) -> 17687120.42 | AR98: =VLOOKUP($U98,Output!$C:$AM,AR$94,FALSE) -> 17687120.42 | AS98: =VLOOKUP($U98,Output!$C:$AM,AS$94,FALSE) -> 17687120.42 | AT98: =VLOOKUP($U98,Output!$C:$AM,AT$94,FALSE) -> 17687120.42 | AU98: =VLOOKUP($U98,Output!$C:$AM,AU$94,FALSE) -> 17687120.42 | AV98: =VLOOKUP($U98,Output!$C:$AM,AV$94,FALSE) -> 17687120.42 | AW98: =VLOOKUP($U98,Output!$C:$AM,AW$94,FALSE) -> 17687120.42 | AX98: =VLOOKUP($U98,Output!$C:$AM,AX$94,FALSE) -> 17687120.42 | AY98: =VLOOKUP($U98,Output!$C:$AM,AY$94,FALSE) -> 17687120.42 | AZ98: =VLOOKUP($U98,Output!$C:$AM,AZ$94,FALSE) -> 17687120.42
S99: =LEFT(B$91,10) -> Figure 6. | T99: Volume récoltable | U99: OVOLTOTADMREGAPRE | V99: =VLOOKUP($U99,Output!$C:$AM,V$94,FALSE) -> 0 | W99: =VLOOKUP($U99,Output!$C:$AM,W$94,FALSE) -> 4876997.13 | X99: =VLOOKUP($U99,Output!$C:$AM,X$94,FALSE) -> 4676194.8 | Y99: =VLOOKUP($U99,Output!$C:$AM,Y$94,FALSE) -> 4623567.73 | Z99: =VLOOKUP($U99,Output!$C:$AM,Z$94,FALSE) -> 4414670.79 | AA99: =VLOOKUP($U99,Output!$C:$AM,AA$94,FALSE) -> 8035426.51 | AB99: =VLOOKUP($U99,Output!$C:$AM,AB$94,FALSE) -> 8373767.09 | AC99: =VLOOKUP($U99,Output!$C:$AM,AC$94,FALSE) -> 9534462.94 | AD99: =VLOOKUP($U99,Output!$C:$AM,AD$94,FALSE) -> 9127698.02 | AE99: =VLOOKUP($U99,Output!$C:$AM,AE$94,FALSE) -> 9413757.28 | AF99: =VLOOKUP($U99,Output!$C:$AM,AF$94,FALSE) -> 8152807.03 | AG99: =VLOOKUP($U99,Output!$C:$AM,AG$94,FALSE) -> 7197515.03 | AH99: =VLOOKUP($U99,Output!$C:$AM,AH$94,FALSE) -> 7579672.47 | AI99: =VLOOKUP($U99,Output!$C:$AM,AI$94,FALSE) -> 7026911.9 | AJ99: =VLOOKUP($U99,Output!$C:$AM,AJ$94,FALSE) -> 8059169.73 | AK99: =VLOOKUP($U99,Output!$C:$AM,AK$94,FALSE) -> 8278965 | AL99: =VLOOKUP($U99,Output!$C:$AM,AL$94,FALSE) -> 8037925.73 | AM99: =VLOOKUP($U99,Output!$C:$AM,AM$94,FALSE) -> 8514889.09 | AN99: =VLOOKUP($U99,Output!$C:$AM,AN$94,FALSE) -> 7980164.77 | AO99: =VLOOKUP($U99,Output!$C:$AM,AO$94,FALSE) -> 7651001.1 | AP99: =VLOOKUP($U99,Output!$C:$AM,AP$94,FALSE) -> 7499969.9 | AQ99: =VLOOKUP($U99,Output!$C:$AM,AQ$94,FALSE) -> 7279267.31 | AR99: =VLOOKUP($U99,Output!$C:$AM,AR$94,FALSE) -> 7398217.32 | AS99: =VLOOKUP($U99,Output!$C:$AM,AS$94,FALSE) -> 7600297.4 | AT99: =VLOOKUP($U99,Output!$C:$AM,AT$94,FALSE) -> 7332868.39 | AU99: =VLOOKUP($U99,Output!$C:$AM,AU$94,FALSE) -> 7773344.79 | AV99: =VLOOKUP($U99,Output!$C:$AM,AV$94,FALSE) -> 7180467.1 | AW99: =VLOOKUP($U99,Output!$C:$AM,AW$94,FALSE) -> 7182849.39 | AX99: =VLOOKUP($U99,Output!$C:$AM,AX$94,FALSE) -> 6589574.96 | AY99: =VLOOKUP($U99,Output!$C:$AM,AY$94,FALSE) -> 6192467.3 | AZ99: =VLOOKUP($U99,Output!$C:$AM,AZ$94,FALSE) -> 5502769.61
T116: * Source: Cahier_analyse, Tableau 13, onglet Budget | X116: Moyenne P2 à P6
B117: Figure 7. Répartition du budget annuel par familles de traitements prévus à la stratégie d’aménagement et coût moyen à l’hectare par famille de traitements
S118: =LEFT(B$117,10) -> Figure 7. | T118: Légende | U118: Output taux | V118: Output superficie | W118: $/ha | X118: ha | Y118: $
S119: =LEFT(B$117,10) -> Figure 7. | T119: Coupes avec protection de la régénération et des sols (CPRS) | U119: OTAUXCT_100 | V119: OSUPCT | W119: =IFERROR(VLOOKUP(U119,Output!$C:$AQ,37,FALSE),0) -> 0 | X119: =IFERROR(VLOOKUP(V119,Output!$C:$AQ,37,FALSE),"0000")/5 -> 2317.1644 | Y119: =W119*X119 -> 0
S120: =LEFT(B$117,10) -> Figure 7. | T120: Coupe avec protection des petites tiges marchandes (CPPTM) | V120: OSUPREALaCPPTM | W120: =IFERROR(VLOOKUP(U120,Output!$C:$AQ,8,FALSE),0) -> 0 | X120: =IFERROR(VLOOKUP(V120,Output!$C:$AQ,37,FALSE),"0000")/5 -> 0 | Y120: =W120*X120 -> 0
S121: =LEFT(B$117,10) -> Figure 7. | T121: Coupe avec réserve de semenciers (CRS) | V121: OSUPREALaCRS | W121: =IFERROR(VLOOKUP(U121,Output!$C:$AQ,8,FALSE),0) -> 0 | X121: =IFERROR(VLOOKUP(V121,Output!$C:$AQ,37,FALSE),"0000")/5 -> 0 | Y121: 0
T122: Coupe à rétention variable (CRV, CPPTM, CPPTM, CPHR, CDL)
S123: =LEFT(B$117,10) -> Figure 7. | T123: Coupes finales | W123: =(ROUND(Y123/X123,0))&"$/ha" -> 0$/ha | X123: =SUM(X119:X121) -> 2317.1644 | Y123: =SUM(Y119:Y121) -> 0
S124: Figure 7. | T124: Éclaircie commerciale (EC) | U124: OTAUXEC_SEPM_100 | V124: OSUPEC_SEPM | W124: =IFERROR(VLOOKUP(U124,Output!$C:$AQ,37,FALSE),0) -> 1370 | X124: =IFERROR(VLOOKUP(V124,Output!$C:$AQ,37,FALSE),"0000")/5 -> 0 | Y124: 0
S125: Figure 7. | T125: Coupe progressive régulière initiale (CPROG) | U125: OTAUXCPROG_INI_100 | V125: OSUPCPROG_INI | W125: =IFERROR(VLOOKUP(U125,Output!$C:$AQ,37,FALSE),0) -> 400 | X125: =IFERROR(VLOOKUP(V125,Output!$C:$AQ,37,FALSE),"0000")/5 -> 0 | Y125: 0
S126: Figure 7. | T126: Coupe progressive régulière finale (CPROG) | U126: OTAUXCPROG_FIN_100 | V126: OSUPCPROG_FIN | W126: =IFERROR(VLOOKUP(U126,Output!$C:$AQ,37,FALSE),0) -> 0 | X126: =IFERROR(VLOOKUP(V126,Output!$C:$AQ,37,FALSE),"0000")/5 -> 0 | Y126: 0
S127: Figure 7. | T127: Coupe progessive irrégulière initiale (CPIRL) | U127: OTAUXCPIRL_INI_100 | V127: OSUPCPIRL_INI | W127: =IFERROR(VLOOKUP(U127,Output!$C:$AQ,37,FALSE),0) -> 530 | X127: =IFERROR(VLOOKUP(V127,Output!$C:$AQ,37,FALSE),"0000")/5 -> 128 | Y127: 67840
S128: Figure 7. | T128: Coupe progessive irrégulière finale (CPIRL) | U128: OTAUXCPIRL_FIN_100 | V128: OSUPCPIRL_FIN | W128: =IFERROR(VLOOKUP(U128,Output!$C:$AQ,37,FALSE),0) -> 0 | X128: =IFERROR(VLOOKUP(V128,Output!$C:$AQ,37,FALSE),"0000")/5 -> 0 | Y128: 0
S129: Figure 7. | T129: Coupe à couvert permanent (CPICP) | U129: OTAUXCPICP_100 | V129: OSUPCPICP | W129: =IFERROR(VLOOKUP(U129,Output!$C:$AQ,37,FALSE),0) -> 210 | X129: =IFERROR(VLOOKUP(V129,Output!$C:$AQ,37,FALSE),"0000")/5 -> 0 | Y129: 0
S130: Figure 7. | T130: Coupe de jardinage (CJ) | U130: OTAUXCJ_100 | V130: OSUPCJ | W130: =IFERROR(VLOOKUP(U130,Output!$C:$AQ,37,FALSE),0) -> 673.45 | X130: =IFERROR(VLOOKUP(V130,Output!$C:$AQ,37,FALSE),"0000")/5 -> 0 | Y130: 0
S131: Figure 7. | T131: Coupes partielles | W131: =(ROUND(Y131/X131,0))&"$/ha" -> 530$/ha | X131: =SUM(X124:X130) -> 128 | Y131: =SUM(Y124:Y130) -> 67840
S132: Figure 7. | T132: Plantation ligniculture (pins, feuillus) | U132: OTAUXPL_PPF_100 | V132: OSUPPL_PPF | W132: =IFERROR(VLOOKUP(U132,Output!$C:$AQ,37,FALSE),0) -> 1640 | X132: =IFERROR(VLOOKUP(V132,Output!$C:$AQ,37,FALSE),"0000")/5 -> 0 | Y132: 0
S133: Figure 7. | T133: Plantation intensive | U133: OTAUXPL_SEPM_I_100 | V133: OSUPPL_SEPM_I | W133: =IFERROR(VLOOKUP(U133,Output!$C:$AQ,37,FALSE),0) -> 1300 | X133: =IFERROR(VLOOKUP(V133,Output!$C:$AQ,37,FALSE),"0000")/5 -> 0 | Y133: 0
S134: Figure 7. | T134: Plantation de base | U134: OTAUXPL_SEPM_E_100 | V134: OSUPPL_SEPM_E | W134: =IFERROR(VLOOKUP(U134,Output!$C:$AQ,37,FALSE),0) -> 1040 | X134: =IFERROR(VLOOKUP(V134,Output!$C:$AQ,37,FALSE),"0000")/5 -> 821.322 | Y134: 854174.88
S135: Figure 7. | T135: Regarni | U135: OTAUXREG_100 | V135: OSUPREG | W135: =IFERROR(VLOOKUP(U135,Output!$C:$AQ,37,FALSE),0) -> 470 | X135: =IFERROR(VLOOKUP(V135,Output!$C:$AQ,37,FALSE),"0000")/5 -> 0 | Y135: 0
S136: Figure 7. | T136: Ensemencement (ENS) | U136: OTAUXENS_100 | V136: OSUPENS | W136: =IFERROR(VLOOKUP(U136,Output!$C:$AQ,37,FALSE),0) -> 130 | X136: =IFERROR(VLOOKUP(V136,Output!$C:$AQ,37,FALSE),"0000")/5 -> 0 | Y136: =W136*X136 -> 0
S137: Figure 7. | T137: Reboisement | W137: =(ROUND(Y137/X137,0))&"$/ha" -> 1040$/ha | X137: =SUM(X132:X136) -> 821.322 | Y137: =SUM(Y132:Y136) -> 854174.88
S138: Figure 7. | T138: Dégagement de la régénération naturelle | U138: OTAUXDEG_2_100 | V138: OSUPDEG_2 | W138: =IFERROR(VLOOKUP(U138,Output!$C:$AQ,37,FALSE),0) -> 1290 | X138: =IFERROR(VLOOKUP(V138,Output!$C:$AQ,37,FALSE),"0000")/5 -> 0 | Y138: 0
S139: Figure 7. | T139: Dégagement de plantation | U139: OTAUXDEG_1_100 | V139: OSUPDEG_1 | W139: =IFERROR(VLOOKUP(U139,Output!$C:$AQ,37,FALSE),0) -> 1290 | X139: =IFERROR(VLOOKUP(V139,Output!$C:$AQ,37,FALSE),"0000")/5 -> 123 | Y139: 158670
S140: Figure 7. | T140: Nettoiement de la régénération naturelle | U140: OTAUXNETT_100 | V140: OSUPREALNET | W140: =IFERROR(VLOOKUP(U140,Output!$C:$AQ,37,FALSE),0) -> 1140 | X140: =IFERROR(VLOOKUP(V140,Output!$C:$AQ,37,FALSE),"0000")/5-X141 -> 87 | Y140: 99180
C141: $ /m3 | E141: $ /ha | S141: Figure 7. | T141: Nettoiement de plantation | U141: OTAUXNETT_100 | V141: OSUPTCADNETT_T100% | W141: =IFERROR(VLOOKUP(U141,Output!$C:$AQ,37,FALSE),0) -> 1140 | X141: =IFERROR(VLOOKUP(V141,Output!$C:$AQ,37,FALSE),"0000")/5 -> 0 | Y141: 0
C142: =Y151/(Instructions!I5/5) -> 5.645007105 | E142: =Y151/Tableaux!F33 -> 6.117195826 | S142: Figure 7. | T142: Éclaircie précommerciale (EPC_1) | U142: OTAUXEPC_1_100 | V142: OSUPEPC_1 | W142: =IFERROR(VLOOKUP(U142,Output!$C:$AQ,37,FALSE),0) -> 1380 | X142: =IFERROR(VLOOKUP(V142,Output!$C:$AQ,37,FALSE),"0000")/5 -> 0 | Y142: 0
S143: Figure 7. | T143: Éclaircie précommerciale (EPC_2) | U143: OTAUXEPC_2_100 | V143: OSUPEPC_2 | W143: =IFERROR(VLOOKUP(U143,Output!$C:$AQ,37,FALSE),0) -> 1380 | X143: =IFERROR(VLOOKUP(V143,Output!$C:$AQ,37,FALSE),"0000")/5 -> 0 | Y143: 0
S144: Figure 7. | T144: Éclaircie précommerciale de la régénération naturelle | V144: OSUPREALEPC | W144: =IFERROR(VLOOKUP(U144,Output!$C:$AQ,37,FALSE),0) -> 0 | X144: =IFERROR(VLOOKUP(V144,Output!$C:$AQ,37,FALSE),"0000")/5 -> 0 | Y144: 0
S145: Figure 7. | T145: Élagage (plantation) | U145: OTAUXELAG_100 | V145: OSUPELAG | W145: =IFERROR(VLOOKUP(U145,Output!$C:$AQ,37,FALSE),0) -> 1630 | X145: =IFERROR(VLOOKUP(V145,Output!$C:$AQ,37,FALSE),"0000")/5 -> 0 | Y145: 0
S146: Figure 7. | T146: Travaux d'éducation | W146: =(ROUND(Y146/X146,0))&"$/ha" -> 1228$/ha | X146: =SUM(X138:X143)+X145 -> 210 | Y146: =SUM(Y138:Y143)+Y145 -> 257850
S147: Figure 7. | T147: Préparation terrain lignicult. + ferti + élagage (SCA_LIGN) | U147: OTAUXSCA_LIGN_100 | V147: OSUPSCA_LIGN | W147: =IFERROR(VLOOKUP(U147,Output!$C:$AQ,37,FALSE),0) -> 1510 | X147: =IFERROR(VLOOKUP(V147,Output!$C:$AQ,37,FALSE),"0000")/5 -> 0 | Y147: 0
S148: Figure 7. | T148: Préparation de terrain partielle (SCA_PART) | U148: OTAUXSCA_PART_100 | V148: OSUPSCA_PART | W148: =IFERROR(VLOOKUP(U148,Output!$C:$AQ,37,FALSE),0) -> 540 | X148: =IFERROR(VLOOKUP(V148,Output!$C:$AQ,37,FALSE),"0000")/5 -> 19.2 | Y148: 10368
S149: Figure 7. | T149: Préparation de terrain régulière, 1 passage (SCA_REG) | U149: OTAUXSCA_REG_100 | V149: OSUPSCA_REG | W149: =IFERROR(VLOOKUP(U149,Output!$C:$AQ,37,FALSE),0) -> 410 | X149: =IFERROR(VLOOKUP(V149,Output!$C:$AQ,37,FALSE),"0000")/5 -> 821.322 | Y149: 336742.02 | AA149: Valideur
B150: Figure 9b Évolution de la superficie des vieilles forêts selon leur degré d'altération | S150: Figure 7. | T150: Préparation de terrain | W150: =(ROUND(Y150/X150,0))&"$/ha" -> 413$/ha | X150: =SUM(X147:X149) -> 840.522 | Y150: =SUM(Y147:Y149) -> 347110.02 | Z150: =Y123+Y131+Y137+Y146+Y150 -> 1526974.9 | AA150: =Y151-Z150 -> -0.4779999999
S151: Figure 7. | T151: Investissement sylvicole annuel (O$INVESTISTS)* | V151: O$INVESTISTS | Y151: =IFERROR(VLOOKUP(V151,Output!$C:$AQ,37,FALSE),"0000")/5 -> 1526974.422
S155: =LEFT(B$117,10) -> Figure 7. | T155: =T123 -> Coupes finales | U155: =Y123 -> 0 | V155: =W123 -> 0$/ha
S156: =LEFT(B$117,10) -> Figure 7. | T156: =T131 -> Coupes partielles | U156: =Y131 -> 67840 | V156: =W131 -> 530$/ha
S157: =LEFT(B$117,10) -> Figure 7. | T157: =T137 -> Reboisement | U157: =Y137 -> 854174.88 | V157: =W137 -> 1040$/ha
S158: =LEFT(B$117,10) -> Figure 7. | T158: =T146 -> Travaux d'éducation | U158: =Y146 -> 257850 | V158: =W146 -> 1228$/ha
S159: =LEFT(B$117,10) -> Figure 7. | T159: =T150 -> Préparation de terrain | U159: =Y150 -> 347110.02 | V159: =W150 -> 413$/ha
U161: Période | V161: P0 | W161: P1 | X161: P2 | Y161: P3 | Z161: P4 | AA161: P5 | AB161: P6 | AC161: P7 | AD161: P8 | AE161: P9 | AF161: P10 | AG161: P11 | AH161: P12 | AI161: P13 | AJ161: P14 | AK161: P15 | AL161: P16 | AM161: P17 | AN161: P18 | AO161: P19 | AP161: P20 | AQ161: P21 | AR161: P22 | AS161: P23 | AT161: P24 | AU161: P25 | AV161: P26 | AW161: P27 | AX161: P28 | AY161: P29 | AZ161: P30
S162: =LEFT(B$150,10) -> Figure 9b | U162: Axe des "X" Fin de période | V162: 2018 | W162: 2023 | X162: 2028 | Y162: 2033 | Z162: 2038 | AA162: 2043 | AB162: 2048 | AC162: 2053 | AD162: 2058 | AE162: 2063 | AF162: 2068 | AG162: 2073 | AH162: 2078 | AI162: 2083 | AJ162: 2088 | AK162: 2093 | AL162: 2098 | AM162: 2103 | AN162: 2108 | AO162: 2113 | AP162: 2118 | AQ162: 2123 | AR162: 2128 | AS162: 2133 | AT162: 2138 | AU162: 2143 | AV162: 2148 | AW162: 2153 | AX162: 2158 | AY162: 2163 | AZ162: 2168
S163: Figure 9b | U163: Colonne | V163: 6 | W163: 7 | X163: 8 | Y163: 9 | Z163: 10 | AA163: 11 | AB163: 12 | AC163: 13 | AD163: 14 | AE163: 15 | AF163: 16 | AG163: 17 | AH163: 18 | AI163: 19 | AJ163: 20 | AK163: 21 | AL163: 22 | AM163: 23 | AN163: 24 | AO163: 25 | AP163: 26 | AQ163: 27 | AR163: 28 | AS163: 29 | AT163: 30 | AU163: 31 | AV163: 32 | AW163: 33 | AX163: 34 | AY163: 35 | AZ163: 36
S164: Figure 9b | U164: OSUPREGECO | V164: =VLOOKUP($U164,Output!$C:$AL,V$163,FALSE) -> 321182.5 | W164: =VLOOKUP($U164,Output!$C:$AL,W$163,FALSE) -> 320642.87 | X164: =VLOOKUP($U164,Output!$C:$AL,X$163,FALSE) -> 320120.51 | Y164: =VLOOKUP($U164,Output!$C:$AL,Y$163,FALSE) -> 319588.11 | Z164: =VLOOKUP($U164,Output!$C:$AL,Z$163,FALSE) -> 318993.09 | AA164: =VLOOKUP($U164,Output!$C:$AL,AA$163,FALSE) -> 318464.07 | AB164: =VLOOKUP($U164,Output!$C:$AL,AB$163,FALSE) -> 318065.47 | AC164: =VLOOKUP($U164,Output!$C:$AL,AC$163,FALSE) -> 317485.58 | AD164: =VLOOKUP($U164,Output!$C:$AL,AD$163,FALSE) -> 317044.43 | AE164: =VLOOKUP($U164,Output!$C:$AL,AE$163,FALSE) -> 316653.29 | AF164: =VLOOKUP($U164,Output!$C:$AL,AF$163,FALSE) -> 316260.13 | AG164: =VLOOKUP($U164,Output!$C:$AL,AG$163,FALSE) -> 316030.26 | AH164: =VLOOKUP($U164,Output!$C:$AL,AH$163,FALSE) -> 315959.18 | AI164: =VLOOKUP($U164,Output!$C:$AL,AI$163,FALSE) -> 315805.46 | AJ164: =VLOOKUP($U164,Output!$C:$AL,AJ$163,FALSE) -> 315643.61 | AK164: =VLOOKUP($U164,Output!$C:$AL,AK$163,FALSE) -> 315451.22 | AL164: =VLOOKUP($U164,Output!$C:$AL,AL$163,FALSE) -> 315430.13 | AM164: =VLOOKUP($U164,Output!$C:$AL,AM$163,FALSE) -> 315428.69 | AN164: =VLOOKUP($U164,Output!$C:$AL,AN$163,FALSE) -> 315377.28 | AO164: =VLOOKUP($U164,Output!$C:$AL,AO$163,FALSE) -> 315331.57 | AP164: =VLOOKUP($U164,Output!$C:$AL,AP$163,FALSE) -> 315320.26 | AQ164: =VLOOKUP($U164,Output!$C:$AL,AQ$163,FALSE) -> 315305.23 | AR164: =VLOOKUP($U164,Output!$C:$AL,AR$163,FALSE) -> 315305.23 | AS164: =VLOOKUP($U164,Output!$C:$AL,AS$163,FALSE) -> 315277.91 | AT164: =VLOOKUP($U164,Output!$C:$AL,AT$163,FALSE) -> 315277.33 | AU164: =VLOOKUP($U164,Output!$C:$AL,AU$163,FALSE) -> 315277.33 | AV164: =VLOOKUP($U164,Output!$C:$AL,AV$163,FALSE) -> 315275.67 | AW164: =VLOOKUP($U164,Output!$C:$AL,AW$163,FALSE) -> 315275.67 | AX164: =VLOOKUP($U164,Output!$C:$AL,AX$163,FALSE) -> 315275.67 | AY164: =VLOOKUP($U164,Output!$C:$AL,AY$163,FALSE) -> 315275.67 | AZ164: =VLOOKUP($U164,Output!$C:$AL,AZ$163,FALSE) -> 315275.67
S165: Figure 9b | T165: Élevé | U165: OSUPVIEUXALERTEREGECO | V165: =VLOOKUP($U165,Output!$C:$AL,V$163,FALSE) -> 46983.39 | W165: =VLOOKUP($U165,Output!$C:$AL,W$163,FALSE) -> 46904.04 | X165: =VLOOKUP($U165,Output!$C:$AL,X$163,FALSE) -> 46827.26 | Y165: =VLOOKUP($U165,Output!$C:$AL,Y$163,FALSE) -> 46748.99 | Z165: =VLOOKUP($U165,Output!$C:$AL,Z$163,FALSE) -> 46661.52 | AA165: =VLOOKUP($U165,Output!$C:$AL,AA$163,FALSE) -> 46583.76 | AB165: =VLOOKUP($U165,Output!$C:$AL,AB$163,FALSE) -> 46525.16 | AC165: =VLOOKUP($U165,Output!$C:$AL,AC$163,FALSE) -> 46439.92 | AD165: =VLOOKUP($U165,Output!$C:$AL,AD$163,FALSE) -> 46375.07 | AE165: =VLOOKUP($U165,Output!$C:$AL,AE$163,FALSE) -> 46317.57 | AF165: =VLOOKUP($U165,Output!$C:$AL,AF$163,FALSE) -> 46259.78 | AG165: =VLOOKUP($U165,Output!$C:$AL,AG$163,FALSE) -> 46225.99 | AH165: =VLOOKUP($U165,Output!$C:$AL,AH$163,FALSE) -> 46215.5 | AI165: =VLOOKUP($U165,Output!$C:$AL,AI$163,FALSE) -> 46192.9 | AJ165: =VLOOKUP($U165,Output!$C:$AL,AJ$163,FALSE) -> 46169.11 | AK165: =VLOOKUP($U165,Output!$C:$AL,AK$163,FALSE) -> 46140.83 | AL165: =VLOOKUP($U165,Output!$C:$AL,AL$163,FALSE) -> 46137.73 | AM165: =VLOOKUP($U165,Output!$C:$AL,AM$163,FALSE) -> 46137.52 | AN165: =VLOOKUP($U165,Output!$C:$AL,AN$163,FALSE) -> 46129.96 | AO165: =VLOOKUP($U165,Output!$C:$AL,AO$163,FALSE) -> 46123.24 | AP165: =VLOOKUP($U165,Output!$C:$AL,AP$163,FALSE) -> 46121.58 | AQ165: =VLOOKUP($U165,Output!$C:$AL,AQ$163,FALSE) -> 46119.37 | AR165: =VLOOKUP($U165,Output!$C:$AL,AR$163,FALSE) -> 46119.37 | AS165: =VLOOKUP($U165,Output!$C:$AL,AS$163,FALSE) -> 46115.35 | AT165: =VLOOKUP($U165,Output!$C:$AL,AT$163,FALSE) -> 46115.27 | AU165: =VLOOKUP($U165,Output!$C:$AL,AU$163,FALSE) -> 46115.27 | AV165: =VLOOKUP($U165,Output!$C:$AL,AV$163,FALSE) -> 46115.02 | AW165: =VLOOKUP($U165,Output!$C:$AL,AW$163,FALSE) -> 46115.02 | AX165: =VLOOKUP($U165,Output!$C:$AL,AX$163,FALSE) -> 46115.02 | AY165: =VLOOKUP($U165,Output!$C:$AL,AY$163,FALSE) -> 46115.02 | AZ165: =VLOOKUP($U165,Output!$C:$AL,AZ$163,FALSE) -> 46115.02
S166: Figure 9b | U166: OSUPVIEUXACCEPTREGECO | V166: =VLOOKUP($U166,Output!$C:$AL,V$163,FALSE) -> 78305.66 | W166: =VLOOKUP($U166,Output!$C:$AL,W$163,FALSE) -> 78173.4 | X166: =VLOOKUP($U166,Output!$C:$AL,X$163,FALSE) -> 78045.43 | Y166: =VLOOKUP($U166,Output!$C:$AL,Y$163,FALSE) -> 77914.99 | Z166: =VLOOKUP($U166,Output!$C:$AL,Z$163,FALSE) -> 77769.21 | AA166: =VLOOKUP($U166,Output!$C:$AL,AA$163,FALSE) -> 77639.6 | AB166: =VLOOKUP($U166,Output!$C:$AL,AB$163,FALSE) -> 77541.94 | AC166: =VLOOKUP($U166,Output!$C:$AL,AC$163,FALSE) -> 77399.87 | AD166: =VLOOKUP($U166,Output!$C:$AL,AD$163,FALSE) -> 77291.79 | AE166: =VLOOKUP($U166,Output!$C:$AL,AE$163,FALSE) -> 77195.96 | AF166: =VLOOKUP($U166,Output!$C:$AL,AF$163,FALSE) -> 77099.63 | AG166: =VLOOKUP($U166,Output!$C:$AL,AG$163,FALSE) -> 77043.31 | AH166: =VLOOKUP($U166,Output!$C:$AL,AH$163,FALSE) -> 77025.83 | AI166: =VLOOKUP($U166,Output!$C:$AL,AI$163,FALSE) -> 76988.17 | AJ166: =VLOOKUP($U166,Output!$C:$AL,AJ$163,FALSE) -> 76948.51 | AK166: =VLOOKUP($U166,Output!$C:$AL,AK$163,FALSE) -> 76901.38 | AL166: =VLOOKUP($U166,Output!$C:$AL,AL$163,FALSE) -> 76896.21 | AM166: =VLOOKUP($U166,Output!$C:$AL,AM$163,FALSE) -> 76895.86 | AN166: =VLOOKUP($U166,Output!$C:$AL,AN$163,FALSE) -> 76883.26 | AO166: =VLOOKUP($U166,Output!$C:$AL,AO$163,FALSE) -> 76872.06 | AP166: =VLOOKUP($U166,Output!$C:$AL,AP$163,FALSE) -> 76869.29 | AQ166: =VLOOKUP($U166,Output!$C:$AL,AQ$163,FALSE) -> 76865.61 | AR166: =VLOOKUP($U166,Output!$C:$AL,AR$163,FALSE) -> 76865.61 | AS166: =VLOOKUP($U166,Output!$C:$AL,AS$163,FALSE) -> 76858.92 | AT166: =VLOOKUP($U166,Output!$C:$AL,AT$163,FALSE) -> 76858.78 | AU166: =VLOOKUP($U166,Output!$C:$AL,AU$163,FALSE) -> 76858.78 | AV166: =VLOOKUP($U166,Output!$C:$AL,AV$163,FALSE) -> 76858.37 | AW166: =VLOOKUP($U166,Output!$C:$AL,AW$163,FALSE) -> 76858.37 | AX166: =VLOOKUP($U166,Output!$C:$AL,AX$163,FALSE) -> 76858.37 | AY166: =VLOOKUP($U166,Output!$C:$AL,AY$163,FALSE) -> 76858.37 | AZ166: =VLOOKUP($U166,Output!$C:$AL,AZ$163,FALSE) -> 76858.37
S167: Figure 9b | T167: Moyen | V167: =V166-V165 -> 31322.27 | W167: =W166-W165 -> 31269.36 | X167: 31218.17 | Y167: 31166 | Z167: 31107.69 | AA167: 31055.84 | AB167: 31016.78 | AC167: 30959.95 | AD167: 30916.72 | AE167: 30878.39 | AF167: 30839.85 | AG167: 30817.32 | AH167: 30810.33 | AI167: 30795.27 | AJ167: 30779.4 | AK167: 30760.55 | AL167: 30758.48 | AM167: 30758.34 | AN167: 30753.3 | AO167: 30748.82 | AP167: 30747.71 | AQ167: 30746.24 | AR167: 30746.24 | AS167: 30743.57 | AT167: 30743.51 | AU167: 30743.51 | AV167: 30743.35 | AW167: 30743.35 | AX167: 30743.35 | AY167: 30743.35 | AZ167: 30743.35
S168: Figure 9b | T168: Faible | V168: =$V$164-V165-V167 -> 242876.84 | W168: 243009.1 | X168: 243137.07 | Y168: 243267.51 | Z168: 243413.29 | AA168: 243542.9 | AB168: 243640.56 | AC168: 243782.63 | AD168: 243890.71 | AE168: 243986.54 | AF168: 244082.87 | AG168: 244139.19 | AH168: 244156.67 | AI168: 244194.33 | AJ168: 244233.99 | AK168: 244281.12 | AL168: 244286.29 | AM168: 244286.64 | AN168: 244299.24 | AO168: 244310.44 | AP168: 244313.21 | AQ168: 244316.89 | AR168: 244316.89 | AS168: 244323.58 | AT168: 244323.72 | AU168: 244323.72 | AV168: 244324.13 | AW168: 244324.13 | AX168: 244324.13 | AY168: 244324.13 | AZ168: 244324.13
S169: Figure 9b | T169: Niveau prédit | U169: OSUPVIEUXTOTREGECO | V169: =VLOOKUP($U169,Output!$C:$AL,V$163,FALSE) -> 99266.7 | W169: =VLOOKUP($U169,Output!$C:$AL,W$163,FALSE) -> 101901.55 | X169: =VLOOKUP($U169,Output!$C:$AL,X$163,FALSE) -> 93324.21 | Y169: =VLOOKUP($U169,Output!$C:$AL,Y$163,FALSE) -> 84163.39 | Z169: =VLOOKUP($U169,Output!$C:$AL,Z$163,FALSE) -> 74455.63 | AA169: =VLOOKUP($U169,Output!$C:$AL,AA$163,FALSE) -> 68985.76 | AB169: =VLOOKUP($U169,Output!$C:$AL,AB$163,FALSE) -> 67180.93 | AC169: =VLOOKUP($U169,Output!$C:$AL,AC$163,FALSE) -> 59520.8 | AD169: =VLOOKUP($U169,Output!$C:$AL,AD$163,FALSE) -> 55333.14 | AE169: =VLOOKUP($U169,Output!$C:$AL,AE$163,FALSE) -> 52261.88 | AF169: =VLOOKUP($U169,Output!$C:$AL,AF$163,FALSE) -> 49786.49 | AG169: =VLOOKUP($U169,Output!$C:$AL,AG$163,FALSE) -> 50213.65 | AH169: =VLOOKUP($U169,Output!$C:$AL,AH$163,FALSE) -> 54381.59 | AI169: =VLOOKUP($U169,Output!$C:$AL,AI$163,FALSE) -> 60793.31 | AJ169: =VLOOKUP($U169,Output!$C:$AL,AJ$163,FALSE) -> 83931.53 | AK169: =VLOOKUP($U169,Output!$C:$AL,AK$163,FALSE) -> 83613.95 | AL169: =VLOOKUP($U169,Output!$C:$AL,AL$163,FALSE) -> 87984.39 | AM169: =VLOOKUP($U169,Output!$C:$AL,AM$163,FALSE) -> 89083.14 | AN169: =VLOOKUP($U169,Output!$C:$AL,AN$163,FALSE) -> 84263.23 | AO169: =VLOOKUP($U169,Output!$C:$AL,AO$163,FALSE) -> 84782.35 | AP169: =VLOOKUP($U169,Output!$C:$AL,AP$163,FALSE) -> 82507.03 | AQ169: =VLOOKUP($U169,Output!$C:$AL,AQ$163,FALSE) -> 81169.27 | AR169: =VLOOKUP($U169,Output!$C:$AL,AR$163,FALSE) -> 79378.47 | AS169: =VLOOKUP($U169,Output!$C:$AL,AS$163,FALSE) -> 81529.81 | AT169: =VLOOKUP($U169,Output!$C:$AL,AT$163,FALSE) -> 82360.38 | AU169: =VLOOKUP($U169,Output!$C:$AL,AU$163,FALSE) -> 82891.07 | AV169: =VLOOKUP($U169,Output!$C:$AL,AV$163,FALSE) -> 82875.03 | AW169: =VLOOKUP($U169,Output!$C:$AL,AW$163,FALSE) -> 84272.19 | AX169: =VLOOKUP($U169,Output!$C:$AL,AX$163,FALSE) -> 84180.03 | AY169: =VLOOKUP($U169,Output!$C:$AL,AY$163,FALSE) -> 79142.82 | AZ169: =VLOOKUP($U169,Output!$C:$AL,AZ$163,FALSE) -> 78280.29
S170: Figure 9b | T170: Portrait préindustriel
B176: Figure 9c Évolution de la superficie des peuplements en régénération selon leur degré d'altération
U177: Période | V177: P0 | W177: P1 | X177: P2 | Y177: P3 | Z177: P4 | AA177: P5 | AB177: P6 | AC177: P7 | AD177: P8 | AE177: P9 | AF177: P10 | AG177: P11 | AH177: P12 | AI177: P13 | AJ177: P14 | AK177: P15 | AL177: P16 | AM177: P17 | AN177: P18 | AO177: P19 | AP177: P20 | AQ177: P21 | AR177: P22 | AS177: P23 | AT177: P24 | AU177: P25 | AV177: P26 | AW177: P27 | AX177: P28 | AY177: P29 | AZ177: P30
U178: Axe des "X" Fin de période | V178: 2018 | W178: 2023 | X178: 2028 | Y178: 2033 | Z178: 2038 | AA178: 2043 | AB178: 2048 | AC178: 2053 | AD178: 2058 | AE178: 2063 | AF178: 2068 | AG178: 2073 | AH178: 2078 | AI178: 2083 | AJ178: 2088 | AK178: 2093 | AL178: 2098 | AM178: 2103 | AN178: 2108 | AO178: 2113 | AP178: 2118 | AQ178: 2123 | AR178: 2128 | AS178: 2133 | AT178: 2138 | AU178: 2143 | AV178: 2148 | AW178: 2153 | AX178: 2158 | AY178: 2163 | AZ178: 2168
S179: =LEFT(B$176,10) -> Figure 9c | U179: Colonne | V179: 6 | W179: 7 | X179: 8 | Y179: 9 | Z179: 10 | AA179: 11 | AB179: 12 | AC179: 13 | AD179: 14 | AE179: 15 | AF179: 16 | AG179: 17 | AH179: 18 | AI179: 19 | AJ179: 20 | AK179: 21 | AL179: 22 | AM179: 23 | AN179: 24 | AO179: 25 | AP179: 26 | AQ179: 27 | AR179: 28 | AS179: 29 | AT179: 30 | AU179: 31 | AV179: 32 | AW179: 33 | AX179: 34 | AY179: 35 | AZ179: 36
S180: Figure 9c | T180: Niveau prédit | U180: OSUPJEUNEREGECO | V180: =VLOOKUP($U180,Output!$C:$AL,V$179,FALSE) -> 61135.7 | W180: =VLOOKUP($U180,Output!$C:$AL,W$179,FALSE) -> 50789.27 | X180: =VLOOKUP($U180,Output!$C:$AL,X$179,FALSE) -> 42327.74 | Y180: =VLOOKUP($U180,Output!$C:$AL,Y$179,FALSE) -> 46768.34 | Z180: =VLOOKUP($U180,Output!$C:$AL,Z$179,FALSE) -> 44867.66 | AA180: =VLOOKUP($U180,Output!$C:$AL,AA$179,FALSE) -> 45455.26 | AB180: =VLOOKUP($U180,Output!$C:$AL,AB$179,FALSE) -> 44935.41 | AC180: =VLOOKUP($U180,Output!$C:$AL,AC$179,FALSE) -> 50509.2 | AD180: =VLOOKUP($U180,Output!$C:$AL,AD$179,FALSE) -> 53025.94 | AE180: =VLOOKUP($U180,Output!$C:$AL,AE$179,FALSE) -> 57370.7 | AF180: =VLOOKUP($U180,Output!$C:$AL,AF$179,FALSE) -> 63958.17 | AG180: =VLOOKUP($U180,Output!$C:$AL,AG$179,FALSE) -> 63186.6 | AH180: =VLOOKUP($U180,Output!$C:$AL,AH$179,FALSE) -> 63181.8 | AI180: =VLOOKUP($U180,Output!$C:$AL,AI$179,FALSE) -> 63755.55 | AJ180: =VLOOKUP($U180,Output!$C:$AL,AJ$179,FALSE) -> 62131.36 | AK180: =VLOOKUP($U180,Output!$C:$AL,AK$179,FALSE) -> 63955.05 | AL180: =VLOOKUP($U180,Output!$C:$AL,AL$179,FALSE) -> 64268.85 | AM180: =VLOOKUP($U180,Output!$C:$AL,AM$179,FALSE) -> 63931.09 | AN180: =VLOOKUP($U180,Output!$C:$AL,AN$179,FALSE) -> 63848.14 | AO180: =VLOOKUP($U180,Output!$C:$AL,AO$179,FALSE) -> 60574.24 | AP180: =VLOOKUP($U180,Output!$C:$AL,AP$179,FALSE) -> 59172.63 | AQ180: =VLOOKUP($U180,Output!$C:$AL,AQ$179,FALSE) -> 57057.51 | AR180: =VLOOKUP($U180,Output!$C:$AL,AR$179,FALSE) -> 56734.91 | AS180: =VLOOKUP($U180,Output!$C:$AL,AS$179,FALSE) -> 56515.74 | AT180: =VLOOKUP($U180,Output!$C:$AL,AT$179,FALSE) -> 57726.06 | AU180: =VLOOKUP($U180,Output!$C:$AL,AU$179,FALSE) -> 58165.94 | AV180: =VLOOKUP($U180,Output!$C:$AL,AV$179,FALSE) -> 61366.95 | AW180: =VLOOKUP($U180,Output!$C:$AL,AW$179,FALSE) -> 62581.91 | AX180: =VLOOKUP($U180,Output!$C:$AL,AX$179,FALSE) -> 64453.63 | AY180: =VLOOKUP($U180,Output!$C:$AL,AY$179,FALSE) -> 68290.6 | AZ180: =VLOOKUP($U180,Output!$C:$AL,AZ$179,FALSE) -> 66774.22
S181: Figure 9c | U181: OSUPREGECO | V181: =VLOOKUP($U181,Output!$C:$AL,V$179,FALSE) -> 321182.5 | W181: =VLOOKUP($U181,Output!$C:$AL,W$179,FALSE) -> 320642.87 | X181: =VLOOKUP($U181,Output!$C:$AL,X$179,FALSE) -> 320120.51 | Y181: =VLOOKUP($U181,Output!$C:$AL,Y$179,FALSE) -> 319588.11 | Z181: =VLOOKUP($U181,Output!$C:$AL,Z$179,FALSE) -> 318993.09 | AA181: =VLOOKUP($U181,Output!$C:$AL,AA$179,FALSE) -> 318464.07 | AB181: =VLOOKUP($U181,Output!$C:$AL,AB$179,FALSE) -> 318065.47 | AC181: =VLOOKUP($U181,Output!$C:$AL,AC$179,FALSE) -> 317485.58 | AD181: =VLOOKUP($U181,Output!$C:$AL,AD$179,FALSE) -> 317044.43 | AE181: =VLOOKUP($U181,Output!$C:$AL,AE$179,FALSE) -> 316653.29 | AF181: =VLOOKUP($U181,Output!$C:$AL,AF$179,FALSE) -> 316260.13 | AG181: =VLOOKUP($U181,Output!$C:$AL,AG$179,FALSE) -> 316030.26 | AH181: =VLOOKUP($U181,Output!$C:$AL,AH$179,FALSE) -> 315959.18 | AI181: =VLOOKUP($U181,Output!$C:$AL,AI$179,FALSE) -> 315805.46 | AJ181: =VLOOKUP($U181,Output!$C:$AL,AJ$179,FALSE) -> 315643.61 | AK181: =VLOOKUP($U181,Output!$C:$AL,AK$179,FALSE) -> 315451.22 | AL181: =VLOOKUP($U181,Output!$C:$AL,AL$179,FALSE) -> 315430.13 | AM181: =VLOOKUP($U181,Output!$C:$AL,AM$179,FALSE) -> 315428.69 | AN181: =VLOOKUP($U181,Output!$C:$AL,AN$179,FALSE) -> 315377.28 | AO181: =VLOOKUP($U181,Output!$C:$AL,AO$179,FALSE) -> 315331.57 | AP181: =VLOOKUP($U181,Output!$C:$AL,AP$179,FALSE) -> 315320.26 | AQ181: =VLOOKUP($U181,Output!$C:$AL,AQ$179,FALSE) -> 315305.23 | AR181: =VLOOKUP($U181,Output!$C:$AL,AR$179,FALSE) -> 315305.23 | AS181: =VLOOKUP($U181,Output!$C:$AL,AS$179,FALSE) -> 315277.91 | AT181: =VLOOKUP($U181,Output!$C:$AL,AT$179,FALSE) -> 315277.33 | AU181: =VLOOKUP($U181,Output!$C:$AL,AU$179,FALSE) -> 315277.33 | AV181: =VLOOKUP($U181,Output!$C:$AL,AV$179,FALSE) -> 315275.67 | AW181: =VLOOKUP($U181,Output!$C:$AL,AW$179,FALSE) -> 315275.67 | AX181: =VLOOKUP($U181,Output!$C:$AL,AX$179,FALSE) -> 315275.67 | AY181: =VLOOKUP($U181,Output!$C:$AL,AY$179,FALSE) -> 315275.67 | AZ181: =VLOOKUP($U181,Output!$C:$AL,AZ$179,FALSE) -> 315275.67
S182: Figure 9c | V182: =IFERROR(V180/V181,"0000") -> 0.1903456757 | W182: 0.1583982516 | X182: 0.1322243926 | Y182: 0.1463394242 | Z182: 0.1406540186 | AA182: 0.1427327736 | AB182: 0.1412772345 | AC182: 0.15909132 | AD182: 0.1672508172 | AE182: 0.1811782849 | AF182: 0.2022327949 | AG182: 0.1999384489 | AH182: 0.1999682364 | AI182: 0.201882355 | AJ182: 0.1968402275 | AK182: 0.2027414888 | AL182: 0.2037498764 | AM182: 0.2026800099 | AN182: 0.2024500306 | AO182: 0.1920969727 | AP182: 0.1876588266 | AQ182: 0.1809596054 | AR182: 0.1799364698 | AS182: 0.1792568975 | AT182: 0.1830961332 | AU182: 0.1844913493 | AV182: 0.1946453718 | AW182: 0.1984990152 | AX182: 0.2044357879 | AY182: 0.2166059944 | AZ182: 0.2117962988
S183: Figure 9c
S184: Figure 9c | U184: OSUPJEUNEALERTEREGECO | V184: =VLOOKUP($U184,Output!$C:$AL,V$179,FALSE) -> 111854.05 | W184: =VLOOKUP($U184,Output!$C:$AL,W$179,FALSE) -> 111665.18 | X184: =VLOOKUP($U184,Output!$C:$AL,X$179,FALSE) -> 111482.36 | Y184: =VLOOKUP($U184,Output!$C:$AL,Y$179,FALSE) -> 111296.01 | Z184: =VLOOKUP($U184,Output!$C:$AL,Z$179,FALSE) -> 111087.76 | AA184: =VLOOKUP($U184,Output!$C:$AL,AA$179,FALSE) -> 110902.6 | AB184: =VLOOKUP($U184,Output!$C:$AL,AB$179,FALSE) -> 110763.09 | AC184: =VLOOKUP($U184,Output!$C:$AL,AC$179,FALSE) -> 110560.13 | AD184: =VLOOKUP($U184,Output!$C:$AL,AD$179,FALSE) -> 110405.73 | AE184: =VLOOKUP($U184,Output!$C:$AL,AE$179,FALSE) -> 110268.83 | AF184: =VLOOKUP($U184,Output!$C:$AL,AF$179,FALSE) -> 110131.22 | AG184: =VLOOKUP($U184,Output!$C:$AL,AG$179,FALSE) -> 110050.77 | AH184: =VLOOKUP($U184,Output!$C:$AL,AH$179,FALSE) -> 110025.89 | AI184: =VLOOKUP($U184,Output!$C:$AL,AI$179,FALSE) -> 109972.08 | AJ184: =VLOOKUP($U184,Output!$C:$AL,AJ$179,FALSE) -> 109915.44 | AK184: =VLOOKUP($U184,Output!$C:$AL,AK$179,FALSE) -> 109848.1 | AL184: =VLOOKUP($U184,Output!$C:$AL,AL$179,FALSE) -> 109840.72 | AM184: =VLOOKUP($U184,Output!$C:$AL,AM$179,FALSE) -> 109840.22 | AN184: =VLOOKUP($U184,Output!$C:$AL,AN$179,FALSE) -> 109822.22 | AO184: =VLOOKUP($U184,Output!$C:$AL,AO$179,FALSE) -> 109806.23 | AP184: =VLOOKUP($U184,Output!$C:$AL,AP$179,FALSE) -> 109802.26 | AQ184: =VLOOKUP($U184,Output!$C:$AL,AQ$179,FALSE) -> 109797 | AR184: =VLOOKUP($U184,Output!$C:$AL,AR$179,FALSE) -> 109797 | AS184: =VLOOKUP($U184,Output!$C:$AL,AS$179,FALSE) -> 109787.44 | AT184: =VLOOKUP($U184,Output!$C:$AL,AT$179,FALSE) -> 109787.24 | AU184: =VLOOKUP($U184,Output!$C:$AL,AU$179,FALSE) -> 109787.24 | AV184: =VLOOKUP($U184,Output!$C:$AL,AV$179,FALSE) -> 109786.66 | AW184: =VLOOKUP($U184,Output!$C:$AL,AW$179,FALSE) -> 109786.66 | AX184: =VLOOKUP($U184,Output!$C:$AL,AX$179,FALSE) -> 109786.66 | AY184: =VLOOKUP($U184,Output!$C:$AL,AY$179,FALSE) -> 109786.66 | AZ184: =VLOOKUP($U184,Output!$C:$AL,AZ$179,FALSE) -> 109786.66
S185: Figure 9c | T185: Faible | U185: OSUPJEUNEACCEPTREGECO | V185: =VLOOKUP($U185,Output!$C:$AL,V$179,FALSE) -> 79895.75 | W185: =VLOOKUP($U185,Output!$C:$AL,W$179,FALSE) -> 79760.84 | X185: =VLOOKUP($U185,Output!$C:$AL,X$179,FALSE) -> 79630.25 | Y185: =VLOOKUP($U185,Output!$C:$AL,Y$179,FALSE) -> 79497.15 | Z185: =VLOOKUP($U185,Output!$C:$AL,Z$179,FALSE) -> 79348.4 | AA185: =VLOOKUP($U185,Output!$C:$AL,AA$179,FALSE) -> 79216.14 | AB185: =VLOOKUP($U185,Output!$C:$AL,AB$179,FALSE) -> 79116.49 | AC185: =VLOOKUP($U185,Output!$C:$AL,AC$179,FALSE) -> 78971.52 | AD185: =VLOOKUP($U185,Output!$C:$AL,AD$179,FALSE) -> 78861.23 | AE185: =VLOOKUP($U185,Output!$C:$AL,AE$179,FALSE) -> 78763.45 | AF185: =VLOOKUP($U185,Output!$C:$AL,AF$179,FALSE) -> 78665.16 | AG185: =VLOOKUP($U185,Output!$C:$AL,AG$179,FALSE) -> 78607.69 | AH185: =VLOOKUP($U185,Output!$C:$AL,AH$179,FALSE) -> 78589.92 | AI185: =VLOOKUP($U185,Output!$C:$AL,AI$179,FALSE) -> 78551.49 | AJ185: =VLOOKUP($U185,Output!$C:$AL,AJ$179,FALSE) -> 78511.03 | AK185: =VLOOKUP($U185,Output!$C:$AL,AK$179,FALSE) -> 78462.93 | AL185: =VLOOKUP($U185,Output!$C:$AL,AL$179,FALSE) -> 78457.66 | AM185: =VLOOKUP($U185,Output!$C:$AL,AM$179,FALSE) -> 78457.3 | AN185: =VLOOKUP($U185,Output!$C:$AL,AN$179,FALSE) -> 78444.45 | AO185: =VLOOKUP($U185,Output!$C:$AL,AO$179,FALSE) -> 78433.02 | AP185: =VLOOKUP($U185,Output!$C:$AL,AP$179,FALSE) -> 78430.19 | AQ185: =VLOOKUP($U185,Output!$C:$AL,AQ$179,FALSE) -> 78426.43 | AR185: =VLOOKUP($U185,Output!$C:$AL,AR$179,FALSE) -> 78426.43 | AS185: =VLOOKUP($U185,Output!$C:$AL,AS$179,FALSE) -> 78419.6 | AT185: =VLOOKUP($U185,Output!$C:$AL,AT$179,FALSE) -> 78419.46 | AU185: =VLOOKUP($U185,Output!$C:$AL,AU$179,FALSE) -> 78419.46 | AV185: =VLOOKUP($U185,Output!$C:$AL,AV$179,FALSE) -> 78419.04 | AW185: =VLOOKUP($U185,Output!$C:$AL,AW$179,FALSE) -> 78419.04 | AX185: =VLOOKUP($U185,Output!$C:$AL,AX$179,FALSE) -> 78419.04 | AY185: =VLOOKUP($U185,Output!$C:$AL,AY$179,FALSE) -> 78419.04 | AZ185: =VLOOKUP($U185,Output!$C:$AL,AZ$179,FALSE) -> 78419.04
S186: Figure 9c | T186: Moyen | V186: =V184-V185 -> 31958.3 | W186: 31904.34 | X186: 31852.11 | Y186: 31798.86 | Z186: 31739.36 | AA186: 31686.46 | AB186: 31646.6 | AC186: 31588.61 | AD186: 31544.5 | AE186: 31505.38 | AF186: 31466.06 | AG186: 31443.08 | AH186: 31435.97 | AI186: 31420.59 | AJ186: 31404.41 | AK186: 31385.17 | AL186: 31383.06 | AM186: 31382.92 | AN186: 31377.77 | AO186: 31373.21 | AP186: 31372.07 | AQ186: 31370.57 | AR186: 31370.57 | AS186: 31367.84 | AT186: 31367.78 | AU186: 31367.78 | AV186: 31367.62 | AW186: 31367.62 | AX186: 31367.62 | AY186: 31367.62 | AZ186: 31367.62
S187: Figure 9c | T187: Élevé | V187: =$V$181-V184 -> 209328.45 | W187: 209517.32 | X187: 209700.14 | Y187: 209886.49 | Z187: 210094.74 | AA187: 210279.9 | AB187: 210419.41 | AC187: 210622.37 | AD187: 210776.77 | AE187: 210913.67 | AF187: 211051.28 | AG187: 211131.73 | AH187: 211156.61 | AI187: 211210.42 | AJ187: 211267.06 | AK187: 211334.4 | AL187: 211341.78 | AM187: 211342.28 | AN187: 211360.28 | AO187: 211376.27 | AP187: 211380.24 | AQ187: 211385.5 | AR187: 211385.5 | AS187: 211395.06 | AT187: 211395.26 | AU187: 211395.26 | AV187: 211395.84 | AW187: 211395.84 | AX187: 211395.84 | AY187: 211395.84 | AZ187: 211395.84
U199: Période | V199: P0 | W199: P1 | X199: P2 | Y199: P3 | Z199: P4 | AA199: P5 | AB199: P6 | AC199: P7 | AD199: P8 | AE199: P9 | AF199: P10 | AG199: P11 | AH199: P12 | AI199: P13 | AJ199: P14 | AK199: P15 | AL199: P16 | AM199: P17 | AN199: P18 | AO199: P19 | AP199: P20 | AQ199: P21 | AR199: P22 | AS199: P23 | AT199: P24 | AU199: P25 | AV199: P26 | AW199: P27 | AX199: P28 | AY199: P29 | AZ199: P30
U200: Axe des "X" Fin de période | V200: 2018 | W200: 2023 | X200: 2028 | Y200: 2033 | Z200: 2038 | AA200: 2043 | AB200: 2048 | AC200: 2053 | AD200: 2058 | AE200: 2063 | AF200: 2068 | AG200: 2073 | AH200: 2078 | AI200: 2083 | AJ200: 2088 | AK200: 2093 | AL200: 2098 | AM200: 2103 | AN200: 2108 | AO200: 2113 | AP200: 2118 | AQ200: 2123 | AR200: 2128 | AS200: 2133 | AT200: 2138 | AU200: 2143 | AV200: 2148 | AW200: 2153 | AX200: 2158 | AY200: 2163 | AZ200: 2168
U201: Colonne | V201: 6 | W201: 7 | X201: 8 | Y201: 9 | Z201: 10 | AA201: 11 | AB201: 12 | AC201: 13 | AD201: 14 | AE201: 15 | AF201: 16 | AG201: 17 | AH201: 18 | AI201: 19 | AJ201: 20 | AK201: 21 | AL201: 22 | AM201: 23 | AN201: 24 | AO201: 25 | AP201: 26 | AQ201: 27 | AR201: 28 | AS201: 29 | AT201: 30 | AU201: 31 | AV201: 32 | AW201: 33 | AX201: 34 | AY201: 35 | AZ201: 36
B202: Figure 10a Évolution de la superficie selon le type de couvert | S202: =LEFT(B$202,10) -> Figure 10a | U202: OSUPINC
S203: Figure 10a | U203: Résineux | V203: =SUM(V214,V220,V221,V222,V224,V225) -> 192892.7 | W203: =SUM(W214,W220,W221,W222,W224,W225) -> 193047.95 | X203: 193641.93 | Y203: 193833.8 | Z203: 193759.67 | AA203: 193269.67 | AB203: 192883.91 | AC203: 192357.7 | AD203: 191930.88 | AE203: 190437.48 | AF203: 188893.72 | AG203: 186004.25 | AH203: 185115.6 | AI203: 185224.8 | AJ203: 184603.86 | AK203: 184507.15 | AL203: 184574.92 | AM203: 184573.48 | AN203: 184559.26 | AO203: 184559.26 | AP203: 184556.07 | AQ203: 184640.64 | AR203: 185082.37 | AS203: 184990.17 | AT203: 184989.6 | AU203: 185318.91 | AV203: 184718.16 | AW203: 184016.07 | AX203: 185066.07 | AY203: 185727.2 | AZ203: 185305.4
S204: Figure 10a | U204: Mixtes résineux | V204: =V223 -> 37161.3 | W204: =W223 -> 36475.9 | X204: 35391.83 | Y204: 34688.31 | Z204: 34177.39 | AA204: 34146.07 | AB204: 34141.01 | AC204: 34105.36 | AD204: 34098.79 | AE204: 35283.1 | AF204: 36463.21 | AG204: 39173.28 | AH204: 40012.94 | AI204: 39750.02 | AJ204: 40214.03 | AK204: 40148.57 | AL204: 40059.71 | AM204: 40059.71 | AN204: 40059.71 | AO204: 40059.71 | AP204: 40059.71 | AQ204: 39960.11 | AR204: 39518.39 | AS204: 39583.26 | AT204: 39583.26 | AU204: 39253.95 | AV204: 39853.03 | AW204: 40555.13 | AX204: 39505.13 | AY204: 38844 | AZ204: 39265.8
S205: Figure 10a | U205: Mixtes feuillus intolérants | V205: =V213+V219 -> 9188.4 | W205: =W213+W219 -> 9187.34 | X205: =X213+X219 -> 9161.69 | Y205: =Y213+Y219 -> 9159.14 | Z205: 9149.15 | AA205: 9144.71 | AB205: 9143.65 | AC205: 9125.74 | AD205: 9119 | AE205: 9038.06 | AF205: 9016.91 | AG205: 9016.91 | AH205: 9015.2 | AI205: 9015.2 | AJ205: 9015.2 | AK205: 9015.2 | AL205: 9015.2 | AM205: 9015.2 | AN205: 9015.2 | AO205: 9015.2 | AP205: 9015.2 | AQ205: 9015.2 | AR205: 9015.2 | AS205: 9015.2 | AT205: 9015.2 | AU205: 9015.2 | AV205: 9015.2 | AW205: 9015.2 | AX205: 9015.2 | AY205: 9015.2 | AZ205: 9015.2
S206: Figure 10a | U206: Mixtes feuillus tolérants | V206: =V217 -> 0 | W206: =W217 -> 0 | X206: 0 | Y206: 0 | Z206: 0 | AA206: 0 | AB206: 0 | AC206: 0 | AD206: 0 | AE206: 0 | AF206: 0 | AG206: 0 | AH206: 0 | AI206: 0 | AJ206: 0 | AK206: 0 | AL206: 0 | AM206: 0 | AN206: 0 | AO206: 0 | AP206: 0 | AQ206: 0 | AR206: 0 | AS206: 0 | AT206: 0 | AU206: 0 | AV206: 0 | AW206: 0 | AX206: 0 | AY206: 0 | AZ206: 0
S207: Figure 10a | U207: Feuillus intolérants | V207: =V212+V215+V218 -> 10373.6 | W207: =W212+W215+W218 -> 10365.18 | X207: =X212+X215+X218 -> 10358.56 | Y207: 10340.37 | Z207: 10340.37 | AA207: 10337.11 | AB207: 10330.39 | AC207: 10330.28 | AD207: 10329.27 | AE207: 10328.15 | AF207: 10319.8 | AG207: 10269.32 | AH207: 10248.93 | AI207: 10248.93 | AJ207: 10244.02 | AK207: 10213.8 | AL207: 10213.8 | AM207: 10213.8 | AN207: 10176.61 | AO207: 10130.9 | AP207: 10122.77 | AQ207: 10122.77 | AR207: 10122.77 | AS207: 10122.77 | AT207: 10122.77 | AU207: 10122.77 | AV207: 10122.77 | AW207: 10122.77 | AX207: 10122.77 | AY207: 10122.77 | AZ207: 10122.77
S208: Figure 10a | U208: Feuillus tolérants | V208: =V216 -> 0 | W208: =W216 -> 0 | X208: 0 | Y208: 0 | Z208: 0 | AA208: 0 | AB208: 0 | AC208: 0 | AD208: 0 | AE208: 0 | AF208: 0 | AG208: 0 | AH208: 0 | AI208: 0 | AJ208: 0 | AK208: 0 | AL208: 0 | AM208: 0 | AN208: 0 | AO208: 0 | AP208: 0 | AQ208: 0 | AR208: 0 | AS208: 0 | AT208: 0 | AU208: 0 | AV208: 0 | AW208: 0 | AX208: 0 | AY208: 0 | AZ208: 0
S209: Figure 10a | U209: Total | V209: =SUM(V203:V208) -> 249616 | W209: =SUM(W203:W208) -> 249076.37 | X209: =SUM(X203:X208) -> 248554.01 | Y209: 248021.62 | Z209: 247426.58 | AA209: 246897.56 | AB209: 246498.96 | AC209: 245919.08 | AD209: 245477.94 | AE209: 245086.79 | AF209: 244693.64 | AG209: 244463.76 | AH209: 244392.67 | AI209: 244238.95 | AJ209: 244077.11 | AK209: 243884.72 | AL209: 243863.63 | AM209: 243862.19 | AN209: 243810.78 | AO209: 243765.07 | AP209: 243753.75 | AQ209: 243738.72 | AR209: 243738.73 | AS209: 243711.4 | AT209: 243710.83 | AU209: 243710.83 | AV209: 243709.16 | AW209: 243709.17 | AX209: 243709.17 | AY209: 243709.17 | AZ209: 243709.17
S210: Figure 10a
S211: Figure 10a
S212: Figure 10a | T212: Bétulaies blanches | U212: (FCTYF_BOP) | V212: =VLOOKUP($U$202&$U212,GTYF!$C:$AP,V$201,FALSE) -> 3643 | W212: =VLOOKUP($U$202&$U212,GTYF!$C:$AP,W$201,FALSE) -> 3637.35 | X212: =VLOOKUP($U$202&$U212,GTYF!$C:$AP,X$201,FALSE) -> 3635.42 | Y212: =VLOOKUP($U$202&$U212,GTYF!$C:$AP,Y$201,FALSE) -> 3635.42 | Z212: =VLOOKUP($U$202&$U212,GTYF!$C:$AP,Z$201,FALSE) -> 3635.42 | AA212: =VLOOKUP($U$202&$U212,GTYF!$C:$AP,AA$201,FALSE) -> 3635.42 | AB212: =VLOOKUP($U$202&$U212,GTYF!$C:$AP,AB$201,FALSE) -> 3628.7 | AC212: =VLOOKUP($U$202&$U212,GTYF!$C:$AP,AC$201,FALSE) -> 3628.7 | AD212: =VLOOKUP($U$202&$U212,GTYF!$C:$AP,AD$201,FALSE) -> 3627.86 | AE212: =VLOOKUP($U$202&$U212,GTYF!$C:$AP,AE$201,FALSE) -> 3626.74 | AF212: =VLOOKUP($U$202&$U212,GTYF!$C:$AP,AF$201,FALSE) -> 3626.74 | AG212: =VLOOKUP($U$202&$U212,GTYF!$C:$AP,AG$201,FALSE) -> 3626.74 | AH212: =VLOOKUP($U$202&$U212,GTYF!$C:$AP,AH$201,FALSE) -> 3626.74 | AI212: =VLOOKUP($U$202&$U212,GTYF!$C:$AP,AI$201,FALSE) -> 3626.74 | AJ212: =VLOOKUP($U$202&$U212,GTYF!$C:$AP,AJ$201,FALSE) -> 3626.74 | AK212: =VLOOKUP($U$202&$U212,GTYF!$C:$AP,AK$201,FALSE) -> 3596.52 | AL212: =VLOOKUP($U$202&$U212,GTYF!$C:$AP,AL$201,FALSE) -> 3596.52 | AM212: =VLOOKUP($U$202&$U212,GTYF!$C:$AP,AM$201,FALSE) -> 3596.52 | AN212: =VLOOKUP($U$202&$U212,GTYF!$C:$AP,AN$201,FALSE) -> 3559.33 | AO212: =VLOOKUP($U$202&$U212,GTYF!$C:$AP,AO$201,FALSE) -> 3532.04 | AP212: =VLOOKUP($U$202&$U212,GTYF!$C:$AP,AP$201,FALSE) -> 3532.04 | AQ212: =VLOOKUP($U$202&$U212,GTYF!$C:$AP,AQ$201,FALSE) -> 3532.04 | AR212: =VLOOKUP($U$202&$U212,GTYF!$C:$AP,AR$201,FALSE) -> 3532.04 | AS212: =VLOOKUP($U$202&$U212,GTYF!$C:$AP,AS$201,FALSE) -> 3532.04 | AT212: =VLOOKUP($U$202&$U212,GTYF!$C:$AP,AT$201,FALSE) -> 3532.04 | AU212: =VLOOKUP($U$202&$U212,GTYF!$C:$AP,AU$201,FALSE) -> 3532.04 | AV212: =VLOOKUP($U$202&$U212,GTYF!$C:$AP,AV$201,FALSE) -> 3532.04 | AW212: =VLOOKUP($U$202&$U212,GTYF!$C:$AP,AW$201,FALSE) -> 3532.04 | AX212: =VLOOKUP($U$202&$U212,GTYF!$C:$AP,AX$201,FALSE) -> 3532.04 | AY212: =VLOOKUP($U$202&$U212,GTYF!$C:$AP,AY$201,FALSE) -> 3532.04 | AZ212: =VLOOKUP($U$202&$U212,GTYF!$C:$AP,AZ$201,FALSE) -> 3532.04
S213: Figure 10a | T213: Bétulaies blanches à résineux | U213: (FCTYF_BOPR) | V213: =VLOOKUP($U$202&$U213,GTYF!$C:$AP,V$201,FALSE) -> 4239.2 | W213: =VLOOKUP($U$202&$U213,GTYF!$C:$AP,W$201,FALSE) -> 4238.66 | X213: =VLOOKUP($U$202&$U213,GTYF!$C:$AP,X$201,FALSE) -> 4228.22 | Y213: =VLOOKUP($U$202&$U213,GTYF!$C:$AP,Y$201,FALSE) -> 4228.07 | Z213: =VLOOKUP($U$202&$U213,GTYF!$C:$AP,Z$201,FALSE) -> 4228.07 | AA213: =VLOOKUP($U$202&$U213,GTYF!$C:$AP,AA$201,FALSE) -> 4228.07 | AB213: =VLOOKUP($U$202&$U213,GTYF!$C:$AP,AB$201,FALSE) -> 4227.05 | AC213: =VLOOKUP($U$202&$U213,GTYF!$C:$AP,AC$201,FALSE) -> 4216.81 | AD213: =VLOOKUP($U$202&$U213,GTYF!$C:$AP,AD$201,FALSE) -> 4210.07 | AE213: =VLOOKUP($U$202&$U213,GTYF!$C:$AP,AE$201,FALSE) -> 4129.21 | AF213: =VLOOKUP($U$202&$U213,GTYF!$C:$AP,AF$201,FALSE) -> 4119.56 | AG213: =VLOOKUP($U$202&$U213,GTYF!$C:$AP,AG$201,FALSE) -> 4119.56 | AH213: =VLOOKUP($U$202&$U213,GTYF!$C:$AP,AH$201,FALSE) -> 4119.56 | AI213: =VLOOKUP($U$202&$U213,GTYF!$C:$AP,AI$201,FALSE) -> 4119.56 | AJ213: =VLOOKUP($U$202&$U213,GTYF!$C:$AP,AJ$201,FALSE) -> 4119.56 | AK213: =VLOOKUP($U$202&$U213,GTYF!$C:$AP,AK$201,FALSE) -> 4119.56 | AL213: =VLOOKUP($U$202&$U213,GTYF!$C:$AP,AL$201,FALSE) -> 4119.56 | AM213: =VLOOKUP($U$202&$U213,GTYF!$C:$AP,AM$201,FALSE) -> 4119.56 | AN213: =VLOOKUP($U$202&$U213,GTYF!$C:$AP,AN$201,FALSE) -> 4119.56 | AO213: =VLOOKUP($U$202&$U213,GTYF!$C:$AP,AO$201,FALSE) -> 4119.56 | AP213: =VLOOKUP($U$202&$U213,GTYF!$C:$AP,AP$201,FALSE) -> 4119.56 | AQ213: =VLOOKUP($U$202&$U213,GTYF!$C:$AP,AQ$201,FALSE) -> 4119.56 | AR213: =VLOOKUP($U$202&$U213,GTYF!$C:$AP,AR$201,FALSE) -> 4119.56 | AS213: =VLOOKUP($U$202&$U213,GTYF!$C:$AP,AS$201,FALSE) -> 4119.56 | AT213: =VLOOKUP($U$202&$U213,GTYF!$C:$AP,AT$201,FALSE) -> 4119.56 | AU213: =VLOOKUP($U$202&$U213,GTYF!$C:$AP,AU$201,FALSE) -> 4119.56 | AV213: =VLOOKUP($U$202&$U213,GTYF!$C:$AP,AV$201,FALSE) -> 4119.56 | AW213: =VLOOKUP($U$202&$U213,GTYF!$C:$AP,AW$201,FALSE) -> 4119.56 | AX213: =VLOOKUP($U$202&$U213,GTYF!$C:$AP,AX$201,FALSE) -> 4119.56 | AY213: =VLOOKUP($U$202&$U213,GTYF!$C:$AP,AY$201,FALSE) -> 4119.56 | AZ213: =VLOOKUP($U$202&$U213,GTYF!$C:$AP,AZ$201,FALSE) -> 4119.56
S214: Figure 10a | T214: Pessières | U214: (FCTYF_EPX) | V214: =VLOOKUP($U$202&$U214,GTYF!$C:$AP,V$201,FALSE) -> 167453.2 | W214: =VLOOKUP($U$202&$U214,GTYF!$C:$AP,W$201,FALSE) -> 167682.84 | X214: =VLOOKUP($U$202&$U214,GTYF!$C:$AP,X$201,FALSE) -> 168350.11 | Y214: =VLOOKUP($U$202&$U214,GTYF!$C:$AP,Y$201,FALSE) -> 168582.83 | Z214: =VLOOKUP($U$202&$U214,GTYF!$C:$AP,Z$201,FALSE) -> 168699.26 | AA214: =VLOOKUP($U$202&$U214,GTYF!$C:$AP,AA$201,FALSE) -> 168311.13 | AB214: =VLOOKUP($U$202&$U214,GTYF!$C:$AP,AB$201,FALSE) -> 168125.39 | AC214: =VLOOKUP($U$202&$U214,GTYF!$C:$AP,AC$201,FALSE) -> 167870.42 | AD214: =VLOOKUP($U$202&$U214,GTYF!$C:$AP,AD$201,FALSE) -> 167622.76 | AE214: =VLOOKUP($U$202&$U214,GTYF!$C:$AP,AE$201,FALSE) -> 166203.66 | AF214: =VLOOKUP($U$202&$U214,GTYF!$C:$AP,AF$201,FALSE) -> 164763.51 | AG214: =VLOOKUP($U$202&$U214,GTYF!$C:$AP,AG$201,FALSE) -> 161935.79 | AH214: =VLOOKUP($U$202&$U214,GTYF!$C:$AP,AH$201,FALSE) -> 161047.14 | AI214: =VLOOKUP($U$202&$U214,GTYF!$C:$AP,AI$201,FALSE) -> 161156.34 | AJ214: =VLOOKUP($U$202&$U214,GTYF!$C:$AP,AJ$201,FALSE) -> 160535.4 | AK214: =VLOOKUP($U$202&$U214,GTYF!$C:$AP,AK$201,FALSE) -> 160486.61 | AL214: =VLOOKUP($U$202&$U214,GTYF!$C:$AP,AL$201,FALSE) -> 160554.38 | AM214: =VLOOKUP($U$202&$U214,GTYF!$C:$AP,AM$201,FALSE) -> 160554.38 | AN214: =VLOOKUP($U$202&$U214,GTYF!$C:$AP,AN$201,FALSE) -> 160540.16 | AO214: =VLOOKUP($U$202&$U214,GTYF!$C:$AP,AO$201,FALSE) -> 160540.16 | AP214: =VLOOKUP($U$202&$U214,GTYF!$C:$AP,AP$201,FALSE) -> 160540.16 | AQ214: =VLOOKUP($U$202&$U214,GTYF!$C:$AP,AQ$201,FALSE) -> 160525.13 | AR214: =VLOOKUP($U$202&$U214,GTYF!$C:$AP,AR$201,FALSE) -> 160525.13 | AS214: =VLOOKUP($U$202&$U214,GTYF!$C:$AP,AS$201,FALSE) -> 160393.84 | AT214: =VLOOKUP($U$202&$U214,GTYF!$C:$AP,AT$201,FALSE) -> 160393.27 | AU214: =VLOOKUP($U$202&$U214,GTYF!$C:$AP,AU$201,FALSE) -> 160393.27 | AV214: =VLOOKUP($U$202&$U214,GTYF!$C:$AP,AV$201,FALSE) -> 159792.52 | AW214: =VLOOKUP($U$202&$U214,GTYF!$C:$AP,AW$201,FALSE) -> 158795.67 | AX214: =VLOOKUP($U$202&$U214,GTYF!$C:$AP,AX$201,FALSE) -> 158795.67 | AY214: =VLOOKUP($U$202&$U214,GTYF!$C:$AP,AY$201,FALSE) -> 159593.9 | AZ214: =VLOOKUP($U$202&$U214,GTYF!$C:$AP,AZ$201,FALSE) -> 160698.87
S215: Figure 10a | T215: Érablières rouges | U215: (FCTYF_ERO) | V215: =VLOOKUP($U$202&$U215,GTYF!$C:$AP,V$201,FALSE) -> 0 | W215: =VLOOKUP($U$202&$U215,GTYF!$C:$AP,W$201,FALSE) -> 0 | X215: =VLOOKUP($U$202&$U215,GTYF!$C:$AP,X$201,FALSE) -> 0 | Y215: =VLOOKUP($U$202&$U215,GTYF!$C:$AP,Y$201,FALSE) -> 0 | Z215: =VLOOKUP($U$202&$U215,GTYF!$C:$AP,Z$201,FALSE) -> 0 | AA215: =VLOOKUP($U$202&$U215,GTYF!$C:$AP,AA$201,FALSE) -> 0 | AB215: =VLOOKUP($U$202&$U215,GTYF!$C:$AP,AB$201,FALSE) -> 0 | AC215: =VLOOKUP($U$202&$U215,GTYF!$C:$AP,AC$201,FALSE) -> 0 | AD215: =VLOOKUP($U$202&$U215,GTYF!$C:$AP,AD$201,FALSE) -> 0 | AE215: =VLOOKUP($U$202&$U215,GTYF!$C:$AP,AE$201,FALSE) -> 0 | AF215: =VLOOKUP($U$202&$U215,GTYF!$C:$AP,AF$201,FALSE) -> 0 | AG215: =VLOOKUP($U$202&$U215,GTYF!$C:$AP,AG$201,FALSE) -> 0 | AH215: =VLOOKUP($U$202&$U215,GTYF!$C:$AP,AH$201,FALSE) -> 0 | AI215: =VLOOKUP($U$202&$U215,GTYF!$C:$AP,AI$201,FALSE) -> 0 | AJ215: =VLOOKUP($U$202&$U215,GTYF!$C:$AP,AJ$201,FALSE) -> 0 | AK215: =VLOOKUP($U$202&$U215,GTYF!$C:$AP,AK$201,FALSE) -> 0 | AL215: =VLOOKUP($U$202&$U215,GTYF!$C:$AP,AL$201,FALSE) -> 0 | AM215: =VLOOKUP($U$202&$U215,GTYF!$C:$AP,AM$201,FALSE) -> 0 | AN215: =VLOOKUP($U$202&$U215,GTYF!$C:$AP,AN$201,FALSE) -> 0 | AO215: =VLOOKUP($U$202&$U215,GTYF!$C:$AP,AO$201,FALSE) -> 0 | AP215: =VLOOKUP($U$202&$U215,GTYF!$C:$AP,AP$201,FALSE) -> 0 | AQ215: =VLOOKUP($U$202&$U215,GTYF!$C:$AP,AQ$201,FALSE) -> 0 | AR215: =VLOOKUP($U$202&$U215,GTYF!$C:$AP,AR$201,FALSE) -> 0 | AS215: =VLOOKUP($U$202&$U215,GTYF!$C:$AP,AS$201,FALSE) -> 0 | AT215: =VLOOKUP($U$202&$U215,GTYF!$C:$AP,AT$201,FALSE) -> 0 | AU215: =VLOOKUP($U$202&$U215,GTYF!$C:$AP,AU$201,FALSE) -> 0 | AV215: =VLOOKUP($U$202&$U215,GTYF!$C:$AP,AV$201,FALSE) -> 0 | AW215: =VLOOKUP($U$202&$U215,GTYF!$C:$AP,AW$201,FALSE) -> 0 | AX215: =VLOOKUP($U$202&$U215,GTYF!$C:$AP,AX$201,FALSE) -> 0 | AY215: =VLOOKUP($U$202&$U215,GTYF!$C:$AP,AY$201,FALSE) -> 0 | AZ215: =VLOOKUP($U$202&$U215,GTYF!$C:$AP,AZ$201,FALSE) -> 0
S216: Figure 10a | T216: Feuillus tolérants | U216: (FCTYF_FT) | V216: =VLOOKUP($U$202&$U216,GTYF!$C:$AP,V$201,FALSE) -> 0 | W216: =VLOOKUP($U$202&$U216,GTYF!$C:$AP,W$201,FALSE) -> 0 | X216: =VLOOKUP($U$202&$U216,GTYF!$C:$AP,X$201,FALSE) -> 0 | Y216: =VLOOKUP($U$202&$U216,GTYF!$C:$AP,Y$201,FALSE) -> 0 | Z216: =VLOOKUP($U$202&$U216,GTYF!$C:$AP,Z$201,FALSE) -> 0 | AA216: =VLOOKUP($U$202&$U216,GTYF!$C:$AP,AA$201,FALSE) -> 0 | AB216: =VLOOKUP($U$202&$U216,GTYF!$C:$AP,AB$201,FALSE) -> 0 | AC216: =VLOOKUP($U$202&$U216,GTYF!$C:$AP,AC$201,FALSE) -> 0 | AD216: =VLOOKUP($U$202&$U216,GTYF!$C:$AP,AD$201,FALSE) -> 0 | AE216: =VLOOKUP($U$202&$U216,GTYF!$C:$AP,AE$201,FALSE) -> 0 | AF216: =VLOOKUP($U$202&$U216,GTYF!$C:$AP,AF$201,FALSE) -> 0 | AG216: =VLOOKUP($U$202&$U216,GTYF!$C:$AP,AG$201,FALSE) -> 0 | AH216: =VLOOKUP($U$202&$U216,GTYF!$C:$AP,AH$201,FALSE) -> 0 | AI216: =VLOOKUP($U$202&$U216,GTYF!$C:$AP,AI$201,FALSE) -> 0 | AJ216: =VLOOKUP($U$202&$U216,GTYF!$C:$AP,AJ$201,FALSE) -> 0 | AK216: =VLOOKUP($U$202&$U216,GTYF!$C:$AP,AK$201,FALSE) -> 0 | AL216: =VLOOKUP($U$202&$U216,GTYF!$C:$AP,AL$201,FALSE) -> 0 | AM216: =VLOOKUP($U$202&$U216,GTYF!$C:$AP,AM$201,FALSE) -> 0 | AN216: =VLOOKUP($U$202&$U216,GTYF!$C:$AP,AN$201,FALSE) -> 0 | AO216: =VLOOKUP($U$202&$U216,GTYF!$C:$AP,AO$201,FALSE) -> 0 | AP216: =VLOOKUP($U$202&$U216,GTYF!$C:$AP,AP$201,FALSE) -> 0 | AQ216: =VLOOKUP($U$202&$U216,GTYF!$C:$AP,AQ$201,FALSE) -> 0 | AR216: =VLOOKUP($U$202&$U216,GTYF!$C:$AP,AR$201,FALSE) -> 0 | AS216: =VLOOKUP($U$202&$U216,GTYF!$C:$AP,AS$201,FALSE) -> 0 | AT216: =VLOOKUP($U$202&$U216,GTYF!$C:$AP,AT$201,FALSE) -> 0 | AU216: =VLOOKUP($U$202&$U216,GTYF!$C:$AP,AU$201,FALSE) -> 0 | AV216: =VLOOKUP($U$202&$U216,GTYF!$C:$AP,AV$201,FALSE) -> 0 | AW216: =VLOOKUP($U$202&$U216,GTYF!$C:$AP,AW$201,FALSE) -> 0 | AX216: =VLOOKUP($U$202&$U216,GTYF!$C:$AP,AX$201,FALSE) -> 0 | AY216: =VLOOKUP($U$202&$U216,GTYF!$C:$AP,AY$201,FALSE) -> 0 | AZ216: =VLOOKUP($U$202&$U216,GTYF!$C:$AP,AZ$201,FALSE) -> 0
S217: Figure 10a | T217: Feuillus tolérants à résineux | U217: (FCTYF_FTR) | V217: =VLOOKUP($U$202&$U217,GTYF!$C:$AP,V$201,FALSE) -> 0 | W217: =VLOOKUP($U$202&$U217,GTYF!$C:$AP,W$201,FALSE) -> 0 | X217: =VLOOKUP($U$202&$U217,GTYF!$C:$AP,X$201,FALSE) -> 0 | Y217: =VLOOKUP($U$202&$U217,GTYF!$C:$AP,Y$201,FALSE) -> 0 | Z217: =VLOOKUP($U$202&$U217,GTYF!$C:$AP,Z$201,FALSE) -> 0 | AA217: =VLOOKUP($U$202&$U217,GTYF!$C:$AP,AA$201,FALSE) -> 0 | AB217: =VLOOKUP($U$202&$U217,GTYF!$C:$AP,AB$201,FALSE) -> 0 | AC217: =VLOOKUP($U$202&$U217,GTYF!$C:$AP,AC$201,FALSE) -> 0 | AD217: =VLOOKUP($U$202&$U217,GTYF!$C:$AP,AD$201,FALSE) -> 0 | AE217: =VLOOKUP($U$202&$U217,GTYF!$C:$AP,AE$201,FALSE) -> 0 | AF217: =VLOOKUP($U$202&$U217,GTYF!$C:$AP,AF$201,FALSE) -> 0 | AG217: =VLOOKUP($U$202&$U217,GTYF!$C:$AP,AG$201,FALSE) -> 0 | AH217: =VLOOKUP($U$202&$U217,GTYF!$C:$AP,AH$201,FALSE) -> 0 | AI217: =VLOOKUP($U$202&$U217,GTYF!$C:$AP,AI$201,FALSE) -> 0 | AJ217: =VLOOKUP($U$202&$U217,GTYF!$C:$AP,AJ$201,FALSE) -> 0 | AK217: =VLOOKUP($U$202&$U217,GTYF!$C:$AP,AK$201,FALSE) -> 0 | AL217: =VLOOKUP($U$202&$U217,GTYF!$C:$AP,AL$201,FALSE) -> 0 | AM217: =VLOOKUP($U$202&$U217,GTYF!$C:$AP,AM$201,FALSE) -> 0 | AN217: =VLOOKUP($U$202&$U217,GTYF!$C:$AP,AN$201,FALSE) -> 0 | AO217: =VLOOKUP($U$202&$U217,GTYF!$C:$AP,AO$201,FALSE) -> 0 | AP217: =VLOOKUP($U$202&$U217,GTYF!$C:$AP,AP$201,FALSE) -> 0 | AQ217: =VLOOKUP($U$202&$U217,GTYF!$C:$AP,AQ$201,FALSE) -> 0 | AR217: =VLOOKUP($U$202&$U217,GTYF!$C:$AP,AR$201,FALSE) -> 0 | AS217: =VLOOKUP($U$202&$U217,GTYF!$C:$AP,AS$201,FALSE) -> 0 | AT217: =VLOOKUP($U$202&$U217,GTYF!$C:$AP,AT$201,FALSE) -> 0 | AU217: =VLOOKUP($U$202&$U217,GTYF!$C:$AP,AU$201,FALSE) -> 0 | AV217: =VLOOKUP($U$202&$U217,GTYF!$C:$AP,AV$201,FALSE) -> 0 | AW217: =VLOOKUP($U$202&$U217,GTYF!$C:$AP,AW$201,FALSE) -> 0 | AX217: =VLOOKUP($U$202&$U217,GTYF!$C:$AP,AX$201,FALSE) -> 0 | AY217: =VLOOKUP($U$202&$U217,GTYF!$C:$AP,AY$201,FALSE) -> 0 | AZ217: =VLOOKUP($U$202&$U217,GTYF!$C:$AP,AZ$201,FALSE) -> 0
S218: Figure 10a | T218: Peupleraies | U218: (FCTYF_PEU) | V218: =VLOOKUP($U$202&$U218,GTYF!$C:$AP,V$201,FALSE) -> 6730.6 | W218: =VLOOKUP($U$202&$U218,GTYF!$C:$AP,W$201,FALSE) -> 6727.83 | X218: =VLOOKUP($U$202&$U218,GTYF!$C:$AP,X$201,FALSE) -> 6723.14 | Y218: =VLOOKUP($U$202&$U218,GTYF!$C:$AP,Y$201,FALSE) -> 6704.95 | Z218: =VLOOKUP($U$202&$U218,GTYF!$C:$AP,Z$201,FALSE) -> 6704.95 | AA218: =VLOOKUP($U$202&$U218,GTYF!$C:$AP,AA$201,FALSE) -> 6701.69 | AB218: =VLOOKUP($U$202&$U218,GTYF!$C:$AP,AB$201,FALSE) -> 6701.69 | AC218: =VLOOKUP($U$202&$U218,GTYF!$C:$AP,AC$201,FALSE) -> 6701.58 | AD218: =VLOOKUP($U$202&$U218,GTYF!$C:$AP,AD$201,FALSE) -> 6701.41 | AE218: =VLOOKUP($U$202&$U218,GTYF!$C:$AP,AE$201,FALSE) -> 6701.41 | AF218: =VLOOKUP($U$202&$U218,GTYF!$C:$AP,AF$201,FALSE) -> 6693.06 | AG218: =VLOOKUP($U$202&$U218,GTYF!$C:$AP,AG$201,FALSE) -> 6642.58 | AH218: =VLOOKUP($U$202&$U218,GTYF!$C:$AP,AH$201,FALSE) -> 6622.19 | AI218: =VLOOKUP($U$202&$U218,GTYF!$C:$AP,AI$201,FALSE) -> 6622.19 | AJ218: =VLOOKUP($U$202&$U218,GTYF!$C:$AP,AJ$201,FALSE) -> 6617.28 | AK218: =VLOOKUP($U$202&$U218,GTYF!$C:$AP,AK$201,FALSE) -> 6617.28 | AL218: =VLOOKUP($U$202&$U218,GTYF!$C:$AP,AL$201,FALSE) -> 6617.28 | AM218: =VLOOKUP($U$202&$U218,GTYF!$C:$AP,AM$201,FALSE) -> 6617.28 | AN218: =VLOOKUP($U$202&$U218,GTYF!$C:$AP,AN$201,FALSE) -> 6617.28 | AO218: =VLOOKUP($U$202&$U218,GTYF!$C:$AP,AO$201,FALSE) -> 6598.86 | AP218: =VLOOKUP($U$202&$U218,GTYF!$C:$AP,AP$201,FALSE) -> 6590.73 | AQ218: =VLOOKUP($U$202&$U218,GTYF!$C:$AP,AQ$201,FALSE) -> 6590.73 | AR218: =VLOOKUP($U$202&$U218,GTYF!$C:$AP,AR$201,FALSE) -> 6590.73 | AS218: =VLOOKUP($U$202&$U218,GTYF!$C:$AP,AS$201,FALSE) -> 6590.73 | AT218: =VLOOKUP($U$202&$U218,GTYF!$C:$AP,AT$201,FALSE) -> 6590.73 | AU218: =VLOOKUP($U$202&$U218,GTYF!$C:$AP,AU$201,FALSE) -> 6590.73 | AV218: =VLOOKUP($U$202&$U218,GTYF!$C:$AP,AV$201,FALSE) -> 6590.73 | AW218: =VLOOKUP($U$202&$U218,GTYF!$C:$AP,AW$201,FALSE) -> 6590.73 | AX218: =VLOOKUP($U$202&$U218,GTYF!$C:$AP,AX$201,FALSE) -> 6590.73 | AY218: =VLOOKUP($U$202&$U218,GTYF!$C:$AP,AY$201,FALSE) -> 6590.73 | AZ218: =VLOOKUP($U$202&$U218,GTYF!$C:$AP,AZ$201,FALSE) -> 6590.73
S219: Figure 10a | T219: Peupleraies à résineux | U219: (FCTYF_PEUR) | V219: =VLOOKUP($U$202&$U219,GTYF!$C:$AP,V$201,FALSE) -> 4949.2 | W219: =VLOOKUP($U$202&$U219,GTYF!$C:$AP,W$201,FALSE) -> 4948.68 | X219: =VLOOKUP($U$202&$U219,GTYF!$C:$AP,X$201,FALSE) -> 4933.47 | Y219: =VLOOKUP($U$202&$U219,GTYF!$C:$AP,Y$201,FALSE) -> 4931.07 | Z219: =VLOOKUP($U$202&$U219,GTYF!$C:$AP,Z$201,FALSE) -> 4921.08 | AA219: =VLOOKUP($U$202&$U219,GTYF!$C:$AP,AA$201,FALSE) -> 4916.64 | AB219: =VLOOKUP($U$202&$U219,GTYF!$C:$AP,AB$201,FALSE) -> 4916.6 | AC219: =VLOOKUP($U$202&$U219,GTYF!$C:$AP,AC$201,FALSE) -> 4908.93 | AD219: =VLOOKUP($U$202&$U219,GTYF!$C:$AP,AD$201,FALSE) -> 4908.93 | AE219: =VLOOKUP($U$202&$U219,GTYF!$C:$AP,AE$201,FALSE) -> 4908.85 | AF219: =VLOOKUP($U$202&$U219,GTYF!$C:$AP,AF$201,FALSE) -> 4897.35 | AG219: =VLOOKUP($U$202&$U219,GTYF!$C:$AP,AG$201,FALSE) -> 4897.35 | AH219: =VLOOKUP($U$202&$U219,GTYF!$C:$AP,AH$201,FALSE) -> 4895.64 | AI219: =VLOOKUP($U$202&$U219,GTYF!$C:$AP,AI$201,FALSE) -> 4895.64 | AJ219: =VLOOKUP($U$202&$U219,GTYF!$C:$AP,AJ$201,FALSE) -> 4895.64 | AK219: =VLOOKUP($U$202&$U219,GTYF!$C:$AP,AK$201,FALSE) -> 4895.64 | AL219: =VLOOKUP($U$202&$U219,GTYF!$C:$AP,AL$201,FALSE) -> 4895.64 | AM219: =VLOOKUP($U$202&$U219,GTYF!$C:$AP,AM$201,FALSE) -> 4895.64 | AN219: =VLOOKUP($U$202&$U219,GTYF!$C:$AP,AN$201,FALSE) -> 4895.64 | AO219: =VLOOKUP($U$202&$U219,GTYF!$C:$AP,AO$201,FALSE) -> 4895.64 | AP219: =VLOOKUP($U$202&$U219,GTYF!$C:$AP,AP$201,FALSE) -> 4895.64 | AQ219: =VLOOKUP($U$202&$U219,GTYF!$C:$AP,AQ$201,FALSE) -> 4895.64 | AR219: =VLOOKUP($U$202&$U219,GTYF!$C:$AP,AR$201,FALSE) -> 4895.64 | AS219: =VLOOKUP($U$202&$U219,GTYF!$C:$AP,AS$201,FALSE) -> 4895.64 | AT219: =VLOOKUP($U$202&$U219,GTYF!$C:$AP,AT$201,FALSE) -> 4895.64 | AU219: =VLOOKUP($U$202&$U219,GTYF!$C:$AP,AU$201,FALSE) -> 4895.64 | AV219: =VLOOKUP($U$202&$U219,GTYF!$C:$AP,AV$201,FALSE) -> 4895.64 | AW219: =VLOOKUP($U$202&$U219,GTYF!$C:$AP,AW$201,FALSE) -> 4895.64 | AX219: =VLOOKUP($U$202&$U219,GTYF!$C:$AP,AX$201,FALSE) -> 4895.64 | AY219: =VLOOKUP($U$202&$U219,GTYF!$C:$AP,AY$201,FALSE) -> 4895.64 | AZ219: =VLOOKUP($U$202&$U219,GTYF!$C:$AP,AZ$201,FALSE) -> 4895.64
S220: Figure 10a | T220: Pinèdes grises | U220: (FCTYF_PIG) | V220: =VLOOKUP($U$202&$U220,GTYF!$C:$AP,V$201,FALSE) -> 21430.8 | W220: =VLOOKUP($U$202&$U220,GTYF!$C:$AP,W$201,FALSE) -> 21357.8 | X220: =VLOOKUP($U$202&$U220,GTYF!$C:$AP,X$201,FALSE) -> 21322.36 | Y220: =VLOOKUP($U$202&$U220,GTYF!$C:$AP,Y$201,FALSE) -> 21281.51 | Z220: =VLOOKUP($U$202&$U220,GTYF!$C:$AP,Z$201,FALSE) -> 21256.77 | AA220: =VLOOKUP($U$202&$U220,GTYF!$C:$AP,AA$201,FALSE) -> 21167.92 | AB220: =VLOOKUP($U$202&$U220,GTYF!$C:$AP,AB$201,FALSE) -> 21105.52 | AC220: =VLOOKUP($U$202&$U220,GTYF!$C:$AP,AC$201,FALSE) -> 21000.76 | AD220: =VLOOKUP($U$202&$U220,GTYF!$C:$AP,AD$201,FALSE) -> 20933.5 | AE220: =VLOOKUP($U$202&$U220,GTYF!$C:$AP,AE$201,FALSE) -> 20871.77 | AF220: =VLOOKUP($U$202&$U220,GTYF!$C:$AP,AF$201,FALSE) -> 20771.51 | AG220: =VLOOKUP($U$202&$U220,GTYF!$C:$AP,AG$201,FALSE) -> 20709.76 | AH220: =VLOOKUP($U$202&$U220,GTYF!$C:$AP,AH$201,FALSE) -> 20709.76 | AI220: =VLOOKUP($U$202&$U220,GTYF!$C:$AP,AI$201,FALSE) -> 20709.76 | AJ220: =VLOOKUP($U$202&$U220,GTYF!$C:$AP,AJ$201,FALSE) -> 20709.76 | AK220: =VLOOKUP($U$202&$U220,GTYF!$C:$AP,AK$201,FALSE) -> 20661.84 | AL220: =VLOOKUP($U$202&$U220,GTYF!$C:$AP,AL$201,FALSE) -> 20661.84 | AM220: =VLOOKUP($U$202&$U220,GTYF!$C:$AP,AM$201,FALSE) -> 20660.4 | AN220: =VLOOKUP($U$202&$U220,GTYF!$C:$AP,AN$201,FALSE) -> 20660.4 | AO220: =VLOOKUP($U$202&$U220,GTYF!$C:$AP,AO$201,FALSE) -> 20660.4 | AP220: =VLOOKUP($U$202&$U220,GTYF!$C:$AP,AP$201,FALSE) -> 20657.21 | AQ220: =VLOOKUP($U$202&$U220,GTYF!$C:$AP,AQ$201,FALSE) -> 20657.21 | AR220: =VLOOKUP($U$202&$U220,GTYF!$C:$AP,AR$201,FALSE) -> 20657.21 | AS220: =VLOOKUP($U$202&$U220,GTYF!$C:$AP,AS$201,FALSE) -> 20657.21 | AT220: =VLOOKUP($U$202&$U220,GTYF!$C:$AP,AT$201,FALSE) -> 20657.21 | AU220: =VLOOKUP($U$202&$U220,GTYF!$C:$AP,AU$201,FALSE) -> 20657.21 | AV220: =VLOOKUP($U$202&$U220,GTYF!$C:$AP,AV$201,FALSE) -> 20657.21 | AW220: =VLOOKUP($U$202&$U220,GTYF!$C:$AP,AW$201,FALSE) -> 20657.21 | AX220: =VLOOKUP($U$202&$U220,GTYF!$C:$AP,AX$201,FALSE) -> 20657.21 | AY220: =VLOOKUP($U$202&$U220,GTYF!$C:$AP,AY$201,FALSE) -> 20209.63 | AZ220: =VLOOKUP($U$202&$U220,GTYF!$C:$AP,AZ$201,FALSE) -> 19483.69
S221: Figure 10a | T221: Pinèdes blanches | U221: (FCTYF_PIN) | V221: =VLOOKUP($U$202&$U221,GTYF!$C:$AP,V$201,FALSE) -> 0 | W221: =VLOOKUP($U$202&$U221,GTYF!$C:$AP,W$201,FALSE) -> 0 | X221: =VLOOKUP($U$202&$U221,GTYF!$C:$AP,X$201,FALSE) -> 0 | Y221: =VLOOKUP($U$202&$U221,GTYF!$C:$AP,Y$201,FALSE) -> 0 | Z221: =VLOOKUP($U$202&$U221,GTYF!$C:$AP,Z$201,FALSE) -> 0 | AA221: =VLOOKUP($U$202&$U221,GTYF!$C:$AP,AA$201,FALSE) -> 0 | AB221: =VLOOKUP($U$202&$U221,GTYF!$C:$AP,AB$201,FALSE) -> 0 | AC221: =VLOOKUP($U$202&$U221,GTYF!$C:$AP,AC$201,FALSE) -> 0 | AD221: =VLOOKUP($U$202&$U221,GTYF!$C:$AP,AD$201,FALSE) -> 0 | AE221: =VLOOKUP($U$202&$U221,GTYF!$C:$AP,AE$201,FALSE) -> 0 | AF221: =VLOOKUP($U$202&$U221,GTYF!$C:$AP,AF$201,FALSE) -> 0 | AG221: =VLOOKUP($U$202&$U221,GTYF!$C:$AP,AG$201,FALSE) -> 0 | AH221: =VLOOKUP($U$202&$U221,GTYF!$C:$AP,AH$201,FALSE) -> 0 | AI221: =VLOOKUP($U$202&$U221,GTYF!$C:$AP,AI$201,FALSE) -> 0 | AJ221: =VLOOKUP($U$202&$U221,GTYF!$C:$AP,AJ$201,FALSE) -> 0 | AK221: =VLOOKUP($U$202&$U221,GTYF!$C:$AP,AK$201,FALSE) -> 0 | AL221: =VLOOKUP($U$202&$U221,GTYF!$C:$AP,AL$201,FALSE) -> 0 | AM221: =VLOOKUP($U$202&$U221,GTYF!$C:$AP,AM$201,FALSE) -> 0 | AN221: =VLOOKUP($U$202&$U221,GTYF!$C:$AP,AN$201,FALSE) -> 0 | AO221: =VLOOKUP($U$202&$U221,GTYF!$C:$AP,AO$201,FALSE) -> 0 | AP221: =VLOOKUP($U$202&$U221,GTYF!$C:$AP,AP$201,FALSE) -> 0 | AQ221: =VLOOKUP($U$202&$U221,GTYF!$C:$AP,AQ$201,FALSE) -> 0 | AR221: =VLOOKUP($U$202&$U221,GTYF!$C:$AP,AR$201,FALSE) -> 0 | AS221: =VLOOKUP($U$202&$U221,GTYF!$C:$AP,AS$201,FALSE) -> 0 | AT221: =VLOOKUP($U$202&$U221,GTYF!$C:$AP,AT$201,FALSE) -> 0 | AU221: =VLOOKUP($U$202&$U221,GTYF!$C:$AP,AU$201,FALSE) -> 0 | AV221: =VLOOKUP($U$202&$U221,GTYF!$C:$AP,AV$201,FALSE) -> 0 | AW221: =VLOOKUP($U$202&$U221,GTYF!$C:$AP,AW$201,FALSE) -> 0 | AX221: =VLOOKUP($U$202&$U221,GTYF!$C:$AP,AX$201,FALSE) -> 0 | AY221: =VLOOKUP($U$202&$U221,GTYF!$C:$AP,AY$201,FALSE) -> 0 | AZ221: =VLOOKUP($U$202&$U221,GTYF!$C:$AP,AZ$201,FALSE) -> 0
S222: Figure 10a | T222: Prucheraies | U222: (FCTYF_PRU) | V222: =VLOOKUP($U$202&$U222,GTYF!$C:$AP,V$201,FALSE) -> 0 | W222: =VLOOKUP($U$202&$U222,GTYF!$C:$AP,W$201,FALSE) -> 0 | X222: =VLOOKUP($U$202&$U222,GTYF!$C:$AP,X$201,FALSE) -> 0 | Y222: =VLOOKUP($U$202&$U222,GTYF!$C:$AP,Y$201,FALSE) -> 0 | Z222: =VLOOKUP($U$202&$U222,GTYF!$C:$AP,Z$201,FALSE) -> 0 | AA222: =VLOOKUP($U$202&$U222,GTYF!$C:$AP,AA$201,FALSE) -> 0 | AB222: =VLOOKUP($U$202&$U222,GTYF!$C:$AP,AB$201,FALSE) -> 0 | AC222: =VLOOKUP($U$202&$U222,GTYF!$C:$AP,AC$201,FALSE) -> 0 | AD222: =VLOOKUP($U$202&$U222,GTYF!$C:$AP,AD$201,FALSE) -> 0 | AE222: =VLOOKUP($U$202&$U222,GTYF!$C:$AP,AE$201,FALSE) -> 0 | AF222: =VLOOKUP($U$202&$U222,GTYF!$C:$AP,AF$201,FALSE) -> 0 | AG222: =VLOOKUP($U$202&$U222,GTYF!$C:$AP,AG$201,FALSE) -> 0 | AH222: =VLOOKUP($U$202&$U222,GTYF!$C:$AP,AH$201,FALSE) -> 0 | AI222: =VLOOKUP($U$202&$U222,GTYF!$C:$AP,AI$201,FALSE) -> 0 | AJ222: =VLOOKUP($U$202&$U222,GTYF!$C:$AP,AJ$201,FALSE) -> 0 | AK222: =VLOOKUP($U$202&$U222,GTYF!$C:$AP,AK$201,FALSE) -> 0 | AL222: =VLOOKUP($U$202&$U222,GTYF!$C:$AP,AL$201,FALSE) -> 0 | AM222: =VLOOKUP($U$202&$U222,GTYF!$C:$AP,AM$201,FALSE) -> 0 | AN222: =VLOOKUP($U$202&$U222,GTYF!$C:$AP,AN$201,FALSE) -> 0 | AO222: =VLOOKUP($U$202&$U222,GTYF!$C:$AP,AO$201,FALSE) -> 0 | AP222: =VLOOKUP($U$202&$U222,GTYF!$C:$AP,AP$201,FALSE) -> 0 | AQ222: =VLOOKUP($U$202&$U222,GTYF!$C:$AP,AQ$201,FALSE) -> 0 | AR222: =VLOOKUP($U$202&$U222,GTYF!$C:$AP,AR$201,FALSE) -> 0 | AS222: =VLOOKUP($U$202&$U222,GTYF!$C:$AP,AS$201,FALSE) -> 0 | AT222: =VLOOKUP($U$202&$U222,GTYF!$C:$AP,AT$201,FALSE) -> 0 | AU222: =VLOOKUP($U$202&$U222,GTYF!$C:$AP,AU$201,FALSE) -> 0 | AV222: =VLOOKUP($U$202&$U222,GTYF!$C:$AP,AV$201,FALSE) -> 0 | AW222: =VLOOKUP($U$202&$U222,GTYF!$C:$AP,AW$201,FALSE) -> 0 | AX222: =VLOOKUP($U$202&$U222,GTYF!$C:$AP,AX$201,FALSE) -> 0 | AY222: =VLOOKUP($U$202&$U222,GTYF!$C:$AP,AY$201,FALSE) -> 0 | AZ222: =VLOOKUP($U$202&$U222,GTYF!$C:$AP,AZ$201,FALSE) -> 0
S223: Figure 10a | T223: Résineux à feuillus | U223: (FCTYF_RF) | V223: =VLOOKUP($U$202&$U223,GTYF!$C:$AP,V$201,FALSE) -> 37161.3 | W223: =VLOOKUP($U$202&$U223,GTYF!$C:$AP,W$201,FALSE) -> 36475.9 | X223: =VLOOKUP($U$202&$U223,GTYF!$C:$AP,X$201,FALSE) -> 35391.83 | Y223: =VLOOKUP($U$202&$U223,GTYF!$C:$AP,Y$201,FALSE) -> 34688.31 | Z223: =VLOOKUP($U$202&$U223,GTYF!$C:$AP,Z$201,FALSE) -> 34177.39 | AA223: =VLOOKUP($U$202&$U223,GTYF!$C:$AP,AA$201,FALSE) -> 34146.07 | AB223: =VLOOKUP($U$202&$U223,GTYF!$C:$AP,AB$201,FALSE) -> 34141.01 | AC223: =VLOOKUP($U$202&$U223,GTYF!$C:$AP,AC$201,FALSE) -> 34105.36 | AD223: =VLOOKUP($U$202&$U223,GTYF!$C:$AP,AD$201,FALSE) -> 34098.79 | AE223: =VLOOKUP($U$202&$U223,GTYF!$C:$AP,AE$201,FALSE) -> 35283.1 | AF223: =VLOOKUP($U$202&$U223,GTYF!$C:$AP,AF$201,FALSE) -> 36463.21 | AG223: =VLOOKUP($U$202&$U223,GTYF!$C:$AP,AG$201,FALSE) -> 39173.28 | AH223: =VLOOKUP($U$202&$U223,GTYF!$C:$AP,AH$201,FALSE) -> 40012.94 | AI223: =VLOOKUP($U$202&$U223,GTYF!$C:$AP,AI$201,FALSE) -> 39750.02 | AJ223: =VLOOKUP($U$202&$U223,GTYF!$C:$AP,AJ$201,FALSE) -> 40214.03 | AK223: =VLOOKUP($U$202&$U223,GTYF!$C:$AP,AK$201,FALSE) -> 40148.57 | AL223: =VLOOKUP($U$202&$U223,GTYF!$C:$AP,AL$201,FALSE) -> 40059.71 | AM223: =VLOOKUP($U$202&$U223,GTYF!$C:$AP,AM$201,FALSE) -> 40059.71 | AN223: =VLOOKUP($U$202&$U223,GTYF!$C:$AP,AN$201,FALSE) -> 40059.71 | AO223: =VLOOKUP($U$202&$U223,GTYF!$C:$AP,AO$201,FALSE) -> 40059.71 | AP223: =VLOOKUP($U$202&$U223,GTYF!$C:$AP,AP$201,FALSE) -> 40059.71 | AQ223: =VLOOKUP($U$202&$U223,GTYF!$C:$AP,AQ$201,FALSE) -> 39960.11 | AR223: =VLOOKUP($U$202&$U223,GTYF!$C:$AP,AR$201,FALSE) -> 39518.39 | AS223: =VLOOKUP($U$202&$U223,GTYF!$C:$AP,AS$201,FALSE) -> 39583.26 | AT223: =VLOOKUP($U$202&$U223,GTYF!$C:$AP,AT$201,FALSE) -> 39583.26 | AU223: =VLOOKUP($U$202&$U223,GTYF!$C:$AP,AU$201,FALSE) -> 39253.95 | AV223: =VLOOKUP($U$202&$U223,GTYF!$C:$AP,AV$201,FALSE) -> 39853.03 | AW223: =VLOOKUP($U$202&$U223,GTYF!$C:$AP,AW$201,FALSE) -> 40555.13 | AX223: =VLOOKUP($U$202&$U223,GTYF!$C:$AP,AX$201,FALSE) -> 39505.13 | AY223: =VLOOKUP($U$202&$U223,GTYF!$C:$AP,AY$201,FALSE) -> 38844 | AZ223: =VLOOKUP($U$202&$U223,GTYF!$C:$AP,AZ$201,FALSE) -> 39265.8
S224: Figure 10a | T224: Sapinières | U224: (FCTYF_SAB) | V224: =VLOOKUP($U$202&$U224,GTYF!$C:$AP,V$201,FALSE) -> 4008.7 | W224: =VLOOKUP($U$202&$U224,GTYF!$C:$AP,W$201,FALSE) -> 4007.31 | X224: =VLOOKUP($U$202&$U224,GTYF!$C:$AP,X$201,FALSE) -> 3969.46 | Y224: =VLOOKUP($U$202&$U224,GTYF!$C:$AP,Y$201,FALSE) -> 3969.46 | Z224: =VLOOKUP($U$202&$U224,GTYF!$C:$AP,Z$201,FALSE) -> 3803.64 | AA224: =VLOOKUP($U$202&$U224,GTYF!$C:$AP,AA$201,FALSE) -> 3790.62 | AB224: =VLOOKUP($U$202&$U224,GTYF!$C:$AP,AB$201,FALSE) -> 3653 | AC224: =VLOOKUP($U$202&$U224,GTYF!$C:$AP,AC$201,FALSE) -> 3486.52 | AD224: =VLOOKUP($U$202&$U224,GTYF!$C:$AP,AD$201,FALSE) -> 3374.62 | AE224: =VLOOKUP($U$202&$U224,GTYF!$C:$AP,AE$201,FALSE) -> 3362.05 | AF224: =VLOOKUP($U$202&$U224,GTYF!$C:$AP,AF$201,FALSE) -> 3358.7 | AG224: =VLOOKUP($U$202&$U224,GTYF!$C:$AP,AG$201,FALSE) -> 3358.7 | AH224: =VLOOKUP($U$202&$U224,GTYF!$C:$AP,AH$201,FALSE) -> 3358.7 | AI224: =VLOOKUP($U$202&$U224,GTYF!$C:$AP,AI$201,FALSE) -> 3358.7 | AJ224: =VLOOKUP($U$202&$U224,GTYF!$C:$AP,AJ$201,FALSE) -> 3358.7 | AK224: =VLOOKUP($U$202&$U224,GTYF!$C:$AP,AK$201,FALSE) -> 3358.7 | AL224: =VLOOKUP($U$202&$U224,GTYF!$C:$AP,AL$201,FALSE) -> 3358.7 | AM224: =VLOOKUP($U$202&$U224,GTYF!$C:$AP,AM$201,FALSE) -> 3358.7 | AN224: =VLOOKUP($U$202&$U224,GTYF!$C:$AP,AN$201,FALSE) -> 3358.7 | AO224: =VLOOKUP($U$202&$U224,GTYF!$C:$AP,AO$201,FALSE) -> 3358.7 | AP224: =VLOOKUP($U$202&$U224,GTYF!$C:$AP,AP$201,FALSE) -> 3358.7 | AQ224: =VLOOKUP($U$202&$U224,GTYF!$C:$AP,AQ$201,FALSE) -> 3458.3 | AR224: =VLOOKUP($U$202&$U224,GTYF!$C:$AP,AR$201,FALSE) -> 3900.03 | AS224: =VLOOKUP($U$202&$U224,GTYF!$C:$AP,AS$201,FALSE) -> 3939.12 | AT224: =VLOOKUP($U$202&$U224,GTYF!$C:$AP,AT$201,FALSE) -> 3939.12 | AU224: =VLOOKUP($U$202&$U224,GTYF!$C:$AP,AU$201,FALSE) -> 4268.43 | AV224: =VLOOKUP($U$202&$U224,GTYF!$C:$AP,AV$201,FALSE) -> 4268.43 | AW224: =VLOOKUP($U$202&$U224,GTYF!$C:$AP,AW$201,FALSE) -> 4563.19 | AX224: =VLOOKUP($U$202&$U224,GTYF!$C:$AP,AX$201,FALSE) -> 5613.19 | AY224: =VLOOKUP($U$202&$U224,GTYF!$C:$AP,AY$201,FALSE) -> 5923.67 | AZ224: =VLOOKUP($U$202&$U224,GTYF!$C:$AP,AZ$201,FALSE) -> 5122.84
B225: * Attention, étant donné que le graphique fait appel aux GTYF, certains TYF ne paraissent pas dans les bons types de couvert (ex: EoRx, PbFx, PuFx, ToFx) | S225: Figure 10a | T225: Cédrières | U225: (FCTYF_THO) | V225: =VLOOKUP($U$202&$U225,GTYF!$C:$AP,V$201,FALSE) -> 0 | W225: =VLOOKUP($U$202&$U225,GTYF!$C:$AP,W$201,FALSE) -> 0 | X225: =VLOOKUP($U$202&$U225,GTYF!$C:$AP,X$201,FALSE) -> 0 | Y225: =VLOOKUP($U$202&$U225,GTYF!$C:$AP,Y$201,FALSE) -> 0 | Z225: =VLOOKUP($U$202&$U225,GTYF!$C:$AP,Z$201,FALSE) -> 0 | AA225: =VLOOKUP($U$202&$U225,GTYF!$C:$AP,AA$201,FALSE) -> 0 | AB225: =VLOOKUP($U$202&$U225,GTYF!$C:$AP,AB$201,FALSE) -> 0 | AC225: =VLOOKUP($U$202&$U225,GTYF!$C:$AP,AC$201,FALSE) -> 0 | AD225: =VLOOKUP($U$202&$U225,GTYF!$C:$AP,AD$201,FALSE) -> 0 | AE225: =VLOOKUP($U$202&$U225,GTYF!$C:$AP,AE$201,FALSE) -> 0 | AF225: =VLOOKUP($U$202&$U225,GTYF!$C:$AP,AF$201,FALSE) -> 0 | AG225: =VLOOKUP($U$202&$U225,GTYF!$C:$AP,AG$201,FALSE) -> 0 | AH225: =VLOOKUP($U$202&$U225,GTYF!$C:$AP,AH$201,FALSE) -> 0 | AI225: =VLOOKUP($U$202&$U225,GTYF!$C:$AP,AI$201,FALSE) -> 0 | AJ225: =VLOOKUP($U$202&$U225,GTYF!$C:$AP,AJ$201,FALSE) -> 0 | AK225: =VLOOKUP($U$202&$U225,GTYF!$C:$AP,AK$201,FALSE) -> 0 | AL225: =VLOOKUP($U$202&$U225,GTYF!$C:$AP,AL$201,FALSE) -> 0 | AM225: =VLOOKUP($U$202&$U225,GTYF!$C:$AP,AM$201,FALSE) -> 0 | AN225: =VLOOKUP($U$202&$U225,GTYF!$C:$AP,AN$201,FALSE) -> 0 | AO225: =VLOOKUP($U$202&$U225,GTYF!$C:$AP,AO$201,FALSE) -> 0 | AP225: =VLOOKUP($U$202&$U225,GTYF!$C:$AP,AP$201,FALSE) -> 0 | AQ225: =VLOOKUP($U$202&$U225,GTYF!$C:$AP,AQ$201,FALSE) -> 0 | AR225: =VLOOKUP($U$202&$U225,GTYF!$C:$AP,AR$201,FALSE) -> 0 | AS225: =VLOOKUP($U$202&$U225,GTYF!$C:$AP,AS$201,FALSE) -> 0 | AT225: =VLOOKUP($U$202&$U225,GTYF!$C:$AP,AT$201,FALSE) -> 0 | AU225: =VLOOKUP($U$202&$U225,GTYF!$C:$AP,AU$201,FALSE) -> 0 | AV225: =VLOOKUP($U$202&$U225,GTYF!$C:$AP,AV$201,FALSE) -> 0 | AW225: =VLOOKUP($U$202&$U225,GTYF!$C:$AP,AW$201,FALSE) -> 0 | AX225: =VLOOKUP($U$202&$U225,GTYF!$C:$AP,AX$201,FALSE) -> 0 | AY225: =VLOOKUP($U$202&$U225,GTYF!$C:$AP,AY$201,FALSE) -> 0 | AZ225: =VLOOKUP($U$202&$U225,GTYF!$C:$AP,AZ$201,FALSE) -> 0
U228: Colonne | V228: 6 | W228: 7 | X228: 8 | Y228: 9 | Z228: 10 | AA228: 11 | AB228: 12 | AC228: 13 | AD228: 14 | AE228: 15 | AF228: 16 | AG228: 17 | AH228: 18 | AI228: 19 | AJ228: 20 | AK228: 21 | AL228: 22 | AM228: 23 | AN228: 24 | AO228: 25 | AP228: 26 | AQ228: 27 | AR228: 28 | AS228: 29 | AT228: 30 | AU228: 31 | AV228: 32 | AW228: 33 | AX228: 34 | AY228: 35 | AZ228: 36
B229: Figure 10c Évolution des superficies de hêtraie et d'érablière à hêtre | U229: Période | V229: P0 | W229: P1 | X229: P2 | Y229: P3 | Z229: P4 | AA229: P5 | AB229: P6 | AC229: P7 | AD229: P8 | AE229: P9 | AF229: P10 | AG229: P11 | AH229: P12 | AI229: P13 | AJ229: P14 | AK229: P15 | AL229: P16 | AM229: P17 | AN229: P18 | AO229: P19 | AP229: P20 | AQ229: P21 | AR229: P22 | AS229: P23 | AT229: P24 | AU229: P25 | AV229: P26 | AW229: P27 | AX229: P28 | AY229: P29 | AZ229: P30
U230: Axe des "X" Fin de période | V230: 2018 | W230: 2023 | X230: 2028 | Y230: 2033 | Z230: 2038 | AA230: 2043 | AB230: 2048 | AC230: 2053 | AD230: 2058 | AE230: 2063 | AF230: 2068 | AG230: 2073 | AH230: 2078 | AI230: 2083 | AJ230: 2088 | AK230: 2093 | AL230: 2098 | AM230: 2103 | AN230: 2108 | AO230: 2113 | AP230: 2118 | AQ230: 2123 | AR230: 2128 | AS230: 2133 | AT230: 2138 | AU230: 2143 | AV230: 2148 | AW230: 2153 | AX230: 2158 | AY230: 2163 | AZ230: 2168
S231: =LEFT(B$229,10) -> Figure 10c | T231: Hêtraie | U231: OSUPESHG_FX | V231: =VLOOKUP($U231,Output!$C:$AQ,V$228,FALSE) ->  | W231: =VLOOKUP($U231,Output!$C:$AQ,W$228,FALSE) ->  | X231: =VLOOKUP($U231,Output!$C:$AQ,X$228,FALSE) ->  | Y231: =VLOOKUP($U231,Output!$C:$AQ,Y$228,FALSE) ->  | Z231: =VLOOKUP($U231,Output!$C:$AQ,Z$228,FALSE) ->  | AA231: =VLOOKUP($U231,Output!$C:$AQ,AA$228,FALSE) ->  | AB231: =VLOOKUP($U231,Output!$C:$AQ,AB$228,FALSE) ->  | AC231: =VLOOKUP($U231,Output!$C:$AQ,AC$228,FALSE) ->  | AD231: =VLOOKUP($U231,Output!$C:$AQ,AD$228,FALSE) ->  | AE231: =VLOOKUP($U231,Output!$C:$AQ,AE$228,FALSE) ->  | AF231: =VLOOKUP($U231,Output!$C:$AQ,AF$228,FALSE) ->  | AG231: =VLOOKUP($U231,Output!$C:$AQ,AG$228,FALSE) ->  | AH231: =VLOOKUP($U231,Output!$C:$AQ,AH$228,FALSE) ->  | AI231: =VLOOKUP($U231,Output!$C:$AQ,AI$228,FALSE) ->  | AJ231: =VLOOKUP($U231,Output!$C:$AQ,AJ$228,FALSE) ->  | AK231: =VLOOKUP($U231,Output!$C:$AQ,AK$228,FALSE) ->  | AL231: =VLOOKUP($U231,Output!$C:$AQ,AL$228,FALSE) ->  | AM231: =VLOOKUP($U231,Output!$C:$AQ,AM$228,FALSE) ->  | AN231: =VLOOKUP($U231,Output!$C:$AQ,AN$228,FALSE) ->  | AO231: =VLOOKUP($U231,Output!$C:$AQ,AO$228,FALSE) ->  | AP231: =VLOOKUP($U231,Output!$C:$AQ,AP$228,FALSE) ->  | AQ231: =VLOOKUP($U231,Output!$C:$AQ,AQ$228,FALSE) ->  | AR231: =VLOOKUP($U231,Output!$C:$AQ,AR$228,FALSE) ->  | AS231: =VLOOKUP($U231,Output!$C:$AQ,AS$228,FALSE) ->  | AT231: =VLOOKUP($U231,Output!$C:$AQ,AT$228,FALSE) ->  | AU231: =VLOOKUP($U231,Output!$C:$AQ,AU$228,FALSE) ->  | AV231: =VLOOKUP($U231,Output!$C:$AQ,AV$228,FALSE) ->  | AW231: =VLOOKUP($U231,Output!$C:$AQ,AW$228,FALSE) ->  | AX231: =VLOOKUP($U231,Output!$C:$AQ,AX$228,FALSE) ->  | AY231: =VLOOKUP($U231,Output!$C:$AQ,AY$228,FALSE) ->  | AZ231: =VLOOKUP($U231,Output!$C:$AQ,AZ$228,FALSE) -> 
S232: =LEFT(B$229,10) -> Figure 10c | T232: Érablière à hêtre | U232: OSUPESHG | V232: =VLOOKUP($U232,Output!$C:$AQ,V$228,FALSE) ->  | W232: =VLOOKUP($U232,Output!$C:$AQ,W$228,FALSE) ->  | X232: =VLOOKUP($U232,Output!$C:$AQ,X$228,FALSE) ->  | Y232: =VLOOKUP($U232,Output!$C:$AQ,Y$228,FALSE) ->  | Z232: =VLOOKUP($U232,Output!$C:$AQ,Z$228,FALSE) ->  | AA232: =VLOOKUP($U232,Output!$C:$AQ,AA$228,FALSE) ->  | AB232: =VLOOKUP($U232,Output!$C:$AQ,AB$228,FALSE) ->  | AC232: =VLOOKUP($U232,Output!$C:$AQ,AC$228,FALSE) ->  | AD232: =VLOOKUP($U232,Output!$C:$AQ,AD$228,FALSE) ->  | AE232: =VLOOKUP($U232,Output!$C:$AQ,AE$228,FALSE) ->  | AF232: =VLOOKUP($U232,Output!$C:$AQ,AF$228,FALSE) ->  | AG232: =VLOOKUP($U232,Output!$C:$AQ,AG$228,FALSE) ->  | AH232: =VLOOKUP($U232,Output!$C:$AQ,AH$228,FALSE) ->  | AI232: =VLOOKUP($U232,Output!$C:$AQ,AI$228,FALSE) ->  | AJ232: =VLOOKUP($U232,Output!$C:$AQ,AJ$228,FALSE) ->  | AK232: =VLOOKUP($U232,Output!$C:$AQ,AK$228,FALSE) ->  | AL232: =VLOOKUP($U232,Output!$C:$AQ,AL$228,FALSE) ->  | AM232: =VLOOKUP($U232,Output!$C:$AQ,AM$228,FALSE) ->  | AN232: =VLOOKUP($U232,Output!$C:$AQ,AN$228,FALSE) ->  | AO232: =VLOOKUP($U232,Output!$C:$AQ,AO$228,FALSE) ->  | AP232: =VLOOKUP($U232,Output!$C:$AQ,AP$228,FALSE) ->  | AQ232: =VLOOKUP($U232,Output!$C:$AQ,AQ$228,FALSE) ->  | AR232: =VLOOKUP($U232,Output!$C:$AQ,AR$228,FALSE) ->  | AS232: =VLOOKUP($U232,Output!$C:$AQ,AS$228,FALSE) ->  | AT232: =VLOOKUP($U232,Output!$C:$AQ,AT$228,FALSE) ->  | AU232: =VLOOKUP($U232,Output!$C:$AQ,AU$228,FALSE) ->  | AV232: =VLOOKUP($U232,Output!$C:$AQ,AV$228,FALSE) ->  | AW232: =VLOOKUP($U232,Output!$C:$AQ,AW$228,FALSE) ->  | AX232: =VLOOKUP($U232,Output!$C:$AQ,AX$228,FALSE) ->  | AY232: =VLOOKUP($U232,Output!$C:$AQ,AY$228,FALSE) ->  | AZ232: =VLOOKUP($U232,Output!$C:$AQ,AZ$228,FALSE) -> 
S233: =LEFT(B$229,10) -> Figure 10c | T233: Total | U233: Total | V233: =SUM(V231:V232) ->  | W233: =SUM(W231:W232) -> 
B255: Figure 11b Évolution du volume de sapin et d'épinettes sur pied dans la composante SEPM
U262: Colonne | V262: 6 | W262: 7 | X262: 8 | Y262: 9 | Z262: 10 | AA262: 11 | AB262: 12 | AC262: 13 | AD262: 14 | AE262: 15 | AF262: 16 | AG262: 17 | AH262: 18 | AI262: 19 | AJ262: 20 | AK262: 21 | AL262: 22 | AM262: 23 | AN262: 24 | AO262: 25 | AP262: 26 | AQ262: 27 | AR262: 28 | AS262: 29 | AT262: 30 | AU262: 31 | AV262: 32 | AW262: 33 | AX262: 34 | AY262: 35 | AZ262: 36
U263: Axe des "X" Fin de période | V263: 2018 | W263: 2023 | X263: 2028 | Y263: 2033 | Z263: 2038 | AA263: 2043 | AB263: 2048 | AC263: 2053 | AD263: 2058 | AE263: 2063 | AF263: 2068 | AG263: 2073 | AH263: 2078 | AI263: 2083 | AJ263: 2088 | AK263: 2093 | AL263: 2098 | AM263: 2103 | AN263: 2108 | AO263: 2113 | AP263: 2118 | AQ263: 2123 | AR263: 2128 | AS263: 2133 | AT263: 2138 | AU263: 2143 | AV263: 2148 | AW263: 2153 | AX263: 2158 | AY263: 2163 | AZ263: 2168
S264: =LEFT(B$255,10) -> Figure 11b | U264: Période | V264: P0 | W264: P1 | X264: P2 | Y264: P3 | Z264: P4 | AA264: P5 | AB264: P6 | AC264: P7 | AD264: P8 | AE264: P9 | AF264: P10 | AG264: P11 | AH264: P12 | AI264: P13 | AJ264: P14 | AK264: P15 | AL264: P16 | AM264: P17 | AN264: P18 | AO264: P19 | AP264: P20 | AQ264: P21 | AR264: P22 | AS264: P23 | AT264: P24 | AU264: P25 | AV264: P26 | AW264: P27 | AX264: P28 | AY264: P29 | AZ264: P30
S265: Figure 11b | T265: Légende | Y265: PERIOD3 | Z265: PERIOD4 | AA265: PERIOD5 | AB265: PERIOD6 | AC265: PERIOD7 | AD265: PERIOD8 | AE265: PERIOD9 | AF265: PERIOD10 | AG265: PERIOD11 | AH265: PERIOD12 | AI265: PERIOD13 | AJ265: PERIOD14 | AK265: PERIOD15 | AL265: PERIOD16 | AM265: PERIOD17 | AN265: PERIOD18 | AO265: PERIOD19 | AP265: PERIOD20 | AQ265: PERIOD21 | AR265: PERIOD22 | AS265: PERIOD23 | AT265: PERIOD24 | AU265: PERIOD25 | AV265: PERIOD26 | AW265: PERIOD27 | AX265: PERIOD28 | AY265: PERIOD29 | AZ265: PERIOD30
S266: Figure 11b | T266: Volume Sapin | U266: OVOLSABPIEDINC(FCTYF_SEPM) | V266: =VLOOKUP($U266,GTYF!$C:$AL,Figures!V$262,FALSE) -> 695710.33 | W266: =VLOOKUP($U266,GTYF!$C:$AL,Figures!W$262,FALSE) -> 696165.6 | X266: =VLOOKUP($U266,GTYF!$C:$AL,Figures!X$262,FALSE) -> 650960.29 | Y266: =VLOOKUP($U266,GTYF!$C:$AL,Figures!Y$262,FALSE) -> 670106.84 | Z266: =VLOOKUP($U266,GTYF!$C:$AL,Figures!Z$262,FALSE) -> 651640.35 | AA266: =VLOOKUP($U266,GTYF!$C:$AL,Figures!AA$262,FALSE) -> 666377.48 | AB266: =VLOOKUP($U266,GTYF!$C:$AL,Figures!AB$262,FALSE) -> 583235.64 | AC266: =VLOOKUP($U266,GTYF!$C:$AL,Figures!AC$262,FALSE) -> 495946.5 | AD266: =VLOOKUP($U266,GTYF!$C:$AL,Figures!AD$262,FALSE) -> 473132.13 | AE266: =VLOOKUP($U266,GTYF!$C:$AL,Figures!AE$262,FALSE) -> 396641.66 | AF266: =VLOOKUP($U266,GTYF!$C:$AL,Figures!AF$262,FALSE) -> 363084.74 | AG266: =VLOOKUP($U266,GTYF!$C:$AL,Figures!AG$262,FALSE) -> 376942.21 | AH266: =VLOOKUP($U266,GTYF!$C:$AL,Figures!AH$262,FALSE) -> 404902.91 | AI266: =VLOOKUP($U266,GTYF!$C:$AL,Figures!AI$262,FALSE) -> 446482.62 | AJ266: =VLOOKUP($U266,GTYF!$C:$AL,Figures!AJ$262,FALSE) -> 396616.75 | AK266: =VLOOKUP($U266,GTYF!$C:$AL,Figures!AK$262,FALSE) -> 423272.28 | AL266: =VLOOKUP($U266,GTYF!$C:$AL,Figures!AL$262,FALSE) -> 425357.59 | AM266: =VLOOKUP($U266,GTYF!$C:$AL,Figures!AM$262,FALSE) -> 438038.41 | AN266: =VLOOKUP($U266,GTYF!$C:$AL,Figures!AN$262,FALSE) -> 368442.16 | AO266: =VLOOKUP($U266,GTYF!$C:$AL,Figures!AO$262,FALSE) -> 389730.73 | AP266: =VLOOKUP($U266,GTYF!$C:$AL,Figures!AP$262,FALSE) -> 368901.58 | AQ266: =VLOOKUP($U266,GTYF!$C:$AL,Figures!AQ$262,FALSE) -> 371298.34 | AR266: =VLOOKUP($U266,GTYF!$C:$AL,Figures!AR$262,FALSE) -> 410032.89 | AS266: =VLOOKUP($U266,GTYF!$C:$AL,Figures!AS$262,FALSE) -> 437938.59 | AT266: =VLOOKUP($U266,GTYF!$C:$AL,Figures!AT$262,FALSE) -> 502557.91 | AU266: =VLOOKUP($U266,GTYF!$C:$AL,Figures!AU$262,FALSE) -> 568983.76 | AV266: =VLOOKUP($U266,GTYF!$C:$AL,Figures!AV$262,FALSE) -> 572788.58 | AW266: =VLOOKUP($U266,GTYF!$C:$AL,Figures!AW$262,FALSE) -> 526698.36 | AX266: =VLOOKUP($U266,GTYF!$C:$AL,Figures!AX$262,FALSE) -> 532184.23 | AY266: =VLOOKUP($U266,GTYF!$C:$AL,Figures!AY$262,FALSE) -> 558844.73 | AZ266: =VLOOKUP($U266,GTYF!$C:$AL,Figures!AZ$262,FALSE) -> 409409.07
S267: Figure 11b | T267: Volume Épinettes | U267: OVOLGEPXPIEDINC(FCTYF_SEPM) | V267: =VLOOKUP($U267,GTYF!$C:$AL,Figures!V$262,FALSE) -> 8848152.43 | W267: =VLOOKUP($U267,GTYF!$C:$AL,Figures!W$262,FALSE) -> 8268073.12 | X267: =VLOOKUP($U267,GTYF!$C:$AL,Figures!X$262,FALSE) -> 7845833.91 | Y267: =VLOOKUP($U267,GTYF!$C:$AL,Figures!Y$262,FALSE) -> 7470335.36 | Z267: =VLOOKUP($U267,GTYF!$C:$AL,Figures!Z$262,FALSE) -> 7183452.45 | AA267: =VLOOKUP($U267,GTYF!$C:$AL,Figures!AA$262,FALSE) -> 7284126.15 | AB267: =VLOOKUP($U267,GTYF!$C:$AL,Figures!AB$262,FALSE) -> 7382474.87 | AC267: =VLOOKUP($U267,GTYF!$C:$AL,Figures!AC$262,FALSE) -> 7362268.59 | AD267: =VLOOKUP($U267,GTYF!$C:$AL,Figures!AD$262,FALSE) -> 7640111.95 | AE267: =VLOOKUP($U267,GTYF!$C:$AL,Figures!AE$262,FALSE) -> 7765441.92 | AF267: =VLOOKUP($U267,GTYF!$C:$AL,Figures!AF$262,FALSE) -> 8069132.38 | AG267: =VLOOKUP($U267,GTYF!$C:$AL,Figures!AG$262,FALSE) -> 8198742.99 | AH267: =VLOOKUP($U267,GTYF!$C:$AL,Figures!AH$262,FALSE) -> 8570780.34 | AI267: =VLOOKUP($U267,GTYF!$C:$AL,Figures!AI$262,FALSE) -> 8404147.97 | AJ267: =VLOOKUP($U267,GTYF!$C:$AL,Figures!AJ$262,FALSE) -> 8452206.2 | AK267: =VLOOKUP($U267,GTYF!$C:$AL,Figures!AK$262,FALSE) -> 8112422.5 | AL267: =VLOOKUP($U267,GTYF!$C:$AL,Figures!AL$262,FALSE) -> 7748576.78 | AM267: =VLOOKUP($U267,GTYF!$C:$AL,Figures!AM$262,FALSE) -> 7661490.34 | AN267: =VLOOKUP($U267,GTYF!$C:$AL,Figures!AN$262,FALSE) -> 7568093.58 | AO267: =VLOOKUP($U267,GTYF!$C:$AL,Figures!AO$262,FALSE) -> 7617422.87 | AP267: =VLOOKUP($U267,GTYF!$C:$AL,Figures!AP$262,FALSE) -> 7504108.06 | AQ267: =VLOOKUP($U267,GTYF!$C:$AL,Figures!AQ$262,FALSE) -> 7632046.58 | AR267: =VLOOKUP($U267,GTYF!$C:$AL,Figures!AR$262,FALSE) -> 7546812.53 | AS267: =VLOOKUP($U267,GTYF!$C:$AL,Figures!AS$262,FALSE) -> 7673327.68 | AT267: =VLOOKUP($U267,GTYF!$C:$AL,Figures!AT$262,FALSE) -> 7977307.52 | AU267: =VLOOKUP($U267,GTYF!$C:$AL,Figures!AU$262,FALSE) -> 8206347.07 | AV267: =VLOOKUP($U267,GTYF!$C:$AL,Figures!AV$262,FALSE) -> 7883350.06 | AW267: =VLOOKUP($U267,GTYF!$C:$AL,Figures!AW$262,FALSE) -> 7964489.55 | AX267: =VLOOKUP($U267,GTYF!$C:$AL,Figures!AX$262,FALSE) -> 7770587.49 | AY267: =VLOOKUP($U267,GTYF!$C:$AL,Figures!AY$262,FALSE) -> 7496257.73 | AZ267: =VLOOKUP($U267,GTYF!$C:$AL,Figures!AZ$262,FALSE) -> 7418028.63
S268: Figure 11b
S269: Figure 11b | T269: SEPM sur pied | U269: OVOLGSEPMPIEDINC(FCTYF_SEPM) | V269: =VLOOKUP($U269,GTYF!$C:$AL,Figures!V$262,FALSE) -> 11586878.4 | W269: =VLOOKUP($U269,GTYF!$C:$AL,Figures!W$262,FALSE) -> 11081337.57 | X269: =VLOOKUP($U269,GTYF!$C:$AL,Figures!X$262,FALSE) -> 10768801.63 | Y269: =VLOOKUP($U269,GTYF!$C:$AL,Figures!Y$262,FALSE) -> 10470231.16 | Z269: =VLOOKUP($U269,GTYF!$C:$AL,Figures!Z$262,FALSE) -> 10436928.1 | AA269: =VLOOKUP($U269,GTYF!$C:$AL,Figures!AA$262,FALSE) -> 10562661.54 | AB269: =VLOOKUP($U269,GTYF!$C:$AL,Figures!AB$262,FALSE) -> 10822479.86 | AC269: =VLOOKUP($U269,GTYF!$C:$AL,Figures!AC$262,FALSE) -> 10931020.04 | AD269: =VLOOKUP($U269,GTYF!$C:$AL,Figures!AD$262,FALSE) -> 11073247.65 | AE269: =VLOOKUP($U269,GTYF!$C:$AL,Figures!AE$262,FALSE) -> 11218608.11 | AF269: =VLOOKUP($U269,GTYF!$C:$AL,Figures!AF$262,FALSE) -> 11433251.88 | AG269: =VLOOKUP($U269,GTYF!$C:$AL,Figures!AG$262,FALSE) -> 11536073.48 | AH269: =VLOOKUP($U269,GTYF!$C:$AL,Figures!AH$262,FALSE) -> 11855701.7 | AI269: =VLOOKUP($U269,GTYF!$C:$AL,Figures!AI$262,FALSE) -> 12129819.61 | AJ269: =VLOOKUP($U269,GTYF!$C:$AL,Figures!AJ$262,FALSE) -> 12197855.65 | AK269: =VLOOKUP($U269,GTYF!$C:$AL,Figures!AK$262,FALSE) -> 12351318.99 | AL269: =VLOOKUP($U269,GTYF!$C:$AL,Figures!AL$262,FALSE) -> 12328062.55 | AM269: =VLOOKUP($U269,GTYF!$C:$AL,Figures!AM$262,FALSE) -> 12456247.83 | AN269: =VLOOKUP($U269,GTYF!$C:$AL,Figures!AN$262,FALSE) -> 12388879.18 | AO269: =VLOOKUP($U269,GTYF!$C:$AL,Figures!AO$262,FALSE) -> 12258814.77 | AP269: =VLOOKUP($U269,GTYF!$C:$AL,Figures!AP$262,FALSE) -> 12189841.5 | AQ269: =VLOOKUP($U269,GTYF!$C:$AL,Figures!AQ$262,FALSE) -> 12143763.35 | AR269: =VLOOKUP($U269,GTYF!$C:$AL,Figures!AR$262,FALSE) -> 11984602.36 | AS269: =VLOOKUP($U269,GTYF!$C:$AL,Figures!AS$262,FALSE) -> 11882335.73 | AT269: =VLOOKUP($U269,GTYF!$C:$AL,Figures!AT$262,FALSE) -> 12057064.36 | AU269: =VLOOKUP($U269,GTYF!$C:$AL,Figures!AU$262,FALSE) -> 12169318.41 | AV269: =VLOOKUP($U269,GTYF!$C:$AL,Figures!AV$262,FALSE) -> 12338460.52 | AW269: =VLOOKUP($U269,GTYF!$C:$AL,Figures!AW$262,FALSE) -> 12394934.97 | AX269: =VLOOKUP($U269,GTYF!$C:$AL,Figures!AX$262,FALSE) -> 12476561.63 | AY269: =VLOOKUP($U269,GTYF!$C:$AL,Figures!AY$262,FALSE) -> 12571274.67 | AZ269: =VLOOKUP($U269,GTYF!$C:$AL,Figures!AZ$262,FALSE) -> 12590423.67
S270: Figure 11b
S271: Figure 11b | T271: % Sapin | V271: =IF(ISERROR(V266),0,V266/V269) -> 0.06004294737 | W271: 0.06282324635 | X271: 0.06044872144 | Y271: 0.06400115048 | Z271: 0.06243602943 | AA271: 0.06308802734 | AB271: 0.05389112732 | AC271: 0.04537055995 | AD271: 0.04272749467 | AE271: 0.03535569262 | AF271: 0.03175690904 | AG271: 0.03267508747 | AH271: 0.03415258921 | AI271: 0.03680867765 | AJ271: 0.03251528477 | AK271: 0.03426939911 | AL271: 0.03450319856 | AM271: 0.03516616047 | AN271: 0.02973974923 | AO271: 0.03179187689 | AP271: 0.03026303336 | AQ271: 0.03057522856 | AR271: 0.03421330785 | AS271: 0.03685627136 | AT271: 0.04168161461 | AU271: 0.04675559804 | AV271: 0.04642301842 | AW271: 0.04249303133 | AX271: 0.04265471897 | AY271: 0.04445410228 | AZ271: 0.03251749748
S272: Figure 11b | T272: % Épinettes | V272: =IF(ISERROR(V267),0,V267/V269) -> 0.7636355647 | W272: =IF(ISERROR(W267),0,W267/W269) -> 0.7461259138 | X272: 0.7285707528 | Y272: 0.7134833268 | Z272: 0.6882726777 | AA272: 0.6896108639 | AB272: 0.6821426296 | AC272: 0.6735207294 | AD272: 0.6899612644 | AE272: 0.6921929926 | AF272: 0.7057600466 | AG272: 0.7107048169 | AH272: 0.7229247629 | AI272: 0.6928502022 | AJ272: 0.6929255799 | AK272: 0.6568061684 | AL272: 0.6285315919 | AM272: 0.6150720863 | AN272: 0.6108779874 | AO272: 0.6213833077 | AP272: 0.6156034154 | AQ272: 0.6284745807 | AR272: 0.6297090469 | AS272: 0.6457760372 | AT272: 0.6616293388 | AU272: 0.6743473047 | AV272: 0.6389249329 | AW272: 0.6425600109 | AX272: 0.6228148203 | AY272: 0.5963005285 | AZ272: 0.5891802234
S273: Figure 11b | T273: % Volume autre | V273: =1-(V272+V271) -> 0.1763214879 | W273: 0.1910508399 | X273: 0.2109805258 | Y273: 0.2225155228 | Z273: 0.2492912929 | AA273: 0.2473011087 | AB273: 0.2639662431 | AC273: 0.2811087107 | AD273: 0.2673112409 | AE273: 0.2724513148 | AF273: 0.2624830443 | AG273: 0.2566200957 | AH273: 0.2429226479 | AI273: 0.2703411201 | AJ273: 0.2745591353 | AK273: 0.3089244325 | AL273: 0.3369652095 | AM273: 0.3497617533 | AN273: 0.3593822633 | AO273: 0.3468248154 | AP273: 0.3541335513 | AQ273: 0.3409501907 | AR273: 0.3360776452 | AS273: 0.3173676915 | AT273: 0.2966890466 | AU273: 0.2788970972 | AV273: 0.3146520487 | AW273: 0.3149469577 | AX273: 0.3345304607 | AY273: 0.3592453692 | AZ273: 0.3783022792
B278: Figure 14 Indicateur de productivité
... 127 more rows

Sheet UTA
M1: Jeune forêt | R1: Niveau d'altération des vieilles forêts | W1: Niveau d'altération combiné | AA1: Info à récupérer par le SSP Niveau d'altération des vieilles forêts
A2: Inscrire la liste des numéros d'UTA de l'UA: | B2: VieuxAlerte (%) | C2: VieuxAccept (%) | D2: RegeAlerte (%) | E2: RegeAccept (%) | G2: VieuxAlerte (ha) | H2: VieuxAccept (ha) | I2: RegeAlerte (ha) | J2: RegeAccept (ha) | K2: SupUTA | M2: OSUPJEUNEREGECO PERIOD1 (%) | N2: État Jeune 2023 | O2: OSUPJEUNEREGECO PERIOD6 (%) | P2: État Jeune 2048 | R2: OSUPVIEUXTOTREGECO PERIOD1 (%) | S2: État Vielle 2023 | T2: OSUPVIEUXTOTREGECO PERIOD6 (%) | U2: État Vielle 2048 | W2: UTA | X2: 2023 | Y2: 2048 | AA2: UA | AB2: UTA | AC2: 2023 | AD2: 2048 | AE2: Mode de répartition spatiale | AP2: Mode de répartition spatiale
A3: UTA1 | B3: =ROUND(G3/$K3,3) -> 0.147 | C3: =ROUND(H3/$K3,3) -> 0.245 | D3: =ROUND(I3/$K3,3) -> 0.35 | E3: =ROUND(J3/$K3,3) -> 0.25 | G3: =VLOOKUP(CONCATENATE("OSUPVIEUXALERTEREGECO_"&A3),Output!$C:$AQ,6,FALSE) -> 20631.99 | H3: =VLOOKUP(CONCATENATE("OSUPVIEUXACCEPTREGECO_"&A3),Output!$C:$AQ,6,FALSE) -> 34386.66 | I3: =VLOOKUP(CONCATENATE("OSUPJEUNEALERTEREGECO_"&A3),Output!$C:$AQ,6,FALSE) -> 49123.79 | J3: =VLOOKUP(CONCATENATE("OSUPJEUNEACCEPTREGECO_"&A3),Output!$C:$AQ,6,FALSE) -> 35088.43 | K3: =VLOOKUP(CONCATENATE("OSUPREGECO_"&A3),Output!$C:$AQ,6,FALSE) -> 140353.7 | M3: =ROUND(VLOOKUP("OSUPJEUNEREGECO_"&A3,Output!$C:$AQ,7,FALSE)/VLOOKUP("OSUPREGECO_"&A3,Output!$C:$AQ,6,FALSE),3) -> 0.126 | N3: =IF(M3<=$E3,"Faible",IF(M3<$D3,"Modéré","Supérieur")) -> Faible | O3: =ROUND(VLOOKUP("OSUPJEUNEREGECO_"&$A3,Output!$C:$AQ,12,FALSE)/VLOOKUP("OSUPREGECO_"&A3,Output!$C:$AQ,6,FALSE),3) -> 0.136 | P3: =IF(O3<=$E3,"Faible",IF(O3<$D3,"Modéré","Supérieur")) -> Faible | R3: =ROUND(VLOOKUP("OSUPVIEUXTOTREGECO_"&$A3,Output!$C:$AQ,7,FALSE)/VLOOKUP("OSUPREGECO_"&A3,Output!$C:$AQ,6,FALSE),3) -> 0.261 | S3: =IF(R3<$B3,"Supérieur",IF(R3<$C3,"Modéré","Faible")) -> Faible | T3: =ROUND(VLOOKUP("OSUPVIEUXTOTREGECO_"&$A3,Output!$C:$AQ,12,FALSE)/VLOOKUP("OSUPREGECO_"&A3,Output!$C:$AQ,6,FALSE),3) -> 0.171 | U3: =IF(T3<$B3,"Supérieur",IF(T3<$C3,"Modéré","Faible")) -> Modéré | W3: =A3 -> UTA1 | X3: =IF(S3>N3,S3,N3) -> Faible | Y3: =IF(U3>P3,U3,P3) -> Modéré | AA3: =Tableaux!$O$33 -> 08764 | AB3: =W3 -> UTA1 | AC3: =S3 -> Faible | AD3: =U3 -> Modéré | AE3: CMO entente Cris | AG3: Note: "Élevé" a été renommé "Supérieur" pour le bon fonctionnement des formules. | AP3: COS sapinière
A4: UTA2 | B4: =ROUND(G4/$K4,3) -> 0.147 | C4: 0.245 | D4: 0.35 | E4: 0.25 | G4: =VLOOKUP(CONCATENATE("OSUPVIEUXALERTEREGECO_"&A4),Output!$C:$AQ,6,FALSE) -> 26340.14 | H4: =VLOOKUP(CONCATENATE("OSUPVIEUXACCEPTREGECO_"&A4),Output!$C:$AQ,6,FALSE) -> 43900.23 | I4: =VLOOKUP(CONCATENATE("OSUPJEUNEALERTEREGECO_"&A4),Output!$C:$AQ,6,FALSE) -> 62714.61 | J4: =VLOOKUP(CONCATENATE("OSUPJEUNEACCEPTREGECO_"&A4),Output!$C:$AQ,6,FALSE) -> 44796.15 | K4: =VLOOKUP(CONCATENATE("OSUPREGECO_"&A4),Output!$C:$AQ,6,FALSE) -> 179184.6 | M4: =ROUND(VLOOKUP("OSUPJEUNEREGECO_"&A4,Output!$C:$AQ,7,FALSE)/VLOOKUP("OSUPREGECO_"&A4,Output!$C:$AQ,6,FALSE),3) -> 0.185 | N4: =IF(M4<=$E4,"Faible",IF(M4<$D4,"Modéré","Supérieur")) -> Faible | O4: =ROUND(VLOOKUP("OSUPJEUNEREGECO_"&$A4,Output!$C:$AQ,12,FALSE)/VLOOKUP("OSUPREGECO_"&A4,Output!$C:$AQ,6,FALSE),3) -> 0.144 | P4: =IF(O4<=$E4,"Faible",IF(O4<$D4,"Modéré","Supérieur")) -> Faible | R4: =ROUND(VLOOKUP("OSUPVIEUXTOTREGECO_"&$A4,Output!$C:$AQ,7,FALSE)/VLOOKUP("OSUPREGECO_"&A4,Output!$C:$AQ,6,FALSE),3) -> 0.365 | S4: =IF(R4<$B4,"Supérieur",IF(R4<$C4,"Modéré","Faible")) -> Faible | T4: =ROUND(VLOOKUP("OSUPVIEUXTOTREGECO_"&$A4,Output!$C:$AQ,12,FALSE)/VLOOKUP("OSUPREGECO_"&A4,Output!$C:$AQ,6,FALSE),3) -> 0.241 | U4: =IF(T4<$B4,"Supérieur",IF(T4<$C4,"Modéré","Faible")) -> Modéré | W4: =A4 -> UTA2 | X4: =IF(S4>N4,S4,N4) -> Faible | Y4: =IF(U4>P4,U4,P4) -> Modéré | AA4: =Tableaux!$O$33 -> 08764 | AB4: =W4 -> UTA2 | AC4: =S4 -> Faible | AD4: =U4 -> Modéré | AE4: CMO entente Cris | AP4: COS pessière
G5: =VLOOKUP(CONCATENATE("OSUPVIEUXALERTEREGECO_"&A5),Output!$C:$AQ,6,FALSE) ->  | H5: =VLOOKUP(CONCATENATE("OSUPVIEUXACCEPTREGECO_"&A5),Output!$C:$AQ,6,FALSE) ->  | I5: =VLOOKUP(CONCATENATE("OSUPJEUNEALERTEREGECO_"&A5),Output!$C:$AQ,6,FALSE) ->  | J5: =VLOOKUP(CONCATENATE("OSUPJEUNEACCEPTREGECO_"&A5),Output!$C:$AQ,6,FALSE) ->  | K5: =VLOOKUP(CONCATENATE("OSUPREGECO_"&A5),Output!$C:$AQ,6,FALSE) ->  | M5: =ROUND(VLOOKUP("OSUPJEUNEREGECO_"&A5,Output!$C:$AQ,7,FALSE)/VLOOKUP("OSUPREGECO_"&A5,Output!$C:$AQ,6,FALSE),3) ->  | O5: =ROUND(VLOOKUP("OSUPJEUNEREGECO_"&$A5,Output!$C:$AQ,12,FALSE)/VLOOKUP("OSUPREGECO_"&A5,Output!$C:$AQ,6,FALSE),3) ->  | R5: =ROUND(VLOOKUP("OSUPVIEUXTOTREGECO_"&$A5,Output!$C:$AQ,7,FALSE)/VLOOKUP("OSUPREGECO_"&A5,Output!$C:$AQ,6,FALSE),3) ->  | T5: =ROUND(VLOOKUP("OSUPVIEUXTOTREGECO_"&$A5,Output!$C:$AQ,12,FALSE)/VLOOKUP("OSUPREGECO_"&A5,Output!$C:$AQ,6,FALSE),3) ->  | W5: 0 | AA5: =Tableaux!$O$33 -> 08764 | AB5: =W5 -> 0 | AC5: =S5 ->  | AD5: =U5 ->  | AP5: CMO
G6: =VLOOKUP(CONCATENATE("OSUPVIEUXALERTEREGECO_"&A6),Output!$C:$AQ,6,FALSE) ->  | H6: =VLOOKUP(CONCATENATE("OSUPVIEUXACCEPTREGECO_"&A6),Output!$C:$AQ,6,FALSE) ->  | I6: =VLOOKUP(CONCATENATE("OSUPJEUNEALERTEREGECO_"&A6),Output!$C:$AQ,6,FALSE) ->  | J6: =VLOOKUP(CONCATENATE("OSUPJEUNEACCEPTREGECO_"&A6),Output!$C:$AQ,6,FALSE) ->  | K6: =VLOOKUP(CONCATENATE("OSUPREGECO_"&A6),Output!$C:$AQ,6,FALSE) ->  | M6: =ROUND(VLOOKUP("OSUPJEUNEREGECO_"&A6,Output!$C:$AQ,7,FALSE)/VLOOKUP("OSUPREGECO_"&A6,Output!$C:$AQ,6,FALSE),3) ->  | O6: =ROUND(VLOOKUP("OSUPJEUNEREGECO_"&$A6,Output!$C:$AQ,12,FALSE)/VLOOKUP("OSUPREGECO_"&A6,Output!$C:$AQ,6,FALSE),3) ->  | R6: =ROUND(VLOOKUP("OSUPVIEUXTOTREGECO_"&$A6,Output!$C:$AQ,7,FALSE)/VLOOKUP("OSUPREGECO_"&A6,Output!$C:$AQ,6,FALSE),3) ->  | T6: =ROUND(VLOOKUP("OSUPVIEUXTOTREGECO_"&$A6,Output!$C:$AQ,12,FALSE)/VLOOKUP("OSUPREGECO_"&A6,Output!$C:$AQ,6,FALSE),3) ->  | W6: 0 | AA6: =Tableaux!$O$33 -> 08764 | AB6: 0 | AD6: =U6 ->  | AP6: CMO entente Cris
G7: =VLOOKUP(CONCATENATE("OSUPVIEUXALERTEREGECO_"&A7),Output!$C:$AQ,6,FALSE) ->  | H7: =VLOOKUP(CONCATENATE("OSUPVIEUXACCEPTREGECO_"&A7),Output!$C:$AQ,6,FALSE) ->  | I7: =VLOOKUP(CONCATENATE("OSUPJEUNEALERTEREGECO_"&A7),Output!$C:$AQ,6,FALSE) ->  | J7: =VLOOKUP(CONCATENATE("OSUPJEUNEACCEPTREGECO_"&A7),Output!$C:$AQ,6,FALSE) ->  | K7: =VLOOKUP(CONCATENATE("OSUPREGECO_"&A7),Output!$C:$AQ,6,FALSE) ->  | M7: =ROUND(VLOOKUP("OSUPJEUNEREGECO_"&A7,Output!$C:$AQ,7,FALSE)/VLOOKUP("OSUPREGECO_"&A7,Output!$C:$AQ,6,FALSE),3) ->  | O7: =ROUND(VLOOKUP("OSUPJEUNEREGECO_"&$A7,Output!$C:$AQ,12,FALSE)/VLOOKUP("OSUPREGECO_"&A7,Output!$C:$AQ,6,FALSE),3) ->  | R7: =ROUND(VLOOKUP("OSUPVIEUXTOTREGECO_"&$A7,Output!$C:$AQ,7,FALSE)/VLOOKUP("OSUPREGECO_"&A7,Output!$C:$AQ,6,FALSE),3) ->  | T7: =ROUND(VLOOKUP("OSUPVIEUXTOTREGECO_"&$A7,Output!$C:$AQ,12,FALSE)/VLOOKUP("OSUPREGECO_"&A7,Output!$C:$AQ,6,FALSE),3) ->  | W7: 0 | AA7: =Tableaux!$O$33 -> 08764 | AB7: 0 | AC7: =S7 ->  | AD7: =U7 ->  | AG7: Voir à renommer "Élevé" dans la légende des figures | AP7: CMO entente BM
G8: =VLOOKUP(CONCATENATE("OSUPVIEUXALERTEREGECO_"&A8),Output!$C:$AQ,6,FALSE) ->  | H8: =VLOOKUP(CONCATENATE("OSUPVIEUXACCEPTREGECO_"&A8),Output!$C:$AQ,6,FALSE) ->  | I8: =VLOOKUP(CONCATENATE("OSUPJEUNEALERTEREGECO_"&A8),Output!$C:$AQ,6,FALSE) ->  | J8: =VLOOKUP(CONCATENATE("OSUPJEUNEACCEPTREGECO_"&A8),Output!$C:$AQ,6,FALSE) ->  | K8: =VLOOKUP(CONCATENATE("OSUPREGECO_"&A8),Output!$C:$AQ,6,FALSE) ->  | M8: =ROUND(VLOOKUP("OSUPJEUNEREGECO_"&A8,Output!$C:$AQ,7,FALSE)/VLOOKUP("OSUPREGECO_"&A8,Output!$C:$AQ,6,FALSE),3) ->  | O8: =ROUND(VLOOKUP("OSUPJEUNEREGECO_"&$A8,Output!$C:$AQ,12,FALSE)/VLOOKUP("OSUPREGECO_"&A8,Output!$C:$AQ,6,FALSE),3) ->  | R8: =ROUND(VLOOKUP("OSUPVIEUXTOTREGECO_"&$A8,Output!$C:$AQ,7,FALSE)/VLOOKUP("OSUPREGECO_"&A8,Output!$C:$AQ,6,FALSE),3) ->  | T8: =ROUND(VLOOKUP("OSUPVIEUXTOTREGECO_"&$A8,Output!$C:$AQ,12,FALSE)/VLOOKUP("OSUPREGECO_"&A8,Output!$C:$AQ,6,FALSE),3) ->  | W8: 0 | AA8: =Tableaux!$O$33 -> 08764 | AB8: 0
G9: =VLOOKUP(CONCATENATE("OSUPVIEUXALERTEREGECO_"&A9),Output!$C:$AQ,6,FALSE) ->  | H9: =VLOOKUP(CONCATENATE("OSUPVIEUXACCEPTREGECO_"&A9),Output!$C:$AQ,6,FALSE) ->  | I9: =VLOOKUP(CONCATENATE("OSUPJEUNEALERTEREGECO_"&A9),Output!$C:$AQ,6,FALSE) ->  | J9: =VLOOKUP(CONCATENATE("OSUPJEUNEACCEPTREGECO_"&A9),Output!$C:$AQ,6,FALSE) ->  | K9: =VLOOKUP(CONCATENATE("OSUPREGECO_"&A9),Output!$C:$AQ,6,FALSE) ->  | M9: =ROUND(VLOOKUP("OSUPJEUNEREGECO_"&A9,Output!$C:$AQ,7,FALSE)/VLOOKUP("OSUPREGECO_"&A9,Output!$C:$AQ,6,FALSE),3) ->  | O9: =ROUND(VLOOKUP("OSUPJEUNEREGECO_"&$A9,Output!$C:$AQ,12,FALSE)/VLOOKUP("OSUPREGECO_"&A9,Output!$C:$AQ,6,FALSE),3) ->  | R9: =ROUND(VLOOKUP("OSUPVIEUXTOTREGECO_"&$A9,Output!$C:$AQ,7,FALSE)/VLOOKUP("OSUPREGECO_"&A9,Output!$C:$AQ,6,FALSE),3) ->  | T9: =ROUND(VLOOKUP("OSUPVIEUXTOTREGECO_"&$A9,Output!$C:$AQ,12,FALSE)/VLOOKUP("OSUPREGECO_"&A9,Output!$C:$AQ,6,FALSE),3) ->  | W9: 0 | AA9: =Tableaux!$O$33 -> 08764 | AB9: 0
G10: =VLOOKUP(CONCATENATE("OSUPVIEUXALERTEREGECO_"&A10),Output!$C:$AQ,6,FALSE) ->  | H10: =VLOOKUP(CONCATENATE("OSUPVIEUXACCEPTREGECO_"&A10),Output!$C:$AQ,6,FALSE) ->  | I10: =VLOOKUP(CONCATENATE("OSUPJEUNEALERTEREGECO_"&A10),Output!$C:$AQ,6,FALSE) ->  | J10: =VLOOKUP(CONCATENATE("OSUPJEUNEACCEPTREGECO_"&A10),Output!$C:$AQ,6,FALSE) ->  | K10: =VLOOKUP(CONCATENATE("OSUPREGECO_"&A10),Output!$C:$AQ,6,FALSE) ->  | M10: =ROUND(VLOOKUP("OSUPJEUNEREGECO_"&A10,Output!$C:$AQ,7,FALSE)/VLOOKUP("OSUPREGECO_"&A10,Output!$C:$AQ,6,FALSE),3) ->  | O10: =ROUND(VLOOKUP("OSUPJEUNEREGECO_"&$A10,Output!$C:$AQ,12,FALSE)/VLOOKUP("OSUPREGECO_"&A10,Output!$C:$AQ,6,FALSE),3) ->  | R10: =ROUND(VLOOKUP("OSUPVIEUXTOTREGECO_"&$A10,Output!$C:$AQ,7,FALSE)/VLOOKUP("OSUPREGECO_"&A10,Output!$C:$AQ,6,FALSE),3) ->  | T10: =ROUND(VLOOKUP("OSUPVIEUXTOTREGECO_"&$A10,Output!$C:$AQ,12,FALSE)/VLOOKUP("OSUPREGECO_"&A10,Output!$C:$AQ,6,FALSE),3) ->  | W10: 0 | AA10: =Tableaux!$O$33 -> 08764 | AB10: 0
E11: =ROUND(J11/$K11,3) ->  | G11: =VLOOKUP(CONCATENATE("OSUPVIEUXALERTEREGECO_"&A11),Output!$C:$AQ,6,FALSE) ->  | H11: =VLOOKUP(CONCATENATE("OSUPVIEUXACCEPTREGECO_"&A11),Output!$C:$AQ,6,FALSE) ->  | I11: =VLOOKUP(CONCATENATE("OSUPJEUNEALERTEREGECO_"&A11),Output!$C:$AQ,6,FALSE) ->  | J11: =VLOOKUP(CONCATENATE("OSUPJEUNEACCEPTREGECO_"&A11),Output!$C:$AQ,6,FALSE) ->  | K11: =VLOOKUP(CONCATENATE("OSUPREGECO_"&A11),Output!$C:$AQ,6,FALSE) ->  | M11: =ROUND(VLOOKUP("OSUPJEUNEREGECO_"&A11,Output!$C:$AQ,7,FALSE)/VLOOKUP("OSUPREGECO_"&A11,Output!$C:$AQ,6,FALSE),3) ->  | O11: =ROUND(VLOOKUP("OSUPJEUNEREGECO_"&$A11,Output!$C:$AQ,12,FALSE)/VLOOKUP("OSUPREGECO_"&A11,Output!$C:$AQ,6,FALSE),3) ->  | R11: =ROUND(VLOOKUP("OSUPVIEUXTOTREGECO_"&$A11,Output!$C:$AQ,7,FALSE)/VLOOKUP("OSUPREGECO_"&A11,Output!$C:$AQ,6,FALSE),3) ->  | T11: =ROUND(VLOOKUP("OSUPVIEUXTOTREGECO_"&$A11,Output!$C:$AQ,12,FALSE)/VLOOKUP("OSUPREGECO_"&A11,Output!$C:$AQ,6,FALSE),3) ->  | W11: 0 | AA11: =Tableaux!$O$33 -> 08764 | AB11: 0
G12: =VLOOKUP(CONCATENATE("OSUPVIEUXALERTEREGECO_"&A12),Output!$C:$AQ,6,FALSE) ->  | H12: =VLOOKUP(CONCATENATE("OSUPVIEUXACCEPTREGECO_"&A12),Output!$C:$AQ,6,FALSE) ->  | I12: =VLOOKUP(CONCATENATE("OSUPJEUNEALERTEREGECO_"&A12),Output!$C:$AQ,6,FALSE) ->  | J12: =VLOOKUP(CONCATENATE("OSUPJEUNEACCEPTREGECO_"&A12),Output!$C:$AQ,6,FALSE) ->  | K12: =VLOOKUP(CONCATENATE("OSUPREGECO_"&A12),Output!$C:$AQ,6,FALSE) ->  | M12: =ROUND(VLOOKUP("OSUPJEUNEREGECO_"&A12,Output!$C:$AQ,7,FALSE)/VLOOKUP("OSUPREGECO_"&A12,Output!$C:$AQ,6,FALSE),3) ->  | O12: =ROUND(VLOOKUP("OSUPJEUNEREGECO_"&$A12,Output!$C:$AQ,12,FALSE)/VLOOKUP("OSUPREGECO_"&A12,Output!$C:$AQ,6,FALSE),3) ->  | R12: =ROUND(VLOOKUP("OSUPVIEUXTOTREGECO_"&$A12,Output!$C:$AQ,7,FALSE)/VLOOKUP("OSUPREGECO_"&A12,Output!$C:$AQ,6,FALSE),3) ->  | T12: =ROUND(VLOOKUP("OSUPVIEUXTOTREGECO_"&$A12,Output!$C:$AQ,12,FALSE)/VLOOKUP("OSUPREGECO_"&A12,Output!$C:$AQ,6,FALSE),3) ->  | W12: 0 | AA12: =Tableaux!$O$33 -> 08764 | AB12: 0 | AG12: Compléter cellules en jaune
G13: =VLOOKUP(CONCATENATE("OSUPVIEUXALERTEREGECO_"&A13),Output!$C:$AQ,6,FALSE) ->  | H13: =VLOOKUP(CONCATENATE("OSUPVIEUXACCEPTREGECO_"&A13),Output!$C:$AQ,6,FALSE) ->  | I13: =VLOOKUP(CONCATENATE("OSUPJEUNEALERTEREGECO_"&A13),Output!$C:$AQ,6,FALSE) ->  | J13: =VLOOKUP(CONCATENATE("OSUPJEUNEACCEPTREGECO_"&A13),Output!$C:$AQ,6,FALSE) ->  | K13: =VLOOKUP(CONCATENATE("OSUPREGECO_"&A13),Output!$C:$AQ,6,FALSE) ->  | M13: =ROUND(VLOOKUP("OSUPJEUNEREGECO_"&A13,Output!$C:$AQ,7,FALSE)/VLOOKUP("OSUPREGECO_"&A13,Output!$C:$AQ,6,FALSE),3) ->  | O13: =ROUND(VLOOKUP("OSUPJEUNEREGECO_"&$A13,Output!$C:$AQ,12,FALSE)/VLOOKUP("OSUPREGECO_"&A13,Output!$C:$AQ,6,FALSE),3) ->  | R13: =ROUND(VLOOKUP("OSUPVIEUXTOTREGECO_"&$A13,Output!$C:$AQ,7,FALSE)/VLOOKUP("OSUPREGECO_"&A13,Output!$C:$AQ,6,FALSE),3) ->  | T13: =ROUND(VLOOKUP("OSUPVIEUXTOTREGECO_"&$A13,Output!$C:$AQ,12,FALSE)/VLOOKUP("OSUPREGECO_"&A13,Output!$C:$AQ,6,FALSE),3) ->  | W13: 0 | AA13: =Tableaux!$O$33 -> 08764 | AB13: 0
G14: =VLOOKUP(CONCATENATE("OSUPVIEUXALERTEREGECO_"&A14),Output!$C:$AQ,6,FALSE) ->  | H14: =VLOOKUP(CONCATENATE("OSUPVIEUXACCEPTREGECO_"&A14),Output!$C:$AQ,6,FALSE) ->  | I14: =VLOOKUP(CONCATENATE("OSUPJEUNEALERTEREGECO_"&A14),Output!$C:$AQ,6,FALSE) ->  | J14: =VLOOKUP(CONCATENATE("OSUPJEUNEACCEPTREGECO_"&A14),Output!$C:$AQ,6,FALSE) ->  | K14: =VLOOKUP(CONCATENATE("OSUPREGECO_"&A14),Output!$C:$AQ,6,FALSE) ->  | M14: =ROUND(VLOOKUP("OSUPJEUNEREGECO_"&A14,Output!$C:$AQ,7,FALSE)/VLOOKUP("OSUPREGECO_"&A14,Output!$C:$AQ,6,FALSE),3) ->  | O14: =ROUND(VLOOKUP("OSUPJEUNEREGECO_"&$A14,Output!$C:$AQ,12,FALSE)/VLOOKUP("OSUPREGECO_"&A14,Output!$C:$AQ,6,FALSE),3) ->  | R14: =ROUND(VLOOKUP("OSUPVIEUXTOTREGECO_"&$A14,Output!$C:$AQ,7,FALSE)/VLOOKUP("OSUPREGECO_"&A14,Output!$C:$AQ,6,FALSE),3) ->  | T14: =ROUND(VLOOKUP("OSUPVIEUXTOTREGECO_"&$A14,Output!$C:$AQ,12,FALSE)/VLOOKUP("OSUPREGECO_"&A14,Output!$C:$AQ,6,FALSE),3) ->  | W14: 0 | AA14: =Tableaux!$O$33 -> 08764 | AB14: 0
G15: =VLOOKUP(CONCATENATE("OSUPVIEUXALERTEREGECO_"&A15),Output!$C:$AQ,6,FALSE) ->  | H15: =VLOOKUP(CONCATENATE("OSUPVIEUXACCEPTREGECO_"&A15),Output!$C:$AQ,6,FALSE) ->  | I15: =VLOOKUP(CONCATENATE("OSUPJEUNEALERTEREGECO_"&A15),Output!$C:$AQ,6,FALSE) ->  | J15: =VLOOKUP(CONCATENATE("OSUPJEUNEACCEPTREGECO_"&A15),Output!$C:$AQ,6,FALSE) ->  | K15: =VLOOKUP(CONCATENATE("OSUPREGECO_"&A15),Output!$C:$AQ,6,FALSE) ->  | M15: =ROUND(VLOOKUP("OSUPJEUNEREGECO_"&A15,Output!$C:$AQ,7,FALSE)/VLOOKUP("OSUPREGECO_"&A15,Output!$C:$AQ,6,FALSE),3) ->  | O15: =ROUND(VLOOKUP("OSUPJEUNEREGECO_"&$A15,Output!$C:$AQ,12,FALSE)/VLOOKUP("OSUPREGECO_"&A15,Output!$C:$AQ,6,FALSE),3) ->  | R15: =ROUND(VLOOKUP("OSUPVIEUXTOTREGECO_"&$A15,Output!$C:$AQ,7,FALSE)/VLOOKUP("OSUPREGECO_"&A15,Output!$C:$AQ,6,FALSE),3) ->  | T15: =ROUND(VLOOKUP("OSUPVIEUXTOTREGECO_"&$A15,Output!$C:$AQ,12,FALSE)/VLOOKUP("OSUPREGECO_"&A15,Output!$C:$AQ,6,FALSE),3) ->  | W15: 0 | AA15: =Tableaux!$O$33 -> 08764 | AB15: 0
G16: =VLOOKUP(CONCATENATE("OSUPVIEUXALERTEREGECO_"&A16),Output!$C:$AQ,6,FALSE) ->  | H16: =VLOOKUP(CONCATENATE("OSUPVIEUXACCEPTREGECO_"&A16),Output!$C:$AQ,6,FALSE) ->  | I16: =VLOOKUP(CONCATENATE("OSUPJEUNEALERTEREGECO_"&A16),Output!$C:$AQ,6,FALSE) ->  | J16: =VLOOKUP(CONCATENATE("OSUPJEUNEACCEPTREGECO_"&A16),Output!$C:$AQ,6,FALSE) ->  | K16: =VLOOKUP(CONCATENATE("OSUPREGECO_"&A16),Output!$C:$AQ,6,FALSE) ->  | M16: =ROUND(VLOOKUP("OSUPJEUNEREGECO_"&A16,Output!$C:$AQ,7,FALSE)/VLOOKUP("OSUPREGECO_"&A16,Output!$C:$AQ,6,FALSE),3) ->  | O16: =ROUND(VLOOKUP("OSUPJEUNEREGECO_"&$A16,Output!$C:$AQ,12,FALSE)/VLOOKUP("OSUPREGECO_"&A16,Output!$C:$AQ,6,FALSE),3) ->  | R16: =ROUND(VLOOKUP("OSUPVIEUXTOTREGECO_"&$A16,Output!$C:$AQ,7,FALSE)/VLOOKUP("OSUPREGECO_"&A16,Output!$C:$AQ,6,FALSE),3) ->  | T16: =ROUND(VLOOKUP("OSUPVIEUXTOTREGECO_"&$A16,Output!$C:$AQ,12,FALSE)/VLOOKUP("OSUPREGECO_"&A16,Output!$C:$AQ,6,FALSE),3) ->  | W16: 0 | AA16: =Tableaux!$O$33 -> 08764 | AB16: 0
G17: =VLOOKUP(CONCATENATE("OSUPVIEUXALERTEREGECO_"&A17),Output!$C:$AQ,6,FALSE) ->  | H17: =VLOOKUP(CONCATENATE("OSUPVIEUXACCEPTREGECO_"&A17),Output!$C:$AQ,6,FALSE) ->  | I17: =VLOOKUP(CONCATENATE("OSUPJEUNEALERTEREGECO_"&A17),Output!$C:$AQ,6,FALSE) ->  | J17: =VLOOKUP(CONCATENATE("OSUPJEUNEACCEPTREGECO_"&A17),Output!$C:$AQ,6,FALSE) ->  | K17: =VLOOKUP(CONCATENATE("OSUPREGECO_"&A17),Output!$C:$AQ,6,FALSE) ->  | M17: =ROUND(VLOOKUP("OSUPJEUNEREGECO_"&A17,Output!$C:$AQ,7,FALSE)/VLOOKUP("OSUPREGECO_"&A17,Output!$C:$AQ,6,FALSE),3) ->  | O17: =ROUND(VLOOKUP("OSUPJEUNEREGECO_"&$A17,Output!$C:$AQ,12,FALSE)/VLOOKUP("OSUPREGECO_"&A17,Output!$C:$AQ,6,FALSE),3) ->  | R17: =ROUND(VLOOKUP("OSUPVIEUXTOTREGECO_"&$A17,Output!$C:$AQ,7,FALSE)/VLOOKUP("OSUPREGECO_"&A17,Output!$C:$AQ,6,FALSE),3) ->  | T17: =ROUND(VLOOKUP("OSUPVIEUXTOTREGECO_"&$A17,Output!$C:$AQ,12,FALSE)/VLOOKUP("OSUPREGECO_"&A17,Output!$C:$AQ,6,FALSE),3) ->  | W17: 0 | AA17: =Tableaux!$O$33 -> 08764 | AB17: 0
G18: =VLOOKUP(CONCATENATE("OSUPVIEUXALERTEREGECO_"&A18),Output!$C:$AQ,6,FALSE) ->  | H18: =VLOOKUP(CONCATENATE("OSUPVIEUXACCEPTREGECO_"&A18),Output!$C:$AQ,6,FALSE) ->  | I18: =VLOOKUP(CONCATENATE("OSUPJEUNEALERTEREGECO_"&A18),Output!$C:$AQ,6,FALSE) ->  | J18: =VLOOKUP(CONCATENATE("OSUPJEUNEACCEPTREGECO_"&A18),Output!$C:$AQ,6,FALSE) ->  | K18: =VLOOKUP(CONCATENATE("OSUPREGECO_"&A18),Output!$C:$AQ,6,FALSE) ->  | M18: =ROUND(VLOOKUP("OSUPJEUNEREGECO_"&A18,Output!$C:$AQ,7,FALSE)/VLOOKUP("OSUPREGECO_"&A18,Output!$C:$AQ,6,FALSE),3) ->  | O18: =ROUND(VLOOKUP("OSUPJEUNEREGECO_"&$A18,Output!$C:$AQ,12,FALSE)/VLOOKUP("OSUPREGECO_"&A18,Output!$C:$AQ,6,FALSE),3) ->  | R18: =ROUND(VLOOKUP("OSUPVIEUXTOTREGECO_"&$A18,Output!$C:$AQ,7,FALSE)/VLOOKUP("OSUPREGECO_"&A18,Output!$C:$AQ,6,FALSE),3) ->  | T18: =ROUND(VLOOKUP("OSUPVIEUXTOTREGECO_"&$A18,Output!$C:$AQ,12,FALSE)/VLOOKUP("OSUPREGECO_"&A18,Output!$C:$AQ,6,FALSE),3) ->  | W18: 0 | AA18: =Tableaux!$O$33 -> 08764 | AB18: 0
G19: =VLOOKUP(CONCATENATE("OSUPVIEUXALERTEREGECO_"&A19),Output!$C:$AQ,6,FALSE) ->  | H19: =VLOOKUP(CONCATENATE("OSUPVIEUXACCEPTREGECO_"&A19),Output!$C:$AQ,6,FALSE) ->  | I19: =VLOOKUP(CONCATENATE("OSUPJEUNEALERTEREGECO_"&A19),Output!$C:$AQ,6,FALSE) ->  | J19: =VLOOKUP(CONCATENATE("OSUPJEUNEACCEPTREGECO_"&A19),Output!$C:$AQ,6,FALSE) ->  | K19: =VLOOKUP(CONCATENATE("OSUPREGECO_"&A19),Output!$C:$AQ,6,FALSE) ->  | M19: =ROUND(VLOOKUP("OSUPJEUNEREGECO_"&A19,Output!$C:$AQ,7,FALSE)/VLOOKUP("OSUPREGECO_"&A19,Output!$C:$AQ,6,FALSE),3) ->  | O19: =ROUND(VLOOKUP("OSUPJEUNEREGECO_"&$A19,Output!$C:$AQ,12,FALSE)/VLOOKUP("OSUPREGECO_"&A19,Output!$C:$AQ,6,FALSE),3) ->  | R19: =ROUND(VLOOKUP("OSUPVIEUXTOTREGECO_"&$A19,Output!$C:$AQ,7,FALSE)/VLOOKUP("OSUPREGECO_"&A19,Output!$C:$AQ,6,FALSE),3) ->  | T19: =ROUND(VLOOKUP("OSUPVIEUXTOTREGECO_"&$A19,Output!$C:$AQ,12,FALSE)/VLOOKUP("OSUPREGECO_"&A19,Output!$C:$AQ,6,FALSE),3) ->  | W19: 0 | AA19: =Tableaux!$O$33 -> 08764 | AB19: 0
G20: =VLOOKUP(CONCATENATE("OSUPVIEUXALERTEREGECO_"&A20),Output!$C:$AQ,6,FALSE) ->  | H20: =VLOOKUP(CONCATENATE("OSUPVIEUXACCEPTREGECO_"&A20),Output!$C:$AQ,6,FALSE) ->  | I20: =VLOOKUP(CONCATENATE("OSUPJEUNEALERTEREGECO_"&A20),Output!$C:$AQ,6,FALSE) ->  | J20: =VLOOKUP(CONCATENATE("OSUPJEUNEACCEPTREGECO_"&A20),Output!$C:$AQ,6,FALSE) ->  | K20: =VLOOKUP(CONCATENATE("OSUPREGECO_"&A20),Output!$C:$AQ,6,FALSE) ->  | M20: =ROUND(VLOOKUP("OSUPJEUNEREGECO_"&A20,Output!$C:$AQ,7,FALSE)/VLOOKUP("OSUPREGECO_"&A20,Output!$C:$AQ,6,FALSE),3) ->  | O20: =ROUND(VLOOKUP("OSUPJEUNEREGECO_"&$A20,Output!$C:$AQ,12,FALSE)/VLOOKUP("OSUPREGECO_"&A20,Output!$C:$AQ,6,FALSE),3) ->  | R20: =ROUND(VLOOKUP("OSUPVIEUXTOTREGECO_"&$A20,Output!$C:$AQ,7,FALSE)/VLOOKUP("OSUPREGECO_"&A20,Output!$C:$AQ,6,FALSE),3) ->  | T20: =ROUND(VLOOKUP("OSUPVIEUXTOTREGECO_"&$A20,Output!$C:$AQ,12,FALSE)/VLOOKUP("OSUPREGECO_"&A20,Output!$C:$AQ,6,FALSE),3) ->  | W20: 0 | AA20: =Tableaux!$O$33 -> 08764 | AB20: 0
B21: =ROUND(G21/$K21,2) ->  | C21: =H21/$K21 ->  | D21: =ROUND(I21/$K21,3) ->  | G21: =VLOOKUP(CONCATENATE("OSUPVIEUXALERTEREGECO_"&A21),Output!$C:$AQ,6,FALSE) ->  | H21: =VLOOKUP(CONCATENATE("OSUPVIEUXACCEPTREGECO_"&A21),Output!$C:$AQ,6,FALSE) ->  | I21: =VLOOKUP(CONCATENATE("OSUPJEUNEALERTEREGECO_"&A21),Output!$C:$AQ,6,FALSE) ->  | J21: =VLOOKUP(CONCATENATE("OSUPJEUNEACCEPTREGECO_"&A21),Output!$C:$AQ,6,FALSE) ->  | K21: =VLOOKUP(CONCATENATE("OSUPREGECO_"&A21),Output!$C:$AQ,6,FALSE) ->  | M21: =ROUND(VLOOKUP("OSUPJEUNEREGECO_"&A21,Output!$C:$AQ,7,FALSE)/VLOOKUP("OSUPREGECO_"&A21,Output!$C:$AQ,6,FALSE),3) ->  | O21: =ROUND(VLOOKUP("OSUPJEUNEREGECO_"&$A21,Output!$C:$AQ,12,FALSE)/VLOOKUP("OSUPREGECO_"&A21,Output!$C:$AQ,6,FALSE),3) ->  | R21: =ROUND(VLOOKUP("OSUPVIEUXTOTREGECO_"&$A21,Output!$C:$AQ,7,FALSE)/VLOOKUP("OSUPREGECO_"&A21,Output!$C:$AQ,6,FALSE),3) ->  | T21: =ROUND(VLOOKUP("OSUPVIEUXTOTREGECO_"&$A21,Output!$C:$AQ,12,FALSE)/VLOOKUP("OSUPREGECO_"&A21,Output!$C:$AQ,6,FALSE),3) ->  | W21: 0 | AA21: =Tableaux!$O$33 -> 08764 | AB21: 0
G22: =VLOOKUP(CONCATENATE("OSUPVIEUXALERTEREGECO_"&A22),Output!$C:$AQ,6,FALSE) ->  | H22: =VLOOKUP(CONCATENATE("OSUPVIEUXACCEPTREGECO_"&A22),Output!$C:$AQ,6,FALSE) ->  | I22: =VLOOKUP(CONCATENATE("OSUPJEUNEALERTEREGECO_"&A22),Output!$C:$AQ,6,FALSE) ->  | J22: =VLOOKUP(CONCATENATE("OSUPJEUNEACCEPTREGECO_"&A22),Output!$C:$AQ,6,FALSE) ->  | K22: =VLOOKUP(CONCATENATE("OSUPREGECO_"&A22),Output!$C:$AQ,6,FALSE) ->  | M22: =ROUND(VLOOKUP("OSUPJEUNEREGECO_"&A22,Output!$C:$AQ,7,FALSE)/VLOOKUP("OSUPREGECO_"&A22,Output!$C:$AQ,6,FALSE),3) ->  | O22: =ROUND(VLOOKUP("OSUPJEUNEREGECO_"&$A22,Output!$C:$AQ,12,FALSE)/VLOOKUP("OSUPREGECO_"&A22,Output!$C:$AQ,6,FALSE),3) ->  | R22: =ROUND(VLOOKUP("OSUPVIEUXTOTREGECO_"&$A22,Output!$C:$AQ,7,FALSE)/VLOOKUP("OSUPREGECO_"&A22,Output!$C:$AQ,6,FALSE),3) ->  | T22: =ROUND(VLOOKUP("OSUPVIEUXTOTREGECO_"&$A22,Output!$C:$AQ,12,FALSE)/VLOOKUP("OSUPREGECO_"&A22,Output!$C:$AQ,6,FALSE),3) ->  | W22: 0 | AA22: =Tableaux!$O$33 -> 08764 | AB22: 0
G23: =VLOOKUP(CONCATENATE("OSUPVIEUXALERTEREGECO_"&A23),Output!$C:$AQ,6,FALSE) ->  | H23: =VLOOKUP(CONCATENATE("OSUPVIEUXACCEPTREGECO_"&A23),Output!$C:$AQ,6,FALSE) ->  | I23: =VLOOKUP(CONCATENATE("OSUPJEUNEALERTEREGECO_"&A23),Output!$C:$AQ,6,FALSE) ->  | J23: =VLOOKUP(CONCATENATE("OSUPJEUNEACCEPTREGECO_"&A23),Output!$C:$AQ,6,FALSE) ->  | K23: =VLOOKUP(CONCATENATE("OSUPREGECO_"&A23),Output!$C:$AQ,6,FALSE) ->  | M23: =ROUND(VLOOKUP("OSUPJEUNEREGECO_"&A23,Output!$C:$AQ,7,FALSE)/VLOOKUP("OSUPREGECO_"&A23,Output!$C:$AQ,6,FALSE),3) ->  | O23: =ROUND(VLOOKUP("OSUPJEUNEREGECO_"&$A23,Output!$C:$AQ,12,FALSE)/VLOOKUP("OSUPREGECO_"&A23,Output!$C:$AQ,6,FALSE),3) ->  | R23: =ROUND(VLOOKUP("OSUPVIEUXTOTREGECO_"&$A23,Output!$C:$AQ,7,FALSE)/VLOOKUP("OSUPREGECO_"&A23,Output!$C:$AQ,6,FALSE),3) ->  | T23: =ROUND(VLOOKUP("OSUPVIEUXTOTREGECO_"&$A23,Output!$C:$AQ,12,FALSE)/VLOOKUP("OSUPREGECO_"&A23,Output!$C:$AQ,6,FALSE),3) ->  | W23: 0 | AA23: =Tableaux!$O$33 -> 08764 | AB23: 0
G24: =VLOOKUP(CONCATENATE("OSUPVIEUXALERTEREGECO_"&A24),Output!$C:$AQ,6,FALSE) ->  | H24: =VLOOKUP(CONCATENATE("OSUPVIEUXACCEPTREGECO_"&A24),Output!$C:$AQ,6,FALSE) ->  | I24: =VLOOKUP(CONCATENATE("OSUPJEUNEALERTEREGECO_"&A24),Output!$C:$AQ,6,FALSE) ->  | J24: =VLOOKUP(CONCATENATE("OSUPJEUNEACCEPTREGECO_"&A24),Output!$C:$AQ,6,FALSE) ->  | K24: =VLOOKUP(CONCATENATE("OSUPREGECO_"&A24),Output!$C:$AQ,6,FALSE) ->  | M24: =ROUND(VLOOKUP("OSUPJEUNEREGECO_"&A24,Output!$C:$AQ,7,FALSE)/VLOOKUP("OSUPREGECO_"&A24,Output!$C:$AQ,6,FALSE),3) ->  | O24: =ROUND(VLOOKUP("OSUPJEUNEREGECO_"&$A24,Output!$C:$AQ,12,FALSE)/VLOOKUP("OSUPREGECO_"&A24,Output!$C:$AQ,6,FALSE),3) ->  | R24: =ROUND(VLOOKUP("OSUPVIEUXTOTREGECO_"&$A24,Output!$C:$AQ,7,FALSE)/VLOOKUP("OSUPREGECO_"&A24,Output!$C:$AQ,6,FALSE),3) ->  | T24: =ROUND(VLOOKUP("OSUPVIEUXTOTREGECO_"&$A24,Output!$C:$AQ,12,FALSE)/VLOOKUP("OSUPREGECO_"&A24,Output!$C:$AQ,6,FALSE),3) ->  | W24: 0 | AA24: =Tableaux!$O$33 -> 08764 | AB24: 0
G25: =VLOOKUP(CONCATENATE("OSUPVIEUXALERTEREGECO_"&A25),Output!$C:$AQ,6,FALSE) ->  | H25: =VLOOKUP(CONCATENATE("OSUPVIEUXACCEPTREGECO_"&A25),Output!$C:$AQ,6,FALSE) ->  | I25: =VLOOKUP(CONCATENATE("OSUPJEUNEALERTEREGECO_"&A25),Output!$C:$AQ,6,FALSE) ->  | J25: =VLOOKUP(CONCATENATE("OSUPJEUNEACCEPTREGECO_"&A25),Output!$C:$AQ,6,FALSE) ->  | K25: =VLOOKUP(CONCATENATE("OSUPREGECO_"&A25),Output!$C:$AQ,6,FALSE) ->  | M25: =ROUND(VLOOKUP("OSUPJEUNEREGECO_"&A25,Output!$C:$AQ,7,FALSE)/VLOOKUP("OSUPREGECO_"&A25,Output!$C:$AQ,6,FALSE),3) ->  | O25: =ROUND(VLOOKUP("OSUPJEUNEREGECO_"&$A25,Output!$C:$AQ,12,FALSE)/VLOOKUP("OSUPREGECO_"&A25,Output!$C:$AQ,6,FALSE),3) ->  | R25: =ROUND(VLOOKUP("OSUPVIEUXTOTREGECO_"&$A25,Output!$C:$AQ,7,FALSE)/VLOOKUP("OSUPREGECO_"&A25,Output!$C:$AQ,6,FALSE),3) ->  | T25: =ROUND(VLOOKUP("OSUPVIEUXTOTREGECO_"&$A25,Output!$C:$AQ,12,FALSE)/VLOOKUP("OSUPREGECO_"&A25,Output!$C:$AQ,6,FALSE),3) ->  | W25: 0 | AA25: =Tableaux!$O$33 -> 08764 | AB25: 0
G26: =VLOOKUP(CONCATENATE("OSUPVIEUXALERTEREGECO_"&A26),Output!$C:$AQ,6,FALSE) ->  | H26: =VLOOKUP(CONCATENATE("OSUPVIEUXACCEPTREGECO_"&A26),Output!$C:$AQ,6,FALSE) ->  | I26: =VLOOKUP(CONCATENATE("OSUPJEUNEALERTEREGECO_"&A26),Output!$C:$AQ,6,FALSE) ->  | J26: =VLOOKUP(CONCATENATE("OSUPJEUNEACCEPTREGECO_"&A26),Output!$C:$AQ,6,FALSE) ->  | K26: =VLOOKUP(CONCATENATE("OSUPREGECO_"&A26),Output!$C:$AQ,6,FALSE) ->  | M26: =ROUND(VLOOKUP("OSUPJEUNEREGECO_"&A26,Output!$C:$AQ,7,FALSE)/VLOOKUP("OSUPREGECO_"&A26,Output!$C:$AQ,6,FALSE),3) ->  | O26: =ROUND(VLOOKUP("OSUPJEUNEREGECO_"&$A26,Output!$C:$AQ,12,FALSE)/VLOOKUP("OSUPREGECO_"&A26,Output!$C:$AQ,6,FALSE),3) ->  | R26: =ROUND(VLOOKUP("OSUPVIEUXTOTREGECO_"&$A26,Output!$C:$AQ,7,FALSE)/VLOOKUP("OSUPREGECO_"&A26,Output!$C:$AQ,6,FALSE),3) ->  | T26: =ROUND(VLOOKUP("OSUPVIEUXTOTREGECO_"&$A26,Output!$C:$AQ,12,FALSE)/VLOOKUP("OSUPREGECO_"&A26,Output!$C:$AQ,6,FALSE),3) ->  | W26: 0 | AA26: =Tableaux!$O$33 -> 08764 | AB26: 0
C27: =ROUND(H27/$K27,3) ->  | G27: =VLOOKUP(CONCATENATE("OSUPVIEUXALERTEREGECO_"&A27),Output!$C:$AQ,6,FALSE) ->  | H27: =VLOOKUP(CONCATENATE("OSUPVIEUXACCEPTREGECO_"&A27),Output!$C:$AQ,6,FALSE) ->  | I27: =VLOOKUP(CONCATENATE("OSUPJEUNEALERTEREGECO_"&A27),Output!$C:$AQ,6,FALSE) ->  | J27: =VLOOKUP(CONCATENATE("OSUPJEUNEACCEPTREGECO_"&A27),Output!$C:$AQ,6,FALSE) ->  | K27: =VLOOKUP(CONCATENATE("OSUPREGECO_"&A27),Output!$C:$AQ,6,FALSE) ->  | M27: =ROUND(VLOOKUP("OSUPJEUNEREGECO_"&A27,Output!$C:$AQ,7,FALSE)/VLOOKUP("OSUPREGECO_"&A27,Output!$C:$AQ,6,FALSE),3) ->  | O27: =ROUND(VLOOKUP("OSUPJEUNEREGECO_"&$A27,Output!$C:$AQ,12,FALSE)/VLOOKUP("OSUPREGECO_"&A27,Output!$C:$AQ,6,FALSE),3) ->  | R27: =ROUND(VLOOKUP("OSUPVIEUXTOTREGECO_"&$A27,Output!$C:$AQ,7,FALSE)/VLOOKUP("OSUPREGECO_"&A27,Output!$C:$AQ,6,FALSE),3) ->  | T27: =ROUND(VLOOKUP("OSUPVIEUXTOTREGECO_"&$A27,Output!$C:$AQ,12,FALSE)/VLOOKUP("OSUPREGECO_"&A27,Output!$C:$AQ,6,FALSE),3) ->  | W27: 0 | AA27: =Tableaux!$O$33 -> 08764 | AB27: 0
G28: =VLOOKUP(CONCATENATE("OSUPVIEUXALERTEREGECO_"&A28),Output!$C:$AQ,6,FALSE) ->  | H28: =VLOOKUP(CONCATENATE("OSUPVIEUXACCEPTREGECO_"&A28),Output!$C:$AQ,6,FALSE) ->  | I28: =VLOOKUP(CONCATENATE("OSUPJEUNEALERTEREGECO_"&A28),Output!$C:$AQ,6,FALSE) ->  | J28: =VLOOKUP(CONCATENATE("OSUPJEUNEACCEPTREGECO_"&A28),Output!$C:$AQ,6,FALSE) ->  | K28: =VLOOKUP(CONCATENATE("OSUPREGECO_"&A28),Output!$C:$AQ,6,FALSE) ->  | M28: =ROUND(VLOOKUP("OSUPJEUNEREGECO_"&A28,Output!$C:$AQ,7,FALSE)/VLOOKUP("OSUPREGECO_"&A28,Output!$C:$AQ,6,FALSE),3) ->  | O28: =ROUND(VLOOKUP("OSUPJEUNEREGECO_"&$A28,Output!$C:$AQ,12,FALSE)/VLOOKUP("OSUPREGECO_"&A28,Output!$C:$AQ,6,FALSE),3) ->  | R28: =ROUND(VLOOKUP("OSUPVIEUXTOTREGECO_"&$A28,Output!$C:$AQ,7,FALSE)/VLOOKUP("OSUPREGECO_"&A28,Output!$C:$AQ,6,FALSE),3) ->  | T28: =ROUND(VLOOKUP("OSUPVIEUXTOTREGECO_"&$A28,Output!$C:$AQ,12,FALSE)/VLOOKUP("OSUPREGECO_"&A28,Output!$C:$AQ,6,FALSE),3) ->  | W28: 0 | AA28: =Tableaux!$O$33 -> 08764 | AB28: 0
G29: =VLOOKUP(CONCATENATE("OSUPVIEUXALERTEREGECO_"&A29),Output!$C:$AQ,6,FALSE) ->  | H29: =VLOOKUP(CONCATENATE("OSUPVIEUXACCEPTREGECO_"&A29),Output!$C:$AQ,6,FALSE) ->  | I29: =VLOOKUP(CONCATENATE("OSUPJEUNEALERTEREGECO_"&A29),Output!$C:$AQ,6,FALSE) ->  | J29: =VLOOKUP(CONCATENATE("OSUPJEUNEACCEPTREGECO_"&A29),Output!$C:$AQ,6,FALSE) ->  | K29: =VLOOKUP(CONCATENATE("OSUPREGECO_"&A29),Output!$C:$AQ,6,FALSE) ->  | M29: =ROUND(VLOOKUP("OSUPJEUNEREGECO_"&A29,Output!$C:$AQ,7,FALSE)/VLOOKUP("OSUPREGECO_"&A29,Output!$C:$AQ,6,FALSE),3) ->  | O29: =ROUND(VLOOKUP("OSUPJEUNEREGECO_"&$A29,Output!$C:$AQ,12,FALSE)/VLOOKUP("OSUPREGECO_"&A29,Output!$C:$AQ,6,FALSE),3) ->  | R29: =ROUND(VLOOKUP("OSUPVIEUXTOTREGECO_"&$A29,Output!$C:$AQ,7,FALSE)/VLOOKUP("OSUPREGECO_"&A29,Output!$C:$AQ,6,FALSE),3) ->  | T29: =ROUND(VLOOKUP("OSUPVIEUXTOTREGECO_"&$A29,Output!$C:$AQ,12,FALSE)/VLOOKUP("OSUPREGECO_"&A29,Output!$C:$AQ,6,FALSE),3) ->  | W29: 0 | AA29: =Tableaux!$O$33 -> 08764 | AB29: 0
G30: =VLOOKUP(CONCATENATE("OSUPVIEUXALERTEREGECO_"&A30),Output!$C:$AQ,6,FALSE) ->  | H30: =VLOOKUP(CONCATENATE("OSUPVIEUXACCEPTREGECO_"&A30),Output!$C:$AQ,6,FALSE) ->  | I30: =VLOOKUP(CONCATENATE("OSUPJEUNEALERTEREGECO_"&A30),Output!$C:$AQ,6,FALSE) ->  | J30: =VLOOKUP(CONCATENATE("OSUPJEUNEACCEPTREGECO_"&A30),Output!$C:$AQ,6,FALSE) ->  | K30: =VLOOKUP(CONCATENATE("OSUPREGECO_"&A30),Output!$C:$AQ,6,FALSE) ->  | M30: =ROUND(VLOOKUP("OSUPJEUNEREGECO_"&A30,Output!$C:$AQ,7,FALSE)/VLOOKUP("OSUPREGECO_"&A30,Output!$C:$AQ,6,FALSE),3) ->  | O30: =ROUND(VLOOKUP("OSUPJEUNEREGECO_"&$A30,Output!$C:$AQ,12,FALSE)/VLOOKUP("OSUPREGECO_"&A30,Output!$C:$AQ,6,FALSE),3) ->  | R30: =ROUND(VLOOKUP("OSUPVIEUXTOTREGECO_"&$A30,Output!$C:$AQ,7,FALSE)/VLOOKUP("OSUPREGECO_"&A30,Output!$C:$AQ,6,FALSE),3) ->  | T30: =ROUND(VLOOKUP("OSUPVIEUXTOTREGECO_"&$A30,Output!$C:$AQ,12,FALSE)/VLOOKUP("OSUPREGECO_"&A30,Output!$C:$AQ,6,FALSE),3) ->  | W30: 0 | AA30: =Tableaux!$O$33 -> 08764 | AB30: 0
G31: =VLOOKUP(CONCATENATE("OSUPVIEUXALERTEREGECO_"&A31),Output!$C:$AQ,6,FALSE) ->  | H31: =VLOOKUP(CONCATENATE("OSUPVIEUXACCEPTREGECO_"&A31),Output!$C:$AQ,6,FALSE) ->  | I31: =VLOOKUP(CONCATENATE("OSUPJEUNEALERTEREGECO_"&A31),Output!$C:$AQ,6,FALSE) ->  | J31: =VLOOKUP(CONCATENATE("OSUPJEUNEACCEPTREGECO_"&A31),Output!$C:$AQ,6,FALSE) ->  | K31: =VLOOKUP(CONCATENATE("OSUPREGECO_"&A31),Output!$C:$AQ,6,FALSE) ->  | M31: =ROUND(VLOOKUP("OSUPJEUNEREGECO_"&A31,Output!$C:$AQ,7,FALSE)/VLOOKUP("OSUPREGECO_"&A31,Output!$C:$AQ,6,FALSE),3) ->  | O31: =ROUND(VLOOKUP("OSUPJEUNEREGECO_"&$A31,Output!$C:$AQ,12,FALSE)/VLOOKUP("OSUPREGECO_"&A31,Output!$C:$AQ,6,FALSE),3) ->  | R31: =ROUND(VLOOKUP("OSUPVIEUXTOTREGECO_"&$A31,Output!$C:$AQ,7,FALSE)/VLOOKUP("OSUPREGECO_"&A31,Output!$C:$AQ,6,FALSE),3) ->  | T31: =ROUND(VLOOKUP("OSUPVIEUXTOTREGECO_"&$A31,Output!$C:$AQ,12,FALSE)/VLOOKUP("OSUPREGECO_"&A31,Output!$C:$AQ,6,FALSE),3) ->  | W31: 0 | AA31: =Tableaux!$O$33 -> 08764 | AB31: 0
G32: =VLOOKUP(CONCATENATE("OSUPVIEUXALERTEREGECO_"&A32),Output!$C:$AQ,6,FALSE) ->  | H32: =VLOOKUP(CONCATENATE("OSUPVIEUXACCEPTREGECO_"&A32),Output!$C:$AQ,6,FALSE) ->  | I32: =VLOOKUP(CONCATENATE("OSUPJEUNEALERTEREGECO_"&A32),Output!$C:$AQ,6,FALSE) ->  | J32: =VLOOKUP(CONCATENATE("OSUPJEUNEACCEPTREGECO_"&A32),Output!$C:$AQ,6,FALSE) ->  | K32: =VLOOKUP(CONCATENATE("OSUPREGECO_"&A32),Output!$C:$AQ,6,FALSE) ->  | M32: =ROUND(VLOOKUP("OSUPJEUNEREGECO_"&A32,Output!$C:$AQ,7,FALSE)/VLOOKUP("OSUPREGECO_"&A32,Output!$C:$AQ,6,FALSE),3) ->  | O32: =ROUND(VLOOKUP("OSUPJEUNEREGECO_"&$A32,Output!$C:$AQ,12,FALSE)/VLOOKUP("OSUPREGECO_"&A32,Output!$C:$AQ,6,FALSE),3) ->  | R32: =ROUND(VLOOKUP("OSUPVIEUXTOTREGECO_"&$A32,Output!$C:$AQ,7,FALSE)/VLOOKUP("OSUPREGECO_"&A32,Output!$C:$AQ,6,FALSE),3) ->  | T32: =ROUND(VLOOKUP("OSUPVIEUXTOTREGECO_"&$A32,Output!$C:$AQ,12,FALSE)/VLOOKUP("OSUPREGECO_"&A32,Output!$C:$AQ,6,FALSE),3) ->  | W32: 0 | AA32: =Tableaux!$O$33 -> 08764 | AB32: 0
G33: =VLOOKUP(CONCATENATE("OSUPVIEUXALERTEREGECO_"&A33),Output!$C:$AQ,6,FALSE) ->  | H33: =VLOOKUP(CONCATENATE("OSUPVIEUXACCEPTREGECO_"&A33),Output!$C:$AQ,6,FALSE) ->  | I33: =VLOOKUP(CONCATENATE("OSUPJEUNEALERTEREGECO_"&A33),Output!$C:$AQ,6,FALSE) ->  | J33: =VLOOKUP(CONCATENATE("OSUPJEUNEACCEPTREGECO_"&A33),Output!$C:$AQ,6,FALSE) ->  | K33: =VLOOKUP(CONCATENATE("OSUPREGECO_"&A33),Output!$C:$AQ,6,FALSE) ->  | M33: =ROUND(VLOOKUP("OSUPJEUNEREGECO_"&A33,Output!$C:$AQ,7,FALSE)/VLOOKUP("OSUPREGECO_"&A33,Output!$C:$AQ,6,FALSE),3) ->  | O33: =ROUND(VLOOKUP("OSUPJEUNEREGECO_"&$A33,Output!$C:$AQ,12,FALSE)/VLOOKUP("OSUPREGECO_"&A33,Output!$C:$AQ,6,FALSE),3) ->  | R33: =ROUND(VLOOKUP("OSUPVIEUXTOTREGECO_"&$A33,Output!$C:$AQ,7,FALSE)/VLOOKUP("OSUPREGECO_"&A33,Output!$C:$AQ,6,FALSE),3) ->  | T33: =ROUND(VLOOKUP("OSUPVIEUXTOTREGECO_"&$A33,Output!$C:$AQ,12,FALSE)/VLOOKUP("OSUPREGECO_"&A33,Output!$C:$AQ,6,FALSE),3) ->  | W33: 0 | AA33: =Tableaux!$O$33 -> 08764 | AB33: =W33 -> 0
G34: =VLOOKUP(CONCATENATE("OSUPVIEUXALERTEREGECO_"&A34),Output!$C:$AQ,6,FALSE) ->  | H34: =VLOOKUP(CONCATENATE("OSUPVIEUXACCEPTREGECO_"&A34),Output!$C:$AQ,6,FALSE) ->  | I34: =VLOOKUP(CONCATENATE("OSUPJEUNEALERTEREGECO_"&A34),Output!$C:$AQ,6,FALSE) ->  | J34: =VLOOKUP(CONCATENATE("OSUPJEUNEACCEPTREGECO_"&A34),Output!$C:$AQ,6,FALSE) ->  | K34: =VLOOKUP(CONCATENATE("OSUPREGECO_"&A34),Output!$C:$AQ,6,FALSE) ->  | M34: =ROUND(VLOOKUP("OSUPJEUNEREGECO_"&A34,Output!$C:$AQ,7,FALSE)/VLOOKUP("OSUPREGECO_"&A34,Output!$C:$AQ,6,FALSE),3) ->  | O34: =ROUND(VLOOKUP("OSUPJEUNEREGECO_"&$A34,Output!$C:$AQ,12,FALSE)/VLOOKUP("OSUPREGECO_"&A34,Output!$C:$AQ,6,FALSE),3) ->  | R34: =ROUND(VLOOKUP("OSUPVIEUXTOTREGECO_"&$A34,Output!$C:$AQ,7,FALSE)/VLOOKUP("OSUPREGECO_"&A34,Output!$C:$AQ,6,FALSE),3) ->  | T34: =ROUND(VLOOKUP("OSUPVIEUXTOTREGECO_"&$A34,Output!$C:$AQ,12,FALSE)/VLOOKUP("OSUPREGECO_"&A34,Output!$C:$AQ,6,FALSE),3) ->  | W34: 0 | AA34: =Tableaux!$O$33 -> 08764 | AB34: 0
G35: =VLOOKUP(CONCATENATE("OSUPVIEUXALERTEREGECO_"&A35),Output!$C:$AQ,6,FALSE) ->  | H35: =VLOOKUP(CONCATENATE("OSUPVIEUXACCEPTREGECO_"&A35),Output!$C:$AQ,6,FALSE) ->  | I35: =VLOOKUP(CONCATENATE("OSUPJEUNEALERTEREGECO_"&A35),Output!$C:$AQ,6,FALSE) ->  | J35: =VLOOKUP(CONCATENATE("OSUPJEUNEACCEPTREGECO_"&A35),Output!$C:$AQ,6,FALSE) ->  | K35: =VLOOKUP(CONCATENATE("OSUPREGECO_"&A35),Output!$C:$AQ,6,FALSE) ->  | M35: =ROUND(VLOOKUP("OSUPJEUNEREGECO_"&A35,Output!$C:$AQ,7,FALSE)/VLOOKUP("OSUPREGECO_"&A35,Output!$C:$AQ,6,FALSE),3) ->  | O35: =ROUND(VLOOKUP("OSUPJEUNEREGECO_"&$A35,Output!$C:$AQ,12,FALSE)/VLOOKUP("OSUPREGECO_"&A35,Output!$C:$AQ,6,FALSE),3) ->  | R35: =ROUND(VLOOKUP("OSUPVIEUXTOTREGECO_"&$A35,Output!$C:$AQ,7,FALSE)/VLOOKUP("OSUPREGECO_"&A35,Output!$C:$AQ,6,FALSE),3) ->  | T35: =ROUND(VLOOKUP("OSUPVIEUXTOTREGECO_"&$A35,Output!$C:$AQ,12,FALSE)/VLOOKUP("OSUPREGECO_"&A35,Output!$C:$AQ,6,FALSE),3) ->  | W35: 0 | AA35: =Tableaux!$O$33 -> 08764 | AB35: 0
G36: =VLOOKUP(CONCATENATE("OSUPVIEUXALERTEREGECO_"&A36),Output!$C:$AQ,6,FALSE) ->  | H36: =VLOOKUP(CONCATENATE("OSUPVIEUXACCEPTREGECO_"&A36),Output!$C:$AQ,6,FALSE) ->  | I36: =VLOOKUP(CONCATENATE("OSUPJEUNEALERTEREGECO_"&A36),Output!$C:$AQ,6,FALSE) ->  | J36: =VLOOKUP(CONCATENATE("OSUPJEUNEACCEPTREGECO_"&A36),Output!$C:$AQ,6,FALSE) ->  | K36: =VLOOKUP(CONCATENATE("OSUPREGECO_"&A36),Output!$C:$AQ,6,FALSE) ->  | M36: =ROUND(VLOOKUP("OSUPJEUNEREGECO_"&A36,Output!$C:$AQ,7,FALSE)/VLOOKUP("OSUPREGECO_"&A36,Output!$C:$AQ,6,FALSE),3) ->  | O36: =ROUND(VLOOKUP("OSUPJEUNEREGECO_"&$A36,Output!$C:$AQ,12,FALSE)/VLOOKUP("OSUPREGECO_"&A36,Output!$C:$AQ,6,FALSE),3) ->  | R36: =ROUND(VLOOKUP("OSUPVIEUXTOTREGECO_"&$A36,Output!$C:$AQ,7,FALSE)/VLOOKUP("OSUPREGECO_"&A36,Output!$C:$AQ,6,FALSE),3) ->  | T36: =ROUND(VLOOKUP("OSUPVIEUXTOTREGECO_"&$A36,Output!$C:$AQ,12,FALSE)/VLOOKUP("OSUPREGECO_"&A36,Output!$C:$AQ,6,FALSE),3) ->  | W36: 0 | AA36: =Tableaux!$O$33 -> 08764 | AB36: 0
G37: =VLOOKUP(CONCATENATE("OSUPVIEUXALERTEREGECO_"&A37),Output!$C:$AQ,6,FALSE) ->  | H37: =VLOOKUP(CONCATENATE("OSUPVIEUXACCEPTREGECO_"&A37),Output!$C:$AQ,6,FALSE) ->  | I37: =VLOOKUP(CONCATENATE("OSUPJEUNEALERTEREGECO_"&A37),Output!$C:$AQ,6,FALSE) ->  | J37: =VLOOKUP(CONCATENATE("OSUPJEUNEACCEPTREGECO_"&A37),Output!$C:$AQ,6,FALSE) ->  | K37: =VLOOKUP(CONCATENATE("OSUPREGECO_"&A37),Output!$C:$AQ,6,FALSE) ->  | M37: =ROUND(VLOOKUP("OSUPJEUNEREGECO_"&A37,Output!$C:$AQ,7,FALSE)/VLOOKUP("OSUPREGECO_"&A37,Output!$C:$AQ,6,FALSE),3) ->  | O37: =ROUND(VLOOKUP("OSUPJEUNEREGECO_"&$A37,Output!$C:$AQ,12,FALSE)/VLOOKUP("OSUPREGECO_"&A37,Output!$C:$AQ,6,FALSE),3) ->  | R37: =ROUND(VLOOKUP("OSUPVIEUXTOTREGECO_"&$A37,Output!$C:$AQ,7,FALSE)/VLOOKUP("OSUPREGECO_"&A37,Output!$C:$AQ,6,FALSE),3) ->  | T37: =ROUND(VLOOKUP("OSUPVIEUXTOTREGECO_"&$A37,Output!$C:$AQ,12,FALSE)/VLOOKUP("OSUPREGECO_"&A37,Output!$C:$AQ,6,FALSE),3) ->  | W37: 0 | AA37: =Tableaux!$O$33 -> 08764 | AB37: 0
G38: =VLOOKUP(CONCATENATE("OSUPVIEUXALERTEREGECO_"&A38),Output!$C:$AQ,6,FALSE) ->  | H38: =VLOOKUP(CONCATENATE("OSUPVIEUXACCEPTREGECO_"&A38),Output!$C:$AQ,6,FALSE) ->  | I38: =VLOOKUP(CONCATENATE("OSUPJEUNEALERTEREGECO_"&A38),Output!$C:$AQ,6,FALSE) ->  | J38: =VLOOKUP(CONCATENATE("OSUPJEUNEACCEPTREGECO_"&A38),Output!$C:$AQ,6,FALSE) ->  | K38: =VLOOKUP(CONCATENATE("OSUPREGECO_"&A38),Output!$C:$AQ,6,FALSE) ->  | M38: =ROUND(VLOOKUP("OSUPJEUNEREGECO_"&A38,Output!$C:$AQ,7,FALSE)/VLOOKUP("OSUPREGECO_"&A38,Output!$C:$AQ,6,FALSE),3) ->  | O38: =ROUND(VLOOKUP("OSUPJEUNEREGECO_"&$A38,Output!$C:$AQ,12,FALSE)/VLOOKUP("OSUPREGECO_"&A38,Output!$C:$AQ,6,FALSE),3) ->  | R38: =ROUND(VLOOKUP("OSUPVIEUXTOTREGECO_"&$A38,Output!$C:$AQ,7,FALSE)/VLOOKUP("OSUPREGECO_"&A38,Output!$C:$AQ,6,FALSE),3) ->  | T38: =ROUND(VLOOKUP("OSUPVIEUXTOTREGECO_"&$A38,Output!$C:$AQ,12,FALSE)/VLOOKUP("OSUPREGECO_"&A38,Output!$C:$AQ,6,FALSE),3) ->  | W38: 0 | AA38: =Tableaux!$O$33 -> 08764 | AB38: 0
G39: =VLOOKUP(CONCATENATE("OSUPVIEUXALERTEREGECO_"&A39),Output!$C:$AQ,6,FALSE) ->  | H39: =VLOOKUP(CONCATENATE("OSUPVIEUXACCEPTREGECO_"&A39),Output!$C:$AQ,6,FALSE) ->  | I39: =VLOOKUP(CONCATENATE("OSUPJEUNEALERTEREGECO_"&A39),Output!$C:$AQ,6,FALSE) ->  | J39: =VLOOKUP(CONCATENATE("OSUPJEUNEACCEPTREGECO_"&A39),Output!$C:$AQ,6,FALSE) ->  | K39: =VLOOKUP(CONCATENATE("OSUPREGECO_"&A39),Output!$C:$AQ,6,FALSE) ->  | M39: =ROUND(VLOOKUP("OSUPJEUNEREGECO_"&A39,Output!$C:$AQ,7,FALSE)/VLOOKUP("OSUPREGECO_"&A39,Output!$C:$AQ,6,FALSE),3) ->  | O39: =ROUND(VLOOKUP("OSUPJEUNEREGECO_"&$A39,Output!$C:$AQ,12,FALSE)/VLOOKUP("OSUPREGECO_"&A39,Output!$C:$AQ,6,FALSE),3) ->  | R39: =ROUND(VLOOKUP("OSUPVIEUXTOTREGECO_"&$A39,Output!$C:$AQ,7,FALSE)/VLOOKUP("OSUPREGECO_"&A39,Output!$C:$AQ,6,FALSE),3) ->  | T39: =ROUND(VLOOKUP("OSUPVIEUXTOTREGECO_"&$A39,Output!$C:$AQ,12,FALSE)/VLOOKUP("OSUPREGECO_"&A39,Output!$C:$AQ,6,FALSE),3) ->  | W39: 0 | AA39: =Tableaux!$O$33 -> 08764 | AB39: 0
G40: =VLOOKUP(CONCATENATE("OSUPVIEUXALERTEREGECO_"&A40),Output!$C:$AQ,6,FALSE) ->  | H40: =VLOOKUP(CONCATENATE("OSUPVIEUXACCEPTREGECO_"&A40),Output!$C:$AQ,6,FALSE) ->  | I40: =VLOOKUP(CONCATENATE("OSUPJEUNEALERTEREGECO_"&A40),Output!$C:$AQ,6,FALSE) ->  | J40: =VLOOKUP(CONCATENATE("OSUPJEUNEACCEPTREGECO_"&A40),Output!$C:$AQ,6,FALSE) ->  | K40: =VLOOKUP(CONCATENATE("OSUPREGECO_"&A40),Output!$C:$AQ,6,FALSE) ->  | M40: =ROUND(VLOOKUP("OSUPJEUNEREGECO_"&A40,Output!$C:$AQ,7,FALSE)/VLOOKUP("OSUPREGECO_"&A40,Output!$C:$AQ,6,FALSE),3) ->  | O40: =ROUND(VLOOKUP("OSUPJEUNEREGECO_"&$A40,Output!$C:$AQ,12,FALSE)/VLOOKUP("OSUPREGECO_"&A40,Output!$C:$AQ,6,FALSE),3) ->  | R40: =ROUND(VLOOKUP("OSUPVIEUXTOTREGECO_"&$A40,Output!$C:$AQ,7,FALSE)/VLOOKUP("OSUPREGECO_"&A40,Output!$C:$AQ,6,FALSE),3) ->  | T40: =ROUND(VLOOKUP("OSUPVIEUXTOTREGECO_"&$A40,Output!$C:$AQ,12,FALSE)/VLOOKUP("OSUPREGECO_"&A40,Output!$C:$AQ,6,FALSE),3) ->  | W40: 0 | AA40: =Tableaux!$O$33 -> 08764 | AB40: 0
G41: =VLOOKUP(CONCATENATE("OSUPVIEUXALERTEREGECO_"&A41),Output!$C:$AQ,6,FALSE) ->  | H41: =VLOOKUP(CONCATENATE("OSUPVIEUXACCEPTREGECO_"&A41),Output!$C:$AQ,6,FALSE) ->  | I41: =VLOOKUP(CONCATENATE("OSUPJEUNEALERTEREGECO_"&A41),Output!$C:$AQ,6,FALSE) ->  | J41: =VLOOKUP(CONCATENATE("OSUPJEUNEACCEPTREGECO_"&A41),Output!$C:$AQ,6,FALSE) ->  | K41: =VLOOKUP(CONCATENATE("OSUPREGECO_"&A41),Output!$C:$AQ,6,FALSE) ->  | M41: =ROUND(VLOOKUP("OSUPJEUNEREGECO_"&A41,Output!$C:$AQ,7,FALSE)/VLOOKUP("OSUPREGECO_"&A41,Output!$C:$AQ,6,FALSE),3) ->  | O41: =ROUND(VLOOKUP("OSUPJEUNEREGECO_"&$A41,Output!$C:$AQ,12,FALSE)/VLOOKUP("OSUPREGECO_"&A41,Output!$C:$AQ,6,FALSE),3) ->  | R41: =ROUND(VLOOKUP("OSUPVIEUXTOTREGECO_"&$A41,Output!$C:$AQ,7,FALSE)/VLOOKUP("OSUPREGECO_"&A41,Output!$C:$AQ,6,FALSE),3) ->  | T41: =ROUND(VLOOKUP("OSUPVIEUXTOTREGECO_"&$A41,Output!$C:$AQ,12,FALSE)/VLOOKUP("OSUPREGECO_"&A41,Output!$C:$AQ,6,FALSE),3) ->  | W41: 0 | AA41: =Tableaux!$O$33 -> 08764 | AB41: 0
G42: =VLOOKUP(CONCATENATE("OSUPVIEUXALERTEREGECO_"&A42),Output!$C:$AQ,6,FALSE) ->  | H42: =VLOOKUP(CONCATENATE("OSUPVIEUXACCEPTREGECO_"&A42),Output!$C:$AQ,6,FALSE) ->  | I42: =VLOOKUP(CONCATENATE("OSUPJEUNEALERTEREGECO_"&A42),Output!$C:$AQ,6,FALSE) ->  | J42: =VLOOKUP(CONCATENATE("OSUPJEUNEACCEPTREGECO_"&A42),Output!$C:$AQ,6,FALSE) ->  | K42: =VLOOKUP(CONCATENATE("OSUPREGECO_"&A42),Output!$C:$AQ,6,FALSE) ->  | M42: =ROUND(VLOOKUP("OSUPJEUNEREGECO_"&A42,Output!$C:$AQ,7,FALSE)/VLOOKUP("OSUPREGECO_"&A42,Output!$C:$AQ,6,FALSE),3) ->  | O42: =ROUND(VLOOKUP("OSUPJEUNEREGECO_"&$A42,Output!$C:$AQ,12,FALSE)/VLOOKUP("OSUPREGECO_"&A42,Output!$C:$AQ,6,FALSE),3) ->  | R42: =ROUND(VLOOKUP("OSUPVIEUXTOTREGECO_"&$A42,Output!$C:$AQ,7,FALSE)/VLOOKUP("OSUPREGECO_"&A42,Output!$C:$AQ,6,FALSE),3) ->  | T42: =ROUND(VLOOKUP("OSUPVIEUXTOTREGECO_"&$A42,Output!$C:$AQ,12,FALSE)/VLOOKUP("OSUPREGECO_"&A42,Output!$C:$AQ,6,FALSE),3) ->  | W42: 0 | AA42: =Tableaux!$O$33 -> 08764 | AB42: 0

Sheet Output
C1: 1 | D1: 2 | E1: 3 | F1: 4 | G1: 5 | H1: 6 | I1: 7 | J1: 8 | K1: 9 | L1: 10 | M1: 11 | N1: 12 | O1: 13 | P1: 14 | Q1: 15 | R1: 16 | S1: 17 | T1: 18 | U1: 19 | V1: 20 | W1: 21 | X1: 22 | Y1: 23 | Z1: 24 | AA1: 25 | AB1: 26 | AC1: 27 | AD1: 28 | AE1: 29 | AF1: 30 | AG1: 31 | AH1: 32 | AI1: 33 | AJ1: 34 | AK1: 35 | AL1: 36 | AM1: 37 | AN1: 38 | AO1: 39 | AP1: 40 | AQ1: 41
A2: Record | B2: GROUP | C2: NAME | D2: DESCRIPTIO | E2: ATTRIBUTE | F2: MINIMUM | G2: MAXIMUM | H2: PERIOD0 | I2: PERIOD1 | J2: PERIOD2 | K2: PERIOD3 | L2: PERIOD4 | M2: PERIOD5 | N2: PERIOD6 | O2: PERIOD7 | P2: PERIOD8 | Q2: PERIOD9 | R2: PERIOD10 | S2: PERIOD11 | T2: PERIOD12 | U2: PERIOD13 | V2: PERIOD14 | W2: PERIOD15 | X2: PERIOD16 | Y2: PERIOD17 | Z2: PERIOD18 | AA2: PERIOD19 | AB2: PERIOD20 | AC2: PERIOD21 | AD2: PERIOD22 | AE2: PERIOD23 | AF2: PERIOD24 | AG2: PERIOD25 | AH2: PERIOD26 | AI2: PERIOD27 | AJ2: PERIOD28 | AK2: PERIOD29 | AL2: PERIOD30 | AM2: Moyemme P2 à P6 | AN2: Moyenne P7 à P11 | AO2: Moyenne P12 à P20 | AP2: Moyenne P21 à P30 | AQ2: Moyenne P2 à P30
B3: <Not in Output group> | C3: OSUPTOT | D3: Superficie Totale | F3: 446330.1 | G3: 446330.1 | H3: 446330.1 | I3: 446330.1 | J3: 446330.1 | K3: 446330.1 | L3: 446330.1 | M3: 446330.1 | N3: 446330.1 | O3: 446330.1 | P3: 446330.1 | Q3: 446330.1 | R3: 446330.1 | S3: 446330.1 | T3: 446330.1 | U3: 446330.1 | V3: 446330.1 | W3: 446330.1 | X3: 446330.1 | Y3: 446330.1 | Z3: 446330.1 | AA3: 446330.1 | AB3: 446330.1 | AC3: 446330.1 | AD3: 446330.1 | AE3: 446330.1 | AF3: 446330.1 | AG3: 446330.1 | AH3: 446330.1 | AI3: 446330.1 | AJ3: 446330.1 | AK3: 446330.1 | AL3: 446330.1 | AM3: =AVERAGE(J3:N3) -> 446330.1 | AN3: =AVERAGE(O3:S3) -> 446330.1 | AO3: =AVERAGE(T3:AB3) -> 446330.1 | AP3: =AVERAGE(AC3:AL3) -> 446330.1 | AQ3: =AVERAGE(J3:AL3) -> 446330.1
B4: <Not in Output group> | C4: OSUPINC | D4: Superficie InclusActions par courbe | F4: 289048.57 | G4: 294955.4 | H4: 294955.4 | I4: 294415.77 | J4: 293893.41 | K4: 293361.01 | L4: 292765.99 | M4: 292236.97 | N4: 291838.37 | O4: 291258.48 | P4: 290817.33 | Q4: 290426.19 | R4: 290033.03 | S4: 289803.16 | T4: 289732.08 | U4: 289578.36 | V4: 289416.51 | W4: 289224.12 | X4: 289203.03 | Y4: 289201.59 | Z4: 289150.18 | AA4: 289104.47 | AB4: 289093.16 | AC4: 289078.13 | AD4: 289078.13 | AE4: 289050.81 | AF4: 289050.23 | AG4: 289050.23 | AH4: 289048.57 | AI4: 289048.57 | AJ4: 289048.57 | AK4: 289048.57 | AL4: 289048.57 | AM4: =AVERAGE(J4:N4) -> 292819.15 | AN4: =AVERAGE(O4:S4) -> 290467.638 | AO4: =AVERAGE(T4:AB4) -> 289300.3889 | AP4: =AVERAGE(AC4:AL4) -> 289055.038 | AQ4: =AVERAGE(J4:AL4) -> 290023.7179
B5: <Not in Output group> | C5: OSUPregECO | D5: Superficie Disponible aux RÚsultats ╔cologiques | F5: 315275.67 | G5: 321182.5 | H5: 321182.5 | I5: 320642.87 | J5: 320120.51 | K5: 319588.11 | L5: 318993.09 | M5: 318464.07 | N5: 318065.47 | O5: 317485.58 | P5: 317044.43 | Q5: 316653.29 | R5: 316260.13 | S5: 316030.26 | T5: 315959.18 | U5: 315805.46 | V5: 315643.61 | W5: 315451.22 | X5: 315430.13 | Y5: 315428.69 | Z5: 315377.28 | AA5: 315331.57 | AB5: 315320.26 | AC5: 315305.23 | AD5: 315305.23 | AE5: 315277.91 | AF5: 315277.33 | AG5: 315277.33 | AH5: 315275.67 | AI5: 315275.67 | AJ5: 315275.67 | AK5: 315275.67 | AL5: 315275.67 | AM5: 319046.25 | AN5: 316694.738 | AO5: 315527.4889 | AP5: 315282.138 | AQ5: 316250.8179
B6: <Not in Output group> | C6: OSUPEXIN | D6: Superficie ExcluActionsInclus | F6: 24626.6 | G6: 24626.6 | H6: 24626.6 | I6: 24626.6 | J6: 24626.6 | K6: 24626.6 | L6: 24626.6 | M6: 24626.6 | N6: 24626.6 | O6: 24626.6 | P6: 24626.6 | Q6: 24626.6 | R6: 24626.6 | S6: 24626.6 | T6: 24626.6 | U6: 24626.6 | V6: 24626.6 | W6: 24626.6 | X6: 24626.6 | Y6: 24626.6 | Z6: 24626.6 | AA6: 24626.6 | AB6: 24626.6 | AC6: 24626.6 | AD6: 24626.6 | AE6: 24626.6 | AF6: 24626.6 | AG6: 24626.6 | AH6: 24626.6 | AI6: 24626.6 | AJ6: 24626.6 | AK6: 24626.6 | AL6: 24626.6 | AM6: 24626.6 | AN6: 24626.6 | AO6: 24626.6 | AP6: 24626.6 | AQ6: 24626.6
B7: <Not in Output group> | C7: OSUPEXTI | D7: Superficie Improductive | F7: 50125.9 | G7: 50125.9 | H7: 50125.9 | I7: 50125.9 | J7: 50125.9 | K7: 50125.9 | L7: 50125.9 | M7: 50125.9 | N7: 50125.9 | O7: 50125.9 | P7: 50125.9 | Q7: 50125.9 | R7: 50125.9 | S7: 50125.9 | T7: 50125.9 | U7: 50125.9 | V7: 50125.9 | W7: 50125.9 | X7: 50125.9 | Y7: 50125.9 | Z7: 50125.9 | AA7: 50125.9 | AB7: 50125.9 | AC7: 50125.9 | AD7: 50125.9 | AE7: 50125.9 | AF7: 50125.9 | AG7: 50125.9 | AH7: 50125.9 | AI7: 50125.9 | AJ7: 50125.9 | AK7: 50125.9 | AL7: 50125.9 | AM7: 50125.9 | AN7: 50125.9 | AO7: 50125.9 | AP7: 50125.9 | AQ7: 50125.9
B8: <Not in Output group> | C8: OSUPLOCK | D8: Superficie Sous Verrous | F8: 2255.79 | G8: 96613.65 | H8: 96164.8 | I8: 96613.65 | J8: 74865.25 | K8: 62910.55 | L8: 56513.05 | M8: 24648.45 | N8: 24117.39 | O8: 23218.39 | P8: 22383.03 | Q8: 4020.45 | R8: 3303.9 | S8: 3231.6 | T8: 2845.86 | U8: 2402.64 | V8: 2255.79 | W8: 2609.57 | X8: 2648.72 | Y8: 2392.43 | Z8: 2317.3 | AA8: 2614.53 | AB8: 2653.38 | AC8: 2400.1 | AD8: 2317.3 | AE8: 2614.53 | AF8: 2631.93 | AG8: 2435.64 | AH8: 2317.3 | AI8: 2614.53 | AJ8: 2847.86 | AK8: 2653.38 | AL8: 2317.3 | AM8: 48610.938 | AN8: 11231.474 | AO8: 2526.691111 | AP8: 2514.987 | AQ8: 11969.03966
B9: Economique | C9: oSupTcsdDEG_1_T100% | D9: oSupTcsdDEG_1_T100% | F9: 0 | G9: 1050 | H9: 0 | I9: 143.73 | J9: 1.88 | K9: 371.24 | L9: 601.88 | M9: 1050 | N9: 1050 | O9: 954.55 | P9: 1050 | Q9: 1050 | R9: 977.64 | S9: 846.03 | T9: 1031.6 | U9: 1050 | V9: 389.03 | W9: 0 | X9: 1031.6 | Y9: 1039.84 | Z9: 877.96 | AA9: 950 | AB9: 1031.6 | AC9: 950.4 | AD9: 588.98 | AE9: 915.45 | AF9: 1050 | AG9: 720.68 | AH9: 1006.05 | AI9: 389.03 | AJ9: 0 | AK9: 725.48 | AL9: 1050 | AM9: 615 | AN9: 975.644 | AO9: 822.4033333 | AP9: 739.607 | AQ9: 784.5144828
B10: Economique | C10: oSupTcsdDEG_2_T100% | D10: oSupTcsdDEG_2_T100% | F10: 0 | G10: 366.22 | H10: 0 | I10: 0 | J10: 0 | K10: 0 | L10: 0 | M10: 0 | N10: 0 | O10: 0 | P10: 0 | Q10: 0 | R10: 0 | S10: 0 | T10: 0 | U10: 0 | V10: 0 | W10: 0 | X10: 0 | Y10: 0 | Z10: 0 | AA10: 0 | AB10: 0 | AC10: 0 | AD10: 0 | AE10: 0 | AF10: 0 | AG10: 0 | AH10: 0 | AI10: 366.22 | AJ10: 0 | AK10: 0 | AL10: 0 | AM10: 0 | AN10: 0 | AO10: 0 | AP10: 36.622 | AQ10: 12.62827586
B11: Economique | C11: oSupDEG_1_T100% | D11: oSupDEG_1_T100% | F11: 0 | G11: 1050 | H11: 0 | I11: 143.73 | J11: 1.88 | K11: 371.24 | L11: 601.88 | M11: 1050 | N11: 1050 | O11: 954.55 | P11: 1050 | Q11: 1050 | R11: 977.64 | S11: 846.03 | T11: 1031.6 | U11: 1050 | V11: 389.03 | W11: 0 | X11: 1031.6 | Y11: 1039.84 | Z11: 877.96 | AA11: 950 | AB11: 1031.6 | AC11: 950.4 | AD11: 588.98 | AE11: 915.45 | AF11: 1050 | AG11: 720.68 | AH11: 1006.05 | AI11: 389.03 | AJ11: 0 | AK11: 725.48 | AL11: 1050 | AM11: 615 | AN11: 975.644 | AO11: 822.4033333 | AP11: 739.607 | AQ11: 784.5144828
B12: Economique | C12: oSupDEG_2_T100% | D12: oSupDEG_2_T100% | F12: 0 | G12: 366.22 | H12: 0 | I12: 0 | J12: 0 | K12: 0 | L12: 0 | M12: 0 | N12: 0 | O12: 0 | P12: 0 | Q12: 0 | R12: 0 | S12: 0 | T12: 0 | U12: 0 | V12: 0 | W12: 0 | X12: 0 | Y12: 0 | Z12: 0 | AA12: 0 | AB12: 0 | AC12: 0 | AD12: 0 | AE12: 0 | AF12: 0 | AG12: 0 | AH12: 0 | AI12: 366.22 | AJ12: 0 | AK12: 0 | AL12: 0 | AM12: 0 | AN12: 0 | AO12: 0 | AP12: 36.622 | AQ12: 12.62827586
B13: Economique | C13: oSupDEG_1 | D13: oSupDEG_1 | F13: 0 | G13: 1050 | H13: 0 | I13: 143.73 | J13: 1.88 | K13: 371.24 | L13: 601.88 | M13: 1050 | N13: 1050 | O13: 954.55 | P13: 1050 | Q13: 1050 | R13: 977.64 | S13: 846.03 | T13: 1031.6 | U13: 1050 | V13: 389.03 | W13: 0 | X13: 1031.6 | Y13: 1039.84 | Z13: 877.96 | AA13: 950 | AB13: 1031.6 | AC13: 950.4 | AD13: 588.98 | AE13: 915.45 | AF13: 1050 | AG13: 720.68 | AH13: 1006.05 | AI13: 389.03 | AJ13: 0 | AK13: 725.48 | AL13: 1050 | AM13: 615 | AN13: 975.644 | AO13: 822.4033333 | AP13: 739.607 | AQ13: 784.5144828
B14: Economique | C14: oSupDEG_2 | D14: oSupDEG_2 | F14: 0 | G14: 366.22 | H14: 0 | I14: 0 | J14: 0 | K14: 0 | L14: 0 | M14: 0 | N14: 0 | O14: 0 | P14: 0 | Q14: 0 | R14: 0 | S14: 0 | T14: 0 | U14: 0 | V14: 0 | W14: 0 | X14: 0 | Y14: 0 | Z14: 0 | AA14: 0 | AB14: 0 | AC14: 0 | AD14: 0 | AE14: 0 | AF14: 0 | AG14: 0 | AH14: 0 | AI14: 366.22 | AJ14: 0 | AK14: 0 | AL14: 0 | AM14: 0 | AN14: 0 | AO14: 0 | AP14: 36.622 | AQ14: 12.62827586
B15: Economique | C15: oSupTcsdSCA_LRD_T100% | D15: oSupTcsdSCA_LRD_T100% | F15: 0 | G15: 0 | H15: 0 | I15: 0 | J15: 0 | K15: 0 | L15: 0 | M15: 0 | N15: 0 | O15: 0 | P15: 0 | Q15: 0 | R15: 0 | S15: 0 | T15: 0 | U15: 0 | V15: 0 | W15: 0 | X15: 0 | Y15: 0 | Z15: 0 | AA15: 0 | AB15: 0 | AC15: 0 | AD15: 0 | AE15: 0 | AF15: 0 | AG15: 0 | AH15: 0 | AI15: 0 | AJ15: 0 | AK15: 0 | AL15: 0 | AM15: 0 | AN15: 0 | AO15: 0 | AP15: 0 | AQ15: 0
B16: Economique | C16: oSupTcsdSCA_PART_T100% | D16: oSupTcsdSCA_PART_T100% | F16: 0 | G16: 444.62 | H16: 0 | I16: 70.5 | J16: 96 | K16: 96 | L16: 96 | M16: 96 | N16: 96 | O16: 96 | P16: 29.45 | Q16: 27.99 | R16: 69.65 | S16: 82.23 | T16: 33.82 | U16: 27.99 | V16: 69.65 | W16: 81.53 | X16: 33.82 | Y16: 31.21 | Z16: 69.56 | AA16: 78.41 | AB16: 33.82 | AC16: 31.66 | AD16: 69.11 | AE16: 78.41 | AF16: 33.82 | AG16: 40.12 | AH16: 60.65 | AI16: 444.62 | AJ16: 66.66 | AK16: 39.94 | AL16: 27.99 | AM16: 96 | AN16: 61.064 | AO16: 51.09 | AP16: 89.298 | AQ16: 73.72793103
B17: Economique | C17: oSupTcsdSCA_REG_T100% | D17: oSupTcsdSCA_REG_T100% | F17: 0 | G17: 5220 | H17: 0 | I17: 5220 | J17: 4170.04 | K17: 4131.82 | L17: 4107.97 | M17: 4061.61 | N17: 4061.61 | O17: 4146.53 | P17: 4200 | Q17: 4200 | R17: 4200 | S17: 4200 | T17: 4200 | U17: 4200 | V17: 4200 | W17: 4200 | X17: 4200 | Y17: 4200 | Z17: 4200 | AA17: 4200 | AB17: 4200 | AC17: 4200 | AD17: 4200 | AE17: 4200 | AF17: 4200 | AG17: 4200 | AH17: 4200 | AI17: 3833.78 | AJ17: 4200 | AK17: 4200 | AL17: 4200 | AM17: 4106.61 | AN17: 4189.306 | AO17: 4200 | AP17: 4163.378 | AQ17: 4169.426207
B18: Economique | C18: oSupSCA_LRD_T100% | D18: oSupSCA_LRD_T100% | F18: 0 | G18: 0 | H18: 0 | I18: 0 | J18: 0 | K18: 0 | L18: 0 | M18: 0 | N18: 0 | O18: 0 | P18: 0 | Q18: 0 | R18: 0 | S18: 0 | T18: 0 | U18: 0 | V18: 0 | W18: 0 | X18: 0 | Y18: 0 | Z18: 0 | AA18: 0 | AB18: 0 | AC18: 0 | AD18: 0 | AE18: 0 | AF18: 0 | AG18: 0 | AH18: 0 | AI18: 0 | AJ18: 0 | AK18: 0 | AL18: 0 | AM18: 0 | AN18: 0 | AO18: 0 | AP18: 0 | AQ18: 0
B19: Economique | C19: oSupSCA_PART_T100% | D19: oSupSCA_PART_T100% | F19: 0 | G19: 444.62 | H19: 0 | I19: 70.5 | J19: 96 | K19: 96 | L19: 96 | M19: 96 | N19: 96 | O19: 96 | P19: 29.45 | Q19: 27.99 | R19: 69.65 | S19: 82.23 | T19: 33.82 | U19: 27.99 | V19: 69.65 | W19: 81.53 | X19: 33.82 | Y19: 31.21 | Z19: 69.56 | AA19: 78.41 | AB19: 33.82 | AC19: 31.66 | AD19: 69.11 | AE19: 78.41 | AF19: 33.82 | AG19: 40.12 | AH19: 60.65 | AI19: 444.62 | AJ19: 66.66 | AK19: 39.94 | AL19: 27.99 | AM19: 96 | AN19: 61.064 | AO19: 51.09 | AP19: 89.298 | AQ19: 73.72793103
B20: Economique | C20: oSupSCA_REG_T100% | D20: oSupSCA_REG_T100% | F20: 0 | G20: 5220 | H20: 0 | I20: 5220 | J20: 4170.04 | K20: 4131.82 | L20: 4107.97 | M20: 4061.61 | N20: 4061.61 | O20: 4146.53 | P20: 4200 | Q20: 4200 | R20: 4200 | S20: 4200 | T20: 4200 | U20: 4200 | V20: 4200 | W20: 4200 | X20: 4200 | Y20: 4200 | Z20: 4200 | AA20: 4200 | AB20: 4200 | AC20: 4200 | AD20: 4200 | AE20: 4200 | AF20: 4200 | AG20: 4200 | AH20: 4200 | AI20: 3833.78 | AJ20: 4200 | AK20: 4200 | AL20: 4200 | AM20: 4106.61 | AN20: 4189.306 | AO20: 4200 | AP20: 4163.378 | AQ20: 4169.426207
B21: Economique | C21: oSupSCA_LRD | D21: oSupSCA_LRD | F21: 0 | G21: 0 | H21: 0 | I21: 0 | J21: 0 | K21: 0 | L21: 0 | M21: 0 | N21: 0 | O21: 0 | P21: 0 | Q21: 0 | R21: 0 | S21: 0 | T21: 0 | U21: 0 | V21: 0 | W21: 0 | X21: 0 | Y21: 0 | Z21: 0 | AA21: 0 | AB21: 0 | AC21: 0 | AD21: 0 | AE21: 0 | AF21: 0 | AG21: 0 | AH21: 0 | AI21: 0 | AJ21: 0 | AK21: 0 | AL21: 0 | AM21: 0 | AN21: 0 | AO21: 0 | AP21: 0 | AQ21: 0
B22: Economique | C22: oSupSCA_PART | D22: oSupSCA_PART | F22: 0 | G22: 444.62 | H22: 0 | I22: 70.5 | J22: 96 | K22: 96 | L22: 96 | M22: 96 | N22: 96 | O22: 96 | P22: 29.45 | Q22: 27.99 | R22: 69.65 | S22: 82.23 | T22: 33.82 | U22: 27.99 | V22: 69.65 | W22: 81.53 | X22: 33.82 | Y22: 31.21 | Z22: 69.56 | AA22: 78.41 | AB22: 33.82 | AC22: 31.66 | AD22: 69.11 | AE22: 78.41 | AF22: 33.82 | AG22: 40.12 | AH22: 60.65 | AI22: 444.62 | AJ22: 66.66 | AK22: 39.94 | AL22: 27.99 | AM22: 96 | AN22: 61.064 | AO22: 51.09 | AP22: 89.298 | AQ22: 73.72793103
B23: Economique | C23: oSupSCA_REG | D23: oSupSCA_REG | F23: 0 | G23: 5220 | H23: 0 | I23: 5220 | J23: 4170.04 | K23: 4131.82 | L23: 4107.97 | M23: 4061.61 | N23: 4061.61 | O23: 4146.53 | P23: 4200 | Q23: 4200 | R23: 4200 | S23: 4200 | T23: 4200 | U23: 4200 | V23: 4200 | W23: 4200 | X23: 4200 | Y23: 4200 | Z23: 4200 | AA23: 4200 | AB23: 4200 | AC23: 4200 | AD23: 4200 | AE23: 4200 | AF23: 4200 | AG23: 4200 | AH23: 4200 | AI23: 3833.78 | AJ23: 4200 | AK23: 4200 | AL23: 4200 | AM23: 4106.61 | AN23: 4189.306 | AO23: 4200 | AP23: 4163.378 | AQ23: 4169.426207
B24: Economique | C24: oSupActREG_T100% | D24: oSupActREG_T100% | F24: 0 | G24: 366.22 | H24: 0 | I24: 0 | J24: 0 | K24: 0 | L24: 0 | M24: 0 | N24: 0 | O24: 0 | P24: 0 | Q24: 0 | R24: 0 | S24: 0 | T24: 0 | U24: 0 | V24: 0 | W24: 0 | X24: 0 | Y24: 0 | Z24: 0 | AA24: 0 | AB24: 0 | AC24: 0 | AD24: 0 | AE24: 0 | AF24: 0 | AG24: 0 | AH24: 0 | AI24: 366.22 | AJ24: 0 | AK24: 0 | AL24: 0 | AM24: 0 | AN24: 0 | AO24: 0 | AP24: 36.622 | AQ24: 12.62827586
B25: Economique | C25: oSupREG_T100% | D25: oSupREG_T100% | F25: 0 | G25: 366.22 | H25: 0 | I25: 0 | J25: 0 | K25: 0 | L25: 0 | M25: 0 | N25: 0 | O25: 0 | P25: 0 | Q25: 0 | R25: 0 | S25: 0 | T25: 0 | U25: 0 | V25: 0 | W25: 0 | X25: 0 | Y25: 0 | Z25: 0 | AA25: 0 | AB25: 0 | AC25: 0 | AD25: 0 | AE25: 0 | AF25: 0 | AG25: 0 | AH25: 0 | AI25: 366.22 | AJ25: 0 | AK25: 0 | AL25: 0 | AM25: 0 | AN25: 0 | AO25: 0 | AP25: 36.622 | AQ25: 12.62827586
B26: Economique | C26: oSupREG | D26: oSupREG | F26: 0 | G26: 366.22 | H26: 0 | I26: 0 | J26: 0 | K26: 0 | L26: 0 | M26: 0 | N26: 0 | O26: 0 | P26: 0 | Q26: 0 | R26: 0 | S26: 0 | T26: 0 | U26: 0 | V26: 0 | W26: 0 | X26: 0 | Y26: 0 | Z26: 0 | AA26: 0 | AB26: 0 | AC26: 0 | AD26: 0 | AE26: 0 | AF26: 0 | AG26: 0 | AH26: 0 | AI26: 366.22 | AJ26: 0 | AK26: 0 | AL26: 0 | AM26: 0 | AN26: 0 | AO26: 0 | AP26: 36.622 | AQ26: 12.62827586
B27: Economique | C27: oSupActCPIRL_FIN_T100% | D27: oSupActCPIRL_FIN_T100% | F27: 0 | G27: 523.38 | H27: 0 | I27: 0 | J27: 0 | K27: 0 | L27: 0 | M27: 0 | N27: 0 | O27: 0 | P27: 448.85 | Q27: 523.09 | R27: 245.64 | S27: 161.77 | T27: 484.53 | U27: 523.38 | V27: 245.64 | W27: 166.44 | X27: 484.53 | Y27: 501.93 | Z27: 246.24 | AA27: 187.3 | AB27: 484.53 | AC27: 498.93 | AD27: 249.24 | AE27: 187.3 | AF27: 484.53 | AG27: 442.54 | AH27: 305.64 | AI27: 187.3 | AJ27: 265.61 | AK27: 443.71 | AL27: 523.38 | AM27: 0 | AN27: 275.87 | AO27: 369.3911111 | AP27: 358.818 | AQ27: 285.9327586
B28: Economique | C28: oSupActCPIRL_INI_T100% | D28: oSupActCPIRL_INI_T100% | F28: 0 | G28: 640 | H28: 0 | I28: 470 | J28: 640 | K28: 640 | L28: 640 | M28: 640 | N28: 640 | O28: 640 | P28: 196.33 | Q28: 186.62 | R28: 464.36 | S28: 548.23 | T28: 225.47 | U28: 186.62 | V28: 464.36 | W28: 543.56 | X28: 225.47 | Y28: 208.07 | Z28: 463.76 | AA28: 522.7 | AB28: 225.47 | AC28: 211.07 | AD28: 460.76 | AE28: 522.7 | AF28: 225.47 | AG28: 267.46 | AH28: 404.36 | AI28: 522.7 | AJ28: 444.39 | AK28: 266.29 | AL28: 186.62 | AM28: 640 | AN28: 407.108 | AO28: 340.6088889 | AP28: 351.182 | AQ28: 407.3393103
B29: Economique | C29: oSupCPIRL_FIN_T100% | D29: oSupCPIRL_FIN_T100% | F29: 0 | G29: 523.38 | H29: 0 | I29: 0 | J29: 0 | K29: 0 | L29: 0 | M29: 0 | N29: 0 | O29: 0 | P29: 448.85 | Q29: 523.09 | R29: 245.64 | S29: 161.77 | T29: 484.53 | U29: 523.38 | V29: 245.64 | W29: 166.44 | X29: 484.53 | Y29: 501.93 | Z29: 246.24 | AA29: 187.3 | AB29: 484.53 | AC29: 498.93 | AD29: 249.24 | AE29: 187.3 | AF29: 484.53 | AG29: 442.54 | AH29: 305.64 | AI29: 187.3 | AJ29: 265.61 | AK29: 443.71 | AL29: 523.38 | AM29: 0 | AN29: 275.87 | AO29: 369.3911111 | AP29: 358.818 | AQ29: 285.9327586
B30: Economique | C30: oSupCPIRL_INI_T100% | D30: oSupCPIRL_INI_T100% | F30: 0 | G30: 640 | H30: 0 | I30: 470 | J30: 640 | K30: 640 | L30: 640 | M30: 640 | N30: 640 | O30: 640 | P30: 196.33 | Q30: 186.62 | R30: 464.36 | S30: 548.23 | T30: 225.47 | U30: 186.62 | V30: 464.36 | W30: 543.56 | X30: 225.47 | Y30: 208.07 | Z30: 463.76 | AA30: 522.7 | AB30: 225.47 | AC30: 211.07 | AD30: 460.76 | AE30: 522.7 | AF30: 225.47 | AG30: 267.46 | AH30: 404.36 | AI30: 522.7 | AJ30: 444.39 | AK30: 266.29 | AL30: 186.62 | AM30: 640 | AN30: 407.108 | AO30: 340.6088889 | AP30: 351.182 | AQ30: 407.3393103
B31: Economique | C31: oSupCPIRL_FIN | D31: oSupCPIRL_FIN | F31: 0 | G31: 523.38 | H31: 0 | I31: 0 | J31: 0 | K31: 0 | L31: 0 | M31: 0 | N31: 0 | O31: 0 | P31: 448.85 | Q31: 523.09 | R31: 245.64 | S31: 161.77 | T31: 484.53 | U31: 523.38 | V31: 245.64 | W31: 166.44 | X31: 484.53 | Y31: 501.93 | Z31: 246.24 | AA31: 187.3 | AB31: 484.53 | AC31: 498.93 | AD31: 249.24 | AE31: 187.3 | AF31: 484.53 | AG31: 442.54 | AH31: 305.64 | AI31: 187.3 | AJ31: 265.61 | AK31: 443.71 | AL31: 523.38 | AM31: 0 | AN31: 275.87 | AO31: 369.3911111 | AP31: 358.818 | AQ31: 285.9327586
B32: Economique | C32: oSupCPIRL_INI | D32: oSupCPIRL_INI | F32: 0 | G32: 640 | H32: 0 | I32: 470 | J32: 640 | K32: 640 | L32: 640 | M32: 640 | N32: 640 | O32: 640 | P32: 196.33 | Q32: 186.62 | R32: 464.36 | S32: 548.23 | T32: 225.47 | U32: 186.62 | V32: 464.36 | W32: 543.56 | X32: 225.47 | Y32: 208.07 | Z32: 463.76 | AA32: 522.7 | AB32: 225.47 | AC32: 211.07 | AD32: 460.76 | AE32: 522.7 | AF32: 225.47 | AG32: 267.46 | AH32: 404.36 | AI32: 522.7 | AJ32: 444.39 | AK32: 266.29 | AL32: 186.62 | AM32: 640 | AN32: 407.108 | AO32: 340.6088889 | AP32: 351.182 | AQ32: 407.3393103
B33: Economique | C33: oSupActCT_T100% | D33: oSupActCT_T100% | F33: 0 | G33: 18333.36 | H33: 0 | I33: 11521.75 | J33: 11035.22 | K33: 11367.71 | L33: 13024.84 | M33: 12091.09 | N33: 10410.25 | O33: 16988.99 | P33: 15409.96 | Q33: 16326.47 | R33: 17002.44 | S33: 15886.86 | T33: 15041.65 | U33: 16663.1 | V33: 15146.93 | W33: 17682.41 | X33: 15305.45 | Y33: 16173.07 | Z33: 14953.55 | AA33: 14261.83 | AB33: 13894.06 | AC33: 14071.54 | AD33: 14579.54 | AE33: 14024.27 | AF33: 15093.64 | AG33: 14496.39 | AH33: 17782.22 | AI33: 15211.91 | AJ33: 16964.78 | AK33: 18333.36 | AL33: 16264.17 | AM33: 11585.822 | AN33: 16322.944 | AO33: 15458.00556 | AP33: 15682.182 | AQ33: 15016.81724
B34: Economique | C34: oSupCT_T100% | D34: oSupCT_T100% | F34: 0 | G34: 18333.36 | H34: 0 | I34: 11521.75 | J34: 11035.22 | K34: 11367.71 | L34: 13024.84 | M34: 12091.09 | N34: 10410.25 | O34: 16988.99 | P34: 15409.96 | Q34: 16326.47 | R34: 17002.44 | S34: 15886.86 | T34: 15041.65 | U34: 16663.1 | V34: 15146.93 | W34: 17682.41 | X34: 15305.45 | Y34: 16173.07 | Z34: 14953.55 | AA34: 14261.83 | AB34: 13894.06 | AC34: 14071.54 | AD34: 14579.54 | AE34: 14024.27 | AF34: 15093.64 | AG34: 14496.39 | AH34: 17782.22 | AI34: 15211.91 | AJ34: 16964.78 | AK34: 18333.36 | AL34: 16264.17 | AM34: 11585.822 | AN34: 16322.944 | AO34: 15458.00556 | AP34: 15682.182 | AQ34: 15016.81724
B35: Economique | C35: oSupCT | D35: oSupCT | F35: 0 | G35: 18333.36 | H35: 0 | I35: 11521.75 | J35: 11035.22 | K35: 11367.71 | L35: 13024.84 | M35: 12091.09 | N35: 10410.25 | O35: 16988.99 | P35: 15409.96 | Q35: 16326.47 | R35: 17002.44 | S35: 15886.86 | T35: 15041.65 | U35: 16663.1 | V35: 15146.93 | W35: 17682.41 | X35: 15305.45 | Y35: 16173.07 | Z35: 14953.55 | AA35: 14261.83 | AB35: 13894.06 | AC35: 14071.54 | AD35: 14579.54 | AE35: 14024.27 | AF35: 15093.64 | AG35: 14496.39 | AH35: 17782.22 | AI35: 15211.91 | AJ35: 16964.78 | AK35: 18333.36 | AL35: 16264.17 | AM35: 11585.822 | AN35: 16322.944 | AO35: 15458.00556 | AP35: 15682.182 | AQ35: 15016.81724
B36: Economique | C36: oSupActPL_SEPM_E_T100% | D36: oSupActPL_SEPM_E_T100% | F36: 0 | G36: 5220 | H36: 0 | I36: 5220 | J36: 4170.04 | K36: 4131.82 | L36: 4107.97 | M36: 4061.61 | N36: 4061.61 | O36: 4146.53 | P36: 4200 | Q36: 4200 | R36: 4200 | S36: 4200 | T36: 4200 | U36: 4200 | V36: 4200 | W36: 4200 | X36: 4200 | Y36: 4200 | Z36: 4200 | AA36: 4200 | AB36: 4200 | AC36: 4200 | AD36: 4200 | AE36: 4200 | AF36: 4200 | AG36: 4200 | AH36: 4200 | AI36: 3833.78 | AJ36: 4200 | AK36: 4200 | AL36: 4200 | AM36: 4106.61 | AN36: 4189.306 | AO36: 4200 | AP36: 4163.378 | AQ36: 4169.426207
B37: Economique | C37: oSupActPL_SEPM_I_T100% | D37: oSupActPL_SEPM_I_T100% | F37: 0 | G37: 0 | H37: 0 | I37: 0 | J37: 0 | K37: 0 | L37: 0 | M37: 0 | N37: 0 | O37: 0 | P37: 0 | Q37: 0 | R37: 0 | S37: 0 | T37: 0 | U37: 0 | V37: 0 | W37: 0 | X37: 0 | Y37: 0 | Z37: 0 | AA37: 0 | AB37: 0 | AC37: 0 | AD37: 0 | AE37: 0 | AF37: 0 | AG37: 0 | AH37: 0 | AI37: 0 | AJ37: 0 | AK37: 0 | AL37: 0 | AM37: 0 | AN37: 0 | AO37: 0 | AP37: 0 | AQ37: 0
B38: Economique | C38: oSupPL_SEPM_E_T100% | D38: oSupPL_SEPM_E_T100% | F38: 0 | G38: 5220 | H38: 0 | I38: 5220 | J38: 4170.04 | K38: 4131.82 | L38: 4107.97 | M38: 4061.61 | N38: 4061.61 | O38: 4146.53 | P38: 4200 | Q38: 4200 | R38: 4200 | S38: 4200 | T38: 4200 | U38: 4200 | V38: 4200 | W38: 4200 | X38: 4200 | Y38: 4200 | Z38: 4200 | AA38: 4200 | AB38: 4200 | AC38: 4200 | AD38: 4200 | AE38: 4200 | AF38: 4200 | AG38: 4200 | AH38: 4200 | AI38: 3833.78 | AJ38: 4200 | AK38: 4200 | AL38: 4200 | AM38: 4106.61 | AN38: 4189.306 | AO38: 4200 | AP38: 4163.378 | AQ38: 4169.426207
B39: Economique | C39: oSupPL_SEPM_I_T100% | D39: oSupPL_SEPM_I_T100% | F39: 0 | G39: 0 | H39: 0 | I39: 0 | J39: 0 | K39: 0 | L39: 0 | M39: 0 | N39: 0 | O39: 0 | P39: 0 | Q39: 0 | R39: 0 | S39: 0 | T39: 0 | U39: 0 | V39: 0 | W39: 0 | X39: 0 | Y39: 0 | Z39: 0 | AA39: 0 | AB39: 0 | AC39: 0 | AD39: 0 | AE39: 0 | AF39: 0 | AG39: 0 | AH39: 0 | AI39: 0 | AJ39: 0 | AK39: 0 | AL39: 0 | AM39: 0 | AN39: 0 | AO39: 0 | AP39: 0 | AQ39: 0
B40: Economique | C40: oSupPL_SEPM_E | D40: oSupPL_SEPM_E | F40: 0 | G40: 5220 | H40: 0 | I40: 5220 | J40: 4170.04 | K40: 4131.82 | L40: 4107.97 | M40: 4061.61 | N40: 4061.61 | O40: 4146.53 | P40: 4200 | Q40: 4200 | R40: 4200 | S40: 4200 | T40: 4200 | U40: 4200 | V40: 4200 | W40: 4200 | X40: 4200 | Y40: 4200 | Z40: 4200 | AA40: 4200 | AB40: 4200 | AC40: 4200 | AD40: 4200 | AE40: 4200 | AF40: 4200 | AG40: 4200 | AH40: 4200 | AI40: 3833.78 | AJ40: 4200 | AK40: 4200 | AL40: 4200 | AM40: 4106.61 | AN40: 4189.306 | AO40: 4200 | AP40: 4163.378 | AQ40: 4169.426207
B41: Economique | C41: oSupPL_SEPM_I | D41: oSupPL_SEPM_I | F41: 0 | G41: 0 | H41: 0 | I41: 0 | J41: 0 | K41: 0 | L41: 0 | M41: 0 | N41: 0 | O41: 0 | P41: 0 | Q41: 0 | R41: 0 | S41: 0 | T41: 0 | U41: 0 | V41: 0 | W41: 0 | X41: 0 | Y41: 0 | Z41: 0 | AA41: 0 | AB41: 0 | AC41: 0 | AD41: 0 | AE41: 0 | AF41: 0 | AG41: 0 | AH41: 0 | AI41: 0 | AJ41: 0 | AK41: 0 | AL41: 0 | AM41: 0 | AN41: 0 | AO41: 0 | AP41: 0 | AQ41: 0
B42: Economique | C42: oSupActEPC_1_T100% | D42: oSupActEPC_1_T100% | F42: 0 | G42: 0 | H42: 0 | I42: 0 | J42: 0 | K42: 0 | L42: 0 | M42: 0 | N42: 0 | O42: 0 | P42: 0 | Q42: 0 | R42: 0 | S42: 0 | T42: 0 | U42: 0 | V42: 0 | W42: 0 | X42: 0 | Y42: 0 | Z42: 0 | AA42: 0 | AB42: 0 | AC42: 0 | AD42: 0 | AE42: 0 | AF42: 0 | AG42: 0 | AH42: 0 | AI42: 0 | AJ42: 0 | AK42: 0 | AL42: 0 | AM42: 0 | AN42: 0 | AO42: 0 | AP42: 0 | AQ42: 0
B43: Economique | C43: oSupEPC_1_T100% | D43: oSupEPC_1_T100% | F43: 0 | G43: 0 | H43: 0 | I43: 0 | J43: 0 | K43: 0 | L43: 0 | M43: 0 | N43: 0 | O43: 0 | P43: 0 | Q43: 0 | R43: 0 | S43: 0 | T43: 0 | U43: 0 | V43: 0 | W43: 0 | X43: 0 | Y43: 0 | Z43: 0 | AA43: 0 | AB43: 0 | AC43: 0 | AD43: 0 | AE43: 0 | AF43: 0 | AG43: 0 | AH43: 0 | AI43: 0 | AJ43: 0 | AK43: 0 | AL43: 0 | AM43: 0 | AN43: 0 | AO43: 0 | AP43: 0 | AQ43: 0
B44: Economique | C44: oSupEPC_1 | D44: oSupEPC_1 | F44: 0 | G44: 0 | H44: 0 | I44: 0 | J44: 0 | K44: 0 | L44: 0 | M44: 0 | N44: 0 | O44: 0 | P44: 0 | Q44: 0 | R44: 0 | S44: 0 | T44: 0 | U44: 0 | V44: 0 | W44: 0 | X44: 0 | Y44: 0 | Z44: 0 | AA44: 0 | AB44: 0 | AC44: 0 | AD44: 0 | AE44: 0 | AF44: 0 | AG44: 0 | AH44: 0 | AI44: 0 | AJ44: 0 | AK44: 0 | AL44: 0 | AM44: 0 | AN44: 0 | AO44: 0 | AP44: 0 | AQ44: 0
B45: Economique | C45: oSupActEC_SEPM_T100% | D45: oSupActEC_SEPM_T100% | F45: 0 | G45: 0 | H45: 0 | I45: 0 | J45: 0 | K45: 0 | L45: 0 | M45: 0 | N45: 0 | O45: 0 | P45: 0 | Q45: 0 | R45: 0 | S45: 0 | T45: 0 | U45: 0 | V45: 0 | W45: 0 | X45: 0 | Y45: 0 | Z45: 0 | AA45: 0 | AB45: 0 | AC45: 0 | AD45: 0 | AE45: 0 | AF45: 0 | AG45: 0 | AH45: 0 | AI45: 0 | AJ45: 0 | AK45: 0 | AL45: 0 | AM45: 0 | AN45: 0 | AO45: 0 | AP45: 0 | AQ45: 0
B46: Economique | C46: oSupEC_SEPM_T100% | D46: oSupEC_SEPM_T100% | F46: 0 | G46: 0 | H46: 0 | I46: 0 | J46: 0 | K46: 0 | L46: 0 | M46: 0 | N46: 0 | O46: 0 | P46: 0 | Q46: 0 | R46: 0 | S46: 0 | T46: 0 | U46: 0 | V46: 0 | W46: 0 | X46: 0 | Y46: 0 | Z46: 0 | AA46: 0 | AB46: 0 | AC46: 0 | AD46: 0 | AE46: 0 | AF46: 0 | AG46: 0 | AH46: 0 | AI46: 0 | AJ46: 0 | AK46: 0 | AL46: 0 | AM46: 0 | AN46: 0 | AO46: 0 | AP46: 0 | AQ46: 0
B47: Economique | C47: oSupEC_SEPM | D47: oSupEC_SEPM | F47: 0 | G47: 0 | H47: 0 | I47: 0 | J47: 0 | K47: 0 | L47: 0 | M47: 0 | N47: 0 | O47: 0 | P47: 0 | Q47: 0 | R47: 0 | S47: 0 | T47: 0 | U47: 0 | V47: 0 | W47: 0 | X47: 0 | Y47: 0 | Z47: 0 | AA47: 0 | AB47: 0 | AC47: 0 | AD47: 0 | AE47: 0 | AF47: 0 | AG47: 0 | AH47: 0 | AI47: 0 | AJ47: 0 | AK47: 0 | AL47: 0 | AM47: 0 | AN47: 0 | AO47: 0 | AP47: 0 | AQ47: 0
B48: Economique | C48: oSupActNETT_T100% | D48: oSupActNETT_T100% | F48: 0 | G48: 1050 | H48: 0 | I48: 666.27 | J48: 1048.12 | K48: 678.76 | L48: 448.12 | M48: 0 | N48: 0 | O48: 0 | P48: 0 | Q48: 0 | R48: 0 | S48: 0 | T48: 0 | U48: 0 | V48: 0 | W48: 0 | X48: 0 | Y48: 0 | Z48: 0 | AA48: 0 | AB48: 0 | AC48: 99.6 | AD48: 441.73 | AE48: 39.09 | AF48: 0 | AG48: 329.32 | AH48: 0 | AI48: 294.75 | AJ48: 1050 | AK48: 324.52 | AL48: 0 | AM48: 435 | AN48: 0 | AO48: 0 | AP48: 257.901 | AQ48: 163.9313793
B49: Economique | C49: oSupTcadNETT_T100% | D49: oSupTcadNETT_T100% | F49: 0 | G49: 996.85 | H49: 0 | I49: 0 | J49: 0 | K49: 0 | L49: 0 | M49: 0 | N49: 0 | O49: 0 | P49: 0 | Q49: 0 | R49: 0 | S49: 103.97 | T49: 0 | U49: 0 | V49: 599.08 | W49: 996.85 | X49: 0 | Y49: 0 | Z49: 72.04 | AA49: 0 | AB49: 0 | AC49: 0 | AD49: 0 | AE49: 0 | AF49: 0 | AG49: 0 | AH49: 0 | AI49: 0 | AJ49: 0 | AK49: 0 | AL49: 0 | AM49: 0 | AN49: 20.794 | AO49: 185.33 | AP49: 0 | AQ49: 61.10137931
B50: Economique | C50: oSupNETT_T100% | D50: oSupNETT_T100% | F50: 0 | G50: 1050 | H50: 0 | I50: 666.27 | J50: 1048.12 | K50: 678.76 | L50: 448.12 | M50: 0 | N50: 0 | O50: 0 | P50: 0 | Q50: 0 | R50: 0 | S50: 103.97 | T50: 0 | U50: 0 | V50: 599.08 | W50: 996.85 | X50: 0 | Y50: 0 | Z50: 72.04 | AA50: 0 | AB50: 0 | AC50: 99.6 | AD50: 441.73 | AE50: 39.09 | AF50: 0 | AG50: 329.32 | AH50: 0 | AI50: 294.75 | AJ50: 1050 | AK50: 324.52 | AL50: 0 | AM50: 435 | AN50: 20.794 | AO50: 185.33 | AP50: 257.901 | AQ50: 225.0327586
B51: Economique | C51: oSupNETT | D51: oSupNETT | F51: 0 | G51: 1050 | H51: 0 | I51: 666.27 | J51: 1048.12 | K51: 678.76 | L51: 448.12 | M51: 0 | N51: 0 | O51: 0 | P51: 0 | Q51: 0 | R51: 0 | S51: 103.97 | T51: 0 | U51: 0 | V51: 599.08 | W51: 996.85 | X51: 0 | Y51: 0 | Z51: 72.04 | AA51: 0 | AB51: 0 | AC51: 99.6 | AD51: 441.73 | AE51: 39.09 | AF51: 0 | AG51: 329.32 | AH51: 0 | AI51: 294.75 | AJ51: 1050 | AK51: 324.52 | AL51: 0 | AM51: 435 | AN51: 20.794 | AO51: 185.33 | AP51: 257.901 | AQ51: 225.0327586
B52: Economique | C52: oTauxDEG | D52: oTauxDEG | F52: 0 | G52: 1354500 | H52: 0 | I52: 185408.47 | J52: 2418.78 | K52: 478904.09 | L52: 776425.2 | M52: 1354500 | N52: 1354500 | O52: 1231363.64 | P52: 1354500 | Q52: 1354500 | R52: 1261151 | S52: 1091385.04 | T52: 1330763.37 | U52: 1354500 | V52: 501849.27 | W52: 0 | X52: 1330763.37 | Y52: 1341393.42 | Z52: 1132573.22 | AA52: 1225500 | AB52: 1330763.37 | AC52: 1226016 | AD52: 759780.46 | AE52: 1180936.36 | AF52: 1354500 | AG52: 929681.72 | AH52: 1297805.1 | AI52: 974270.79 | AJ52: 0 | AK52: 935871.55 | AL52: 1354500 | AM52: 793349.614 | AN52: 1258579.936 | AO52: 1060900.669 | AP52: 1001336.198 | AQ52: 1028314.336
B53: Economique | C53: oTauxSCA | D53: oTauxSCA | F53: 0 | G53: 2178270 | H53: 0 | I53: 2178270 | J53: 1761554.38 | K53: 1745888.06 | L53: 1736105.89 | M53: 1717099.42 | N53: 1717099.42 | O53: 1751917.29 | P53: 1737903.1 | Q53: 1737116.03 | R53: 1759612.78 | S53: 1766406.41 | T53: 1740262.79 | U53: 1737116.03 | V53: 1759612.78 | W53: 1766028.4 | X53: 1740262.79 | Y53: 1738853.56 | Z53: 1759564.63 | AA53: 1764339.02 | AB53: 1740262.79 | AC53: 1739096.62 | AD53: 1759321.58 | AE53: 1764339.02 | AF53: 1740262.79 | AG53: 1743664.63 | AH53: 1754753.56 | AI53: 1811947.39 | AJ53: 1757995.74 | AK53: 1743569.21 | AL53: 1737116.03 | AM53: 1735549.434 | AN53: 1750591.122 | AO53: 1749589.199 | AP53: 1755206.657 | AQ53: 1749278.35
B54: Economique | C54: oTauxREG | D54: oTauxREG | F54: 0 | G54: 172122.57 | H54: 0 | I54: 0 | J54: 0 | K54: 0 | L54: 0 | M54: 0 | N54: 0 | O54: 0 | P54: 0 | Q54: 0 | R54: 0 | S54: 0 | T54: 0 | U54: 0 | V54: 0 | W54: 0 | X54: 0 | Y54: 0 | Z54: 0 | AA54: 0 | AB54: 0 | AC54: 0 | AD54: 0 | AE54: 0 | AF54: 0 | AG54: 0 | AH54: 0 | AI54: 172122.57 | AJ54: 0 | AK54: 0 | AL54: 0 | AM54: 0 | AN54: 0 | AO54: 0 | AP54: 17212.257 | AQ54: 5935.261034
B55: Economique | C55: oTauxCPI | D55: oTauxCPI | F55: 0 | G55: 339200 | H55: 0 | I55: 249100 | J55: 339200 | K55: 339200 | L55: 339200 | M55: 339200 | N55: 339200 | O55: 339200 | P55: 104057.31 | Q55: 98907.36 | R55: 246108.33 | S55: 290560.46 | T55: 119497.24 | U55: 98907.36 | V55: 246108.33 | W55: 288087.08 | X55: 119497.24 | Y55: 110276.4 | Z55: 245793.27 | AA55: 277033.09 | AB55: 119497.24 | AC55: 111866.77 | AD55: 244202.9 | AE55: 277033.09 | AF55: 119497.24 | AG55: 141756.23 | AH55: 214313.44 | AI55: 277033.09 | AJ55: 235527.65 | AK55: 141131.9 | AL55: 98907.36 | AM55: 339200 | AN55: 215766.692 | AO55: 180521.9167 | AP55: 186126.967 | AQ55: 215889.6683
B56: Economique | C56: oTauxCT | D56: oTauxCT | F56: 0 | G56: 0 | H56: 0 | I56: 0 | J56: 0 | K56: 0 | L56: 0 | M56: 0 | N56: 0 | O56: 0 | P56: 0 | Q56: 0 | R56: 0 | S56: 0 | T56: 0 | U56: 0 | V56: 0 | W56: 0 | X56: 0 | Y56: 0 | Z56: 0 | AA56: 0 | AB56: 0 | AC56: 0 | AD56: 0 | AE56: 0 | AF56: 0 | AG56: 0 | AH56: 0 | AI56: 0 | AJ56: 0 | AK56: 0 | AL56: 0 | AM56: 0 | AN56: 0 | AO56: 0 | AP56: 0 | AQ56: 0
B57: Economique | C57: oTauxPL | D57: oTauxPL | F57: 0 | G57: 5428800 | H57: 0 | I57: 5428800 | J57: 4336836.48 | K57: 4297097.52 | L57: 4272284.22 | M57: 4224072.69 | N57: 4224072.69 | O57: 4312391.18 | P57: 4368000 | Q57: 4368000 | R57: 4368000 | S57: 4368000 | T57: 4368000 | U57: 4368000 | V57: 4368000 | W57: 4368000 | X57: 4368000 | Y57: 4368000 | Z57: 4368000 | AA57: 4368000 | AB57: 4368000 | AC57: 4368000 | AD57: 4368000 | AE57: 4368000 | AF57: 4368000 | AG57: 4368000 | AH57: 4368000 | AI57: 3987133.04 | AJ57: 4368000 | AK57: 4368000 | AL57: 4368000 | AM57: 4270872.72 | AN57: 4356878.236 | AO57: 4368000 | AP57: 4329913.304 | AQ57: 4336203.028
B58: Economique | C58: oTauxEPC | D58: oTauxEPC | F58: 0 | G58: 0 | H58: 0 | I58: 0 | J58: 0 | K58: 0 | L58: 0 | M58: 0 | N58: 0 | O58: 0 | P58: 0 | Q58: 0 | R58: 0 | S58: 0 | T58: 0 | U58: 0 | V58: 0 | W58: 0 | X58: 0 | Y58: 0 | Z58: 0 | AA58: 0 | AB58: 0 | AC58: 0 | AD58: 0 | AE58: 0 | AF58: 0 | AG58: 0 | AH58: 0 | AI58: 0 | AJ58: 0 | AK58: 0 | AL58: 0 | AM58: 0 | AN58: 0 | AO58: 0 | AP58: 0 | AQ58: 0
B59: Economique | C59: oTauxEC | D59: oTauxEC | F59: 0 | G59: 0 | H59: 0 | I59: 0 | J59: 0 | K59: 0 | L59: 0 | M59: 0 | N59: 0 | O59: 0 | P59: 0 | Q59: 0 | R59: 0 | S59: 0 | T59: 0 | U59: 0 | V59: 0 | W59: 0 | X59: 0 | Y59: 0 | Z59: 0 | AA59: 0 | AB59: 0 | AC59: 0 | AD59: 0 | AE59: 0 | AF59: 0 | AG59: 0 | AH59: 0 | AI59: 0 | AJ59: 0 | AK59: 0 | AL59: 0 | AM59: 0 | AN59: 0 | AO59: 0 | AP59: 0 | AQ59: 0
B60: Economique | C60: oTauxNET | D60: oTauxNET | F60: 0 | G60: 1197000 | H60: 0 | I60: 759550.65 | J60: 1194862.47 | K60: 773782.44 | L60: 510856.8 | M60: 0 | N60: 0 | O60: 0 | P60: 0 | Q60: 0 | R60: 0 | S60: 118520.2 | T60: 0 | U60: 0 | V60: 682953.01 | W60: 1136407.91 | X60: 0 | Y60: 0 | Z60: 82121.34 | AA60: 0 | AB60: 0 | AC60: 113544 | AD60: 503567.17 | AE60: 44563.64 | AF60: 0 | AG60: 375420.81 | AH60: 0 | AI60: 336016.51 | AJ60: 1197000 | AK60: 369950.72 | AL60: 0 | AM60: 495900.342 | AN60: 23704.04 | AO60: 211275.8067 | AP60: 294006.285 | AQ60: 256536.7938
B61: Economique | C61: oSupRealDEG | D61: oSupRealDEG | F61: 0 | G61: 1050 | H61: 0 | I61: 143.73 | J61: 1.88 | K61: 371.24 | L61: 601.88 | M61: 1050 | N61: 1050 | O61: 954.55 | P61: 1050 | Q61: 1050 | R61: 977.64 | S61: 846.03 | T61: 1031.6 | U61: 1050 | V61: 389.03 | W61: 0 | X61: 1031.6 | Y61: 1039.84 | Z61: 877.96 | AA61: 950 | AB61: 1031.6 | AC61: 950.4 | AD61: 588.98 | AE61: 915.45 | AF61: 1050 | AG61: 720.68 | AH61: 1006.05 | AI61: 755.25 | AJ61: 0 | AK61: 725.48 | AL61: 1050 | AM61: 615 | AN61: 975.644 | AO61: 822.4033333 | AP61: 776.229 | AQ61: 797.1427586
B62: Economique | C62: oSupRealSCA | D62: oSupRealSCA | F62: 0 | G62: 5290.5 | H62: 0 | I62: 5290.5 | J62: 4266.04 | K62: 4227.82 | L62: 4203.97 | M62: 4157.61 | N62: 4157.61 | O62: 4242.53 | P62: 4229.45 | Q62: 4227.99 | R62: 4269.65 | S62: 4282.23 | T62: 4233.82 | U62: 4227.99 | V62: 4269.65 | W62: 4281.53 | X62: 4233.82 | Y62: 4231.21 | Z62: 4269.56 | AA62: 4278.41 | AB62: 4233.82 | AC62: 4231.66 | AD62: 4269.11 | AE62: 4278.41 | AF62: 4233.82 | AG62: 4240.12 | AH62: 4260.65 | AI62: 4278.41 | AJ62: 4266.66 | AK62: 4239.94 | AL62: 4227.99 | AM62: 4202.61 | AN62: 4250.37 | AO62: 4251.09 | AP62: 4252.677 | AQ62: 4243.154483
B63: Economique | C63: oSupRealREG | D63: oSupRealREG | F63: 0 | G63: 366.22 | H63: 0 | I63: 0 | J63: 0 | K63: 0 | L63: 0 | M63: 0 | N63: 0 | O63: 0 | P63: 0 | Q63: 0 | R63: 0 | S63: 0 | T63: 0 | U63: 0 | V63: 0 | W63: 0 | X63: 0 | Y63: 0 | Z63: 0 | AA63: 0 | AB63: 0 | AC63: 0 | AD63: 0 | AE63: 0 | AF63: 0 | AG63: 0 | AH63: 0 | AI63: 366.22 | AJ63: 0 | AK63: 0 | AL63: 0 | AM63: 0 | AN63: 0 | AO63: 0 | AP63: 36.622 | AQ63: 12.62827586
B64: Economique | C64: oSupRealCPI | D64: oSupRealCPI | F64: 0 | G64: 710 | H64: 0 | I64: 470 | J64: 640 | K64: 640 | L64: 640 | M64: 640 | N64: 640 | O64: 640 | P64: 645.18 | Q64: 709.7 | R64: 710 | S64: 710 | T64: 710 | U64: 710 | V64: 710 | W64: 710 | X64: 710 | Y64: 710 | Z64: 710 | AA64: 710 | AB64: 710 | AC64: 710 | AD64: 710 | AE64: 710 | AF64: 710 | AG64: 710 | AH64: 710 | AI64: 710 | AJ64: 710 | AK64: 710 | AL64: 710 | AM64: 640 | AN64: 682.976 | AO64: 710 | AP64: 710 | AQ64: 693.2717241
B65: Economique | C65: oSupRealCT | D65: oSupRealCT | F65: 0 | G65: 18333.36 | H65: 0 | I65: 11521.75 | J65: 11035.22 | K65: 11367.71 | L65: 13024.84 | M65: 12091.09 | N65: 10410.25 | O65: 16988.99 | P65: 15409.96 | Q65: 16326.47 | R65: 17002.44 | S65: 15886.86 | T65: 15041.65 | U65: 16663.1 | V65: 15146.93 | W65: 17682.41 | X65: 15305.45 | Y65: 16173.07 | Z65: 14953.55 | AA65: 14261.83 | AB65: 13894.06 | AC65: 14071.54 | AD65: 14579.54 | AE65: 14024.27 | AF65: 15093.64 | AG65: 14496.39 | AH65: 17782.22 | AI65: 15211.91 | AJ65: 16964.78 | AK65: 18333.36 | AL65: 16264.17 | AM65: 11585.822 | AN65: 16322.944 | AO65: 15458.00556 | AP65: 15682.182 | AQ65: 15016.81724
B66: Economique | C66: oSupRealPL | D66: oSupRealPL | F66: 0 | G66: 5220 | H66: 0 | I66: 5220 | J66: 4170.04 | K66: 4131.82 | L66: 4107.97 | M66: 4061.61 | N66: 4061.61 | O66: 4146.53 | P66: 4200 | Q66: 4200 | R66: 4200 | S66: 4200 | T66: 4200 | U66: 4200 | V66: 4200 | W66: 4200 | X66: 4200 | Y66: 4200 | Z66: 4200 | AA66: 4200 | AB66: 4200 | AC66: 4200 | AD66: 4200 | AE66: 4200 | AF66: 4200 | AG66: 4200 | AH66: 4200 | AI66: 3833.78 | AJ66: 4200 | AK66: 4200 | AL66: 4200 | AM66: 4106.61 | AN66: 4189.306 | AO66: 4200 | AP66: 4163.378 | AQ66: 4169.426207
B67: Economique | C67: oSupRealEPC | D67: oSupRealEPC | F67: 0 | G67: 0 | H67: 0 | I67: 0 | J67: 0 | K67: 0 | L67: 0 | M67: 0 | N67: 0 | O67: 0 | P67: 0 | Q67: 0 | R67: 0 | S67: 0 | T67: 0 | U67: 0 | V67: 0 | W67: 0 | X67: 0 | Y67: 0 | Z67: 0 | AA67: 0 | AB67: 0 | AC67: 0 | AD67: 0 | AE67: 0 | AF67: 0 | AG67: 0 | AH67: 0 | AI67: 0 | AJ67: 0 | AK67: 0 | AL67: 0 | AM67: 0 | AN67: 0 | AO67: 0 | AP67: 0 | AQ67: 0
B68: Economique | C68: oSupRealEC | D68: oSupRealEC | F68: 0 | G68: 0 | H68: 0 | I68: 0 | J68: 0 | K68: 0 | L68: 0 | M68: 0 | N68: 0 | O68: 0 | P68: 0 | Q68: 0 | R68: 0 | S68: 0 | T68: 0 | U68: 0 | V68: 0 | W68: 0 | X68: 0 | Y68: 0 | Z68: 0 | AA68: 0 | AB68: 0 | AC68: 0 | AD68: 0 | AE68: 0 | AF68: 0 | AG68: 0 | AH68: 0 | AI68: 0 | AJ68: 0 | AK68: 0 | AL68: 0 | AM68: =AVERAGE(J68:N68) -> 0 | AN68: =AVERAGE(O68:S68) -> 0 | AO68: =AVERAGE(T68:AB68) -> 0 | AP68: =AVERAGE(AC68:AL68) -> 0 | AQ68: =AVERAGE(J68:AL68) -> 0
B69: Economique | C69: oSupRealNET | D69: oSupRealNET | F69: 0 | G69: 1050 | H69: 0 | I69: 666.27 | J69: 1048.12 | K69: 678.76 | L69: 448.12 | M69: 0 | N69: 0 | O69: 0 | P69: 0 | Q69: 0 | R69: 0 | S69: 103.97 | T69: 0 | U69: 0 | V69: 599.08 | W69: 996.85 | X69: 0 | Y69: 0 | Z69: 72.04 | AA69: 0 | AB69: 0 | AC69: 99.6 | AD69: 441.73 | AE69: 39.09 | AF69: 0 | AG69: 329.32 | AH69: 0 | AI69: 294.75 | AJ69: 1050 | AK69: 324.52 | AL69: 0 | AM69: 435 | AN69: 20.794 | AO69: 185.33 | AP69: 257.901 | AQ69: 225.0327586
B70: Economique | C70: oCoutProdPlants | D70: oCoutProdPlants | F70: 0 | G70: 0 | H70: 0 | I70: 0 | J70: 0 | K70: 0 | L70: 0 | M70: 0 | N70: 0 | O70: 0 | P70: 0 | Q70: 0 | R70: 0 | S70: 0 | T70: 0 | U70: 0 | V70: 0 | W70: 0 | X70: 0 | Y70: 0 | Z70: 0 | AA70: 0 | AB70: 0 | AC70: 0 | AD70: 0 | AE70: 0 | AF70: 0 | AG70: 0 | AH70: 0 | AI70: 0 | AJ70: 0 | AK70: 0 | AL70: 0 | AM70: 0 | AN70: 0 | AO70: 0 | AP70: 0 | AQ70: 0
B71: Economique | C71: oCoutTransPlants | D71: oCoutTransPlants | F71: 0 | G71: 0 | H71: 0 | I71: 0 | J71: 0 | K71: 0 | L71: 0 | M71: 0 | N71: 0 | O71: 0 | P71: 0 | Q71: 0 | R71: 0 | S71: 0 | T71: 0 | U71: 0 | V71: 0 | W71: 0 | X71: 0 | Y71: 0 | Z71: 0 | AA71: 0 | AB71: 0 | AC71: 0 | AD71: 0 | AE71: 0 | AF71: 0 | AG71: 0 | AH71: 0 | AI71: 0 | AJ71: 0 | AK71: 0 | AL71: 0 | AM71: 0 | AN71: 0 | AO71: 0 | AP71: 0 | AQ71: 0
B72: Economique | C72: o$InvestisTS | D72: o$InvestisTS | F72: 0 | G72: 8801129.13 | H72: 0 | I72: 8801129.13 | J72: 7634872.11 | K72: 7634872.11 | L72: 7634872.11 | M72: 7634872.11 | N72: 7634872.11 | O72: 7634872.11 | P72: 7564460.41 | Q72: 7558523.39 | R72: 7634872.11 | S72: 7634872.11 | T72: 7558523.39 | U72: 7558523.39 | V72: 7558523.39 | W72: 7558523.39 | X72: 7558523.39 | Y72: 7558523.39 | Z72: 7588052.46 | AA72: 7634872.11 | AB72: 7558523.39 | AC72: 7558523.39 | AD72: 7634872.11 | AE72: 7634872.11 | AF72: 7582260.02 | AG72: 7558523.39 | AH72: 7634872.11 | AI72: 7558523.39 | AJ72: 7558523.39 | AK72: 7558523.39 | AL72: 7558523.39 | AM72: 7634872.11 | AN72: 7605520.026 | AO72: 7570287.589 | AP72: 7583801.669 | AQ72: 7592157.437
B73: Economique | C73: oTauxREGAPAR | D73: oTauxREGAPAR | F73: 0 | G73: 339200 | H73: 0 | I73: 249100 | J73: 339200 | K73: 339200 | L73: 339200 | M73: 339200 | N73: 339200 | O73: 339200 | P73: 104057.31 | Q73: 98907.36 | R73: 246108.33 | S73: 290560.46 | T73: 119497.24 | U73: 98907.36 | V73: 246108.33 | W73: 288087.08 | X73: 119497.24 | Y73: 110276.4 | Z73: 245793.27 | AA73: 277033.09 | AB73: 119497.24 | AC73: 111866.77 | AD73: 244202.9 | AE73: 277033.09 | AF73: 119497.24 | AG73: 141756.23 | AH73: 214313.44 | AI73: 277033.09 | AJ73: 235527.65 | AK73: 141131.9 | AL73: 98907.36 | AM73: 339200 | AN73: 215766.692 | AO73: 180521.9167 | AP73: 186126.967 | AQ73: 215889.6683
B74: Economique | C74: oTauxREGAEDU | D74: oTauxREGAEDU | F74: 0 | G74: 1354500 | H74: 0 | I74: 944959.12 | J74: 1197281.25 | K74: 1252686.52 | L74: 1287282 | M74: 1354500 | N74: 1354500 | O74: 1231363.64 | P74: 1354500 | Q74: 1354500 | R74: 1261151 | S74: 1209905.24 | T74: 1330763.37 | U74: 1354500 | V74: 1184802.28 | W74: 1136407.91 | X74: 1330763.37 | Y74: 1341393.42 | Z74: 1214694.56 | AA74: 1225500 | AB74: 1330763.37 | AC74: 1339560 | AD74: 1263347.63 | AE74: 1225500 | AF74: 1354500 | AG74: 1305102.52 | AH74: 1297805.1 | AI74: 1310287.3 | AJ74: 1197000 | AK74: 1305822.27 | AL74: 1354500 | AM74: 1289249.954 | AN74: 1282283.976 | AO74: 1272176.476 | AP74: 1295342.482 | AQ74: 1284851.129
B75: Economique | C75: oTauxAUTRES | D75: oTauxAUTRES | F75: 0 | G75: 2178270 | H75: 0 | I75: 2178270 | J75: 1761554.38 | K75: 1745888.06 | L75: 1736105.89 | M75: 1717099.42 | N75: 1717099.42 | O75: 1751917.29 | P75: 1737903.1 | Q75: 1737116.03 | R75: 1759612.78 | S75: 1766406.41 | T75: 1740262.79 | U75: 1737116.03 | V75: 1759612.78 | W75: 1766028.4 | X75: 1740262.79 | Y75: 1738853.56 | Z75: 1759564.63 | AA75: 1764339.02 | AB75: 1740262.79 | AC75: 1739096.62 | AD75: 1759321.58 | AE75: 1764339.02 | AF75: 1740262.79 | AG75: 1743664.63 | AH75: 1754753.56 | AI75: 1811947.39 | AJ75: 1757995.74 | AK75: 1743569.21 | AL75: 1737116.03 | AM75: 1735549.434 | AN75: 1750591.122 | AO75: 1749589.199 | AP75: 1755206.657 | AQ75: 1749278.35
B76: Economique | C76: oTauxREGAREG | D76: oTauxREGAREG | F76: 0 | G76: 5428800 | H76: 0 | I76: 5428800 | J76: 4336836.48 | K76: 4297097.52 | L76: 4272284.22 | M76: 4224072.69 | N76: 4224072.69 | O76: 4312391.18 | P76: 4368000 | Q76: 4368000 | R76: 4368000 | S76: 4368000 | T76: 4368000 | U76: 4368000 | V76: 4368000 | W76: 4368000 | X76: 4368000 | Y76: 4368000 | Z76: 4368000 | AA76: 4368000 | AB76: 4368000 | AC76: 4368000 | AD76: 4368000 | AE76: 4368000 | AF76: 4368000 | AG76: 4368000 | AH76: 4368000 | AI76: 4159255.61 | AJ76: 4368000 | AK76: 4368000 | AL76: 4368000 | AM76: 4270872.72 | AN76: 4356878.236 | AO76: 4368000 | AP76: 4347125.561 | AQ76: 4342138.289
B77: Economique | C77: oTauxREGAFIN | D77: oTauxREGAFIN | F77: 0 | G77: 0 | H77: 0 | I77: 0 | J77: 0 | K77: 0 | L77: 0 | M77: 0 | N77: 0 | O77: 0 | P77: 0 | Q77: 0 | R77: 0 | S77: 0 | T77: 0 | U77: 0 | V77: 0 | W77: 0 | X77: 0 | Y77: 0 | Z77: 0 | AA77: 0 | AB77: 0 | AC77: 0 | AD77: 0 | AE77: 0 | AF77: 0 | AG77: 0 | AH77: 0 | AI77: 0 | AJ77: 0 | AK77: 0 | AL77: 0 | AM77: 0 | AN77: 0 | AO77: 0 | AP77: 0 | AQ77: 0
B78: Economique | C78: oSupRealREGAPAR | D78: oSupRealREGAPAR | F78: 0 | G78: 710 | H78: 0 | I78: 470 | J78: 640 | K78: 640 | L78: 640 | M78: 640 | N78: 640 | O78: 640 | P78: 645.18 | Q78: 709.7 | R78: 710 | S78: 710 | T78: 710 | U78: 710 | V78: 710 | W78: 710 | X78: 710 | Y78: 710 | Z78: 710 | AA78: 710 | AB78: 710 | AC78: 710 | AD78: 710 | AE78: 710 | AF78: 710 | AG78: 710 | AH78: 710 | AI78: 710 | AJ78: 710 | AK78: 710 | AL78: 710 | AM78: 640 | AN78: 682.976 | AO78: 710 | AP78: 710 | AQ78: 693.2717241
B79: Economique | C79: oSupRealREGAEDU | D79: oSupRealREGAEDU | F79: 0 | G79: 1050 | H79: 0 | I79: 810 | J79: 1050 | K79: 1050 | L79: 1050 | M79: 1050 | N79: 1050 | O79: 954.55 | P79: 1050 | Q79: 1050 | R79: 977.64 | S79: 950 | T79: 1031.6 | U79: 1050 | V79: 988.11 | W79: 996.85 | X79: 1031.6 | Y79: 1039.84 | Z79: 950 | AA79: 950 | AB79: 1031.6 | AC79: 1050 | AD79: 1030.7 | AE79: 954.55 | AF79: 1050 | AG79: 1050 | AH79: 1006.05 | AI79: 1050 | AJ79: 1050 | AK79: 1050 | AL79: 1050 | AM79: 1050 | AN79: 996.438 | AO79: 1007.733333 | AP79: 1034.13 | AQ79: 1022.175517
B80: Economique | C80: oSupRealAUTRES | D80: oSupRealAUTRES | F80: 0 | G80: 5290.5 | H80: 0 | I80: 5290.5 | J80: 4266.04 | K80: 4227.82 | L80: 4203.97 | M80: 4157.61 | N80: 4157.61 | O80: 4242.53 | P80: 4229.45 | Q80: 4227.99 | R80: 4269.65 | S80: 4282.23 | T80: 4233.82 | U80: 4227.99 | V80: 4269.65 | W80: 4281.53 | X80: 4233.82 | Y80: 4231.21 | Z80: 4269.56 | AA80: 4278.41 | AB80: 4233.82 | AC80: 4231.66 | AD80: 4269.11 | AE80: 4278.41 | AF80: 4233.82 | AG80: 4240.12 | AH80: 4260.65 | AI80: 4278.41 | AJ80: 4266.66 | AK80: 4239.94 | AL80: 4227.99 | AM80: 4202.61 | AN80: 4250.37 | AO80: 4251.09 | AP80: 4252.677 | AQ80: 4243.154483
B81: Economique | C81: oSupRealREGAREG | D81: oSupRealREGAREG | F81: 0 | G81: 5220 | H81: 0 | I81: 5220 | J81: 4170.04 | K81: 4131.82 | L81: 4107.97 | M81: 4061.61 | N81: 4061.61 | O81: 4146.53 | P81: 4200 | Q81: 4200 | R81: 4200 | S81: 4200 | T81: 4200 | U81: 4200 | V81: 4200 | W81: 4200 | X81: 4200 | Y81: 4200 | Z81: 4200 | AA81: 4200 | AB81: 4200 | AC81: 4200 | AD81: 4200 | AE81: 4200 | AF81: 4200 | AG81: 4200 | AH81: 4200 | AI81: 4200 | AJ81: 4200 | AK81: 4200 | AL81: 4200 | AM81: 4106.61 | AN81: 4189.306 | AO81: 4200 | AP81: 4200 | AQ81: 4182.054483
B82: Economique | C82: oSupRealREGAFIN | D82: oSupRealREGAFIN | F82: 0 | G82: 18333.36 | H82: 0 | I82: 11521.75 | J82: 11035.22 | K82: 11367.71 | L82: 13024.84 | M82: 12091.09 | N82: 10410.25 | O82: 16988.99 | P82: 15409.96 | Q82: 16326.47 | R82: 17002.44 | S82: 15886.86 | T82: 15041.65 | U82: 16663.1 | V82: 15146.93 | W82: 17682.41 | X82: 15305.45 | Y82: 16173.07 | Z82: 14953.55 | AA82: 14261.83 | AB82: 13894.06 | AC82: 14071.54 | AD82: 14579.54 | AE82: 14024.27 | AF82: 15093.64 | AG82: 14496.39 | AH82: 17782.22 | AI82: 15211.91 | AJ82: 16964.78 | AK82: 18333.36 | AL82: 16264.17 | AM82: 11585.822 | AN82: 16322.944 | AO82: 15458.00556 | AP82: 15682.182 | AQ82: 15016.81724
B83: VolExpl | C83: OVOLBOJADMaEC | D83: Volume BOJ Admissible InclusActions aEC | F83: 0 | G83: 0 | H83: 0 | I83: 0 | J83: 0 | K83: 0 | L83: 0 | M83: 0 | N83: 0 | O83: 0 | P83: 0 | Q83: 0 | R83: 0 | S83: 0 | T83: 0 | U83: 0 | V83: 0 | W83: 0 | X83: 0 | Y83: 0 | Z83: 0 | AA83: 0 | AB83: 0 | AC83: 0 | AD83: 0 | AE83: 0 | AF83: 0 | AG83: 0 | AH83: 0 | AI83: 0 | AJ83: 0 | AK83: 0 | AL83: 0 | AM83: 0 | AN83: 0 | AO83: 0 | AP83: 0 | AQ83: 0
B84: VolExpl | C84: OVOLBOJADMaEC2 | D84: Volume BOJ Admissible InclusActions aEC2 | F84: 0 | G84: 0 | H84: 0 | I84: 0 | J84: 0 | K84: 0 | L84: 0 | M84: 0 | N84: 0 | O84: 0 | P84: 0 | Q84: 0 | R84: 0 | S84: 0 | T84: 0 | U84: 0 | V84: 0 | W84: 0 | X84: 0 | Y84: 0 | Z84: 0 | AA84: 0 | AB84: 0 | AC84: 0 | AD84: 0 | AE84: 0 | AF84: 0 | AG84: 0 | AH84: 0 | AI84: 0 | AJ84: 0 | AK84: 0 | AL84: 0 | AM84: 0 | AN84: 0 | AO84: 0 | AP84: 0 | AQ84: 0
B85: VolExpl | C85: OVOLBOJADMaEC3 | D85: Volume BOJ Admissible InclusActions aEC3 | F85: 0 | G85: 0 | H85: 0 | I85: 0 | J85: 0 | K85: 0 | L85: 0 | M85: 0 | N85: 0 | O85: 0 | P85: 0 | Q85: 0 | R85: 0 | S85: 0 | T85: 0 | U85: 0 | V85: 0 | W85: 0 | X85: 0 | Y85: 0 | Z85: 0 | AA85: 0 | AB85: 0 | AC85: 0 | AD85: 0 | AE85: 0 | AF85: 0 | AG85: 0 | AH85: 0 | AI85: 0 | AJ85: 0 | AK85: 0 | AL85: 0 | AM85: 0 | AN85: 0 | AO85: 0 | AP85: 0 | AQ85: 0
B86: VolExpl | C86: OVOLBOJADMaCA | D86: Volume BOJ Admissible InclusActions aCA | F86: 0 | G86: 0 | H86: 0 | I86: 0 | J86: 0 | K86: 0 | L86: 0 | M86: 0 | N86: 0 | O86: 0 | P86: 0 | Q86: 0 | R86: 0 | S86: 0 | T86: 0 | U86: 0 | V86: 0 | W86: 0 | X86: 0 | Y86: 0 | Z86: 0 | AA86: 0 | AB86: 0 | AC86: 0 | AD86: 0 | AE86: 0 | AF86: 0 | AG86: 0 | AH86: 0 | AI86: 0 | AJ86: 0 | AK86: 0 | AL86: 0 | AM86: 0 | AN86: 0 | AO86: 0 | AP86: 0 | AQ86: 0
B87: VolExpl | C87: OVOLBOJADMaCA2 | D87: Volume BOJ Admissible InclusActions aCA2 | F87: 0 | G87: 0 | H87: 0 | I87: 0 | J87: 0 | K87: 0 | L87: 0 | M87: 0 | N87: 0 | O87: 0 | P87: 0 | Q87: 0 | R87: 0 | S87: 0 | T87: 0 | U87: 0 | V87: 0 | W87: 0 | X87: 0 | Y87: 0 | Z87: 0 | AA87: 0 | AB87: 0 | AC87: 0 | AD87: 0 | AE87: 0 | AF87: 0 | AG87: 0 | AH87: 0 | AI87: 0 | AJ87: 0 | AK87: 0 | AL87: 0 | AM87: 0 | AN87: 0 | AO87: 0 | AP87: 0 | AQ87: 0
B88: VolExpl | C88: OVOLBOJADMaCPROG | D88: Volume BOJ Admissible InclusActions aCPROG | F88: 0 | G88: 0 | H88: 0 | I88: 0 | J88: 0 | K88: 0 | L88: 0 | M88: 0 | N88: 0 | O88: 0 | P88: 0 | Q88: 0 | R88: 0 | S88: 0 | T88: 0 | U88: 0 | V88: 0 | W88: 0 | X88: 0 | Y88: 0 | Z88: 0 | AA88: 0 | AB88: 0 | AC88: 0 | AD88: 0 | AE88: 0 | AF88: 0 | AG88: 0 | AH88: 0 | AI88: 0 | AJ88: 0 | AK88: 0 | AL88: 0 | AM88: 0 | AN88: 0 | AO88: 0 | AP88: 0 | AQ88: 0
B89: VolExpl | C89: OVOLBOJADMaCPIL | D89: Volume BOJ Admissible InclusActions aCPIL | F89: 0 | G89: 0 | H89: 0 | I89: 0 | J89: 0 | K89: 0 | L89: 0 | M89: 0 | N89: 0 | O89: 0 | P89: 0 | Q89: 0 | R89: 0 | S89: 0 | T89: 0 | U89: 0 | V89: 0 | W89: 0 | X89: 0 | Y89: 0 | Z89: 0 | AA89: 0 | AB89: 0 | AC89: 0 | AD89: 0 | AE89: 0 | AF89: 0 | AG89: 0 | AH89: 0 | AI89: 0 | AJ89: 0 | AK89: 0 | AL89: 0 | AM89: 0 | AN89: 0 | AO89: 0 | AP89: 0 | AQ89: 0
B90: VolExpl | C90: OVOLBOJADMaCPIP | D90: Volume BOJ Admissible InclusActions aCPIP | F90: 0 | G90: 0 | H90: 0 | I90: 0 | J90: 0 | K90: 0 | L90: 0 | M90: 0 | N90: 0 | O90: 0 | P90: 0 | Q90: 0 | R90: 0 | S90: 0 | T90: 0 | U90: 0 | V90: 0 | W90: 0 | X90: 0 | Y90: 0 | Z90: 0 | AA90: 0 | AB90: 0 | AC90: 0 | AD90: 0 | AE90: 0 | AF90: 0 | AG90: 0 | AH90: 0 | AI90: 0 | AJ90: 0 | AK90: 0 | AL90: 0 | AM90: 0 | AN90: 0 | AO90: 0 | AP90: 0 | AQ90: 0
B91: VolExpl | C91: OVOLBOJADMaCPFORT | D91: Volume BOJ Admissible InclusActions aCPFORT | F91: 0 | G91: 0 | H91: 0 | I91: 0 | J91: 0 | K91: 0 | L91: 0 | M91: 0 | N91: 0 | O91: 0 | P91: 0 | Q91: 0 | R91: 0 | S91: 0 | T91: 0 | U91: 0 | V91: 0 | W91: 0 | X91: 0 | Y91: 0 | Z91: 0 | AA91: 0 | AB91: 0 | AC91: 0 | AD91: 0 | AE91: 0 | AF91: 0 | AG91: 0 | AH91: 0 | AI91: 0 | AJ91: 0 | AK91: 0 | AL91: 0 | AM91: 0 | AN91: 0 | AO91: 0 | AP91: 0 | AQ91: 0
B92: VolExpl | C92: OVOLBOJADMaCPFAIBL | D92: Volume BOJ Admissible InclusActions aCPFAIBL | F92: 0 | G92: 0 | H92: 0 | I92: 0 | J92: 0 | K92: 0 | L92: 0 | M92: 0 | N92: 0 | O92: 0 | P92: 0 | Q92: 0 | R92: 0 | S92: 0 | T92: 0 | U92: 0 | V92: 0 | W92: 0 | X92: 0 | Y92: 0 | Z92: 0 | AA92: 0 | AB92: 0 | AC92: 0 | AD92: 0 | AE92: 0 | AF92: 0 | AG92: 0 | AH92: 0 | AI92: 0 | AJ92: 0 | AK92: 0 | AL92: 0 | AM92: 0 | AN92: 0 | AO92: 0 | AP92: 0 | AQ92: 0
B93: VolExpl | C93: OVOLBOJADMaCP | D93: Volume BOJ Admissible InclusActions aCP | F93: 0 | G93: 0 | H93: 0 | I93: 0 | J93: 0 | K93: 0 | L93: 0 | M93: 0 | N93: 0 | O93: 0 | P93: 0 | Q93: 0 | R93: 0 | S93: 0 | T93: 0 | U93: 0 | V93: 0 | W93: 0 | X93: 0 | Y93: 0 | Z93: 0 | AA93: 0 | AB93: 0 | AC93: 0 | AD93: 0 | AE93: 0 | AF93: 0 | AG93: 0 | AH93: 0 | AI93: 0 | AJ93: 0 | AK93: 0 | AL93: 0 | AM93: 0 | AN93: 0 | AO93: 0 | AP93: 0 | AQ93: 0
B94: VolExpl | C94: OVOLBOJADMaCPJ | D94: Volume BOJ Admissible InclusActions aCPJ | F94: 0 | G94: 0 | H94: 0 | I94: 0 | J94: 0 | K94: 0 | L94: 0 | M94: 0 | N94: 0 | O94: 0 | P94: 0 | Q94: 0 | R94: 0 | S94: 0 | T94: 0 | U94: 0 | V94: 0 | W94: 0 | X94: 0 | Y94: 0 | Z94: 0 | AA94: 0 | AB94: 0 | AC94: 0 | AD94: 0 | AE94: 0 | AF94: 0 | AG94: 0 | AH94: 0 | AI94: 0 | AJ94: 0 | AK94: 0 | AL94: 0 | AM94: 0 | AN94: 0 | AO94: 0 | AP94: 0 | AQ94: 0
B95: VolExpl | C95: OVOLBOJADMaCJ | D95: Volume BOJ Admissible InclusActions aCJ | F95: 0 | G95: 0 | H95: 0 | I95: 0 | J95: 0 | K95: 0 | L95: 0 | M95: 0 | N95: 0 | O95: 0 | P95: 0 | Q95: 0 | R95: 0 | S95: 0 | T95: 0 | U95: 0 | V95: 0 | W95: 0 | X95: 0 | Y95: 0 | Z95: 0 | AA95: 0 | AB95: 0 | AC95: 0 | AD95: 0 | AE95: 0 | AF95: 0 | AG95: 0 | AH95: 0 | AI95: 0 | AJ95: 0 | AK95: 0 | AL95: 0 | AM95: 0 | AN95: 0 | AO95: 0 | AP95: 0 | AQ95: 0
B96: VolExpl | C96: OVOLBOJADMaCRV | D96: Volume BOJ Admissible InclusActions aCRV | F96: 0 | G96: 0 | H96: 0 | I96: 0 | J96: 0 | K96: 0 | L96: 0 | M96: 0 | N96: 0 | O96: 0 | P96: 0 | Q96: 0 | R96: 0 | S96: 0 | T96: 0 | U96: 0 | V96: 0 | W96: 0 | X96: 0 | Y96: 0 | Z96: 0 | AA96: 0 | AB96: 0 | AC96: 0 | AD96: 0 | AE96: 0 | AF96: 0 | AG96: 0 | AH96: 0 | AI96: 0 | AJ96: 0 | AK96: 0 | AL96: 0 | AM96: 0 | AN96: 0 | AO96: 0 | AP96: 0 | AQ96: 0
B97: VolExpl | C97: OVOLBOJADMaCRS | D97: Volume BOJ Admissible InclusActions aCRS | F97: 0 | G97: 0 | H97: 0 | I97: 0 | J97: 0 | K97: 0 | L97: 0 | M97: 0 | N97: 0 | O97: 0 | P97: 0 | Q97: 0 | R97: 0 | S97: 0 | T97: 0 | U97: 0 | V97: 0 | W97: 0 | X97: 0 | Y97: 0 | Z97: 0 | AA97: 0 | AB97: 0 | AC97: 0 | AD97: 0 | AE97: 0 | AF97: 0 | AG97: 0 | AH97: 0 | AI97: 0 | AJ97: 0 | AK97: 0 | AL97: 0 | AM97: 0 | AN97: 0 | AO97: 0 | AP97: 0 | AQ97: 0
B98: VolExpl | C98: OVOLBOJADMaCFP | D98: Volume BOJ Admissible InclusActions aCFP | F98: 0 | G98: 0 | H98: 0 | I98: 0 | J98: 0 | K98: 0 | L98: 0 | M98: 0 | N98: 0 | O98: 0 | P98: 0 | Q98: 0 | R98: 0 | S98: 0 | T98: 0 | U98: 0 | V98: 0 | W98: 0 | X98: 0 | Y98: 0 | Z98: 0 | AA98: 0 | AB98: 0 | AC98: 0 | AD98: 0 | AE98: 0 | AF98: 0 | AG98: 0 | AH98: 0 | AI98: 0 | AJ98: 0 | AK98: 0 | AL98: 0 | AM98: 0 | AN98: 0 | AO98: 0 | AP98: 0 | AQ98: 0
B99: VolExpl | C99: OVOLBOJADMaCPPTM | D99: Volume BOJ Admissible InclusActions aCPPTM | F99: 0 | G99: 0 | H99: 0 | I99: 0 | J99: 0 | K99: 0 | L99: 0 | M99: 0 | N99: 0 | O99: 0 | P99: 0 | Q99: 0 | R99: 0 | S99: 0 | T99: 0 | U99: 0 | V99: 0 | W99: 0 | X99: 0 | Y99: 0 | Z99: 0 | AA99: 0 | AB99: 0 | AC99: 0 | AD99: 0 | AE99: 0 | AF99: 0 | AG99: 0 | AH99: 0 | AI99: 0 | AJ99: 0 | AK99: 0 | AL99: 0 | AM99: 0 | AN99: 0 | AO99: 0 | AP99: 0 | AQ99: 0
B100: VolExpl | C100: OVOLBOJADMaCT | D100: Volume BOJ Admissible InclusActions aCT | F100: 0 | G100: 0 | H100: 0 | I100: 0 | J100: 0 | K100: 0 | L100: 0 | M100: 0 | N100: 0 | O100: 0 | P100: 0 | Q100: 0 | R100: 0 | S100: 0 | T100: 0 | U100: 0 | V100: 0 | W100: 0 | X100: 0 | Y100: 0 | Z100: 0 | AA100: 0 | AB100: 0 | AC100: 0 | AD100: 0 | AE100: 0 | AF100: 0 | AG100: 0 | AH100: 0 | AI100: 0 | AJ100: 0 | AK100: 0 | AL100: 0 | AM100: 0 | AN100: 0 | AO100: 0 | AP100: 0 | AQ100: 0
B101: VolExpl | C101: OVOLBOJADMregaPRE | D101: Volume BOJ Admissible InclusActions regaPRE | F101: 0 | G101: 0 | H101: 0 | I101: 0 | J101: 0 | K101: 0 | L101: 0 | M101: 0 | N101: 0 | O101: 0 | P101: 0 | Q101: 0 | R101: 0 | S101: 0 | T101: 0 | U101: 0 | V101: 0 | W101: 0 | X101: 0 | Y101: 0 | Z101: 0 | AA101: 0 | AB101: 0 | AC101: 0 | AD101: 0 | AE101: 0 | AF101: 0 | AG101: 0 | AH101: 0 | AI101: 0 | AJ101: 0 | AK101: 0 | AL101: 0 | AM101: 0 | AN101: 0 | AO101: 0 | AP101: 0 | AQ101: 0
B102: VolExpl | C102: OVOLERSADMaEC | D102: Volume ERS Admissible InclusActions aEC | F102: 0 | G102: 0 | H102: 0 | I102: 0 | J102: 0 | K102: 0 | L102: 0 | M102: 0 | N102: 0 | O102: 0 | P102: 0 | Q102: 0 | R102: 0 | S102: 0 | T102: 0 | U102: 0 | V102: 0 | W102: 0 | X102: 0 | Y102: 0 | Z102: 0 | AA102: 0 | AB102: 0 | AC102: 0 | AD102: 0 | AE102: 0 | AF102: 0 | AG102: 0 | AH102: 0 | AI102: 0 | AJ102: 0 | AK102: 0 | AL102: 0 | AM102: 0 | AN102: 0 | AO102: 0 | AP102: 0 | AQ102: 0
B103: VolExpl | C103: OVOLERSADMaEC2 | D103: Volume ERS Admissible InclusActions aEC2 | F103: 0 | G103: 0 | H103: 0 | I103: 0 | J103: 0 | K103: 0 | L103: 0 | M103: 0 | N103: 0 | O103: 0 | P103: 0 | Q103: 0 | R103: 0 | S103: 0 | T103: 0 | U103: 0 | V103: 0 | W103: 0 | X103: 0 | Y103: 0 | Z103: 0 | AA103: 0 | AB103: 0 | AC103: 0 | AD103: 0 | AE103: 0 | AF103: 0 | AG103: 0 | AH103: 0 | AI103: 0 | AJ103: 0 | AK103: 0 | AL103: 0 | AM103: 0 | AN103: 0 | AO103: 0 | AP103: 0 | AQ103: 0
B104: VolExpl | C104: OVOLERSADMaEC3 | D104: Volume ERS Admissible InclusActions aEC3 | F104: 0 | G104: 0 | H104: 0 | I104: 0 | J104: 0 | K104: 0 | L104: 0 | M104: 0 | N104: 0 | O104: 0 | P104: 0 | Q104: 0 | R104: 0 | S104: 0 | T104: 0 | U104: 0 | V104: 0 | W104: 0 | X104: 0 | Y104: 0 | Z104: 0 | AA104: 0 | AB104: 0 | AC104: 0 | AD104: 0 | AE104: 0 | AF104: 0 | AG104: 0 | AH104: 0 | AI104: 0 | AJ104: 0 | AK104: 0 | AL104: 0 | AM104: 0 | AN104: 0 | AO104: 0 | AP104: 0 | AQ104: 0
B105: VolExpl | C105: OVOLERSADMaCA | D105: Volume ERS Admissible InclusActions aCA | F105: 0 | G105: 0 | H105: 0 | I105: 0 | J105: 0 | K105: 0 | L105: 0 | M105: 0 | N105: 0 | O105: 0 | P105: 0 | Q105: 0 | R105: 0 | S105: 0 | T105: 0 | U105: 0 | V105: 0 | W105: 0 | X105: 0 | Y105: 0 | Z105: 0 | AA105: 0 | AB105: 0 | AC105: 0 | AD105: 0 | AE105: 0 | AF105: 0 | AG105: 0 | AH105: 0 | AI105: 0 | AJ105: 0 | AK105: 0 | AL105: 0 | AM105: 0 | AN105: 0 | AO105: 0 | AP105: 0 | AQ105: 0
B106: VolExpl | C106: OVOLERSADMaCA2 | D106: Volume ERS Admissible InclusActions aCA2 | F106: 0 | G106: 0 | H106: 0 | I106: 0 | J106: 0 | K106: 0 | L106: 0 | M106: 0 | N106: 0 | O106: 0 | P106: 0 | Q106: 0 | R106: 0 | S106: 0 | T106: 0 | U106: 0 | V106: 0 | W106: 0 | X106: 0 | Y106: 0 | Z106: 0 | AA106: 0 | AB106: 0 | AC106: 0 | AD106: 0 | AE106: 0 | AF106: 0 | AG106: 0 | AH106: 0 | AI106: 0 | AJ106: 0 | AK106: 0 | AL106: 0 | AM106: 0 | AN106: 0 | AO106: 0 | AP106: 0 | AQ106: 0
B107: VolExpl | C107: OVOLERSADMaCPROG | D107: Volume ERS Admissible InclusActions aCPROG | F107: 0 | G107: 0 | H107: 0 | I107: 0 | J107: 0 | K107: 0 | L107: 0 | M107: 0 | N107: 0 | O107: 0 | P107: 0 | Q107: 0 | R107: 0 | S107: 0 | T107: 0 | U107: 0 | V107: 0 | W107: 0 | X107: 0 | Y107: 0 | Z107: 0 | AA107: 0 | AB107: 0 | AC107: 0 | AD107: 0 | AE107: 0 | AF107: 0 | AG107: 0 | AH107: 0 | AI107: 0 | AJ107: 0 | AK107: 0 | AL107: 0 | AM107: 0 | AN107: 0 | AO107: 0 | AP107: 0 | AQ107: 0
B108: VolExpl | C108: OVOLERSADMaCPIL | D108: Volume ERS Admissible InclusActions aCPIL | F108: 0 | G108: 0 | H108: 0 | I108: 0 | J108: 0 | K108: 0 | L108: 0 | M108: 0 | N108: 0 | O108: 0 | P108: 0 | Q108: 0 | R108: 0 | S108: 0 | T108: 0 | U108: 0 | V108: 0 | W108: 0 | X108: 0 | Y108: 0 | Z108: 0 | AA108: 0 | AB108: 0 | AC108: 0 | AD108: 0 | AE108: 0 | AF108: 0 | AG108: 0 | AH108: 0 | AI108: 0 | AJ108: 0 | AK108: 0 | AL108: 0 | AM108: 0 | AN108: 0 | AO108: 0 | AP108: 0 | AQ108: 0
B109: VolExpl | C109: OVOLERSADMaCPIP | D109: Volume ERS Admissible InclusActions aCPIP | F109: 0 | G109: 0 | H109: 0 | I109: 0 | J109: 0 | K109: 0 | L109: 0 | M109: 0 | N109: 0 | O109: 0 | P109: 0 | Q109: 0 | R109: 0 | S109: 0 | T109: 0 | U109: 0 | V109: 0 | W109: 0 | X109: 0 | Y109: 0 | Z109: 0 | AA109: 0 | AB109: 0 | AC109: 0 | AD109: 0 | AE109: 0 | AF109: 0 | AG109: 0 | AH109: 0 | AI109: 0 | AJ109: 0 | AK109: 0 | AL109: 0 | AM109: 0 | AN109: 0 | AO109: 0 | AP109: 0 | AQ109: 0
B110: VolExpl | C110: OVOLERSADMaCPFORT | D110: Volume ERS Admissible InclusActions aCPFORT | F110: 0 | G110: 0 | H110: 0 | I110: 0 | J110: 0 | K110: 0 | L110: 0 | M110: 0 | N110: 0 | O110: 0 | P110: 0 | Q110: 0 | R110: 0 | S110: 0 | T110: 0 | U110: 0 | V110: 0 | W110: 0 | X110: 0 | Y110: 0 | Z110: 0 | AA110: 0 | AB110: 0 | AC110: 0 | AD110: 0 | AE110: 0 | AF110: 0 | AG110: 0 | AH110: 0 | AI110: 0 | AJ110: 0 | AK110: 0 | AL110: 0 | AM110: 0 | AN110: 0 | AO110: 0 | AP110: 0 | AQ110: 0
B111: VolExpl | C111: OVOLERSADMaCPFAIBL | D111: Volume ERS Admissible InclusActions aCPFAIBL | F111: 0 | G111: 0 | H111: 0 | I111: 0 | J111: 0 | K111: 0 | L111: 0 | M111: 0 | N111: 0 | O111: 0 | P111: 0 | Q111: 0 | R111: 0 | S111: 0 | T111: 0 | U111: 0 | V111: 0 | W111: 0 | X111: 0 | Y111: 0 | Z111: 0 | AA111: 0 | AB111: 0 | AC111: 0 | AD111: 0 | AE111: 0 | AF111: 0 | AG111: 0 | AH111: 0 | AI111: 0 | AJ111: 0 | AK111: 0 | AL111: 0 | AM111: 0 | AN111: 0 | AO111: 0 | AP111: 0 | AQ111: 0
B112: VolExpl | C112: OVOLERSADMaCP | D112: Volume ERS Admissible InclusActions aCP | F112: 0 | G112: 0 | H112: 0 | I112: 0 | J112: 0 | K112: 0 | L112: 0 | M112: 0 | N112: 0 | O112: 0 | P112: 0 | Q112: 0 | R112: 0 | S112: 0 | T112: 0 | U112: 0 | V112: 0 | W112: 0 | X112: 0 | Y112: 0 | Z112: 0 | AA112: 0 | AB112: 0 | AC112: 0 | AD112: 0 | AE112: 0 | AF112: 0 | AG112: 0 | AH112: 0 | AI112: 0 | AJ112: 0 | AK112: 0 | AL112: 0 | AM112: 0 | AN112: 0 | AO112: 0 | AP112: 0 | AQ112: 0
B113: VolExpl | C113: OVOLERSADMaCPJ | D113: Volume ERS Admissible InclusActions aCPJ | F113: 0 | G113: 0 | H113: 0 | I113: 0 | J113: 0 | K113: 0 | L113: 0 | M113: 0 | N113: 0 | O113: 0 | P113: 0 | Q113: 0 | R113: 0 | S113: 0 | T113: 0 | U113: 0 | V113: 0 | W113: 0 | X113: 0 | Y113: 0 | Z113: 0 | AA113: 0 | AB113: 0 | AC113: 0 | AD113: 0 | AE113: 0 | AF113: 0 | AG113: 0 | AH113: 0 | AI113: 0 | AJ113: 0 | AK113: 0 | AL113: 0 | AM113: 0 | AN113: 0 | AO113: 0 | AP113: 0 | AQ113: 0
B114: VolExpl | C114: OVOLERSADMaCJ | D114: Volume ERS Admissible InclusActions aCJ | F114: 0 | G114: 0 | H114: 0 | I114: 0 | J114: 0 | K114: 0 | L114: 0 | M114: 0 | N114: 0 | O114: 0 | P114: 0 | Q114: 0 | R114: 0 | S114: 0 | T114: 0 | U114: 0 | V114: 0 | W114: 0 | X114: 0 | Y114: 0 | Z114: 0 | AA114: 0 | AB114: 0 | AC114: 0 | AD114: 0 | AE114: 0 | AF114: 0 | AG114: 0 | AH114: 0 | AI114: 0 | AJ114: 0 | AK114: 0 | AL114: 0 | AM114: 0 | AN114: 0 | AO114: 0 | AP114: 0 | AQ114: 0
B115: VolExpl | C115: OVOLERSADMaCRV | D115: Volume ERS Admissible InclusActions aCRV | F115: 0 | G115: 0 | H115: 0 | I115: 0 | J115: 0 | K115: 0 | L115: 0 | M115: 0 | N115: 0 | O115: 0 | P115: 0 | Q115: 0 | R115: 0 | S115: 0 | T115: 0 | U115: 0 | V115: 0 | W115: 0 | X115: 0 | Y115: 0 | Z115: 0 | AA115: 0 | AB115: 0 | AC115: 0 | AD115: 0 | AE115: 0 | AF115: 0 | AG115: 0 | AH115: 0 | AI115: 0 | AJ115: 0 | AK115: 0 | AL115: 0 | AM115: 0 | AN115: 0 | AO115: 0 | AP115: 0 | AQ115: 0
B116: VolExpl | C116: OVOLERSADMaCRS | D116: Volume ERS Admissible InclusActions aCRS | F116: 0 | G116: 0 | H116: 0 | I116: 0 | J116: 0 | K116: 0 | L116: 0 | M116: 0 | N116: 0 | O116: 0 | P116: 0 | Q116: 0 | R116: 0 | S116: 0 | T116: 0 | U116: 0 | V116: 0 | W116: 0 | X116: 0 | Y116: 0 | Z116: 0 | AA116: 0 | AB116: 0 | AC116: 0 | AD116: 0 | AE116: 0 | AF116: 0 | AG116: 0 | AH116: 0 | AI116: 0 | AJ116: 0 | AK116: 0 | AL116: 0 | AM116: 0 | AN116: 0 | AO116: 0 | AP116: 0 | AQ116: 0
B117: VolExpl | C117: OVOLERSADMaCFP | D117: Volume ERS Admissible InclusActions aCFP | F117: 0 | G117: 0 | H117: 0 | I117: 0 | J117: 0 | K117: 0 | L117: 0 | M117: 0 | N117: 0 | O117: 0 | P117: 0 | Q117: 0 | R117: 0 | S117: 0 | T117: 0 | U117: 0 | V117: 0 | W117: 0 | X117: 0 | Y117: 0 | Z117: 0 | AA117: 0 | AB117: 0 | AC117: 0 | AD117: 0 | AE117: 0 | AF117: 0 | AG117: 0 | AH117: 0 | AI117: 0 | AJ117: 0 | AK117: 0 | AL117: 0 | AM117: 0 | AN117: 0 | AO117: 0 | AP117: 0 | AQ117: 0
B118: VolExpl | C118: OVOLERSADMaCPPTM | D118: Volume ERS Admissible InclusActions aCPPTM | F118: 0 | G118: 0 | H118: 0 | I118: 0 | J118: 0 | K118: 0 | L118: 0 | M118: 0 | N118: 0 | O118: 0 | P118: 0 | Q118: 0 | R118: 0 | S118: 0 | T118: 0 | U118: 0 | V118: 0 | W118: 0 | X118: 0 | Y118: 0 | Z118: 0 | AA118: 0 | AB118: 0 | AC118: 0 | AD118: 0 | AE118: 0 | AF118: 0 | AG118: 0 | AH118: 0 | AI118: 0 | AJ118: 0 | AK118: 0 | AL118: 0 | AM118: 0 | AN118: 0 | AO118: 0 | AP118: 0 | AQ118: 0
B119: VolExpl | C119: OVOLERSADMaCT | D119: Volume ERS Admissible InclusActions aCT | F119: 0 | G119: 0 | H119: 0 | I119: 0 | J119: 0 | K119: 0 | L119: 0 | M119: 0 | N119: 0 | O119: 0 | P119: 0 | Q119: 0 | R119: 0 | S119: 0 | T119: 0 | U119: 0 | V119: 0 | W119: 0 | X119: 0 | Y119: 0 | Z119: 0 | AA119: 0 | AB119: 0 | AC119: 0 | AD119: 0 | AE119: 0 | AF119: 0 | AG119: 0 | AH119: 0 | AI119: 0 | AJ119: 0 | AK119: 0 | AL119: 0 | AM119: 0 | AN119: 0 | AO119: 0 | AP119: 0 | AQ119: 0
B120: VolExpl | C120: OVOLERSADMregaPRE | D120: Volume ERS Admissible InclusActions regaPRE | F120: 0 | G120: 0 | H120: 0 | I120: 0 | J120: 0 | K120: 0 | L120: 0 | M120: 0 | N120: 0 | O120: 0 | P120: 0 | Q120: 0 | R120: 0 | S120: 0 | T120: 0 | U120: 0 | V120: 0 | W120: 0 | X120: 0 | Y120: 0 | Z120: 0 | AA120: 0 | AB120: 0 | AC120: 0 | AD120: 0 | AE120: 0 | AF120: 0 | AG120: 0 | AH120: 0 | AI120: 0 | AJ120: 0 | AK120: 0 | AL120: 0 | AM120: 0 | AN120: 0 | AO120: 0 | AP120: 0 | AQ120: 0
B121: VolExpl | C121: OVOLSABADMaEC | D121: Volume SAB Admissible InclusActions aEC | F121: 0 | G121: 5436.44 | H121: 0 | I121: 0 | J121: 130.82 | K121: 1949.56 | L121: 2707.42 | M121: 330.14 | N121: 1116.72 | O121: 3362.94 | P121: 5436.44 | Q121: 3965.49 | R121: 133.03 | S121: 0 | T121: 0 | U121: 0 | V121: 0 | W121: 0 | X121: 0 | Y121: 0 | Z121: 0 | AA121: 0 | AB121: 0 | AC121: 0 | AD121: 0 | AE121: 0 | AF121: 0 | AG121: 0 | AH121: 0 | AI121: 0 | AJ121: 0 | AK121: 0 | AL121: 0 | AM121: 1246.932 | AN121: 2579.58 | AO121: 0 | AP121: 0 | AQ121: 659.7434483
B122: VolExpl | C122: OVOLSABADMaEC2 | D122: Volume SAB Admissible InclusActions aEC2 | F122: 0 | G122: 0 | H122: 0 | I122: 0 | J122: 0 | K122: 0 | L122: 0 | M122: 0 | N122: 0 | O122: 0 | P122: 0 | Q122: 0 | R122: 0 | S122: 0 | T122: 0 | U122: 0 | V122: 0 | W122: 0 | X122: 0 | Y122: 0 | Z122: 0 | AA122: 0 | AB122: 0 | AC122: 0 | AD122: 0 | AE122: 0 | AF122: 0 | AG122: 0 | AH122: 0 | AI122: 0 | AJ122: 0 | AK122: 0 | AL122: 0 | AM122: 0 | AN122: 0 | AO122: 0 | AP122: 0 | AQ122: 0
B123: VolExpl | C123: OVOLSABADMaEC3 | D123: Volume SAB Admissible InclusActions aEC3 | F123: 0 | G123: 0 | H123: 0 | I123: 0 | J123: 0 | K123: 0 | L123: 0 | M123: 0 | N123: 0 | O123: 0 | P123: 0 | Q123: 0 | R123: 0 | S123: 0 | T123: 0 | U123: 0 | V123: 0 | W123: 0 | X123: 0 | Y123: 0 | Z123: 0 | AA123: 0 | AB123: 0 | AC123: 0 | AD123: 0 | AE123: 0 | AF123: 0 | AG123: 0 | AH123: 0 | AI123: 0 | AJ123: 0 | AK123: 0 | AL123: 0 | AM123: 0 | AN123: 0 | AO123: 0 | AP123: 0 | AQ123: 0
B124: VolExpl | C124: OVOLSABADMaCA | D124: Volume SAB Admissible InclusActions aCA | F124: 0 | G124: 0 | H124: 0 | I124: 0 | J124: 0 | K124: 0 | L124: 0 | M124: 0 | N124: 0 | O124: 0 | P124: 0 | Q124: 0 | R124: 0 | S124: 0 | T124: 0 | U124: 0 | V124: 0 | W124: 0 | X124: 0 | Y124: 0 | Z124: 0 | AA124: 0 | AB124: 0 | AC124: 0 | AD124: 0 | AE124: 0 | AF124: 0 | AG124: 0 | AH124: 0 | AI124: 0 | AJ124: 0 | AK124: 0 | AL124: 0 | AM124: 0 | AN124: 0 | AO124: 0 | AP124: 0 | AQ124: 0
B125: VolExpl | C125: OVOLSABADMaCA2 | D125: Volume SAB Admissible InclusActions aCA2 | F125: 0 | G125: 0 | H125: 0 | I125: 0 | J125: 0 | K125: 0 | L125: 0 | M125: 0 | N125: 0 | O125: 0 | P125: 0 | Q125: 0 | R125: 0 | S125: 0 | T125: 0 | U125: 0 | V125: 0 | W125: 0 | X125: 0 | Y125: 0 | Z125: 0 | AA125: 0 | AB125: 0 | AC125: 0 | AD125: 0 | AE125: 0 | AF125: 0 | AG125: 0 | AH125: 0 | AI125: 0 | AJ125: 0 | AK125: 0 | AL125: 0 | AM125: 0 | AN125: 0 | AO125: 0 | AP125: 0 | AQ125: 0
B126: VolExpl | C126: OVOLSABADMaCPROG | D126: Volume SAB Admissible InclusActions aCPROG | F126: 0 | G126: 0 | H126: 0 | I126: 0 | J126: 0 | K126: 0 | L126: 0 | M126: 0 | N126: 0 | O126: 0 | P126: 0 | Q126: 0 | R126: 0 | S126: 0 | T126: 0 | U126: 0 | V126: 0 | W126: 0 | X126: 0 | Y126: 0 | Z126: 0 | AA126: 0 | AB126: 0 | AC126: 0 | AD126: 0 | AE126: 0 | AF126: 0 | AG126: 0 | AH126: 0 | AI126: 0 | AJ126: 0 | AK126: 0 | AL126: 0 | AM126: 0 | AN126: 0 | AO126: 0 | AP126: 0 | AQ126: 0
B127: VolExpl | C127: OVOLSABADMaCPIL | D127: Volume SAB Admissible InclusActions aCPIL | F127: 0 | G127: 96799.34 | H127: 0 | I127: 33261.27 | J127: 45216.44 | K127: 28953.85 | L127: 37439.55 | M127: 96799.34 | N127: 96552.11 | O127: 54258.8 | P127: 58345.23 | Q127: 58489.71 | R127: 54774.7 | S127: 44459.38 | T127: 43715.26 | U127: 39989.03 | V127: 45365.25 | W127: 52397.46 | X127: 39498.54 | Y127: 69933.4 | Z127: 74951.22 | AA127: 45191.69 | AB127: 53901.26 | AC127: 36317.94 | AD127: 28165.03 | AE127: 26264.29 | AF127: 36899.48 | AG127: 46231.12 | AH127: 36831.66 | AI127: 29728.3 | AJ127: 16226.74 | AK127: 49576.87 | AL127: 46193.82 | AM127: 60992.258 | AN127: 54065.564 | AO127: 51660.34556 | AP127: 35243.525 | AQ127: 48023.01621
B128: VolExpl | C128: OVOLSABADMaCPIP | D128: Volume SAB Admissible InclusActions aCPIP | F128: 0 | G128: 0 | H128: 0 | I128: 0 | J128: 0 | K128: 0 | L128: 0 | M128: 0 | N128: 0 | O128: 0 | P128: 0 | Q128: 0 | R128: 0 | S128: 0 | T128: 0 | U128: 0 | V128: 0 | W128: 0 | X128: 0 | Y128: 0 | Z128: 0 | AA128: 0 | AB128: 0 | AC128: 0 | AD128: 0 | AE128: 0 | AF128: 0 | AG128: 0 | AH128: 0 | AI128: 0 | AJ128: 0 | AK128: 0 | AL128: 0 | AM128: 0 | AN128: 0 | AO128: 0 | AP128: 0 | AQ128: 0
